Workbook

Sheet Basic Setup
B1: Simulator 2.0 - R Setup (System recommends R >= 4.0.4)
B3: This version is built for the new R4.0. For older R version, please use cascsim.xlsm instead.
B4: R Installation Folder | C4: C:\LSM\R\R-4.1.2\bin\x64 | I4: R Location in C4 Verified.
I6: Required R Libraries are installed. You still can click button to check updates.

Sheet Run Control
B1: Individual Claim Simulator API - Run Control
B3: 1. Parallel Computing | G3: Available Cores
B4: # of CPU Cores | C4: 1 | G4: 32767
B5: 2. Simulation
B6: # of Simulations (Portfolio) | C6: 2
B7: Monitoring Frequency | C7: 1
B8: 3. Output
B9: Working Folder | C9: C:\lsm\wd | D9: Mid-process files (don't change)
B10: 4. Valuation Period
B11: Claim Data Start Date | C11: 2008-01-01
B12: Claim Data Ending Date (Future Claim Start Date) | C12: 2017-12-31
B13: Future Claim Ending Date | C13: 2018-12-31
B14: 5. Simulation Claim Class
B15: IBNER (Open Claim) | C15: Yes
B16: REOPEN (Claim Reopen) | C16: No
B17: IBNR | C17: Yes
B18: UPR (Future Claim) | C18: No
B19: Simulation Result File Name | C19: sim | D19: =wf&IF(RIGHT(wf,1)="\","","\")&C19&".csv" -> C:\lsm\wd\sim.csv
B20: Result Summary File Name | C20: summary | D20: C:\lsm\wd\summary.csv
B21: Result Triangle File | C21: ="tri"&simsumFile -> trisummary | D21: =wf&IF(RIGHT(wf,1)="\","","\")&"tri"&C20&".csv" -> C:\lsm\wd\trisummary.csv
B22: HTML Report File Name | C22: simReport | D22: =wf&IF(RIGHT(wf,1)="\","","\")&"report\"&C22&".html" -> C:\lsm\wd\report\simReport.html
B23: Simulation Run Log File | C23: mylog | D23: =wf&IF(RIGHT(wf,1)="\","","\")&C23&".txt" -> C:\lsm\wd\mylog.txt
B24: Distribution Fitting File Name | C24: fitsummary | D24: =wf&IF(RIGHT(wf,1)="\","","\")&C24&".csv" -> C:\lsm\wd\fitsummary.csv
B25: Copula Fitting File Name | C25: fitsumcop | D25: =wf&IF(RIGHT(wf,1)="\","","\")&C25&".csv" -> C:\lsm\wd\fitsumcop.csv
B26: Claim Data Fitting Report | C26: fitreport | D26: =wf&IF(RIGHT(wf,1)="\","","\")&"fit\"&C26&".html" -> C:\lsm\wd\fit\fitreport.html
B27: Fitting Run Log File | C27: myfitlog | D27: =wf&IF(RIGHT(wf,1)="\","","\")&C27&".txt" -> C:\lsm\wd\myfitlog.txt
B28: 6. Fitting Target
B29: Frequency | C29: Yes
B30: Severity | C30: Yes
B31: Report Lag | C31: Yes
B32: Settlement Lag | C32: Yes
B33: Lags and Severity Correlation | C33: Yes
B34: Frequency Copula | C34: Yes
B35: Deductible | C35: Yes
B36: Limit | C36: Yes

Sheet ClaimData
C1: Individual Claim Simulator API - Claim Data Setup
C3: Claim File | D3: C:\lsm\test2_claim.csv
C5: Data Field | D5: Use | E5: Match Field | F5: Required Format | T5: Yes | U5: ClaimID
C6: ClaimNo | D6: Yes | E6: ClaimID | F6: =IF(RIGHT(E6,4)="Date","yyyy-mm-dd",IF(E6="claimLiability","TRUE/FALSE",IF(E6="status","OPEN/CLOSED",IF(OR(E6="ClaimID",E6="LoB",E6="Type"),"numchar",IF(E6="","","num"))))) -> numchar | T6: Yes | U6: occurrenceDate
C7: AccidentDate | D7: Yes | E7: occurrenceDate | F7: yyyy-mm-dd | T7: Yes | U7: reportDate
C8: ReportDate | D8: Yes | E8: reportDate | F8: yyyy-mm-dd | T8: Yes | U8: LoB
C9: Line | D9: Yes | E9: LoB | F9: numchar | T9: Yes | U9: Type
C10: Type | D10: Yes | E10: Type | F10: numchar | T10: Yes | U10: claimLiability
C11: ClaimLiability | D11: Yes | E11: claimLiability | F11: TRUE/FALSE | T11: Yes | U11: Limit
C12: Limit | D12: Yes | E12: Limit | F12: num | T12: Yes | U12: Deductible
C13: Deductible | D13: Yes | E13: Deductible | F13: num | T13: Yes | U13: Paid
C14: TotalPayment | D14: Yes | E14: Paid | F14: num | T14: Yes | U14: settlementDate
C15: PaymentDate | D15: Yes | E15: settlementDate | F15: yyyy-mm-dd | T15: Yes
C16: CloseDate | D16: No | T16: Yes | U16: status
C17: Status | D17: Yes | E17: status | F17: OPEN/CLOSED | T17: Yes
C18: reportedCount | D18: No | T18: Yes
C19: closedPaidCount | D19: No | T19: Yes
C20: closedUnPaidCount | D20: No | I20: =getDates() -> 0 | T20: Yes
C21: openCount | D21: No | T21: Yes
C22: Paid | D22: No | T22: Yes
C23: Outstanding | D23: No | T23: Yes | U23: incurredLoss
C24: Incurred | D24: Yes | E24: incurredLoss | F24: num
D25: No | F25: =IF(RIGHT(E25,4)="Date","yyyy-mm-dd",IF(E25="claimLiability","TRUE/FALSE",IF(E25="status","OPEN/CLOSED",IF(OR(E25="ClaimID",E25="LoB",E25="Type"),"numchar",IF(E25="","","num"))))) -> 
D26: No
D27: No
F71: =IF(RIGHT(E71,4)="Date","yyyy-mm-dd",IF(E71="claimLiability","TRUE/FALSE",IF(E71="status","OPEN/CLOSED",IF(OR(E71="ClaimID",E71="LoB",E71="Type"),"numchar",IF(E71="","","num"))))) -> 

Sheet LoB
C1: Individual Claim Simulator API - LoB Assumptions
C2: Intrim Step DO NOT CHANGE | F2: 3 | G2: 4 | H2: =MAX(IF(List!J2:J28<>"",ROW(List!J2:J28)))-1 -> 13 | I2: 6 | J2: 7 | K2: 8 | L2: 9 | M2: 10 | N2: 11 | O2: 12 | P2: 13 | Q2: 14 | R2: 15 | S2: 16 | T2: 17 | U2: =AB2 -> 3 | V2: 19 | W2: 20 | X2: 21 | Y2: 22 | Z2: 23 | AA2: 24 | AB2: =MAX(IF(List!L2:L28<>"",ROW(List!L2:L28)))-1 -> 3 | AC2: 26 | AD2: 27 | AE2: 28 | AF2: 29 | AG2: 30 | AH2: 31 | AI2: 32 | AJ2: 33 | AK2: 34 | AL2: 35 | AM2: 36 | AN2: 37 | AO2: 38 | AP2: 39 | AQ2: 40 | AR2: 41 | AS2: 42 | AT2: 43 | AU2: 44 | AV2: 45 | AW2: 46 | AX2: 47 | AY2: 48 | AZ2: 49 | BA2: =MAX(IF(List!K2:K28<>"",ROW(List!K2:K28)))-1 -> 4 | BB2: 51 | BC2: 52 | BD2: 53 | BE2: 54 | BF2: =MAX(IF(List!M2:M28<>"",ROW(List!M2:M28)))-1 -> 7
F3: IBNER | G3: ROPEN | U3: IBNR/UPR | BB3: Deductible | BD3: Limit | BF3: P0
F4: Open Claim | G4: Claim Reopenness | I4: Reopen Lag | O4: Resettlement Lag | U4: Frequency | AB4: Severity | AJ4: Report Lag | AP4: Settlement Lag | AV4: Copula (Severity, Settlement Lag, and Report Lag) | BA4: LAE | BB4: Deductible | BD4: Limit | BF4: P0
C5: Business Line | D5: Claim Type | E5: Included | F5: IBNER Factor | G5: Reopen Probability | H5: Reopen IBNER Factor | I5: Distribution | J5: para1 | K5: para2 | L5: Truncated | M5: Min | N5: Max | O5: Distribution | P5: para1 | Q5: para2 | R5: Truncated | S5: Min | T5: Max | U5: Exopusure Index | V5: Distribution | W5: para1 | X5: para2 | Y5: Truncated | Z5: Min | AA5: Max | AB5: Severity index | AC5: Fitting Data | AD5: Distribution | AE5: para1 | AF5: para2 | AG5: Truncated | AH5: Min | AI5: Max | AJ5: Distribution | AK5: para1 | AL5: para2 | AM5: Truncated | AN5: Min | AO5: Max | AP5: Distribution | AQ5: para1 | AR5: para2 | AS5: Truncated | AT5: Min | AU5: Max | AV5: Type | AW5: Para1 | AX5: Para2 | AY5: Para3 | AZ5: df | BA5: Func/Table | BB5: Distribution | BC5: Para1 | BD5: Distribution | BE5: Para1 | BF5: Prob.
C6: Home | D6: Dwelling | E6: Yes | F6: CondPaid | G6: ZeroTable | H6: Level | I6: Exponential | J6: 0.005 | L6: No | O6: Exponential | P6: 0.005 | R6: No | U6: Flat | V6: Poisson | W6: 99.049 | AB6: Flat | AC6: CLOSED | AD6: Normal | AE6: 183286.6317 | AF6: 70239.9198 | AJ6: Weibull | AK6: 9.253 | AL6: 798.529 | AP6: Weibull | AQ6: 6.484 | AR6: 179.047 | AV6: Independent | BA6: ZeroFunc | BB6: Empirical | BC6: HomeDwellingDeductibleemp | BD6: Empirical | BE6: HomeDwellingLimitemp | BF6: HomeDwellingp0
C7: Auto | D7: PD | E7: Yes | F7: CondPaid | G7: ZeroTable | H7: Level | I7: Exponential | J7: 0.005 | L7: No | O7: Exponential | P7: 0.005 | R7: No | U7: Flat | V7: NegativeBinomial | W7: 22.172 | X7: 0.081 | AB7: Flat | AC7: CLOSED | AD7: Lognormal | AE7: 8.92767 | AF7: 0.52415 | AJ7: Exponential | AK7: 0.011 | AP7: Exponential | AQ7: 0.003 | AV7: Independent | BA7: ZeroFunc | BB7: Empirical | BC7: AutoPDDeductibleemp | BD7: Empirical | BE7: AutoPDLimitemp | BF7: AutoPDp0

Sheet LoBValidate (hidden)
C1: Individual Claim Simulator API - LoB Assumption Validation
C3: =IF(COUNTIFS(F6:BF25,"<>OK",F6:BF25,">""")=0,"Correct","Wrong") -> Correct | F3: RBNER | G3: ROPEN | U3: IBNR/UPR
F4: Open Claim | G4: Claim Reopenness | I4: Reopen Lag | O4: Resettlement Lag | U4: Frequency | AB4: Severity | AJ4: Report Lag | AP4: Settlement Lag | AV4: Copula | BA4: LAE | BB4: Deductible | BD4: Limit | BF4: P0
C5: Business Line | D5: Claim Type | E5: Included | F5: Loss Development Factor | G5: Reopen Probability | H5: Reopen Loss Development Factor | I5: Distribution | J5: para1 | K5: para2 | L5: Truncated | M5: Min | N5: Max | O5: Distribution | P5: para1 | Q5: para2 | R5: Truncated | S5: Min | T5: Max | U5: Exopusure Index | V5: Distribution | W5: para1 | X5: para2 | Y5: Truncated | Z5: Min | AA5: Max | AB5: Severity index | AC5: Fitting Data | AD5: Distribution | AE5: para1 | AF5: para2 | AG5: Truncated | AH5: Min | AI5: Max | AJ5: Distribution | AK5: para1 | AL5: para2 | AM5: Truncated | AN5: Min | AO5: Max | AP5: Distribution | AQ5: para1 | AR5: para2 | AS5: Truncated | AT5: Min | AU5: Max | AV5: Type | AW5: Para1 | AX5: Para2 | AY5: Para3 | AZ5: df | BA5: Function | BB5: Distribution | BC5: Para1 | BD5: Distribution | BE5: Para1 | BF5: Prob.
B6: =IF(COUNTIFS(F6:BF6,"<>OK",F6:BF6,">""")=0,"Correct","Wrong") -> Correct | C6: =IF(LoB!C6="","",LoB!C6) -> Home | D6: =IF(LoB!D6="","",LoB!D6) -> Dwelling | E6: =IF(LoB!E6="","",LoB!E6) -> Yes | F6: =IF($E6<>"Yes","",IF(OR(LoB!F6="CondPaid",LoB!F6="CondIncurLoss"),"OK",IF(OR(AND(ISERROR(MATCH(LoB!F6,FactorTable!$B$1:$GS$1,0)),ISERROR(MATCH(LoB!F6,Function!$C$1:$CX$1,0)))),"Not Available","OK"))) -> OK | G6: =IF($E6<>"Yes","",IF(OR(LoB!G6="",AND(ISERROR(MATCH(LoB!G6,FactorTable!$B$1:$GS$1,0)),ISERROR(MATCH(LoB!G6,Function!$C$1:$CX$1,0)))),"Not Available","OK")) -> OK | H6: =IF($E6<>"Yes","",IF(OR(LoB!H6="CondPaid",LoB!H6="CondIncurLoss"),"OK",IF(OR(AND(ISERROR(MATCH(LoB!H6,FactorTable!$B$1:$GS$1,0)),ISERROR(MATCH(LoB!H6,Function!$C$1:$CX$1,0)))),"Not Available","OK"))) -> OK | I6: =IF($E6<>"Yes","",IF(ISERROR(MATCH(LoB!I6,List!$A$2:$A$101,0)),"Not Available","OK")) -> OK | J6: =IF(I6<>"OK","",IF(LoB!I6="Empirical",IF(OR(LoB!J6="",ISERROR(MATCH(LoB!J6,Empirical!$B$1:$CW$1,0))),"Not Available","OK"),IF(AND(VLOOKUP(LoB!I6,List!$A$2:$E$101,2,FALSE)<>"",LoB!J6<=VLOOKUP(LoB!I6,List!$A$2:$E$101,2,FALSE)),"Too Small",IF(AND(VLOOKUP(LoB!I6,List!$A$2:$E$101,3,FALSE)<>"",LoB!J6>=VLOOKUP(LoB!I6,List!$A$2:$E$101,3,FALSE)),"Too Large","OK")))) -> OK | K6: =IF(I6<>"OK","",IF(AND(VLOOKUP(LoB!I6,List!$A$2:$E$101,4,FALSE)<>"",LoB!K6<=VLOOKUP(LoB!I6,List!$A$2:$E$101,4,FALSE)),"Too Small",IF(AND(VLOOKUP(LoB!I6,List!$A$2:$E$101,5,FALSE)<>"",LoB!K6>=VLOOKUP(LoB!I6,List!$A$2:$E$101,5,FALSE)),"Too Large","OK"))) -> OK | M6: =IF(I6<>"OK","",IF(AND(LoB!L6="Yes",LoB!M6>LoB!N6),"Min > Max",IF(AND(LoB!L6="Yes",NOT(ISNUMBER(LoB!M6))),"Not Number","OK"))) -> OK | N6: =IF(I6<>"OK","",IF(AND(LoB!L6="Yes",LoB!M6>LoB!N6),"Min > Max",IF(AND(LoB!L6="Yes",NOT(ISNUMBER(LoB!N6))),"Not Number","OK"))) -> OK | O6: =IF($E6<>"Yes","",IF(ISERROR(MATCH(LoB!O6,List!$A$2:$A$101,0)),"Not Available","OK")) -> OK | P6: =IF(O6<>"OK","",IF(LoB!O6="Empirical",IF(OR(LoB!P6="",ISERROR(MATCH(LoB!P6,Empirical!$B$1:$CW$1,0))),"Not Available","OK"),IF(AND(VLOOKUP(LoB!O6,List!$A$2:$E$101,2,FALSE)<>"",LoB!P6<=VLOOKUP(LoB!O6,List!$A$2:$E$101,2,FALSE)),"Too Small",IF(AND(VLOOKUP(LoB!O6,List!$A$2:$E$101,3,FALSE)<>"",LoB!P6>=VLOOKUP(LoB!O6,List!$A$2:$E$101,3,FALSE)),"Too Large","OK")))) -> OK | Q6: =IF(O6<>"OK","",IF(AND(VLOOKUP(LoB!O6,List!$A$2:$E$101,4,FALSE)<>"",LoB!Q6<=VLOOKUP(LoB!O6,List!$A$2:$E$101,4,FALSE)),"Too Small",IF(AND(VLOOKUP(LoB!O6,List!$A$2:$E$101,5,FALSE)<>"",LoB!Q6>=VLOOKUP(LoB!O6,List!$A$2:$E$101,5,FALSE)),"Too Large","OK"))) -> OK | S6: =IF(O6<>"OK","",IF(AND(LoB!R6="Yes",LoB!S6>LoB!T6),"Min > Max",IF(AND(LoB!R6="Yes",NOT(ISNUMBER(LoB!S6))),"Not Number","OK"))) -> OK | T6: =IF(O6<>"OK","",IF(AND(LoB!R6="Yes",LoB!S6>LoB!T6),"Min > Max",IF(AND(LoB!R6="Yes",NOT(ISNUMBER(LoB!T6))),"Not Number","OK"))) -> OK | U6: =IF($E6<>"Yes","",IF(OR(LoB!U6="",ISERROR(MATCH(LoB!U6,Index!$B$1:$CW$1,0))),"Not Available","OK")) -> OK | V6: =IF($E6<>"Yes","",IF(ISERROR(MATCH(LoB!V6,List!$A$2:$A$101,0)),"Not Available","OK")) -> OK | W6: =IF(V6<>"OK","",IF(LoB!V6="Empirical",IF(OR(LoB!W6="",ISERROR(MATCH(LoB!W6,Empirical!$B$1:$CW$1,0))),"Not Available","OK"),IF(AND(VLOOKUP(LoB!V6,List!$A$2:$E$101,2,FALSE)<>"",LoB!W6<=VLOOKUP(LoB!V6,List!$A$2:$E$101,2,FALSE)),"Too Small",IF(AND(VLOOKUP(LoB!V6,List!$A$2:$E$101,3,FALSE)<>"",LoB!W6>=VLOOKUP(LoB!V6,List!$A$2:$E$101,3,FALSE)),"Too Large","OK")))) -> OK | X6: =IF(V6<>"OK","",IF(AND(VLOOKUP(LoB!V6,List!$A$2:$E$101,4,FALSE)<>"",LoB!X6<=VLOOKUP(LoB!V6,List!$A$2:$E$101,4,FALSE)),"Too Small",IF(AND(VLOOKUP(LoB!V6,List!$A$2:$E$101,5,FALSE)<>"",LoB!X6>=VLOOKUP(LoB!V6,List!$A$2:$E$101,5,FALSE)),"Too Large","OK"))) -> OK | Z6: =IF(V6<>"OK","",IF(AND(LoB!Y6="Yes",LoB!Z6>LoB!AA6),"Min > Max",IF(AND(LoB!Y6="Yes",NOT(ISNUMBER(LoB!Z6))),"Not Number","OK"))) -> OK | AA6: =IF(V6<>"OK","",IF(AND(LoB!Y6="Yes",LoB!Z6>LoB!AA6),"Min > Max",IF(AND(LoB!Y6="Yes",NOT(ISNUMBER(LoB!AA6))),"Not Number","OK"))) -> OK | AB6: =IF($E6<>"Yes","",IF(OR(LoB!AB6="",ISERROR(MATCH(LoB!AB6,Index!$B$1:$CW$1,0))),"Not Available","OK")) -> OK | AC6: =IF($E6<>"Yes","",IF(OR(LoB!AC6="CLOSED",LoB!AC6="ALL"),"OK","Not Available")) -> OK | AD6: =IF($E6<>"Yes","",IF(ISERROR(MATCH(LoB!AD6,List!$A$2:$A$101,0)),"Not Available","OK")) -> OK | AE6: =IF(AD6<>"OK","",IF(LoB!AD6="Empirical",IF(OR(LoB!AE6="",ISERROR(MATCH(LoB!AE6,Empirical!$B$1:$CW$1,0))),"Not Available","OK"),IF(AND(VLOOKUP(LoB!AD6,List!$A$2:$E$101,2,FALSE)<>"",LoB!AE6<=VLOOKUP(LoB!AD6,List!$A$2:$E$101,2,FALSE)),"Too Small",IF(AND(VLOOKUP(LoB!AD6,List!$A$2:$E$101,3,FALSE)<>"",LoB!AE6>=VLOOKUP(LoB!AD6,List!$A$2:$E$101,3,FALSE)),"Too Large","OK")))) -> OK | AF6: =IF(AD6<>"OK","",IF(AND(VLOOKUP(LoB!AD6,List!$A$2:$E$101,4,FALSE)<>"",LoB!AF6<=VLOOKUP(LoB!AD6,List!$A$2:$E$101,4,FALSE)),"Too Small",IF(AND(VLOOKUP(LoB!AD6,List!$A$2:$E$101,5,FALSE)<>"",LoB!AF6>=VLOOKUP(LoB!AD6,List!$A$2:$E$101,5,FALSE)),"Too Large","OK"))) -> OK | AH6: =IF(AD6<>"OK","",IF(AND(LoB!AG6="Yes",LoB!AH6>LoB!AI6),"Min > Max",IF(AND(LoB!AG6="Yes",NOT(ISNUMBER(LoB!AH6))),"Not Number","OK"))) -> OK | AI6: =IF(AD6<>"OK","",IF(AND(LoB!AG6="Yes",LoB!AH6>LoB!AI6),"Min > Max",IF(AND(LoB!AG6="Yes",NOT(ISNUMBER(LoB!AI6))),"Not Number","OK"))) -> OK | AJ6: =IF($E6<>"Yes","",IF(ISERROR(MATCH(LoB!AJ6,List!$A$2:$A$101,0)),"Not Available","OK")) -> OK | AK6: =IF(AJ6<>"OK","",IF(LoB!AJ6="Empirical",IF(OR(LoB!AK6="",ISERROR(MATCH(LoB!AK6,Empirical!$B$1:$CW$1,0))),"Not Available","OK"),IF(AND(VLOOKUP(LoB!AJ6,List!$A$2:$E$101,2,FALSE)<>"",LoB!AK6<=VLOOKUP(LoB!AJ6,List!$A$2:$E$101,2,FALSE)),"Too Small",IF(AND(VLOOKUP(LoB!AJ6,List!$A$2:$E$101,3,FALSE)<>"",LoB!AK6>=VLOOKUP(LoB!AJ6,List!$A$2:$E$101,3,FALSE)),"Too Large","OK")))) -> OK | AL6: =IF(AJ6<>"OK","",IF(AND(VLOOKUP(LoB!AJ6,List!$A$2:$E$101,4,FALSE)<>"",LoB!AL6<=VLOOKUP(LoB!AJ6,List!$A$2:$E$101,4,FALSE)),"Too Small",IF(AND(VLOOKUP(LoB!AJ6,List!$A$2:$E$101,5,FALSE)<>"",LoB!AL6>=VLOOKUP(LoB!AJ6,List!$A$2:$E$101,5,FALSE)),"Too Large","OK"))) -> OK | AN6: =IF(AJ6<>"OK","",IF(AND(LoB!AM6="Yes",LoB!AN6>LoB!AO6),"Min > Max",IF(AND(LoB!AM6="Yes",NOT(ISNUMBER(LoB!AN6))),"Not Number","OK"))) -> OK | AO6: =IF(AJ6<>"OK","",IF(AND(LoB!AM6="Yes",LoB!AN6>LoB!AO6),"Min > Max",IF(AND(LoB!AM6="Yes",NOT(ISNUMBER(LoB!AO6))),"Not Number","OK"))) -> OK | AP6: =IF($E6<>"Yes","",IF(ISERROR(MATCH(LoB!AP6,List!$A$2:$A$101,0)),"Not Available","OK")) -> OK | AQ6: =IF(AP6<>"OK","",IF(LoB!AP6="Empirical",IF(OR(LoB!AQ6="",ISERROR(MATCH(LoB!AQ6,Empirical!$B$1:$CW$1,0))),"Not Available","OK"),IF(AND(VLOOKUP(LoB!AP6,List!$A$2:$E$101,2,FALSE)<>"",LoB!AQ6<=VLOOKUP(LoB!AP6,List!$A$2:$E$101,2,FALSE)),"Too Small",IF(AND(VLOOKUP(LoB!AP6,List!$A$2:$E$101,3,FALSE)<>"",LoB!AQ6>=VLOOKUP(LoB!AP6,List!$A$2:$E$101,3,FALSE)),"Too Large","OK")))) -> OK | AR6: =IF(AP6<>"OK","",IF(AND(VLOOKUP(LoB!AP6,List!$A$2:$E$101,4,FALSE)<>"",LoB!AR6<=VLOOKUP(LoB!AP6,List!$A$2:$E$101,4,FALSE)),"Too Small",IF(AND(VLOOKUP(LoB!AP6,List!$A$2:$E$101,5,FALSE)<>"",LoB!AR6>=VLOOKUP(LoB!AP6,List!$A$2:$E$101,5,FALSE)),"Too Large","OK"))) -> OK | AT6: =IF(AP6<>"OK","",IF(AND(LoB!AS6="Yes",LoB!AT6>LoB!AU6),"Min > Max",IF(AND(LoB!AS6="Yes",NOT(ISNUMBER(LoB!AT6))),"Not Number","OK"))) -> OK | AU6: =IF(AP6<>"OK","",IF(AND(LoB!AS6="Yes",LoB!AT6>LoB!AU6),"Min > Max",IF(AND(LoB!AS6="Yes",NOT(ISNUMBER(LoB!AU6))),"Not Number","OK"))) -> OK | AV6: =IF($E6<>"Yes","",IF(ISERROR(MATCH(LoB!AV6,List!$F$2:$F$101,0)),"Not Available","OK")) -> OK | AW6: =IF(AV6<>"OK","",IF(LoB!AV6="Independent","OK",IF(OR(AND(LoB!AV6="clayton",LoB!AW6<-1),AND(OR(LoB!AV6="gumbel",LoB!AV6="joe"),LoB!AW6<1),AND(LoB!AV6<>"normal",LoB!AV6<>"t",LoB!AW6=0)),"Invalid Value",IF(AND(OR(LoB!AV6="normal",LoB!AV6="t"),ABS(LoB!AW6)>1),"|Correlation|>1",IF(AND(OR(LoB!AV6="normal",LoB!AV6="t"),LoB!AW6=""),"No Value","OK"))))) -> OK | AX6: =IF(AV6<>"OK","",IF(LoB!AV6="Independent","OK", IF(AND(OR(LoB!AV6="normal",LoB!AV6="t"),1-LoB!AW6*LoB!AX6<0),"Non Positive Semidefinite",IF(ABS(LoB!AX6)>1,"|Correlation|>1",IF(LoB!AX6="","No Value","OK"))))) -> OK | AY6: =IF(AV6<>"OK","",IF(AND(OR(LoB!AV6="normal",LoB!AV6="t"),detm(LoB!AW6,LoB!AX6,LoB!AY6)<0),"Non Positive Semidefinite",IF(ABS(LoB!AY6)>1,"|Correlation >1",IF(LoB!AY6="","","OK")))) ->  | AZ6: =IF(AV6<>"OK","",IF(AND(LoB!AV6="t",LoB!AZ6<=0),"Wrong DoF","OK")) -> OK | BA6: =IF($E6<>"Yes","",IF(OR(LoB!BA6="",AND(ISERROR(MATCH(LoB!BA6,FactorTable!$B$1:$GS$1,0)),ISERROR(MATCH(LoB!BA6,Function!$C$1:$CX$1,0)))),"Not Available","OK")) -> OK | BB6: =IF($E6<>"Yes","",IF(OR(LoB!BB6="Empirical",LoB!BB6="None",LoB!BB6="Fixed"),"OK","Wrong")) -> OK | BC6: =IF(BB6<>"OK","",IF(LoB!BB6="Empirical",IF(OR(LoB!BC6="",ISERROR(MATCH(LoB!BC6,Empirical!$B$1:$CW$1,0))),"Not Available","OK"),IF(AND(LoB!BB6="Fixed",LoB!BC6>=0),"OK","OK"))) -> OK | BD6: =IF($E6<>"Yes","",IF(OR(LoB!BD6="Empirical",LoB!BD6="None",LoB!BB6="Fixed"),"OK","Wrong")) -> OK | BE6: =IF(BD6<>"OK","",IF(LoB!BD6="Empirical",IF(OR(LoB!BE6="",ISERROR(MATCH(LoB!BE6,Empirical!$B$1:$CW$1,0))),"Not Available","OK"),IF(AND(LoB!BD6="Fixed",LoB!BE6>=0),"OK","OK"))) -> OK | BF6: =IF($E6<>"Yes","",IF(OR(LoB!BF6="",ISERROR(MATCH(LoB!BF6,List!$M$2:$M$28,0))),"Not Available","OK")) -> OK
B7: =IF(COUNTIFS(F7:BF7,"<>OK",F7:BF7,">""")=0,"Correct","Wrong") -> Correct | C7: =IF(LoB!C7="","",LoB!C7) -> Auto | D7: =IF(LoB!D7="","",LoB!D7) -> PD | E7: =IF(LoB!E7="","",LoB!E7) -> Yes | F7: =IF($E7<>"Yes","",IF(OR(LoB!F7="CondPaid",LoB!F7="CondIncurLoss"),"OK",IF(OR(AND(ISERROR(MATCH(LoB!F7,FactorTable!$B$1:$GS$1,0)),ISERROR(MATCH(LoB!F7,Function!$C$1:$CX$1,0)))),"Not Available","OK"))) -> OK | G7: =IF($E7<>"Yes","",IF(OR(LoB!G7="",AND(ISERROR(MATCH(LoB!G7,FactorTable!$B$1:$GS$1,0)),ISERROR(MATCH(LoB!G7,Function!$C$1:$CX$1,0)))),"Not Available","OK")) -> OK | H7: =IF($E7<>"Yes","",IF(OR(LoB!H7="CondPaid",LoB!H7="CondIncurLoss"),"OK",IF(OR(AND(ISERROR(MATCH(LoB!H7,FactorTable!$B$1:$GS$1,0)),ISERROR(MATCH(LoB!H7,Function!$C$1:$CX$1,0)))),"Not Available","OK"))) -> OK | I7: =IF($E7<>"Yes","",IF(ISERROR(MATCH(LoB!I7,List!$A$2:$A$101,0)),"Not Available","OK")) -> OK | J7: =IF(I7<>"OK","",IF(LoB!I7="Empirical",IF(OR(LoB!J7="",ISERROR(MATCH(LoB!J7,Empirical!$B$1:$CW$1,0))),"Not Available","OK"),IF(AND(VLOOKUP(LoB!I7,List!$A$2:$E$101,2,FALSE)<>"",LoB!J7<=VLOOKUP(LoB!I7,List!$A$2:$E$101,2,FALSE)),"Too Small",IF(AND(VLOOKUP(LoB!I7,List!$A$2:$E$101,3,FALSE)<>"",LoB!J7>=VLOOKUP(LoB!I7,List!$A$2:$E$101,3,FALSE)),"Too Large","OK")))) -> OK | K7: =IF(I7<>"OK","",IF(AND(VLOOKUP(LoB!I7,List!$A$2:$E$101,4,FALSE)<>"",LoB!K7<=VLOOKUP(LoB!I7,List!$A$2:$E$101,4,FALSE)),"Too Small",IF(AND(VLOOKUP(LoB!I7,List!$A$2:$E$101,5,FALSE)<>"",LoB!K7>=VLOOKUP(LoB!I7,List!$A$2:$E$101,5,FALSE)),"Too Large","OK"))) -> OK | M7: =IF(I7<>"OK","",IF(AND(LoB!L7="Yes",LoB!M7>LoB!N7),"Min > Max",IF(AND(LoB!L7="Yes",NOT(ISNUMBER(LoB!M7))),"Not Number","OK"))) -> OK | N7: =IF(I7<>"OK","",IF(AND(LoB!L7="Yes",LoB!M7>LoB!N7),"Min > Max",IF(AND(LoB!L7="Yes",NOT(ISNUMBER(LoB!N7))),"Not Number","OK"))) -> OK | O7: =IF($E7<>"Yes","",IF(ISERROR(MATCH(LoB!O7,List!$A$2:$A$101,0)),"Not Available","OK")) -> OK | P7: =IF(O7<>"OK","",IF(LoB!O7="Empirical",IF(OR(LoB!P7="",ISERROR(MATCH(LoB!P7,Empirical!$B$1:$CW$1,0))),"Not Available","OK"),IF(AND(VLOOKUP(LoB!O7,List!$A$2:$E$101,2,FALSE)<>"",LoB!P7<=VLOOKUP(LoB!O7,List!$A$2:$E$101,2,FALSE)),"Too Small",IF(AND(VLOOKUP(LoB!O7,List!$A$2:$E$101,3,FALSE)<>"",LoB!P7>=VLOOKUP(LoB!O7,List!$A$2:$E$101,3,FALSE)),"Too Large","OK")))) -> OK | Q7: =IF(O7<>"OK","",IF(AND(VLOOKUP(LoB!O7,List!$A$2:$E$101,4,FALSE)<>"",LoB!Q7<=VLOOKUP(LoB!O7,List!$A$2:$E$101,4,FALSE)),"Too Small",IF(AND(VLOOKUP(LoB!O7,List!$A$2:$E$101,5,FALSE)<>"",LoB!Q7>=VLOOKUP(LoB!O7,List!$A$2:$E$101,5,FALSE)),"Too Large","OK"))) -> OK | S7: =IF(O7<>"OK","",IF(AND(LoB!R7="Yes",LoB!S7>LoB!T7),"Min > Max",IF(AND(LoB!R7="Yes",NOT(ISNUMBER(LoB!S7))),"Not Number","OK"))) -> OK | T7: =IF(O7<>"OK","",IF(AND(LoB!R7="Yes",LoB!S7>LoB!T7),"Min > Max",IF(AND(LoB!R7="Yes",NOT(ISNUMBER(LoB!T7))),"Not Number","OK"))) -> OK | U7: =IF($E7<>"Yes","",IF(OR(LoB!U7="",ISERROR(MATCH(LoB!U7,Index!$B$1:$CW$1,0))),"Not Available","OK")) -> OK | V7: =IF($E7<>"Yes","",IF(ISERROR(MATCH(LoB!V7,List!$A$2:$A$101,0)),"Not Available","OK")) -> OK | W7: =IF(V7<>"OK","",IF(LoB!V7="Empirical",IF(OR(LoB!W7="",ISERROR(MATCH(LoB!W7,Empirical!$B$1:$CW$1,0))),"Not Available","OK"),IF(AND(VLOOKUP(LoB!V7,List!$A$2:$E$101,2,FALSE)<>"",LoB!W7<=VLOOKUP(LoB!V7,List!$A$2:$E$101,2,FALSE)),"Too Small",IF(AND(VLOOKUP(LoB!V7,List!$A$2:$E$101,3,FALSE)<>"",LoB!W7>=VLOOKUP(LoB!V7,List!$A$2:$E$101,3,FALSE)),"Too Large","OK")))) -> OK | X7: =IF(V7<>"OK","",IF(AND(VLOOKUP(LoB!V7,List!$A$2:$E$101,4,FALSE)<>"",LoB!X7<=VLOOKUP(LoB!V7,List!$A$2:$E$101,4,FALSE)),"Too Small",IF(AND(VLOOKUP(LoB!V7,List!$A$2:$E$101,5,FALSE)<>"",LoB!X7>=VLOOKUP(LoB!V7,List!$A$2:$E$101,5,FALSE)),"Too Large","OK"))) -> OK | Z7: =IF(V7<>"OK","",IF(AND(LoB!Y7="Yes",LoB!Z7>LoB!AA7),"Min > Max",IF(AND(LoB!Y7="Yes",NOT(ISNUMBER(LoB!Z7))),"Not Number","OK"))) -> OK | AA7: =IF(V7<>"OK","",IF(AND(LoB!Y7="Yes",LoB!Z7>LoB!AA7),"Min > Max",IF(AND(LoB!Y7="Yes",NOT(ISNUMBER(LoB!AA7))),"Not Number","OK"))) -> OK | AB7: =IF($E7<>"Yes","",IF(OR(LoB!AB7="",ISERROR(MATCH(LoB!AB7,Index!$B$1:$CW$1,0))),"Not Available","OK")) -> OK | AC7: =IF($E7<>"Yes","",IF(OR(LoB!AC7="CLOSED",LoB!AC7="ALL"),"OK","Not Available")) -> OK | AD7: =IF($E7<>"Yes","",IF(ISERROR(MATCH(LoB!AD7,List!$A$2:$A$101,0)),"Not Available","OK")) -> OK | AE7: =IF(AD7<>"OK","",IF(LoB!AD7="Empirical",IF(OR(LoB!AE7="",ISERROR(MATCH(LoB!AE7,Empirical!$B$1:$CW$1,0))),"Not Available","OK"),IF(AND(VLOOKUP(LoB!AD7,List!$A$2:$E$101,2,FALSE)<>"",LoB!AE7<=VLOOKUP(LoB!AD7,List!$A$2:$E$101,2,FALSE)),"Too Small",IF(AND(VLOOKUP(LoB!AD7,List!$A$2:$E$101,3,FALSE)<>"",LoB!AE7>=VLOOKUP(LoB!AD7,List!$A$2:$E$101,3,FALSE)),"Too Large","OK")))) -> OK | AF7: =IF(AD7<>"OK","",IF(AND(VLOOKUP(LoB!AD7,List!$A$2:$E$101,4,FALSE)<>"",LoB!AF7<=VLOOKUP(LoB!AD7,List!$A$2:$E$101,4,FALSE)),"Too Small",IF(AND(VLOOKUP(LoB!AD7,List!$A$2:$E$101,5,FALSE)<>"",LoB!AF7>=VLOOKUP(LoB!AD7,List!$A$2:$E$101,5,FALSE)),"Too Large","OK"))) -> OK | AH7: =IF(AD7<>"OK","",IF(AND(LoB!AG7="Yes",LoB!AH7>LoB!AI7),"Min > Max",IF(AND(LoB!AG7="Yes",NOT(ISNUMBER(LoB!AH7))),"Not Number","OK"))) -> OK | AI7: =IF(AD7<>"OK","",IF(AND(LoB!AG7="Yes",LoB!AH7>LoB!AI7),"Min > Max",IF(AND(LoB!AG7="Yes",NOT(ISNUMBER(LoB!AI7))),"Not Number","OK"))) -> OK | AJ7: =IF($E7<>"Yes","",IF(ISERROR(MATCH(LoB!AJ7,List!$A$2:$A$101,0)),"Not Available","OK")) -> OK | AK7: =IF(AJ7<>"OK","",IF(LoB!AJ7="Empirical",IF(OR(LoB!AK7="",ISERROR(MATCH(LoB!AK7,Empirical!$B$1:$CW$1,0))),"Not Available","OK"),IF(AND(VLOOKUP(LoB!AJ7,List!$A$2:$E$101,2,FALSE)<>"",LoB!AK7<=VLOOKUP(LoB!AJ7,List!$A$2:$E$101,2,FALSE)),"Too Small",IF(AND(VLOOKUP(LoB!AJ7,List!$A$2:$E$101,3,FALSE)<>"",LoB!AK7>=VLOOKUP(LoB!AJ7,List!$A$2:$E$101,3,FALSE)),"Too Large","OK")))) -> OK | AL7: =IF(AJ7<>"OK","",IF(AND(VLOOKUP(LoB!AJ7,List!$A$2:$E$101,4,FALSE)<>"",LoB!AL7<=VLOOKUP(LoB!AJ7,List!$A$2:$E$101,4,FALSE)),"Too Small",IF(AND(VLOOKUP(LoB!AJ7,List!$A$2:$E$101,5,FALSE)<>"",LoB!AL7>=VLOOKUP(LoB!AJ7,List!$A$2:$E$101,5,FALSE)),"Too Large","OK"))) -> OK | AN7: =IF(AJ7<>"OK","",IF(AND(LoB!AM7="Yes",LoB!AN7>LoB!AO7),"Min > Max",IF(AND(LoB!AM7="Yes",NOT(ISNUMBER(LoB!AN7))),"Not Number","OK"))) -> OK | AO7: =IF(AJ7<>"OK","",IF(AND(LoB!AM7="Yes",LoB!AN7>LoB!AO7),"Min > Max",IF(AND(LoB!AM7="Yes",NOT(ISNUMBER(LoB!AO7))),"Not Number","OK"))) -> OK | AP7: =IF($E7<>"Yes","",IF(ISERROR(MATCH(LoB!AP7,List!$A$2:$A$101,0)),"Not Available","OK")) -> OK | AQ7: =IF(AP7<>"OK","",IF(LoB!AP7="Empirical",IF(OR(LoB!AQ7="",ISERROR(MATCH(LoB!AQ7,Empirical!$B$1:$CW$1,0))),"Not Available","OK"),IF(AND(VLOOKUP(LoB!AP7,List!$A$2:$E$101,2,FALSE)<>"",LoB!AQ7<=VLOOKUP(LoB!AP7,List!$A$2:$E$101,2,FALSE)),"Too Small",IF(AND(VLOOKUP(LoB!AP7,List!$A$2:$E$101,3,FALSE)<>"",LoB!AQ7>=VLOOKUP(LoB!AP7,List!$A$2:$E$101,3,FALSE)),"Too Large","OK")))) -> OK | AR7: =IF(AP7<>"OK","",IF(AND(VLOOKUP(LoB!AP7,List!$A$2:$E$101,4,FALSE)<>"",LoB!AR7<=VLOOKUP(LoB!AP7,List!$A$2:$E$101,4,FALSE)),"Too Small",IF(AND(VLOOKUP(LoB!AP7,List!$A$2:$E$101,5,FALSE)<>"",LoB!AR7>=VLOOKUP(LoB!AP7,List!$A$2:$E$101,5,FALSE)),"Too Large","OK"))) -> OK | AT7: =IF(AP7<>"OK","",IF(AND(LoB!AS7="Yes",LoB!AT7>LoB!AU7),"Min > Max",IF(AND(LoB!AS7="Yes",NOT(ISNUMBER(LoB!AT7))),"Not Number","OK"))) -> OK | AU7: =IF(AP7<>"OK","",IF(AND(LoB!AS7="Yes",LoB!AT7>LoB!AU7),"Min > Max",IF(AND(LoB!AS7="Yes",NOT(ISNUMBER(LoB!AU7))),"Not Number","OK"))) -> OK | AV7: =IF($E7<>"Yes","",IF(ISERROR(MATCH(LoB!AV7,List!$F$2:$F$101,0)),"Not Available","OK")) -> OK | AW7: =IF(AV7<>"OK","",IF(LoB!AV7="Independent","OK",IF(OR(AND(LoB!AV7="clayton",LoB!AW7<-1),AND(OR(LoB!AV7="gumbel",LoB!AV7="joe"),LoB!AW7<1),AND(LoB!AV7<>"normal",LoB!AV7<>"t",LoB!AW7=0)),"Invalid Value",IF(AND(OR(LoB!AV7="normal",LoB!AV7="t"),ABS(LoB!AW7)>1),"|Correlation|>1",IF(AND(OR(LoB!AV7="normal",LoB!AV7="t"),LoB!AW7=""),"No Value","OK"))))) -> OK | AX7: =IF(AV7<>"OK","",IF(LoB!AV7="Independent","OK", IF(AND(OR(LoB!AV7="normal",LoB!AV7="t"),1-LoB!AW7*LoB!AX7<0),"Non Positive Semidefinite",IF(ABS(LoB!AX7)>1,"|Correlation|>1",IF(LoB!AX7="","No Value","OK"))))) -> OK | AY7: =IF(AV7<>"OK","",IF(AND(OR(LoB!AV7="normal",LoB!AV7="t"),detm(LoB!AW7,LoB!AX7,LoB!AY7)<0),"Non Positive Semidefinite",IF(ABS(LoB!AY7)>1,"|Correlation >1",IF(LoB!AY7="","","OK")))) ->  | AZ7: =IF(AV7<>"OK","",IF(AND(LoB!AV7="t",LoB!AZ7<=0),"Wrong DoF","OK")) -> OK | BA7: =IF($E7<>"Yes","",IF(OR(LoB!BA7="",AND(ISERROR(MATCH(LoB!BA7,FactorTable!$B$1:$GS$1,0)),ISERROR(MATCH(LoB!BA7,Function!$C$1:$CX$1,0)))),"Not Available","OK")) -> OK | BB7: =IF($E7<>"Yes","",IF(OR(LoB!BB7="Empirical",LoB!BB7="None",LoB!BB7="Fixed"),"OK","Wrong")) -> OK | BC7: =IF(BB7<>"OK","",IF(LoB!BB7="Empirical",IF(OR(LoB!BC7="",ISERROR(MATCH(LoB!BC7,Empirical!$B$1:$CW$1,0))),"Not Available","OK"),IF(AND(LoB!BB7="Fixed",LoB!BC7>=0),"OK","OK"))) -> OK | BD7: =IF($E7<>"Yes","",IF(OR(LoB!BD7="Empirical",LoB!BD7="None",LoB!BB7="Fixed"),"OK","Wrong")) -> OK | BE7: =IF(BD7<>"OK","",IF(LoB!BD7="Empirical",IF(OR(LoB!BE7="",ISERROR(MATCH(LoB!BE7,Empirical!$B$1:$CW$1,0))),"Not Available","OK"),IF(AND(LoB!BD7="Fixed",LoB!BE7>=0),"OK","OK"))) -> OK | BF7: =IF($E7<>"Yes","",IF(OR(LoB!BF7="",ISERROR(MATCH(LoB!BF7,List!$M$2:$M$28,0))),"Not Available","OK")) -> OK
B8: Correct | C8: =IF(LoB!C8="","",LoB!C8) ->  | D8: =IF(LoB!D8="","",LoB!D8) ->  | E8: =IF(LoB!E8="","",LoB!E8) ->  | F8: =IF($E8<>"Yes","",IF(OR(LoB!F8="CondPaid",LoB!F8="CondIncurLoss"),"OK",IF(OR(AND(ISERROR(MATCH(LoB!F8,FactorTable!$B$1:$GS$1,0)),ISERROR(MATCH(LoB!F8,Function!$C$1:$CX$1,0)))),"Not Available","OK"))) ->  | G8: =IF($E8<>"Yes","",IF(OR(LoB!G8="",AND(ISERROR(MATCH(LoB!G8,FactorTable!$B$1:$GS$1,0)),ISERROR(MATCH(LoB!G8,Function!$C$1:$CX$1,0)))),"Not Available","OK")) ->  | H8: =IF($E8<>"Yes","",IF(OR(LoB!H8="CondPaid",LoB!H8="CondIncurLoss"),"OK",IF(OR(AND(ISERROR(MATCH(LoB!H8,FactorTable!$B$1:$GS$1,0)),ISERROR(MATCH(LoB!H8,Function!$C$1:$CX$1,0)))),"Not Available","OK"))) ->  | I8: =IF($E8<>"Yes","",IF(ISERROR(MATCH(LoB!I8,List!$A$2:$A$101,0)),"Not Available","OK")) ->  | J8: =IF(I8<>"OK","",IF(LoB!I8="Empirical",IF(OR(LoB!J8="",ISERROR(MATCH(LoB!J8,Empirical!$B$1:$CW$1,0))),"Not Available","OK"),IF(AND(VLOOKUP(LoB!I8,List!$A$2:$E$101,2,FALSE)<>"",LoB!J8<=VLOOKUP(LoB!I8,List!$A$2:$E$101,2,FALSE)),"Too Small",IF(AND(VLOOKUP(LoB!I8,List!$A$2:$E$101,3,FALSE)<>"",LoB!J8>=VLOOKUP(LoB!I8,List!$A$2:$E$101,3,FALSE)),"Too Large","OK")))) ->  | K8: =IF(I8<>"OK","",IF(AND(VLOOKUP(LoB!I8,List!$A$2:$E$101,4,FALSE)<>"",LoB!K8<=VLOOKUP(LoB!I8,List!$A$2:$E$101,4,FALSE)),"Too Small",IF(AND(VLOOKUP(LoB!I8,List!$A$2:$E$101,5,FALSE)<>"",LoB!K8>=VLOOKUP(LoB!I8,List!$A$2:$E$101,5,FALSE)),"Too Large","OK"))) ->  | M8: =IF(I8<>"OK","",IF(AND(LoB!L8="Yes",LoB!M8>LoB!N8),"Min > Max",IF(AND(LoB!L8="Yes",NOT(ISNUMBER(LoB!M8))),"Not Number","OK"))) ->  | N8: =IF(I8<>"OK","",IF(AND(LoB!L8="Yes",LoB!M8>LoB!N8),"Min > Max",IF(AND(LoB!L8="Yes",NOT(ISNUMBER(LoB!N8))),"Not Number","OK"))) ->  | O8: =IF($E8<>"Yes","",IF(ISERROR(MATCH(LoB!O8,List!$A$2:$A$101,0)),"Not Available","OK")) ->  | P8: =IF(O8<>"OK","",IF(LoB!O8="Empirical",IF(OR(LoB!P8="",ISERROR(MATCH(LoB!P8,Empirical!$B$1:$CW$1,0))),"Not Available","OK"),IF(AND(VLOOKUP(LoB!O8,List!$A$2:$E$101,2,FALSE)<>"",LoB!P8<=VLOOKUP(LoB!O8,List!$A$2:$E$101,2,FALSE)),"Too Small",IF(AND(VLOOKUP(LoB!O8,List!$A$2:$E$101,3,FALSE)<>"",LoB!P8>=VLOOKUP(LoB!O8,List!$A$2:$E$101,3,FALSE)),"Too Large","OK")))) ->  | Q8: =IF(O8<>"OK","",IF(AND(VLOOKUP(LoB!O8,List!$A$2:$E$101,4,FALSE)<>"",LoB!Q8<=VLOOKUP(LoB!O8,List!$A$2:$E$101,4,FALSE)),"Too Small",IF(AND(VLOOKUP(LoB!O8,List!$A$2:$E$101,5,FALSE)<>"",LoB!Q8>=VLOOKUP(LoB!O8,List!$A$2:$E$101,5,FALSE)),"Too Large","OK"))) ->  | S8: =IF(O8<>"OK","",IF(AND(LoB!R8="Yes",LoB!S8>LoB!T8),"Min > Max",IF(AND(LoB!R8="Yes",NOT(ISNUMBER(LoB!S8))),"Not Number","OK"))) ->  | T8: =IF(O8<>"OK","",IF(AND(LoB!R8="Yes",LoB!S8>LoB!T8),"Min > Max",IF(AND(LoB!R8="Yes",NOT(ISNUMBER(LoB!T8))),"Not Number","OK"))) ->  | U8: =IF($E8<>"Yes","",IF(OR(LoB!U8="",ISERROR(MATCH(LoB!U8,Index!$B$1:$CW$1,0))),"Not Available","OK")) ->  | V8: =IF($E8<>"Yes","",IF(ISERROR(MATCH(LoB!V8,List!$A$2:$A$101,0)),"Not Available","OK")) ->  | W8: =IF(V8<>"OK","",IF(LoB!V8="Empirical",IF(OR(LoB!W8="",ISERROR(MATCH(LoB!W8,Empirical!$B$1:$CW$1,0))),"Not Available","OK"),IF(AND(VLOOKUP(LoB!V8,List!$A$2:$E$101,2,FALSE)<>"",LoB!W8<=VLOOKUP(LoB!V8,List!$A$2:$E$101,2,FALSE)),"Too Small",IF(AND(VLOOKUP(LoB!V8,List!$A$2:$E$101,3,FALSE)<>"",LoB!W8>=VLOOKUP(LoB!V8,List!$A$2:$E$101,3,FALSE)),"Too Large","OK")))) ->  | X8: =IF(V8<>"OK","",IF(AND(VLOOKUP(LoB!V8,List!$A$2:$E$101,4,FALSE)<>"",LoB!X8<=VLOOKUP(LoB!V8,List!$A$2:$E$101,4,FALSE)),"Too Small",IF(AND(VLOOKUP(LoB!V8,List!$A$2:$E$101,5,FALSE)<>"",LoB!X8>=VLOOKUP(LoB!V8,List!$A$2:$E$101,5,FALSE)),"Too Large","OK"))) ->  | Z8: =IF(V8<>"OK","",IF(AND(LoB!Y8="Yes",LoB!Z8>LoB!AA8),"Min > Max",IF(AND(LoB!Y8="Yes",NOT(ISNUMBER(LoB!Z8))),"Not Number","OK"))) ->  | AA8: =IF(V8<>"OK","",IF(AND(LoB!Y8="Yes",LoB!Z8>LoB!AA8),"Min > Max",IF(AND(LoB!Y8="Yes",NOT(ISNUMBER(LoB!AA8))),"Not Number","OK"))) ->  | AB8: =IF($E8<>"Yes","",IF(OR(LoB!AB8="",ISERROR(MATCH(LoB!AB8,Index!$B$1:$CW$1,0))),"Not Available","OK")) ->  | AC8: =IF($E8<>"Yes","",IF(OR(LoB!AC8="CLOSED",LoB!AC8="ALL"),"OK","Not Available")) ->  | AD8: =IF($E8<>"Yes","",IF(ISERROR(MATCH(LoB!AD8,List!$A$2:$A$101,0)),"Not Available","OK")) ->  | AE8: =IF(AD8<>"OK","",IF(LoB!AD8="Empirical",IF(OR(LoB!AE8="",ISERROR(MATCH(LoB!AE8,Empirical!$B$1:$CW$1,0))),"Not Available","OK"),IF(AND(VLOOKUP(LoB!AD8,List!$A$2:$E$101,2,FALSE)<>"",LoB!AE8<=VLOOKUP(LoB!AD8,List!$A$2:$E$101,2,FALSE)),"Too Small",IF(AND(VLOOKUP(LoB!AD8,List!$A$2:$E$101,3,FALSE)<>"",LoB!AE8>=VLOOKUP(LoB!AD8,List!$A$2:$E$101,3,FALSE)),"Too Large","OK")))) ->  | AF8: =IF(AD8<>"OK","",IF(AND(VLOOKUP(LoB!AD8,List!$A$2:$E$101,4,FALSE)<>"",LoB!AF8<=VLOOKUP(LoB!AD8,List!$A$2:$E$101,4,FALSE)),"Too Small",IF(AND(VLOOKUP(LoB!AD8,List!$A$2:$E$101,5,FALSE)<>"",LoB!AF8>=VLOOKUP(LoB!AD8,List!$A$2:$E$101,5,FALSE)),"Too Large","OK"))) ->  | AH8: =IF(AD8<>"OK","",IF(AND(LoB!AG8="Yes",LoB!AH8>LoB!AI8),"Min > Max",IF(AND(LoB!AG8="Yes",NOT(ISNUMBER(LoB!AH8))),"Not Number","OK"))) ->  | AI8: =IF(AD8<>"OK","",IF(AND(LoB!AG8="Yes",LoB!AH8>LoB!AI8),"Min > Max",IF(AND(LoB!AG8="Yes",NOT(ISNUMBER(LoB!AI8))),"Not Number","OK"))) ->  | AJ8: =IF($E8<>"Yes","",IF(ISERROR(MATCH(LoB!AJ8,List!$A$2:$A$101,0)),"Not Available","OK")) ->  | AK8: =IF(AJ8<>"OK","",IF(LoB!AJ8="Empirical",IF(OR(LoB!AK8="",ISERROR(MATCH(LoB!AK8,Empirical!$B$1:$CW$1,0))),"Not Available","OK"),IF(AND(VLOOKUP(LoB!AJ8,List!$A$2:$E$101,2,FALSE)<>"",LoB!AK8<=VLOOKUP(LoB!AJ8,List!$A$2:$E$101,2,FALSE)),"Too Small",IF(AND(VLOOKUP(LoB!AJ8,List!$A$2:$E$101,3,FALSE)<>"",LoB!AK8>=VLOOKUP(LoB!AJ8,List!$A$2:$E$101,3,FALSE)),"Too Large","OK")))) ->  | AL8: =IF(AJ8<>"OK","",IF(AND(VLOOKUP(LoB!AJ8,List!$A$2:$E$101,4,FALSE)<>"",LoB!AL8<=VLOOKUP(LoB!AJ8,List!$A$2:$E$101,4,FALSE)),"Too Small",IF(AND(VLOOKUP(LoB!AJ8,List!$A$2:$E$101,5,FALSE)<>"",LoB!AL8>=VLOOKUP(LoB!AJ8,List!$A$2:$E$101,5,FALSE)),"Too Large","OK"))) ->  | AN8: =IF(AJ8<>"OK","",IF(AND(LoB!AM8="Yes",LoB!AN8>LoB!AO8),"Min > Max",IF(AND(LoB!AM8="Yes",NOT(ISNUMBER(LoB!AN8))),"Not Number","OK"))) ->  | AO8: =IF(AJ8<>"OK","",IF(AND(LoB!AM8="Yes",LoB!AN8>LoB!AO8),"Min > Max",IF(AND(LoB!AM8="Yes",NOT(ISNUMBER(LoB!AO8))),"Not Number","OK"))) ->  | AP8: =IF($E8<>"Yes","",IF(ISERROR(MATCH(LoB!AP8,List!$A$2:$A$101,0)),"Not Available","OK")) ->  | AQ8: =IF(AP8<>"OK","",IF(LoB!AP8="Empirical",IF(OR(LoB!AQ8="",ISERROR(MATCH(LoB!AQ8,Empirical!$B$1:$CW$1,0))),"Not Available","OK"),IF(AND(VLOOKUP(LoB!AP8,List!$A$2:$E$101,2,FALSE)<>"",LoB!AQ8<=VLOOKUP(LoB!AP8,List!$A$2:$E$101,2,FALSE)),"Too Small",IF(AND(VLOOKUP(LoB!AP8,List!$A$2:$E$101,3,FALSE)<>"",LoB!AQ8>=VLOOKUP(LoB!AP8,List!$A$2:$E$101,3,FALSE)),"Too Large","OK")))) ->  | AR8: =IF(AP8<>"OK","",IF(AND(VLOOKUP(LoB!AP8,List!$A$2:$E$101,4,FALSE)<>"",LoB!AR8<=VLOOKUP(LoB!AP8,List!$A$2:$E$101,4,FALSE)),"Too Small",IF(AND(VLOOKUP(LoB!AP8,List!$A$2:$E$101,5,FALSE)<>"",LoB!AR8>=VLOOKUP(LoB!AP8,List!$A$2:$E$101,5,FALSE)),"Too Large","OK"))) ->  | AT8: =IF(AP8<>"OK","",IF(AND(LoB!AS8="Yes",LoB!AT8>LoB!AU8),"Min > Max",IF(AND(LoB!AS8="Yes",NOT(ISNUMBER(LoB!AT8))),"Not Number","OK"))) ->  | AU8: =IF(AP8<>"OK","",IF(AND(LoB!AS8="Yes",LoB!AT8>LoB!AU8),"Min > Max",IF(AND(LoB!AS8="Yes",NOT(ISNUMBER(LoB!AU8))),"Not Number","OK"))) ->  | AV8: =IF($E8<>"Yes","",IF(ISERROR(MATCH(LoB!AV8,List!$F$2:$F$101,0)),"Not Available","OK")) ->  | AW8: =IF(AV8<>"OK","",IF(LoB!AV8="Independent","OK",IF(OR(AND(LoB!AV8="clayton",LoB!AW8<-1),AND(OR(LoB!AV8="gumbel",LoB!AV8="joe"),LoB!AW8<1),AND(LoB!AV8<>"normal",LoB!AV8<>"t",LoB!AW8=0)),"Invalid Value",IF(AND(OR(LoB!AV8="normal",LoB!AV8="t"),ABS(LoB!AW8)>1),"|Correlation|>1",IF(AND(OR(LoB!AV8="normal",LoB!AV8="t"),LoB!AW8=""),"No Value","OK"))))) ->  | AX8: =IF(AV8<>"OK","",IF(LoB!AV8="Independent","OK", IF(AND(OR(LoB!AV8="normal",LoB!AV8="t"),1-LoB!AW8*LoB!AX8<0),"Non Positive Semidefinite",IF(ABS(LoB!AX8)>1,"|Correlation|>1",IF(LoB!AX8="","No Value","OK"))))) ->  | AY8: =IF(AV8<>"OK","",IF(AND(OR(LoB!AV8="normal",LoB!AV8="t"),detm(LoB!AW8,LoB!AX8,LoB!AY8)<0),"Non Positive Semidefinite",IF(ABS(LoB!AY8)>1,"|Correlation >1",IF(LoB!AY8="","","OK")))) ->  | AZ8: =IF(AV8<>"OK","",IF(AND(LoB!AV8="t",LoB!AZ8<=0),"Wrong DoF","OK")) ->  | BA8: =IF($E8<>"Yes","",IF(OR(LoB!BA8="",AND(ISERROR(MATCH(LoB!BA8,FactorTable!$B$1:$GS$1,0)),ISERROR(MATCH(LoB!BA8,Function!$C$1:$CX$1,0)))),"Not Available","OK")) ->  | BB8: =IF($E8<>"Yes","",IF(OR(LoB!BB8="Empirical",LoB!BB8="None",LoB!BB8="Fixed"),"OK","Wrong")) ->  | BC8: =IF(BB8<>"OK","",IF(LoB!BB8="Empirical",IF(OR(LoB!BC8="",ISERROR(MATCH(LoB!BC8,Empirical!$B$1:$CW$1,0))),"Not Available","OK"),IF(AND(LoB!BB8="Fixed",LoB!BC8>=0),"OK","OK"))) ->  | BD8: =IF($E8<>"Yes","",IF(OR(LoB!BD8="Empirical",LoB!BD8="None",LoB!BB8="Fixed"),"OK","Wrong")) ->  | BE8: =IF(BD8<>"OK","",IF(LoB!BD8="Empirical",IF(OR(LoB!BE8="",ISERROR(MATCH(LoB!BE8,Empirical!$B$1:$CW$1,0))),"Not Available","OK"),IF(AND(LoB!BD8="Fixed",LoB!BE8>=0),"OK","OK"))) ->  | BF8: =IF($E8<>"Yes","",IF(OR(LoB!BF8="",ISERROR(MATCH(LoB!BF8,List!$M$2:$M$28,0))),"Not Available","OK")) -> 
B9: Correct | C9: =IF(LoB!C9="","",LoB!C9) ->  | D9: =IF(LoB!D9="","",LoB!D9) ->  | E9: =IF(LoB!E9="","",LoB!E9) ->  | F9: =IF($E9<>"Yes","",IF(OR(LoB!F9="CondPaid",LoB!F9="CondIncurLoss"),"OK",IF(OR(AND(ISERROR(MATCH(LoB!F9,FactorTable!$B$1:$GS$1,0)),ISERROR(MATCH(LoB!F9,Function!$C$1:$CX$1,0)))),"Not Available","OK"))) ->  | G9: =IF($E9<>"Yes","",IF(OR(LoB!G9="",AND(ISERROR(MATCH(LoB!G9,FactorTable!$B$1:$GS$1,0)),ISERROR(MATCH(LoB!G9,Function!$C$1:$CX$1,0)))),"Not Available","OK")) ->  | H9: =IF($E9<>"Yes","",IF(OR(LoB!H9="CondPaid",LoB!H9="CondIncurLoss"),"OK",IF(OR(AND(ISERROR(MATCH(LoB!H9,FactorTable!$B$1:$GS$1,0)),ISERROR(MATCH(LoB!H9,Function!$C$1:$CX$1,0)))),"Not Available","OK"))) ->  | I9: =IF($E9<>"Yes","",IF(ISERROR(MATCH(LoB!I9,List!$A$2:$A$101,0)),"Not Available","OK")) ->  | J9: =IF(I9<>"OK","",IF(LoB!I9="Empirical",IF(OR(LoB!J9="",ISERROR(MATCH(LoB!J9,Empirical!$B$1:$CW$1,0))),"Not Available","OK"),IF(AND(VLOOKUP(LoB!I9,List!$A$2:$E$101,2,FALSE)<>"",LoB!J9<=VLOOKUP(LoB!I9,List!$A$2:$E$101,2,FALSE)),"Too Small",IF(AND(VLOOKUP(LoB!I9,List!$A$2:$E$101,3,FALSE)<>"",LoB!J9>=VLOOKUP(LoB!I9,List!$A$2:$E$101,3,FALSE)),"Too Large","OK")))) ->  | K9: =IF(I9<>"OK","",IF(AND(VLOOKUP(LoB!I9,List!$A$2:$E$101,4,FALSE)<>"",LoB!K9<=VLOOKUP(LoB!I9,List!$A$2:$E$101,4,FALSE)),"Too Small",IF(AND(VLOOKUP(LoB!I9,List!$A$2:$E$101,5,FALSE)<>"",LoB!K9>=VLOOKUP(LoB!I9,List!$A$2:$E$101,5,FALSE)),"Too Large","OK"))) ->  | M9: =IF(I9<>"OK","",IF(AND(LoB!L9="Yes",LoB!M9>LoB!N9),"Min > Max",IF(AND(LoB!L9="Yes",NOT(ISNUMBER(LoB!M9))),"Not Number","OK"))) ->  | N9: =IF(I9<>"OK","",IF(AND(LoB!L9="Yes",LoB!M9>LoB!N9),"Min > Max",IF(AND(LoB!L9="Yes",NOT(ISNUMBER(LoB!N9))),"Not Number","OK"))) ->  | O9: =IF($E9<>"Yes","",IF(ISERROR(MATCH(LoB!O9,List!$A$2:$A$101,0)),"Not Available","OK")) ->  | P9: =IF(O9<>"OK","",IF(LoB!O9="Empirical",IF(OR(LoB!P9="",ISERROR(MATCH(LoB!P9,Empirical!$B$1:$CW$1,0))),"Not Available","OK"),IF(AND(VLOOKUP(LoB!O9,List!$A$2:$E$101,2,FALSE)<>"",LoB!P9<=VLOOKUP(LoB!O9,List!$A$2:$E$101,2,FALSE)),"Too Small",IF(AND(VLOOKUP(LoB!O9,List!$A$2:$E$101,3,FALSE)<>"",LoB!P9>=VLOOKUP(LoB!O9,List!$A$2:$E$101,3,FALSE)),"Too Large","OK")))) ->  | Q9: =IF(O9<>"OK","",IF(AND(VLOOKUP(LoB!O9,List!$A$2:$E$101,4,FALSE)<>"",LoB!Q9<=VLOOKUP(LoB!O9,List!$A$2:$E$101,4,FALSE)),"Too Small",IF(AND(VLOOKUP(LoB!O9,List!$A$2:$E$101,5,FALSE)<>"",LoB!Q9>=VLOOKUP(LoB!O9,List!$A$2:$E$101,5,FALSE)),"Too Large","OK"))) ->  | S9: =IF(O9<>"OK","",IF(AND(LoB!R9="Yes",LoB!S9>LoB!T9),"Min > Max",IF(AND(LoB!R9="Yes",NOT(ISNUMBER(LoB!S9))),"Not Number","OK"))) ->  | T9: =IF(O9<>"OK","",IF(AND(LoB!R9="Yes",LoB!S9>LoB!T9),"Min > Max",IF(AND(LoB!R9="Yes",NOT(ISNUMBER(LoB!T9))),"Not Number","OK"))) ->  | U9: =IF($E9<>"Yes","",IF(OR(LoB!U9="",ISERROR(MATCH(LoB!U9,Index!$B$1:$CW$1,0))),"Not Available","OK")) ->  | V9: =IF($E9<>"Yes","",IF(ISERROR(MATCH(LoB!V9,List!$A$2:$A$101,0)),"Not Available","OK")) ->  | W9: =IF(V9<>"OK","",IF(LoB!V9="Empirical",IF(OR(LoB!W9="",ISERROR(MATCH(LoB!W9,Empirical!$B$1:$CW$1,0))),"Not Available","OK"),IF(AND(VLOOKUP(LoB!V9,List!$A$2:$E$101,2,FALSE)<>"",LoB!W9<=VLOOKUP(LoB!V9,List!$A$2:$E$101,2,FALSE)),"Too Small",IF(AND(VLOOKUP(LoB!V9,List!$A$2:$E$101,3,FALSE)<>"",LoB!W9>=VLOOKUP(LoB!V9,List!$A$2:$E$101,3,FALSE)),"Too Large","OK")))) ->  | X9: =IF(V9<>"OK","",IF(AND(VLOOKUP(LoB!V9,List!$A$2:$E$101,4,FALSE)<>"",LoB!X9<=VLOOKUP(LoB!V9,List!$A$2:$E$101,4,FALSE)),"Too Small",IF(AND(VLOOKUP(LoB!V9,List!$A$2:$E$101,5,FALSE)<>"",LoB!X9>=VLOOKUP(LoB!V9,List!$A$2:$E$101,5,FALSE)),"Too Large","OK"))) ->  | Z9: =IF(V9<>"OK","",IF(AND(LoB!Y9="Yes",LoB!Z9>LoB!AA9),"Min > Max",IF(AND(LoB!Y9="Yes",NOT(ISNUMBER(LoB!Z9))),"Not Number","OK"))) ->  | AA9: =IF(V9<>"OK","",IF(AND(LoB!Y9="Yes",LoB!Z9>LoB!AA9),"Min > Max",IF(AND(LoB!Y9="Yes",NOT(ISNUMBER(LoB!AA9))),"Not Number","OK"))) ->  | AB9: =IF($E9<>"Yes","",IF(OR(LoB!AB9="",ISERROR(MATCH(LoB!AB9,Index!$B$1:$CW$1,0))),"Not Available","OK")) ->  | AC9: =IF($E9<>"Yes","",IF(OR(LoB!AC9="CLOSED",LoB!AC9="ALL"),"OK","Not Available")) ->  | AD9: =IF($E9<>"Yes","",IF(ISERROR(MATCH(LoB!AD9,List!$A$2:$A$101,0)),"Not Available","OK")) ->  | AE9: =IF(AD9<>"OK","",IF(LoB!AD9="Empirical",IF(OR(LoB!AE9="",ISERROR(MATCH(LoB!AE9,Empirical!$B$1:$CW$1,0))),"Not Available","OK"),IF(AND(VLOOKUP(LoB!AD9,List!$A$2:$E$101,2,FALSE)<>"",LoB!AE9<=VLOOKUP(LoB!AD9,List!$A$2:$E$101,2,FALSE)),"Too Small",IF(AND(VLOOKUP(LoB!AD9,List!$A$2:$E$101,3,FALSE)<>"",LoB!AE9>=VLOOKUP(LoB!AD9,List!$A$2:$E$101,3,FALSE)),"Too Large","OK")))) ->  | AF9: =IF(AD9<>"OK","",IF(AND(VLOOKUP(LoB!AD9,List!$A$2:$E$101,4,FALSE)<>"",LoB!AF9<=VLOOKUP(LoB!AD9,List!$A$2:$E$101,4,FALSE)),"Too Small",IF(AND(VLOOKUP(LoB!AD9,List!$A$2:$E$101,5,FALSE)<>"",LoB!AF9>=VLOOKUP(LoB!AD9,List!$A$2:$E$101,5,FALSE)),"Too Large","OK"))) ->  | AH9: =IF(AD9<>"OK","",IF(AND(LoB!AG9="Yes",LoB!AH9>LoB!AI9),"Min > Max",IF(AND(LoB!AG9="Yes",NOT(ISNUMBER(LoB!AH9))),"Not Number","OK"))) ->  | AI9: =IF(AD9<>"OK","",IF(AND(LoB!AG9="Yes",LoB!AH9>LoB!AI9),"Min > Max",IF(AND(LoB!AG9="Yes",NOT(ISNUMBER(LoB!AI9))),"Not Number","OK"))) ->  | AJ9: =IF($E9<>"Yes","",IF(ISERROR(MATCH(LoB!AJ9,List!$A$2:$A$101,0)),"Not Available","OK")) ->  | AK9: =IF(AJ9<>"OK","",IF(LoB!AJ9="Empirical",IF(OR(LoB!AK9="",ISERROR(MATCH(LoB!AK9,Empirical!$B$1:$CW$1,0))),"Not Available","OK"),IF(AND(VLOOKUP(LoB!AJ9,List!$A$2:$E$101,2,FALSE)<>"",LoB!AK9<=VLOOKUP(LoB!AJ9,List!$A$2:$E$101,2,FALSE)),"Too Small",IF(AND(VLOOKUP(LoB!AJ9,List!$A$2:$E$101,3,FALSE)<>"",LoB!AK9>=VLOOKUP(LoB!AJ9,List!$A$2:$E$101,3,FALSE)),"Too Large","OK")))) ->  | AL9: =IF(AJ9<>"OK","",IF(AND(VLOOKUP(LoB!AJ9,List!$A$2:$E$101,4,FALSE)<>"",LoB!AL9<=VLOOKUP(LoB!AJ9,List!$A$2:$E$101,4,FALSE)),"Too Small",IF(AND(VLOOKUP(LoB!AJ9,List!$A$2:$E$101,5,FALSE)<>"",LoB!AL9>=VLOOKUP(LoB!AJ9,List!$A$2:$E$101,5,FALSE)),"Too Large","OK"))) ->  | AN9: =IF(AJ9<>"OK","",IF(AND(LoB!AM9="Yes",LoB!AN9>LoB!AO9),"Min > Max",IF(AND(LoB!AM9="Yes",NOT(ISNUMBER(LoB!AN9))),"Not Number","OK"))) ->  | AO9: =IF(AJ9<>"OK","",IF(AND(LoB!AM9="Yes",LoB!AN9>LoB!AO9),"Min > Max",IF(AND(LoB!AM9="Yes",NOT(ISNUMBER(LoB!AO9))),"Not Number","OK"))) ->  | AP9: =IF($E9<>"Yes","",IF(ISERROR(MATCH(LoB!AP9,List!$A$2:$A$101,0)),"Not Available","OK")) ->  | AQ9: =IF(AP9<>"OK","",IF(LoB!AP9="Empirical",IF(OR(LoB!AQ9="",ISERROR(MATCH(LoB!AQ9,Empirical!$B$1:$CW$1,0))),"Not Available","OK"),IF(AND(VLOOKUP(LoB!AP9,List!$A$2:$E$101,2,FALSE)<>"",LoB!AQ9<=VLOOKUP(LoB!AP9,List!$A$2:$E$101,2,FALSE)),"Too Small",IF(AND(VLOOKUP(LoB!AP9,List!$A$2:$E$101,3,FALSE)<>"",LoB!AQ9>=VLOOKUP(LoB!AP9,List!$A$2:$E$101,3,FALSE)),"Too Large","OK")))) ->  | AR9: =IF(AP9<>"OK","",IF(AND(VLOOKUP(LoB!AP9,List!$A$2:$E$101,4,FALSE)<>"",LoB!AR9<=VLOOKUP(LoB!AP9,List!$A$2:$E$101,4,FALSE)),"Too Small",IF(AND(VLOOKUP(LoB!AP9,List!$A$2:$E$101,5,FALSE)<>"",LoB!AR9>=VLOOKUP(LoB!AP9,List!$A$2:$E$101,5,FALSE)),"Too Large","OK"))) ->  | AT9: =IF(AP9<>"OK","",IF(AND(LoB!AS9="Yes",LoB!AT9>LoB!AU9),"Min > Max",IF(AND(LoB!AS9="Yes",NOT(ISNUMBER(LoB!AT9))),"Not Number","OK"))) ->  | AU9: =IF(AP9<>"OK","",IF(AND(LoB!AS9="Yes",LoB!AT9>LoB!AU9),"Min > Max",IF(AND(LoB!AS9="Yes",NOT(ISNUMBER(LoB!AU9))),"Not Number","OK"))) ->  | AV9: =IF($E9<>"Yes","",IF(ISERROR(MATCH(LoB!AV9,List!$F$2:$F$101,0)),"Not Available","OK")) ->  | AW9: =IF(AV9<>"OK","",IF(LoB!AV9="Independent","OK",IF(OR(AND(LoB!AV9="clayton",LoB!AW9<-1),AND(OR(LoB!AV9="gumbel",LoB!AV9="joe"),LoB!AW9<1),AND(LoB!AV9<>"normal",LoB!AV9<>"t",LoB!AW9=0)),"Invalid Value",IF(AND(OR(LoB!AV9="normal",LoB!AV9="t"),ABS(LoB!AW9)>1),"|Correlation|>1",IF(AND(OR(LoB!AV9="normal",LoB!AV9="t"),LoB!AW9=""),"No Value","OK"))))) ->  | AX9: =IF(AV9<>"OK","",IF(LoB!AV9="Independent","OK", IF(AND(OR(LoB!AV9="normal",LoB!AV9="t"),1-LoB!AW9*LoB!AX9<0),"Non Positive Semidefinite",IF(ABS(LoB!AX9)>1,"|Correlation|>1",IF(LoB!AX9="","No Value","OK"))))) ->  | AY9: =IF(AV9<>"OK","",IF(AND(OR(LoB!AV9="normal",LoB!AV9="t"),detm(LoB!AW9,LoB!AX9,LoB!AY9)<0),"Non Positive Semidefinite",IF(ABS(LoB!AY9)>1,"|Correlation >1",IF(LoB!AY9="","","OK")))) ->  | AZ9: =IF(AV9<>"OK","",IF(AND(LoB!AV9="t",LoB!AZ9<=0),"Wrong DoF","OK")) ->  | BA9: =IF($E9<>"Yes","",IF(OR(LoB!BA9="",AND(ISERROR(MATCH(LoB!BA9,FactorTable!$B$1:$GS$1,0)),ISERROR(MATCH(LoB!BA9,Function!$C$1:$CX$1,0)))),"Not Available","OK")) ->  | BB9: =IF($E9<>"Yes","",IF(OR(LoB!BB9="Empirical",LoB!BB9="None",LoB!BB9="Fixed"),"OK","Wrong")) ->  | BC9: =IF(BB9<>"OK","",IF(LoB!BB9="Empirical",IF(OR(LoB!BC9="",ISERROR(MATCH(LoB!BC9,Empirical!$B$1:$CW$1,0))),"Not Available","OK"),IF(AND(LoB!BB9="Fixed",LoB!BC9>=0),"OK","OK"))) ->  | BD9: =IF($E9<>"Yes","",IF(OR(LoB!BD9="Empirical",LoB!BD9="None",LoB!BB9="Fixed"),"OK","Wrong")) ->  | BE9: =IF(BD9<>"OK","",IF(LoB!BD9="Empirical",IF(OR(LoB!BE9="",ISERROR(MATCH(LoB!BE9,Empirical!$B$1:$CW$1,0))),"Not Available","OK"),IF(AND(LoB!BD9="Fixed",LoB!BE9>=0),"OK","OK"))) ->  | BF9: =IF($E9<>"Yes","",IF(OR(LoB!BF9="",ISERROR(MATCH(LoB!BF9,List!$M$2:$M$28,0))),"Not Available","OK")) -> 
B10: Correct | C10: =IF(LoB!C10="","",LoB!C10) ->  | D10: =IF(LoB!D10="","",LoB!D10) ->  | E10: =IF(LoB!E10="","",LoB!E10) ->  | F10: =IF($E10<>"Yes","",IF(OR(LoB!F10="CondPaid",LoB!F10="CondIncurLoss"),"OK",IF(OR(AND(ISERROR(MATCH(LoB!F10,FactorTable!$B$1:$GS$1,0)),ISERROR(MATCH(LoB!F10,Function!$C$1:$CX$1,0)))),"Not Available","OK"))) ->  | G10: =IF($E10<>"Yes","",IF(OR(LoB!G10="",AND(ISERROR(MATCH(LoB!G10,FactorTable!$B$1:$GS$1,0)),ISERROR(MATCH(LoB!G10,Function!$C$1:$CX$1,0)))),"Not Available","OK")) ->  | H10: =IF($E10<>"Yes","",IF(OR(LoB!H10="CondPaid",LoB!H10="CondIncurLoss"),"OK",IF(OR(AND(ISERROR(MATCH(LoB!H10,FactorTable!$B$1:$GS$1,0)),ISERROR(MATCH(LoB!H10,Function!$C$1:$CX$1,0)))),"Not Available","OK"))) ->  | I10: =IF($E10<>"Yes","",IF(ISERROR(MATCH(LoB!I10,List!$A$2:$A$101,0)),"Not Available","OK")) ->  | J10: =IF(I10<>"OK","",IF(LoB!I10="Empirical",IF(OR(LoB!J10="",ISERROR(MATCH(LoB!J10,Empirical!$B$1:$CW$1,0))),"Not Available","OK"),IF(AND(VLOOKUP(LoB!I10,List!$A$2:$E$101,2,FALSE)<>"",LoB!J10<=VLOOKUP(LoB!I10,List!$A$2:$E$101,2,FALSE)),"Too Small",IF(AND(VLOOKUP(LoB!I10,List!$A$2:$E$101,3,FALSE)<>"",LoB!J10>=VLOOKUP(LoB!I10,List!$A$2:$E$101,3,FALSE)),"Too Large","OK")))) ->  | K10: =IF(I10<>"OK","",IF(AND(VLOOKUP(LoB!I10,List!$A$2:$E$101,4,FALSE)<>"",LoB!K10<=VLOOKUP(LoB!I10,List!$A$2:$E$101,4,FALSE)),"Too Small",IF(AND(VLOOKUP(LoB!I10,List!$A$2:$E$101,5,FALSE)<>"",LoB!K10>=VLOOKUP(LoB!I10,List!$A$2:$E$101,5,FALSE)),"Too Large","OK"))) ->  | M10: =IF(I10<>"OK","",IF(AND(LoB!L10="Yes",LoB!M10>LoB!N10),"Min > Max",IF(AND(LoB!L10="Yes",NOT(ISNUMBER(LoB!M10))),"Not Number","OK"))) ->  | N10: =IF(I10<>"OK","",IF(AND(LoB!L10="Yes",LoB!M10>LoB!N10),"Min > Max",IF(AND(LoB!L10="Yes",NOT(ISNUMBER(LoB!N10))),"Not Number","OK"))) ->  | O10: =IF($E10<>"Yes","",IF(ISERROR(MATCH(LoB!O10,List!$A$2:$A$101,0)),"Not Available","OK")) ->  | P10: =IF(O10<>"OK","",IF(LoB!O10="Empirical",IF(OR(LoB!P10="",ISERROR(MATCH(LoB!P10,Empirical!$B$1:$CW$1,0))),"Not Available","OK"),IF(AND(VLOOKUP(LoB!O10,List!$A$2:$E$101,2,FALSE)<>"",LoB!P10<=VLOOKUP(LoB!O10,List!$A$2:$E$101,2,FALSE)),"Too Small",IF(AND(VLOOKUP(LoB!O10,List!$A$2:$E$101,3,FALSE)<>"",LoB!P10>=VLOOKUP(LoB!O10,List!$A$2:$E$101,3,FALSE)),"Too Large","OK")))) ->  | Q10: =IF(O10<>"OK","",IF(AND(VLOOKUP(LoB!O10,List!$A$2:$E$101,4,FALSE)<>"",LoB!Q10<=VLOOKUP(LoB!O10,List!$A$2:$E$101,4,FALSE)),"Too Small",IF(AND(VLOOKUP(LoB!O10,List!$A$2:$E$101,5,FALSE)<>"",LoB!Q10>=VLOOKUP(LoB!O10,List!$A$2:$E$101,5,FALSE)),"Too Large","OK"))) ->  | S10: =IF(O10<>"OK","",IF(AND(LoB!R10="Yes",LoB!S10>LoB!T10),"Min > Max",IF(AND(LoB!R10="Yes",NOT(ISNUMBER(LoB!S10))),"Not Number","OK"))) ->  | T10: =IF(O10<>"OK","",IF(AND(LoB!R10="Yes",LoB!S10>LoB!T10),"Min > Max",IF(AND(LoB!R10="Yes",NOT(ISNUMBER(LoB!T10))),"Not Number","OK"))) ->  | U10: =IF($E10<>"Yes","",IF(OR(LoB!U10="",ISERROR(MATCH(LoB!U10,Index!$B$1:$CW$1,0))),"Not Available","OK")) ->  | V10: =IF($E10<>"Yes","",IF(ISERROR(MATCH(LoB!V10,List!$A$2:$A$101,0)),"Not Available","OK")) ->  | W10: =IF(V10<>"OK","",IF(LoB!V10="Empirical",IF(OR(LoB!W10="",ISERROR(MATCH(LoB!W10,Empirical!$B$1:$CW$1,0))),"Not Available","OK"),IF(AND(VLOOKUP(LoB!V10,List!$A$2:$E$101,2,FALSE)<>"",LoB!W10<=VLOOKUP(LoB!V10,List!$A$2:$E$101,2,FALSE)),"Too Small",IF(AND(VLOOKUP(LoB!V10,List!$A$2:$E$101,3,FALSE)<>"",LoB!W10>=VLOOKUP(LoB!V10,List!$A$2:$E$101,3,FALSE)),"Too Large","OK")))) ->  | X10: =IF(V10<>"OK","",IF(AND(VLOOKUP(LoB!V10,List!$A$2:$E$101,4,FALSE)<>"",LoB!X10<=VLOOKUP(LoB!V10,List!$A$2:$E$101,4,FALSE)),"Too Small",IF(AND(VLOOKUP(LoB!V10,List!$A$2:$E$101,5,FALSE)<>"",LoB!X10>=VLOOKUP(LoB!V10,List!$A$2:$E$101,5,FALSE)),"Too Large","OK"))) ->  | Z10: =IF(V10<>"OK","",IF(AND(LoB!Y10="Yes",LoB!Z10>LoB!AA10),"Min > Max",IF(AND(LoB!Y10="Yes",NOT(ISNUMBER(LoB!Z10))),"Not Number","OK"))) ->  | AA10: =IF(V10<>"OK","",IF(AND(LoB!Y10="Yes",LoB!Z10>LoB!AA10),"Min > Max",IF(AND(LoB!Y10="Yes",NOT(ISNUMBER(LoB!AA10))),"Not Number","OK"))) ->  | AB10: =IF($E10<>"Yes","",IF(OR(LoB!AB10="",ISERROR(MATCH(LoB!AB10,Index!$B$1:$CW$1,0))),"Not Available","OK")) ->  | AC10: =IF($E10<>"Yes","",IF(OR(LoB!AC10="CLOSED",LoB!AC10="ALL"),"OK","Not Available")) ->  | AD10: =IF($E10<>"Yes","",IF(ISERROR(MATCH(LoB!AD10,List!$A$2:$A$101,0)),"Not Available","OK")) ->  | AE10: =IF(AD10<>"OK","",IF(LoB!AD10="Empirical",IF(OR(LoB!AE10="",ISERROR(MATCH(LoB!AE10,Empirical!$B$1:$CW$1,0))),"Not Available","OK"),IF(AND(VLOOKUP(LoB!AD10,List!$A$2:$E$101,2,FALSE)<>"",LoB!AE10<=VLOOKUP(LoB!AD10,List!$A$2:$E$101,2,FALSE)),"Too Small",IF(AND(VLOOKUP(LoB!AD10,List!$A$2:$E$101,3,FALSE)<>"",LoB!AE10>=VLOOKUP(LoB!AD10,List!$A$2:$E$101,3,FALSE)),"Too Large","OK")))) ->  | AF10: =IF(AD10<>"OK","",IF(AND(VLOOKUP(LoB!AD10,List!$A$2:$E$101,4,FALSE)<>"",LoB!AF10<=VLOOKUP(LoB!AD10,List!$A$2:$E$101,4,FALSE)),"Too Small",IF(AND(VLOOKUP(LoB!AD10,List!$A$2:$E$101,5,FALSE)<>"",LoB!AF10>=VLOOKUP(LoB!AD10,List!$A$2:$E$101,5,FALSE)),"Too Large","OK"))) ->  | AH10: =IF(AD10<>"OK","",IF(AND(LoB!AG10="Yes",LoB!AH10>LoB!AI10),"Min > Max",IF(AND(LoB!AG10="Yes",NOT(ISNUMBER(LoB!AH10))),"Not Number","OK"))) ->  | AI10: =IF(AD10<>"OK","",IF(AND(LoB!AG10="Yes",LoB!AH10>LoB!AI10),"Min > Max",IF(AND(LoB!AG10="Yes",NOT(ISNUMBER(LoB!AI10))),"Not Number","OK"))) ->  | AJ10: =IF($E10<>"Yes","",IF(ISERROR(MATCH(LoB!AJ10,List!$A$2:$A$101,0)),"Not Available","OK")) ->  | AK10: =IF(AJ10<>"OK","",IF(LoB!AJ10="Empirical",IF(OR(LoB!AK10="",ISERROR(MATCH(LoB!AK10,Empirical!$B$1:$CW$1,0))),"Not Available","OK"),IF(AND(VLOOKUP(LoB!AJ10,List!$A$2:$E$101,2,FALSE)<>"",LoB!AK10<=VLOOKUP(LoB!AJ10,List!$A$2:$E$101,2,FALSE)),"Too Small",IF(AND(VLOOKUP(LoB!AJ10,List!$A$2:$E$101,3,FALSE)<>"",LoB!AK10>=VLOOKUP(LoB!AJ10,List!$A$2:$E$101,3,FALSE)),"Too Large","OK")))) ->  | AL10: =IF(AJ10<>"OK","",IF(AND(VLOOKUP(LoB!AJ10,List!$A$2:$E$101,4,FALSE)<>"",LoB!AL10<=VLOOKUP(LoB!AJ10,List!$A$2:$E$101,4,FALSE)),"Too Small",IF(AND(VLOOKUP(LoB!AJ10,List!$A$2:$E$101,5,FALSE)<>"",LoB!AL10>=VLOOKUP(LoB!AJ10,List!$A$2:$E$101,5,FALSE)),"Too Large","OK"))) ->  | AN10: =IF(AJ10<>"OK","",IF(AND(LoB!AM10="Yes",LoB!AN10>LoB!AO10),"Min > Max",IF(AND(LoB!AM10="Yes",NOT(ISNUMBER(LoB!AN10))),"Not Number","OK"))) ->  | AO10: =IF(AJ10<>"OK","",IF(AND(LoB!AM10="Yes",LoB!AN10>LoB!AO10),"Min > Max",IF(AND(LoB!AM10="Yes",NOT(ISNUMBER(LoB!AO10))),"Not Number","OK"))) ->  | AP10: =IF($E10<>"Yes","",IF(ISERROR(MATCH(LoB!AP10,List!$A$2:$A$101,0)),"Not Available","OK")) ->  | AQ10: =IF(AP10<>"OK","",IF(LoB!AP10="Empirical",IF(OR(LoB!AQ10="",ISERROR(MATCH(LoB!AQ10,Empirical!$B$1:$CW$1,0))),"Not Available","OK"),IF(AND(VLOOKUP(LoB!AP10,List!$A$2:$E$101,2,FALSE)<>"",LoB!AQ10<=VLOOKUP(LoB!AP10,List!$A$2:$E$101,2,FALSE)),"Too Small",IF(AND(VLOOKUP(LoB!AP10,List!$A$2:$E$101,3,FALSE)<>"",LoB!AQ10>=VLOOKUP(LoB!AP10,List!$A$2:$E$101,3,FALSE)),"Too Large","OK")))) ->  | AR10: =IF(AP10<>"OK","",IF(AND(VLOOKUP(LoB!AP10,List!$A$2:$E$101,4,FALSE)<>"",LoB!AR10<=VLOOKUP(LoB!AP10,List!$A$2:$E$101,4,FALSE)),"Too Small",IF(AND(VLOOKUP(LoB!AP10,List!$A$2:$E$101,5,FALSE)<>"",LoB!AR10>=VLOOKUP(LoB!AP10,List!$A$2:$E$101,5,FALSE)),"Too Large","OK"))) ->  | AT10: =IF(AP10<>"OK","",IF(AND(LoB!AS10="Yes",LoB!AT10>LoB!AU10),"Min > Max",IF(AND(LoB!AS10="Yes",NOT(ISNUMBER(LoB!AT10))),"Not Number","OK"))) ->  | AU10: =IF(AP10<>"OK","",IF(AND(LoB!AS10="Yes",LoB!AT10>LoB!AU10),"Min > Max",IF(AND(LoB!AS10="Yes",NOT(ISNUMBER(LoB!AU10))),"Not Number","OK"))) ->  | AV10: =IF($E10<>"Yes","",IF(ISERROR(MATCH(LoB!AV10,List!$F$2:$F$101,0)),"Not Available","OK")) ->  | AW10: =IF(AV10<>"OK","",IF(LoB!AV10="Independent","OK",IF(OR(AND(LoB!AV10="clayton",LoB!AW10<-1),AND(OR(LoB!AV10="gumbel",LoB!AV10="joe"),LoB!AW10<1),AND(LoB!AV10<>"normal",LoB!AV10<>"t",LoB!AW10=0)),"Invalid Value",IF(AND(OR(LoB!AV10="normal",LoB!AV10="t"),ABS(LoB!AW10)>1),"|Correlation|>1",IF(AND(OR(LoB!AV10="normal",LoB!AV10="t"),LoB!AW10=""),"No Value","OK"))))) ->  | AX10: =IF(AV10<>"OK","",IF(LoB!AV10="Independent","OK", IF(AND(OR(LoB!AV10="normal",LoB!AV10="t"),1-LoB!AW10*LoB!AX10<0),"Non Positive Semidefinite",IF(ABS(LoB!AX10)>1,"|Correlation|>1",IF(LoB!AX10="","No Value","OK"))))) ->  | AY10: =IF(AV10<>"OK","",IF(AND(OR(LoB!AV10="normal",LoB!AV10="t"),detm(LoB!AW10,LoB!AX10,LoB!AY10)<0),"Non Positive Semidefinite",IF(ABS(LoB!AY10)>1,"|Correlation >1",IF(LoB!AY10="","","OK")))) ->  | AZ10: =IF(AV10<>"OK","",IF(AND(LoB!AV10="t",LoB!AZ10<=0),"Wrong DoF","OK")) ->  | BA10: =IF($E10<>"Yes","",IF(OR(LoB!BA10="",AND(ISERROR(MATCH(LoB!BA10,FactorTable!$B$1:$GS$1,0)),ISERROR(MATCH(LoB!BA10,Function!$C$1:$CX$1,0)))),"Not Available","OK")) ->  | BB10: =IF($E10<>"Yes","",IF(OR(LoB!BB10="Empirical",LoB!BB10="None",LoB!BB10="Fixed"),"OK","Wrong")) ->  | BC10: =IF(BB10<>"OK","",IF(LoB!BB10="Empirical",IF(OR(LoB!BC10="",ISERROR(MATCH(LoB!BC10,Empirical!$B$1:$CW$1,0))),"Not Available","OK"),IF(AND(LoB!BB10="Fixed",LoB!BC10>=0),"OK","OK"))) ->  | BD10: =IF($E10<>"Yes","",IF(OR(LoB!BD10="Empirical",LoB!BD10="None",LoB!BB10="Fixed"),"OK","Wrong")) ->  | BE10: =IF(BD10<>"OK","",IF(LoB!BD10="Empirical",IF(OR(LoB!BE10="",ISERROR(MATCH(LoB!BE10,Empirical!$B$1:$CW$1,0))),"Not Available","OK"),IF(AND(LoB!BD10="Fixed",LoB!BE10>=0),"OK","OK"))) ->  | BF10: =IF($E10<>"Yes","",IF(OR(LoB!BF10="",ISERROR(MATCH(LoB!BF10,List!$M$2:$M$28,0))),"Not Available","OK")) -> 
B11: Correct | C11: =IF(LoB!C11="","",LoB!C11) ->  | D11: =IF(LoB!D11="","",LoB!D11) ->  | E11: =IF(LoB!E11="","",LoB!E11) ->  | F11: =IF($E11<>"Yes","",IF(OR(LoB!F11="CondPaid",LoB!F11="CondIncurLoss"),"OK",IF(OR(AND(ISERROR(MATCH(LoB!F11,FactorTable!$B$1:$GS$1,0)),ISERROR(MATCH(LoB!F11,Function!$C$1:$CX$1,0)))),"Not Available","OK"))) ->  | G11: =IF($E11<>"Yes","",IF(OR(LoB!G11="",AND(ISERROR(MATCH(LoB!G11,FactorTable!$B$1:$GS$1,0)),ISERROR(MATCH(LoB!G11,Function!$C$1:$CX$1,0)))),"Not Available","OK")) ->  | H11: =IF($E11<>"Yes","",IF(OR(LoB!H11="CondPaid",LoB!H11="CondIncurLoss"),"OK",IF(OR(AND(ISERROR(MATCH(LoB!H11,FactorTable!$B$1:$GS$1,0)),ISERROR(MATCH(LoB!H11,Function!$C$1:$CX$1,0)))),"Not Available","OK"))) ->  | I11: =IF($E11<>"Yes","",IF(ISERROR(MATCH(LoB!I11,List!$A$2:$A$101,0)),"Not Available","OK")) ->  | J11: =IF(I11<>"OK","",IF(LoB!I11="Empirical",IF(OR(LoB!J11="",ISERROR(MATCH(LoB!J11,Empirical!$B$1:$CW$1,0))),"Not Available","OK"),IF(AND(VLOOKUP(LoB!I11,List!$A$2:$E$101,2,FALSE)<>"",LoB!J11<=VLOOKUP(LoB!I11,List!$A$2:$E$101,2,FALSE)),"Too Small",IF(AND(VLOOKUP(LoB!I11,List!$A$2:$E$101,3,FALSE)<>"",LoB!J11>=VLOOKUP(LoB!I11,List!$A$2:$E$101,3,FALSE)),"Too Large","OK")))) ->  | K11: =IF(I11<>"OK","",IF(AND(VLOOKUP(LoB!I11,List!$A$2:$E$101,4,FALSE)<>"",LoB!K11<=VLOOKUP(LoB!I11,List!$A$2:$E$101,4,FALSE)),"Too Small",IF(AND(VLOOKUP(LoB!I11,List!$A$2:$E$101,5,FALSE)<>"",LoB!K11>=VLOOKUP(LoB!I11,List!$A$2:$E$101,5,FALSE)),"Too Large","OK"))) ->  | M11: =IF(I11<>"OK","",IF(AND(LoB!L11="Yes",LoB!M11>LoB!N11),"Min > Max",IF(AND(LoB!L11="Yes",NOT(ISNUMBER(LoB!M11))),"Not Number","OK"))) ->  | N11: =IF(I11<>"OK","",IF(AND(LoB!L11="Yes",LoB!M11>LoB!N11),"Min > Max",IF(AND(LoB!L11="Yes",NOT(ISNUMBER(LoB!N11))),"Not Number","OK"))) ->  | O11: =IF($E11<>"Yes","",IF(ISERROR(MATCH(LoB!O11,List!$A$2:$A$101,0)),"Not Available","OK")) ->  | P11: =IF(O11<>"OK","",IF(LoB!O11="Empirical",IF(OR(LoB!P11="",ISERROR(MATCH(LoB!P11,Empirical!$B$1:$CW$1,0))),"Not Available","OK"),IF(AND(VLOOKUP(LoB!O11,List!$A$2:$E$101,2,FALSE)<>"",LoB!P11<=VLOOKUP(LoB!O11,List!$A$2:$E$101,2,FALSE)),"Too Small",IF(AND(VLOOKUP(LoB!O11,List!$A$2:$E$101,3,FALSE)<>"",LoB!P11>=VLOOKUP(LoB!O11,List!$A$2:$E$101,3,FALSE)),"Too Large","OK")))) ->  | Q11: =IF(O11<>"OK","",IF(AND(VLOOKUP(LoB!O11,List!$A$2:$E$101,4,FALSE)<>"",LoB!Q11<=VLOOKUP(LoB!O11,List!$A$2:$E$101,4,FALSE)),"Too Small",IF(AND(VLOOKUP(LoB!O11,List!$A$2:$E$101,5,FALSE)<>"",LoB!Q11>=VLOOKUP(LoB!O11,List!$A$2:$E$101,5,FALSE)),"Too Large","OK"))) ->  | S11: =IF(O11<>"OK","",IF(AND(LoB!R11="Yes",LoB!S11>LoB!T11),"Min > Max",IF(AND(LoB!R11="Yes",NOT(ISNUMBER(LoB!S11))),"Not Number","OK"))) ->  | T11: =IF(O11<>"OK","",IF(AND(LoB!R11="Yes",LoB!S11>LoB!T11),"Min > Max",IF(AND(LoB!R11="Yes",NOT(ISNUMBER(LoB!T11))),"Not Number","OK"))) ->  | U11: =IF($E11<>"Yes","",IF(OR(LoB!U11="",ISERROR(MATCH(LoB!U11,Index!$B$1:$CW$1,0))),"Not Available","OK")) ->  | V11: =IF($E11<>"Yes","",IF(ISERROR(MATCH(LoB!V11,List!$A$2:$A$101,0)),"Not Available","OK")) ->  | W11: =IF(V11<>"OK","",IF(LoB!V11="Empirical",IF(OR(LoB!W11="",ISERROR(MATCH(LoB!W11,Empirical!$B$1:$CW$1,0))),"Not Available","OK"),IF(AND(VLOOKUP(LoB!V11,List!$A$2:$E$101,2,FALSE)<>"",LoB!W11<=VLOOKUP(LoB!V11,List!$A$2:$E$101,2,FALSE)),"Too Small",IF(AND(VLOOKUP(LoB!V11,List!$A$2:$E$101,3,FALSE)<>"",LoB!W11>=VLOOKUP(LoB!V11,List!$A$2:$E$101,3,FALSE)),"Too Large","OK")))) ->  | X11: =IF(V11<>"OK","",IF(AND(VLOOKUP(LoB!V11,List!$A$2:$E$101,4,FALSE)<>"",LoB!X11<=VLOOKUP(LoB!V11,List!$A$2:$E$101,4,FALSE)),"Too Small",IF(AND(VLOOKUP(LoB!V11,List!$A$2:$E$101,5,FALSE)<>"",LoB!X11>=VLOOKUP(LoB!V11,List!$A$2:$E$101,5,FALSE)),"Too Large","OK"))) ->  | Z11: =IF(V11<>"OK","",IF(AND(LoB!Y11="Yes",LoB!Z11>LoB!AA11),"Min > Max",IF(AND(LoB!Y11="Yes",NOT(ISNUMBER(LoB!Z11))),"Not Number","OK"))) ->  | AA11: =IF(V11<>"OK","",IF(AND(LoB!Y11="Yes",LoB!Z11>LoB!AA11),"Min > Max",IF(AND(LoB!Y11="Yes",NOT(ISNUMBER(LoB!AA11))),"Not Number","OK"))) ->  | AB11: =IF($E11<>"Yes","",IF(OR(LoB!AB11="",ISERROR(MATCH(LoB!AB11,Index!$B$1:$CW$1,0))),"Not Available","OK")) ->  | AC11: =IF($E11<>"Yes","",IF(OR(LoB!AC11="CLOSED",LoB!AC11="ALL"),"OK","Not Available")) ->  | AD11: =IF($E11<>"Yes","",IF(ISERROR(MATCH(LoB!AD11,List!$A$2:$A$101,0)),"Not Available","OK")) ->  | AE11: =IF(AD11<>"OK","",IF(LoB!AD11="Empirical",IF(OR(LoB!AE11="",ISERROR(MATCH(LoB!AE11,Empirical!$B$1:$CW$1,0))),"Not Available","OK"),IF(AND(VLOOKUP(LoB!AD11,List!$A$2:$E$101,2,FALSE)<>"",LoB!AE11<=VLOOKUP(LoB!AD11,List!$A$2:$E$101,2,FALSE)),"Too Small",IF(AND(VLOOKUP(LoB!AD11,List!$A$2:$E$101,3,FALSE)<>"",LoB!AE11>=VLOOKUP(LoB!AD11,List!$A$2:$E$101,3,FALSE)),"Too Large","OK")))) ->  | AF11: =IF(AD11<>"OK","",IF(AND(VLOOKUP(LoB!AD11,List!$A$2:$E$101,4,FALSE)<>"",LoB!AF11<=VLOOKUP(LoB!AD11,List!$A$2:$E$101,4,FALSE)),"Too Small",IF(AND(VLOOKUP(LoB!AD11,List!$A$2:$E$101,5,FALSE)<>"",LoB!AF11>=VLOOKUP(LoB!AD11,List!$A$2:$E$101,5,FALSE)),"Too Large","OK"))) ->  | AH11: =IF(AD11<>"OK","",IF(AND(LoB!AG11="Yes",LoB!AH11>LoB!AI11),"Min > Max",IF(AND(LoB!AG11="Yes",NOT(ISNUMBER(LoB!AH11))),"Not Number","OK"))) ->  | AI11: =IF(AD11<>"OK","",IF(AND(LoB!AG11="Yes",LoB!AH11>LoB!AI11),"Min > Max",IF(AND(LoB!AG11="Yes",NOT(ISNUMBER(LoB!AI11))),"Not Number","OK"))) ->  | AJ11: =IF($E11<>"Yes","",IF(ISERROR(MATCH(LoB!AJ11,List!$A$2:$A$101,0)),"Not Available","OK")) ->  | AK11: =IF(AJ11<>"OK","",IF(LoB!AJ11="Empirical",IF(OR(LoB!AK11="",ISERROR(MATCH(LoB!AK11,Empirical!$B$1:$CW$1,0))),"Not Available","OK"),IF(AND(VLOOKUP(LoB!AJ11,List!$A$2:$E$101,2,FALSE)<>"",LoB!AK11<=VLOOKUP(LoB!AJ11,List!$A$2:$E$101,2,FALSE)),"Too Small",IF(AND(VLOOKUP(LoB!AJ11,List!$A$2:$E$101,3,FALSE)<>"",LoB!AK11>=VLOOKUP(LoB!AJ11,List!$A$2:$E$101,3,FALSE)),"Too Large","OK")))) ->  | AL11: =IF(AJ11<>"OK","",IF(AND(VLOOKUP(LoB!AJ11,List!$A$2:$E$101,4,FALSE)<>"",LoB!AL11<=VLOOKUP(LoB!AJ11,List!$A$2:$E$101,4,FALSE)),"Too Small",IF(AND(VLOOKUP(LoB!AJ11,List!$A$2:$E$101,5,FALSE)<>"",LoB!AL11>=VLOOKUP(LoB!AJ11,List!$A$2:$E$101,5,FALSE)),"Too Large","OK"))) ->  | AN11: =IF(AJ11<>"OK","",IF(AND(LoB!AM11="Yes",LoB!AN11>LoB!AO11),"Min > Max",IF(AND(LoB!AM11="Yes",NOT(ISNUMBER(LoB!AN11))),"Not Number","OK"))) ->  | AO11: =IF(AJ11<>"OK","",IF(AND(LoB!AM11="Yes",LoB!AN11>LoB!AO11),"Min > Max",IF(AND(LoB!AM11="Yes",NOT(ISNUMBER(LoB!AO11))),"Not Number","OK"))) ->  | AP11: =IF($E11<>"Yes","",IF(ISERROR(MATCH(LoB!AP11,List!$A$2:$A$101,0)),"Not Available","OK")) ->  | AQ11: =IF(AP11<>"OK","",IF(LoB!AP11="Empirical",IF(OR(LoB!AQ11="",ISERROR(MATCH(LoB!AQ11,Empirical!$B$1:$CW$1,0))),"Not Available","OK"),IF(AND(VLOOKUP(LoB!AP11,List!$A$2:$E$101,2,FALSE)<>"",LoB!AQ11<=VLOOKUP(LoB!AP11,List!$A$2:$E$101,2,FALSE)),"Too Small",IF(AND(VLOOKUP(LoB!AP11,List!$A$2:$E$101,3,FALSE)<>"",LoB!AQ11>=VLOOKUP(LoB!AP11,List!$A$2:$E$101,3,FALSE)),"Too Large","OK")))) ->  | AR11: =IF(AP11<>"OK","",IF(AND(VLOOKUP(LoB!AP11,List!$A$2:$E$101,4,FALSE)<>"",LoB!AR11<=VLOOKUP(LoB!AP11,List!$A$2:$E$101,4,FALSE)),"Too Small",IF(AND(VLOOKUP(LoB!AP11,List!$A$2:$E$101,5,FALSE)<>"",LoB!AR11>=VLOOKUP(LoB!AP11,List!$A$2:$E$101,5,FALSE)),"Too Large","OK"))) ->  | AT11: =IF(AP11<>"OK","",IF(AND(LoB!AS11="Yes",LoB!AT11>LoB!AU11),"Min > Max",IF(AND(LoB!AS11="Yes",NOT(ISNUMBER(LoB!AT11))),"Not Number","OK"))) ->  | AU11: =IF(AP11<>"OK","",IF(AND(LoB!AS11="Yes",LoB!AT11>LoB!AU11),"Min > Max",IF(AND(LoB!AS11="Yes",NOT(ISNUMBER(LoB!AU11))),"Not Number","OK"))) ->  | AV11: =IF($E11<>"Yes","",IF(ISERROR(MATCH(LoB!AV11,List!$F$2:$F$101,0)),"Not Available","OK")) ->  | AW11: =IF(AV11<>"OK","",IF(LoB!AV11="Independent","OK",IF(OR(AND(LoB!AV11="clayton",LoB!AW11<-1),AND(OR(LoB!AV11="gumbel",LoB!AV11="joe"),LoB!AW11<1),AND(LoB!AV11<>"normal",LoB!AV11<>"t",LoB!AW11=0)),"Invalid Value",IF(AND(OR(LoB!AV11="normal",LoB!AV11="t"),ABS(LoB!AW11)>1),"|Correlation|>1",IF(AND(OR(LoB!AV11="normal",LoB!AV11="t"),LoB!AW11=""),"No Value","OK"))))) ->  | AX11: =IF(AV11<>"OK","",IF(LoB!AV11="Independent","OK", IF(AND(OR(LoB!AV11="normal",LoB!AV11="t"),1-LoB!AW11*LoB!AX11<0),"Non Positive Semidefinite",IF(ABS(LoB!AX11)>1,"|Correlation|>1",IF(LoB!AX11="","No Value","OK"))))) ->  | AY11: =IF(AV11<>"OK","",IF(AND(OR(LoB!AV11="normal",LoB!AV11="t"),detm(LoB!AW11,LoB!AX11,LoB!AY11)<0),"Non Positive Semidefinite",IF(ABS(LoB!AY11)>1,"|Correlation >1",IF(LoB!AY11="","","OK")))) ->  | AZ11: =IF(AV11<>"OK","",IF(AND(LoB!AV11="t",LoB!AZ11<=0),"Wrong DoF","OK")) ->  | BA11: =IF($E11<>"Yes","",IF(OR(LoB!BA11="",AND(ISERROR(MATCH(LoB!BA11,FactorTable!$B$1:$GS$1,0)),ISERROR(MATCH(LoB!BA11,Function!$C$1:$CX$1,0)))),"Not Available","OK")) ->  | BB11: =IF($E11<>"Yes","",IF(OR(LoB!BB11="Empirical",LoB!BB11="None",LoB!BB11="Fixed"),"OK","Wrong")) ->  | BC11: =IF(BB11<>"OK","",IF(LoB!BB11="Empirical",IF(OR(LoB!BC11="",ISERROR(MATCH(LoB!BC11,Empirical!$B$1:$CW$1,0))),"Not Available","OK"),IF(AND(LoB!BB11="Fixed",LoB!BC11>=0),"OK","OK"))) ->  | BD11: =IF($E11<>"Yes","",IF(OR(LoB!BD11="Empirical",LoB!BD11="None",LoB!BB11="Fixed"),"OK","Wrong")) ->  | BE11: =IF(BD11<>"OK","",IF(LoB!BD11="Empirical",IF(OR(LoB!BE11="",ISERROR(MATCH(LoB!BE11,Empirical!$B$1:$CW$1,0))),"Not Available","OK"),IF(AND(LoB!BD11="Fixed",LoB!BE11>=0),"OK","OK"))) ->  | BF11: =IF($E11<>"Yes","",IF(OR(LoB!BF11="",ISERROR(MATCH(LoB!BF11,List!$M$2:$M$28,0))),"Not Available","OK")) -> 
B12: Correct | C12: =IF(LoB!C12="","",LoB!C12) ->  | D12: =IF(LoB!D12="","",LoB!D12) ->  | E12: =IF(LoB!E12="","",LoB!E12) ->  | F12: =IF($E12<>"Yes","",IF(OR(LoB!F12="CondPaid",LoB!F12="CondIncurLoss"),"OK",IF(OR(AND(ISERROR(MATCH(LoB!F12,FactorTable!$B$1:$GS$1,0)),ISERROR(MATCH(LoB!F12,Function!$C$1:$CX$1,0)))),"Not Available","OK"))) ->  | G12: =IF($E12<>"Yes","",IF(OR(LoB!G12="",AND(ISERROR(MATCH(LoB!G12,FactorTable!$B$1:$GS$1,0)),ISERROR(MATCH(LoB!G12,Function!$C$1:$CX$1,0)))),"Not Available","OK")) ->  | H12: =IF($E12<>"Yes","",IF(OR(LoB!H12="CondPaid",LoB!H12="CondIncurLoss"),"OK",IF(OR(AND(ISERROR(MATCH(LoB!H12,FactorTable!$B$1:$GS$1,0)),ISERROR(MATCH(LoB!H12,Function!$C$1:$CX$1,0)))),"Not Available","OK"))) ->  | I12: =IF($E12<>"Yes","",IF(ISERROR(MATCH(LoB!I12,List!$A$2:$A$101,0)),"Not Available","OK")) ->  | J12: =IF(I12<>"OK","",IF(LoB!I12="Empirical",IF(OR(LoB!J12="",ISERROR(MATCH(LoB!J12,Empirical!$B$1:$CW$1,0))),"Not Available","OK"),IF(AND(VLOOKUP(LoB!I12,List!$A$2:$E$101,2,FALSE)<>"",LoB!J12<=VLOOKUP(LoB!I12,List!$A$2:$E$101,2,FALSE)),"Too Small",IF(AND(VLOOKUP(LoB!I12,List!$A$2:$E$101,3,FALSE)<>"",LoB!J12>=VLOOKUP(LoB!I12,List!$A$2:$E$101,3,FALSE)),"Too Large","OK")))) ->  | K12: =IF(I12<>"OK","",IF(AND(VLOOKUP(LoB!I12,List!$A$2:$E$101,4,FALSE)<>"",LoB!K12<=VLOOKUP(LoB!I12,List!$A$2:$E$101,4,FALSE)),"Too Small",IF(AND(VLOOKUP(LoB!I12,List!$A$2:$E$101,5,FALSE)<>"",LoB!K12>=VLOOKUP(LoB!I12,List!$A$2:$E$101,5,FALSE)),"Too Large","OK"))) ->  | M12: =IF(I12<>"OK","",IF(AND(LoB!L12="Yes",LoB!M12>LoB!N12),"Min > Max",IF(AND(LoB!L12="Yes",NOT(ISNUMBER(LoB!M12))),"Not Number","OK"))) ->  | N12: =IF(I12<>"OK","",IF(AND(LoB!L12="Yes",LoB!M12>LoB!N12),"Min > Max",IF(AND(LoB!L12="Yes",NOT(ISNUMBER(LoB!N12))),"Not Number","OK"))) ->  | O12: =IF($E12<>"Yes","",IF(ISERROR(MATCH(LoB!O12,List!$A$2:$A$101,0)),"Not Available","OK")) ->  | P12: =IF(O12<>"OK","",IF(LoB!O12="Empirical",IF(OR(LoB!P12="",ISERROR(MATCH(LoB!P12,Empirical!$B$1:$CW$1,0))),"Not Available","OK"),IF(AND(VLOOKUP(LoB!O12,List!$A$2:$E$101,2,FALSE)<>"",LoB!P12<=VLOOKUP(LoB!O12,List!$A$2:$E$101,2,FALSE)),"Too Small",IF(AND(VLOOKUP(LoB!O12,List!$A$2:$E$101,3,FALSE)<>"",LoB!P12>=VLOOKUP(LoB!O12,List!$A$2:$E$101,3,FALSE)),"Too Large","OK")))) ->  | Q12: =IF(O12<>"OK","",IF(AND(VLOOKUP(LoB!O12,List!$A$2:$E$101,4,FALSE)<>"",LoB!Q12<=VLOOKUP(LoB!O12,List!$A$2:$E$101,4,FALSE)),"Too Small",IF(AND(VLOOKUP(LoB!O12,List!$A$2:$E$101,5,FALSE)<>"",LoB!Q12>=VLOOKUP(LoB!O12,List!$A$2:$E$101,5,FALSE)),"Too Large","OK"))) ->  | S12: =IF(O12<>"OK","",IF(AND(LoB!R12="Yes",LoB!S12>LoB!T12),"Min > Max",IF(AND(LoB!R12="Yes",NOT(ISNUMBER(LoB!S12))),"Not Number","OK"))) ->  | T12: =IF(O12<>"OK","",IF(AND(LoB!R12="Yes",LoB!S12>LoB!T12),"Min > Max",IF(AND(LoB!R12="Yes",NOT(ISNUMBER(LoB!T12))),"Not Number","OK"))) ->  | U12: =IF($E12<>"Yes","",IF(OR(LoB!U12="",ISERROR(MATCH(LoB!U12,Index!$B$1:$CW$1,0))),"Not Available","OK")) ->  | V12: =IF($E12<>"Yes","",IF(ISERROR(MATCH(LoB!V12,List!$A$2:$A$101,0)),"Not Available","OK")) ->  | W12: =IF(V12<>"OK","",IF(LoB!V12="Empirical",IF(OR(LoB!W12="",ISERROR(MATCH(LoB!W12,Empirical!$B$1:$CW$1,0))),"Not Available","OK"),IF(AND(VLOOKUP(LoB!V12,List!$A$2:$E$101,2,FALSE)<>"",LoB!W12<=VLOOKUP(LoB!V12,List!$A$2:$E$101,2,FALSE)),"Too Small",IF(AND(VLOOKUP(LoB!V12,List!$A$2:$E$101,3,FALSE)<>"",LoB!W12>=VLOOKUP(LoB!V12,List!$A$2:$E$101,3,FALSE)),"Too Large","OK")))) ->  | X12: =IF(V12<>"OK","",IF(AND(VLOOKUP(LoB!V12,List!$A$2:$E$101,4,FALSE)<>"",LoB!X12<=VLOOKUP(LoB!V12,List!$A$2:$E$101,4,FALSE)),"Too Small",IF(AND(VLOOKUP(LoB!V12,List!$A$2:$E$101,5,FALSE)<>"",LoB!X12>=VLOOKUP(LoB!V12,List!$A$2:$E$101,5,FALSE)),"Too Large","OK"))) ->  | Z12: =IF(V12<>"OK","",IF(AND(LoB!Y12="Yes",LoB!Z12>LoB!AA12),"Min > Max",IF(AND(LoB!Y12="Yes",NOT(ISNUMBER(LoB!Z12))),"Not Number","OK"))) ->  | AA12: =IF(V12<>"OK","",IF(AND(LoB!Y12="Yes",LoB!Z12>LoB!AA12),"Min > Max",IF(AND(LoB!Y12="Yes",NOT(ISNUMBER(LoB!AA12))),"Not Number","OK"))) ->  | AB12: =IF($E12<>"Yes","",IF(OR(LoB!AB12="",ISERROR(MATCH(LoB!AB12,Index!$B$1:$CW$1,0))),"Not Available","OK")) ->  | AC12: =IF($E12<>"Yes","",IF(OR(LoB!AC12="CLOSED",LoB!AC12="ALL"),"OK","Not Available")) ->  | AD12: =IF($E12<>"Yes","",IF(ISERROR(MATCH(LoB!AD12,List!$A$2:$A$101,0)),"Not Available","OK")) ->  | AE12: =IF(AD12<>"OK","",IF(LoB!AD12="Empirical",IF(OR(LoB!AE12="",ISERROR(MATCH(LoB!AE12,Empirical!$B$1:$CW$1,0))),"Not Available","OK"),IF(AND(VLOOKUP(LoB!AD12,List!$A$2:$E$101,2,FALSE)<>"",LoB!AE12<=VLOOKUP(LoB!AD12,List!$A$2:$E$101,2,FALSE)),"Too Small",IF(AND(VLOOKUP(LoB!AD12,List!$A$2:$E$101,3,FALSE)<>"",LoB!AE12>=VLOOKUP(LoB!AD12,List!$A$2:$E$101,3,FALSE)),"Too Large","OK")))) ->  | AF12: =IF(AD12<>"OK","",IF(AND(VLOOKUP(LoB!AD12,List!$A$2:$E$101,4,FALSE)<>"",LoB!AF12<=VLOOKUP(LoB!AD12,List!$A$2:$E$101,4,FALSE)),"Too Small",IF(AND(VLOOKUP(LoB!AD12,List!$A$2:$E$101,5,FALSE)<>"",LoB!AF12>=VLOOKUP(LoB!AD12,List!$A$2:$E$101,5,FALSE)),"Too Large","OK"))) ->  | AH12: =IF(AD12<>"OK","",IF(AND(LoB!AG12="Yes",LoB!AH12>LoB!AI12),"Min > Max",IF(AND(LoB!AG12="Yes",NOT(ISNUMBER(LoB!AH12))),"Not Number","OK"))) ->  | AI12: =IF(AD12<>"OK","",IF(AND(LoB!AG12="Yes",LoB!AH12>LoB!AI12),"Min > Max",IF(AND(LoB!AG12="Yes",NOT(ISNUMBER(LoB!AI12))),"Not Number","OK"))) ->  | AJ12: =IF($E12<>"Yes","",IF(ISERROR(MATCH(LoB!AJ12,List!$A$2:$A$101,0)),"Not Available","OK")) ->  | AK12: =IF(AJ12<>"OK","",IF(LoB!AJ12="Empirical",IF(OR(LoB!AK12="",ISERROR(MATCH(LoB!AK12,Empirical!$B$1:$CW$1,0))),"Not Available","OK"),IF(AND(VLOOKUP(LoB!AJ12,List!$A$2:$E$101,2,FALSE)<>"",LoB!AK12<=VLOOKUP(LoB!AJ12,List!$A$2:$E$101,2,FALSE)),"Too Small",IF(AND(VLOOKUP(LoB!AJ12,List!$A$2:$E$101,3,FALSE)<>"",LoB!AK12>=VLOOKUP(LoB!AJ12,List!$A$2:$E$101,3,FALSE)),"Too Large","OK")))) ->  | AL12: =IF(AJ12<>"OK","",IF(AND(VLOOKUP(LoB!AJ12,List!$A$2:$E$101,4,FALSE)<>"",LoB!AL12<=VLOOKUP(LoB!AJ12,List!$A$2:$E$101,4,FALSE)),"Too Small",IF(AND(VLOOKUP(LoB!AJ12,List!$A$2:$E$101,5,FALSE)<>"",LoB!AL12>=VLOOKUP(LoB!AJ12,List!$A$2:$E$101,5,FALSE)),"Too Large","OK"))) ->  | AN12: =IF(AJ12<>"OK","",IF(AND(LoB!AM12="Yes",LoB!AN12>LoB!AO12),"Min > Max",IF(AND(LoB!AM12="Yes",NOT(ISNUMBER(LoB!AN12))),"Not Number","OK"))) ->  | AO12: =IF(AJ12<>"OK","",IF(AND(LoB!AM12="Yes",LoB!AN12>LoB!AO12),"Min > Max",IF(AND(LoB!AM12="Yes",NOT(ISNUMBER(LoB!AO12))),"Not Number","OK"))) ->  | AP12: =IF($E12<>"Yes","",IF(ISERROR(MATCH(LoB!AP12,List!$A$2:$A$101,0)),"Not Available","OK")) ->  | AQ12: =IF(AP12<>"OK","",IF(LoB!AP12="Empirical",IF(OR(LoB!AQ12="",ISERROR(MATCH(LoB!AQ12,Empirical!$B$1:$CW$1,0))),"Not Available","OK"),IF(AND(VLOOKUP(LoB!AP12,List!$A$2:$E$101,2,FALSE)<>"",LoB!AQ12<=VLOOKUP(LoB!AP12,List!$A$2:$E$101,2,FALSE)),"Too Small",IF(AND(VLOOKUP(LoB!AP12,List!$A$2:$E$101,3,FALSE)<>"",LoB!AQ12>=VLOOKUP(LoB!AP12,List!$A$2:$E$101,3,FALSE)),"Too Large","OK")))) ->  | AR12: =IF(AP12<>"OK","",IF(AND(VLOOKUP(LoB!AP12,List!$A$2:$E$101,4,FALSE)<>"",LoB!AR12<=VLOOKUP(LoB!AP12,List!$A$2:$E$101,4,FALSE)),"Too Small",IF(AND(VLOOKUP(LoB!AP12,List!$A$2:$E$101,5,FALSE)<>"",LoB!AR12>=VLOOKUP(LoB!AP12,List!$A$2:$E$101,5,FALSE)),"Too Large","OK"))) ->  | AT12: =IF(AP12<>"OK","",IF(AND(LoB!AS12="Yes",LoB!AT12>LoB!AU12),"Min > Max",IF(AND(LoB!AS12="Yes",NOT(ISNUMBER(LoB!AT12))),"Not Number","OK"))) ->  | AU12: =IF(AP12<>"OK","",IF(AND(LoB!AS12="Yes",LoB!AT12>LoB!AU12),"Min > Max",IF(AND(LoB!AS12="Yes",NOT(ISNUMBER(LoB!AU12))),"Not Number","OK"))) ->  | AV12: =IF($E12<>"Yes","",IF(ISERROR(MATCH(LoB!AV12,List!$F$2:$F$101,0)),"Not Available","OK")) ->  | AW12: =IF(AV12<>"OK","",IF(LoB!AV12="Independent","OK",IF(OR(AND(LoB!AV12="clayton",LoB!AW12<-1),AND(OR(LoB!AV12="gumbel",LoB!AV12="joe"),LoB!AW12<1),AND(LoB!AV12<>"normal",LoB!AV12<>"t",LoB!AW12=0)),"Invalid Value",IF(AND(OR(LoB!AV12="normal",LoB!AV12="t"),ABS(LoB!AW12)>1),"|Correlation|>1",IF(AND(OR(LoB!AV12="normal",LoB!AV12="t"),LoB!AW12=""),"No Value","OK"))))) ->  | AX12: =IF(AV12<>"OK","",IF(LoB!AV12="Independent","OK", IF(AND(OR(LoB!AV12="normal",LoB!AV12="t"),1-LoB!AW12*LoB!AX12<0),"Non Positive Semidefinite",IF(ABS(LoB!AX12)>1,"|Correlation|>1",IF(LoB!AX12="","No Value","OK"))))) ->  | AY12: =IF(AV12<>"OK","",IF(AND(OR(LoB!AV12="normal",LoB!AV12="t"),detm(LoB!AW12,LoB!AX12,LoB!AY12)<0),"Non Positive Semidefinite",IF(ABS(LoB!AY12)>1,"|Correlation >1",IF(LoB!AY12="","","OK")))) ->  | AZ12: =IF(AV12<>"OK","",IF(AND(LoB!AV12="t",LoB!AZ12<=0),"Wrong DoF","OK")) ->  | BA12: =IF($E12<>"Yes","",IF(OR(LoB!BA12="",AND(ISERROR(MATCH(LoB!BA12,FactorTable!$B$1:$GS$1,0)),ISERROR(MATCH(LoB!BA12,Function!$C$1:$CX$1,0)))),"Not Available","OK")) ->  | BB12: =IF($E12<>"Yes","",IF(OR(LoB!BB12="Empirical",LoB!BB12="None",LoB!BB12="Fixed"),"OK","Wrong")) ->  | BC12: =IF(BB12<>"OK","",IF(LoB!BB12="Empirical",IF(OR(LoB!BC12="",ISERROR(MATCH(LoB!BC12,Empirical!$B$1:$CW$1,0))),"Not Available","OK"),IF(AND(LoB!BB12="Fixed",LoB!BC12>=0),"OK","OK"))) ->  | BD12: =IF($E12<>"Yes","",IF(OR(LoB!BD12="Empirical",LoB!BD12="None",LoB!BB12="Fixed"),"OK","Wrong")) ->  | BE12: =IF(BD12<>"OK","",IF(LoB!BD12="Empirical",IF(OR(LoB!BE12="",ISERROR(MATCH(LoB!BE12,Empirical!$B$1:$CW$1,0))),"Not Available","OK"),IF(AND(LoB!BD12="Fixed",LoB!BE12>=0),"OK","OK"))) ->  | BF12: =IF($E12<>"Yes","",IF(OR(LoB!BF12="",ISERROR(MATCH(LoB!BF12,List!$M$2:$M$28,0))),"Not Available","OK")) -> 
B13: Correct | C13: =IF(LoB!C13="","",LoB!C13) ->  | D13: =IF(LoB!D13="","",LoB!D13) ->  | E13: =IF(LoB!E13="","",LoB!E13) ->  | F13: =IF($E13<>"Yes","",IF(OR(LoB!F13="CondPaid",LoB!F13="CondIncurLoss"),"OK",IF(OR(AND(ISERROR(MATCH(LoB!F13,FactorTable!$B$1:$GS$1,0)),ISERROR(MATCH(LoB!F13,Function!$C$1:$CX$1,0)))),"Not Available","OK"))) ->  | G13: =IF($E13<>"Yes","",IF(OR(LoB!G13="",AND(ISERROR(MATCH(LoB!G13,FactorTable!$B$1:$GS$1,0)),ISERROR(MATCH(LoB!G13,Function!$C$1:$CX$1,0)))),"Not Available","OK")) ->  | H13: =IF($E13<>"Yes","",IF(OR(LoB!H13="CondPaid",LoB!H13="CondIncurLoss"),"OK",IF(OR(AND(ISERROR(MATCH(LoB!H13,FactorTable!$B$1:$GS$1,0)),ISERROR(MATCH(LoB!H13,Function!$C$1:$CX$1,0)))),"Not Available","OK"))) ->  | I13: =IF($E13<>"Yes","",IF(ISERROR(MATCH(LoB!I13,List!$A$2:$A$101,0)),"Not Available","OK")) ->  | J13: =IF(I13<>"OK","",IF(LoB!I13="Empirical",IF(OR(LoB!J13="",ISERROR(MATCH(LoB!J13,Empirical!$B$1:$CW$1,0))),"Not Available","OK"),IF(AND(VLOOKUP(LoB!I13,List!$A$2:$E$101,2,FALSE)<>"",LoB!J13<=VLOOKUP(LoB!I13,List!$A$2:$E$101,2,FALSE)),"Too Small",IF(AND(VLOOKUP(LoB!I13,List!$A$2:$E$101,3,FALSE)<>"",LoB!J13>=VLOOKUP(LoB!I13,List!$A$2:$E$101,3,FALSE)),"Too Large","OK")))) ->  | K13: =IF(I13<>"OK","",IF(AND(VLOOKUP(LoB!I13,List!$A$2:$E$101,4,FALSE)<>"",LoB!K13<=VLOOKUP(LoB!I13,List!$A$2:$E$101,4,FALSE)),"Too Small",IF(AND(VLOOKUP(LoB!I13,List!$A$2:$E$101,5,FALSE)<>"",LoB!K13>=VLOOKUP(LoB!I13,List!$A$2:$E$101,5,FALSE)),"Too Large","OK"))) ->  | M13: =IF(I13<>"OK","",IF(AND(LoB!L13="Yes",LoB!M13>LoB!N13),"Min > Max",IF(AND(LoB!L13="Yes",NOT(ISNUMBER(LoB!M13))),"Not Number","OK"))) ->  | N13: =IF(I13<>"OK","",IF(AND(LoB!L13="Yes",LoB!M13>LoB!N13),"Min > Max",IF(AND(LoB!L13="Yes",NOT(ISNUMBER(LoB!N13))),"Not Number","OK"))) ->  | O13: =IF($E13<>"Yes","",IF(ISERROR(MATCH(LoB!O13,List!$A$2:$A$101,0)),"Not Available","OK")) ->  | P13: =IF(O13<>"OK","",IF(LoB!O13="Empirical",IF(OR(LoB!P13="",ISERROR(MATCH(LoB!P13,Empirical!$B$1:$CW$1,0))),"Not Available","OK"),IF(AND(VLOOKUP(LoB!O13,List!$A$2:$E$101,2,FALSE)<>"",LoB!P13<=VLOOKUP(LoB!O13,List!$A$2:$E$101,2,FALSE)),"Too Small",IF(AND(VLOOKUP(LoB!O13,List!$A$2:$E$101,3,FALSE)<>"",LoB!P13>=VLOOKUP(LoB!O13,List!$A$2:$E$101,3,FALSE)),"Too Large","OK")))) ->  | Q13: =IF(O13<>"OK","",IF(AND(VLOOKUP(LoB!O13,List!$A$2:$E$101,4,FALSE)<>"",LoB!Q13<=VLOOKUP(LoB!O13,List!$A$2:$E$101,4,FALSE)),"Too Small",IF(AND(VLOOKUP(LoB!O13,List!$A$2:$E$101,5,FALSE)<>"",LoB!Q13>=VLOOKUP(LoB!O13,List!$A$2:$E$101,5,FALSE)),"Too Large","OK"))) ->  | S13: =IF(O13<>"OK","",IF(AND(LoB!R13="Yes",LoB!S13>LoB!T13),"Min > Max",IF(AND(LoB!R13="Yes",NOT(ISNUMBER(LoB!S13))),"Not Number","OK"))) ->  | T13: =IF(O13<>"OK","",IF(AND(LoB!R13="Yes",LoB!S13>LoB!T13),"Min > Max",IF(AND(LoB!R13="Yes",NOT(ISNUMBER(LoB!T13))),"Not Number","OK"))) ->  | U13: =IF($E13<>"Yes","",IF(OR(LoB!U13="",ISERROR(MATCH(LoB!U13,Index!$B$1:$CW$1,0))),"Not Available","OK")) ->  | V13: =IF($E13<>"Yes","",IF(ISERROR(MATCH(LoB!V13,List!$A$2:$A$101,0)),"Not Available","OK")) ->  | W13: =IF(V13<>"OK","",IF(LoB!V13="Empirical",IF(OR(LoB!W13="",ISERROR(MATCH(LoB!W13,Empirical!$B$1:$CW$1,0))),"Not Available","OK"),IF(AND(VLOOKUP(LoB!V13,List!$A$2:$E$101,2,FALSE)<>"",LoB!W13<=VLOOKUP(LoB!V13,List!$A$2:$E$101,2,FALSE)),"Too Small",IF(AND(VLOOKUP(LoB!V13,List!$A$2:$E$101,3,FALSE)<>"",LoB!W13>=VLOOKUP(LoB!V13,List!$A$2:$E$101,3,FALSE)),"Too Large","OK")))) ->  | X13: =IF(V13<>"OK","",IF(AND(VLOOKUP(LoB!V13,List!$A$2:$E$101,4,FALSE)<>"",LoB!X13<=VLOOKUP(LoB!V13,List!$A$2:$E$101,4,FALSE)),"Too Small",IF(AND(VLOOKUP(LoB!V13,List!$A$2:$E$101,5,FALSE)<>"",LoB!X13>=VLOOKUP(LoB!V13,List!$A$2:$E$101,5,FALSE)),"Too Large","OK"))) ->  | Z13: =IF(V13<>"OK","",IF(AND(LoB!Y13="Yes",LoB!Z13>LoB!AA13),"Min > Max",IF(AND(LoB!Y13="Yes",NOT(ISNUMBER(LoB!Z13))),"Not Number","OK"))) ->  | AA13: =IF(V13<>"OK","",IF(AND(LoB!Y13="Yes",LoB!Z13>LoB!AA13),"Min > Max",IF(AND(LoB!Y13="Yes",NOT(ISNUMBER(LoB!AA13))),"Not Number","OK"))) ->  | AB13: =IF($E13<>"Yes","",IF(OR(LoB!AB13="",ISERROR(MATCH(LoB!AB13,Index!$B$1:$CW$1,0))),"Not Available","OK")) ->  | AC13: =IF($E13<>"Yes","",IF(OR(LoB!AC13="CLOSED",LoB!AC13="ALL"),"OK","Not Available")) ->  | AD13: =IF($E13<>"Yes","",IF(ISERROR(MATCH(LoB!AD13,List!$A$2:$A$101,0)),"Not Available","OK")) ->  | AE13: =IF(AD13<>"OK","",IF(LoB!AD13="Empirical",IF(OR(LoB!AE13="",ISERROR(MATCH(LoB!AE13,Empirical!$B$1:$CW$1,0))),"Not Available","OK"),IF(AND(VLOOKUP(LoB!AD13,List!$A$2:$E$101,2,FALSE)<>"",LoB!AE13<=VLOOKUP(LoB!AD13,List!$A$2:$E$101,2,FALSE)),"Too Small",IF(AND(VLOOKUP(LoB!AD13,List!$A$2:$E$101,3,FALSE)<>"",LoB!AE13>=VLOOKUP(LoB!AD13,List!$A$2:$E$101,3,FALSE)),"Too Large","OK")))) ->  | AF13: =IF(AD13<>"OK","",IF(AND(VLOOKUP(LoB!AD13,List!$A$2:$E$101,4,FALSE)<>"",LoB!AF13<=VLOOKUP(LoB!AD13,List!$A$2:$E$101,4,FALSE)),"Too Small",IF(AND(VLOOKUP(LoB!AD13,List!$A$2:$E$101,5,FALSE)<>"",LoB!AF13>=VLOOKUP(LoB!AD13,List!$A$2:$E$101,5,FALSE)),"Too Large","OK"))) ->  | AH13: =IF(AD13<>"OK","",IF(AND(LoB!AG13="Yes",LoB!AH13>LoB!AI13),"Min > Max",IF(AND(LoB!AG13="Yes",NOT(ISNUMBER(LoB!AH13))),"Not Number","OK"))) ->  | AI13: =IF(AD13<>"OK","",IF(AND(LoB!AG13="Yes",LoB!AH13>LoB!AI13),"Min > Max",IF(AND(LoB!AG13="Yes",NOT(ISNUMBER(LoB!AI13))),"Not Number","OK"))) ->  | AJ13: =IF($E13<>"Yes","",IF(ISERROR(MATCH(LoB!AJ13,List!$A$2:$A$101,0)),"Not Available","OK")) ->  | AK13: =IF(AJ13<>"OK","",IF(LoB!AJ13="Empirical",IF(OR(LoB!AK13="",ISERROR(MATCH(LoB!AK13,Empirical!$B$1:$CW$1,0))),"Not Available","OK"),IF(AND(VLOOKUP(LoB!AJ13,List!$A$2:$E$101,2,FALSE)<>"",LoB!AK13<=VLOOKUP(LoB!AJ13,List!$A$2:$E$101,2,FALSE)),"Too Small",IF(AND(VLOOKUP(LoB!AJ13,List!$A$2:$E$101,3,FALSE)<>"",LoB!AK13>=VLOOKUP(LoB!AJ13,List!$A$2:$E$101,3,FALSE)),"Too Large","OK")))) ->  | AL13: =IF(AJ13<>"OK","",IF(AND(VLOOKUP(LoB!AJ13,List!$A$2:$E$101,4,FALSE)<>"",LoB!AL13<=VLOOKUP(LoB!AJ13,List!$A$2:$E$101,4,FALSE)),"Too Small",IF(AND(VLOOKUP(LoB!AJ13,List!$A$2:$E$101,5,FALSE)<>"",LoB!AL13>=VLOOKUP(LoB!AJ13,List!$A$2:$E$101,5,FALSE)),"Too Large","OK"))) ->  | AN13: =IF(AJ13<>"OK","",IF(AND(LoB!AM13="Yes",LoB!AN13>LoB!AO13),"Min > Max",IF(AND(LoB!AM13="Yes",NOT(ISNUMBER(LoB!AN13))),"Not Number","OK"))) ->  | AO13: =IF(AJ13<>"OK","",IF(AND(LoB!AM13="Yes",LoB!AN13>LoB!AO13),"Min > Max",IF(AND(LoB!AM13="Yes",NOT(ISNUMBER(LoB!AO13))),"Not Number","OK"))) ->  | AP13: =IF($E13<>"Yes","",IF(ISERROR(MATCH(LoB!AP13,List!$A$2:$A$101,0)),"Not Available","OK")) ->  | AQ13: =IF(AP13<>"OK","",IF(LoB!AP13="Empirical",IF(OR(LoB!AQ13="",ISERROR(MATCH(LoB!AQ13,Empirical!$B$1:$CW$1,0))),"Not Available","OK"),IF(AND(VLOOKUP(LoB!AP13,List!$A$2:$E$101,2,FALSE)<>"",LoB!AQ13<=VLOOKUP(LoB!AP13,List!$A$2:$E$101,2,FALSE)),"Too Small",IF(AND(VLOOKUP(LoB!AP13,List!$A$2:$E$101,3,FALSE)<>"",LoB!AQ13>=VLOOKUP(LoB!AP13,List!$A$2:$E$101,3,FALSE)),"Too Large","OK")))) ->  | AR13: =IF(AP13<>"OK","",IF(AND(VLOOKUP(LoB!AP13,List!$A$2:$E$101,4,FALSE)<>"",LoB!AR13<=VLOOKUP(LoB!AP13,List!$A$2:$E$101,4,FALSE)),"Too Small",IF(AND(VLOOKUP(LoB!AP13,List!$A$2:$E$101,5,FALSE)<>"",LoB!AR13>=VLOOKUP(LoB!AP13,List!$A$2:$E$101,5,FALSE)),"Too Large","OK"))) ->  | AT13: =IF(AP13<>"OK","",IF(AND(LoB!AS13="Yes",LoB!AT13>LoB!AU13),"Min > Max",IF(AND(LoB!AS13="Yes",NOT(ISNUMBER(LoB!AT13))),"Not Number","OK"))) ->  | AU13: =IF(AP13<>"OK","",IF(AND(LoB!AS13="Yes",LoB!AT13>LoB!AU13),"Min > Max",IF(AND(LoB!AS13="Yes",NOT(ISNUMBER(LoB!AU13))),"Not Number","OK"))) ->  | AV13: =IF($E13<>"Yes","",IF(ISERROR(MATCH(LoB!AV13,List!$F$2:$F$101,0)),"Not Available","OK")) ->  | AW13: =IF(AV13<>"OK","",IF(LoB!AV13="Independent","OK",IF(OR(AND(LoB!AV13="clayton",LoB!AW13<-1),AND(OR(LoB!AV13="gumbel",LoB!AV13="joe"),LoB!AW13<1),AND(LoB!AV13<>"normal",LoB!AV13<>"t",LoB!AW13=0)),"Invalid Value",IF(AND(OR(LoB!AV13="normal",LoB!AV13="t"),ABS(LoB!AW13)>1),"|Correlation|>1",IF(AND(OR(LoB!AV13="normal",LoB!AV13="t"),LoB!AW13=""),"No Value","OK"))))) ->  | AX13: =IF(AV13<>"OK","",IF(LoB!AV13="Independent","OK", IF(AND(OR(LoB!AV13="normal",LoB!AV13="t"),1-LoB!AW13*LoB!AX13<0),"Non Positive Semidefinite",IF(ABS(LoB!AX13)>1,"|Correlation|>1",IF(LoB!AX13="","No Value","OK"))))) ->  | AY13: =IF(AV13<>"OK","",IF(AND(OR(LoB!AV13="normal",LoB!AV13="t"),detm(LoB!AW13,LoB!AX13,LoB!AY13)<0),"Non Positive Semidefinite",IF(ABS(LoB!AY13)>1,"|Correlation >1",IF(LoB!AY13="","","OK")))) ->  | AZ13: =IF(AV13<>"OK","",IF(AND(LoB!AV13="t",LoB!AZ13<=0),"Wrong DoF","OK")) ->  | BA13: =IF($E13<>"Yes","",IF(OR(LoB!BA13="",AND(ISERROR(MATCH(LoB!BA13,FactorTable!$B$1:$GS$1,0)),ISERROR(MATCH(LoB!BA13,Function!$C$1:$CX$1,0)))),"Not Available","OK")) ->  | BB13: =IF($E13<>"Yes","",IF(OR(LoB!BB13="Empirical",LoB!BB13="None",LoB!BB13="Fixed"),"OK","Wrong")) ->  | BC13: =IF(BB13<>"OK","",IF(LoB!BB13="Empirical",IF(OR(LoB!BC13="",ISERROR(MATCH(LoB!BC13,Empirical!$B$1:$CW$1,0))),"Not Available","OK"),IF(AND(LoB!BB13="Fixed",LoB!BC13>=0),"OK","OK"))) ->  | BD13: =IF($E13<>"Yes","",IF(OR(LoB!BD13="Empirical",LoB!BD13="None",LoB!BB13="Fixed"),"OK","Wrong")) ->  | BE13: =IF(BD13<>"OK","",IF(LoB!BD13="Empirical",IF(OR(LoB!BE13="",ISERROR(MATCH(LoB!BE13,Empirical!$B$1:$CW$1,0))),"Not Available","OK"),IF(AND(LoB!BD13="Fixed",LoB!BE13>=0),"OK","OK"))) ->  | BF13: =IF($E13<>"Yes","",IF(OR(LoB!BF13="",ISERROR(MATCH(LoB!BF13,List!$M$2:$M$28,0))),"Not Available","OK")) -> 
B14: Correct | C14: =IF(LoB!C14="","",LoB!C14) ->  | D14: =IF(LoB!D14="","",LoB!D14) ->  | E14: =IF(LoB!E14="","",LoB!E14) ->  | F14: =IF($E14<>"Yes","",IF(OR(LoB!F14="CondPaid",LoB!F14="CondIncurLoss"),"OK",IF(OR(AND(ISERROR(MATCH(LoB!F14,FactorTable!$B$1:$GS$1,0)),ISERROR(MATCH(LoB!F14,Function!$C$1:$CX$1,0)))),"Not Available","OK"))) ->  | G14: =IF($E14<>"Yes","",IF(OR(LoB!G14="",AND(ISERROR(MATCH(LoB!G14,FactorTable!$B$1:$GS$1,0)),ISERROR(MATCH(LoB!G14,Function!$C$1:$CX$1,0)))),"Not Available","OK")) ->  | H14: =IF($E14<>"Yes","",IF(OR(LoB!H14="CondPaid",LoB!H14="CondIncurLoss"),"OK",IF(OR(AND(ISERROR(MATCH(LoB!H14,FactorTable!$B$1:$GS$1,0)),ISERROR(MATCH(LoB!H14,Function!$C$1:$CX$1,0)))),"Not Available","OK"))) ->  | I14: =IF($E14<>"Yes","",IF(ISERROR(MATCH(LoB!I14,List!$A$2:$A$101,0)),"Not Available","OK")) ->  | J14: =IF(I14<>"OK","",IF(LoB!I14="Empirical",IF(OR(LoB!J14="",ISERROR(MATCH(LoB!J14,Empirical!$B$1:$CW$1,0))),"Not Available","OK"),IF(AND(VLOOKUP(LoB!I14,List!$A$2:$E$101,2,FALSE)<>"",LoB!J14<=VLOOKUP(LoB!I14,List!$A$2:$E$101,2,FALSE)),"Too Small",IF(AND(VLOOKUP(LoB!I14,List!$A$2:$E$101,3,FALSE)<>"",LoB!J14>=VLOOKUP(LoB!I14,List!$A$2:$E$101,3,FALSE)),"Too Large","OK")))) ->  | K14: =IF(I14<>"OK","",IF(AND(VLOOKUP(LoB!I14,List!$A$2:$E$101,4,FALSE)<>"",LoB!K14<=VLOOKUP(LoB!I14,List!$A$2:$E$101,4,FALSE)),"Too Small",IF(AND(VLOOKUP(LoB!I14,List!$A$2:$E$101,5,FALSE)<>"",LoB!K14>=VLOOKUP(LoB!I14,List!$A$2:$E$101,5,FALSE)),"Too Large","OK"))) ->  | M14: =IF(I14<>"OK","",IF(AND(LoB!L14="Yes",LoB!M14>LoB!N14),"Min > Max",IF(AND(LoB!L14="Yes",NOT(ISNUMBER(LoB!M14))),"Not Number","OK"))) ->  | N14: =IF(I14<>"OK","",IF(AND(LoB!L14="Yes",LoB!M14>LoB!N14),"Min > Max",IF(AND(LoB!L14="Yes",NOT(ISNUMBER(LoB!N14))),"Not Number","OK"))) ->  | O14: =IF($E14<>"Yes","",IF(ISERROR(MATCH(LoB!O14,List!$A$2:$A$101,0)),"Not Available","OK")) ->  | P14: =IF(O14<>"OK","",IF(LoB!O14="Empirical",IF(OR(LoB!P14="",ISERROR(MATCH(LoB!P14,Empirical!$B$1:$CW$1,0))),"Not Available","OK"),IF(AND(VLOOKUP(LoB!O14,List!$A$2:$E$101,2,FALSE)<>"",LoB!P14<=VLOOKUP(LoB!O14,List!$A$2:$E$101,2,FALSE)),"Too Small",IF(AND(VLOOKUP(LoB!O14,List!$A$2:$E$101,3,FALSE)<>"",LoB!P14>=VLOOKUP(LoB!O14,List!$A$2:$E$101,3,FALSE)),"Too Large","OK")))) ->  | Q14: =IF(O14<>"OK","",IF(AND(VLOOKUP(LoB!O14,List!$A$2:$E$101,4,FALSE)<>"",LoB!Q14<=VLOOKUP(LoB!O14,List!$A$2:$E$101,4,FALSE)),"Too Small",IF(AND(VLOOKUP(LoB!O14,List!$A$2:$E$101,5,FALSE)<>"",LoB!Q14>=VLOOKUP(LoB!O14,List!$A$2:$E$101,5,FALSE)),"Too Large","OK"))) ->  | S14: =IF(O14<>"OK","",IF(AND(LoB!R14="Yes",LoB!S14>LoB!T14),"Min > Max",IF(AND(LoB!R14="Yes",NOT(ISNUMBER(LoB!S14))),"Not Number","OK"))) ->  | T14: =IF(O14<>"OK","",IF(AND(LoB!R14="Yes",LoB!S14>LoB!T14),"Min > Max",IF(AND(LoB!R14="Yes",NOT(ISNUMBER(LoB!T14))),"Not Number","OK"))) ->  | U14: =IF($E14<>"Yes","",IF(OR(LoB!U14="",ISERROR(MATCH(LoB!U14,Index!$B$1:$CW$1,0))),"Not Available","OK")) ->  | V14: =IF($E14<>"Yes","",IF(ISERROR(MATCH(LoB!V14,List!$A$2:$A$101,0)),"Not Available","OK")) ->  | W14: =IF(V14<>"OK","",IF(LoB!V14="Empirical",IF(OR(LoB!W14="",ISERROR(MATCH(LoB!W14,Empirical!$B$1:$CW$1,0))),"Not Available","OK"),IF(AND(VLOOKUP(LoB!V14,List!$A$2:$E$101,2,FALSE)<>"",LoB!W14<=VLOOKUP(LoB!V14,List!$A$2:$E$101,2,FALSE)),"Too Small",IF(AND(VLOOKUP(LoB!V14,List!$A$2:$E$101,3,FALSE)<>"",LoB!W14>=VLOOKUP(LoB!V14,List!$A$2:$E$101,3,FALSE)),"Too Large","OK")))) ->  | X14: =IF(V14<>"OK","",IF(AND(VLOOKUP(LoB!V14,List!$A$2:$E$101,4,FALSE)<>"",LoB!X14<=VLOOKUP(LoB!V14,List!$A$2:$E$101,4,FALSE)),"Too Small",IF(AND(VLOOKUP(LoB!V14,List!$A$2:$E$101,5,FALSE)<>"",LoB!X14>=VLOOKUP(LoB!V14,List!$A$2:$E$101,5,FALSE)),"Too Large","OK"))) ->  | Z14: =IF(V14<>"OK","",IF(AND(LoB!Y14="Yes",LoB!Z14>LoB!AA14),"Min > Max",IF(AND(LoB!Y14="Yes",NOT(ISNUMBER(LoB!Z14))),"Not Number","OK"))) ->  | AA14: =IF(V14<>"OK","",IF(AND(LoB!Y14="Yes",LoB!Z14>LoB!AA14),"Min > Max",IF(AND(LoB!Y14="Yes",NOT(ISNUMBER(LoB!AA14))),"Not Number","OK"))) ->  | AB14: =IF($E14<>"Yes","",IF(OR(LoB!AB14="",ISERROR(MATCH(LoB!AB14,Index!$B$1:$CW$1,0))),"Not Available","OK")) ->  | AC14: =IF($E14<>"Yes","",IF(OR(LoB!AC14="CLOSED",LoB!AC14="ALL"),"OK","Not Available")) ->  | AD14: =IF($E14<>"Yes","",IF(ISERROR(MATCH(LoB!AD14,List!$A$2:$A$101,0)),"Not Available","OK")) ->  | AE14: =IF(AD14<>"OK","",IF(LoB!AD14="Empirical",IF(OR(LoB!AE14="",ISERROR(MATCH(LoB!AE14,Empirical!$B$1:$CW$1,0))),"Not Available","OK"),IF(AND(VLOOKUP(LoB!AD14,List!$A$2:$E$101,2,FALSE)<>"",LoB!AE14<=VLOOKUP(LoB!AD14,List!$A$2:$E$101,2,FALSE)),"Too Small",IF(AND(VLOOKUP(LoB!AD14,List!$A$2:$E$101,3,FALSE)<>"",LoB!AE14>=VLOOKUP(LoB!AD14,List!$A$2:$E$101,3,FALSE)),"Too Large","OK")))) ->  | AF14: =IF(AD14<>"OK","",IF(AND(VLOOKUP(LoB!AD14,List!$A$2:$E$101,4,FALSE)<>"",LoB!AF14<=VLOOKUP(LoB!AD14,List!$A$2:$E$101,4,FALSE)),"Too Small",IF(AND(VLOOKUP(LoB!AD14,List!$A$2:$E$101,5,FALSE)<>"",LoB!AF14>=VLOOKUP(LoB!AD14,List!$A$2:$E$101,5,FALSE)),"Too Large","OK"))) ->  | AH14: =IF(AD14<>"OK","",IF(AND(LoB!AG14="Yes",LoB!AH14>LoB!AI14),"Min > Max",IF(AND(LoB!AG14="Yes",NOT(ISNUMBER(LoB!AH14))),"Not Number","OK"))) ->  | AI14: =IF(AD14<>"OK","",IF(AND(LoB!AG14="Yes",LoB!AH14>LoB!AI14),"Min > Max",IF(AND(LoB!AG14="Yes",NOT(ISNUMBER(LoB!AI14))),"Not Number","OK"))) ->  | AJ14: =IF($E14<>"Yes","",IF(ISERROR(MATCH(LoB!AJ14,List!$A$2:$A$101,0)),"Not Available","OK")) ->  | AK14: =IF(AJ14<>"OK","",IF(LoB!AJ14="Empirical",IF(OR(LoB!AK14="",ISERROR(MATCH(LoB!AK14,Empirical!$B$1:$CW$1,0))),"Not Available","OK"),IF(AND(VLOOKUP(LoB!AJ14,List!$A$2:$E$101,2,FALSE)<>"",LoB!AK14<=VLOOKUP(LoB!AJ14,List!$A$2:$E$101,2,FALSE)),"Too Small",IF(AND(VLOOKUP(LoB!AJ14,List!$A$2:$E$101,3,FALSE)<>"",LoB!AK14>=VLOOKUP(LoB!AJ14,List!$A$2:$E$101,3,FALSE)),"Too Large","OK")))) ->  | AL14: =IF(AJ14<>"OK","",IF(AND(VLOOKUP(LoB!AJ14,List!$A$2:$E$101,4,FALSE)<>"",LoB!AL14<=VLOOKUP(LoB!AJ14,List!$A$2:$E$101,4,FALSE)),"Too Small",IF(AND(VLOOKUP(LoB!AJ14,List!$A$2:$E$101,5,FALSE)<>"",LoB!AL14>=VLOOKUP(LoB!AJ14,List!$A$2:$E$101,5,FALSE)),"Too Large","OK"))) ->  | AN14: =IF(AJ14<>"OK","",IF(AND(LoB!AM14="Yes",LoB!AN14>LoB!AO14),"Min > Max",IF(AND(LoB!AM14="Yes",NOT(ISNUMBER(LoB!AN14))),"Not Number","OK"))) ->  | AO14: =IF(AJ14<>"OK","",IF(AND(LoB!AM14="Yes",LoB!AN14>LoB!AO14),"Min > Max",IF(AND(LoB!AM14="Yes",NOT(ISNUMBER(LoB!AO14))),"Not Number","OK"))) ->  | AP14: =IF($E14<>"Yes","",IF(ISERROR(MATCH(LoB!AP14,List!$A$2:$A$101,0)),"Not Available","OK")) ->  | AQ14: =IF(AP14<>"OK","",IF(LoB!AP14="Empirical",IF(OR(LoB!AQ14="",ISERROR(MATCH(LoB!AQ14,Empirical!$B$1:$CW$1,0))),"Not Available","OK"),IF(AND(VLOOKUP(LoB!AP14,List!$A$2:$E$101,2,FALSE)<>"",LoB!AQ14<=VLOOKUP(LoB!AP14,List!$A$2:$E$101,2,FALSE)),"Too Small",IF(AND(VLOOKUP(LoB!AP14,List!$A$2:$E$101,3,FALSE)<>"",LoB!AQ14>=VLOOKUP(LoB!AP14,List!$A$2:$E$101,3,FALSE)),"Too Large","OK")))) ->  | AR14: =IF(AP14<>"OK","",IF(AND(VLOOKUP(LoB!AP14,List!$A$2:$E$101,4,FALSE)<>"",LoB!AR14<=VLOOKUP(LoB!AP14,List!$A$2:$E$101,4,FALSE)),"Too Small",IF(AND(VLOOKUP(LoB!AP14,List!$A$2:$E$101,5,FALSE)<>"",LoB!AR14>=VLOOKUP(LoB!AP14,List!$A$2:$E$101,5,FALSE)),"Too Large","OK"))) ->  | AT14: =IF(AP14<>"OK","",IF(AND(LoB!AS14="Yes",LoB!AT14>LoB!AU14),"Min > Max",IF(AND(LoB!AS14="Yes",NOT(ISNUMBER(LoB!AT14))),"Not Number","OK"))) ->  | AU14: =IF(AP14<>"OK","",IF(AND(LoB!AS14="Yes",LoB!AT14>LoB!AU14),"Min > Max",IF(AND(LoB!AS14="Yes",NOT(ISNUMBER(LoB!AU14))),"Not Number","OK"))) ->  | AV14: =IF($E14<>"Yes","",IF(ISERROR(MATCH(LoB!AV14,List!$F$2:$F$101,0)),"Not Available","OK")) ->  | AW14: =IF(AV14<>"OK","",IF(LoB!AV14="Independent","OK",IF(OR(AND(LoB!AV14="clayton",LoB!AW14<-1),AND(OR(LoB!AV14="gumbel",LoB!AV14="joe"),LoB!AW14<1),AND(LoB!AV14<>"normal",LoB!AV14<>"t",LoB!AW14=0)),"Invalid Value",IF(AND(OR(LoB!AV14="normal",LoB!AV14="t"),ABS(LoB!AW14)>1),"|Correlation|>1",IF(AND(OR(LoB!AV14="normal",LoB!AV14="t"),LoB!AW14=""),"No Value","OK"))))) ->  | AX14: =IF(AV14<>"OK","",IF(LoB!AV14="Independent","OK", IF(AND(OR(LoB!AV14="normal",LoB!AV14="t"),1-LoB!AW14*LoB!AX14<0),"Non Positive Semidefinite",IF(ABS(LoB!AX14)>1,"|Correlation|>1",IF(LoB!AX14="","No Value","OK"))))) ->  | AY14: =IF(AV14<>"OK","",IF(AND(OR(LoB!AV14="normal",LoB!AV14="t"),detm(LoB!AW14,LoB!AX14,LoB!AY14)<0),"Non Positive Semidefinite",IF(ABS(LoB!AY14)>1,"|Correlation >1",IF(LoB!AY14="","","OK")))) ->  | AZ14: =IF(AV14<>"OK","",IF(AND(LoB!AV14="t",LoB!AZ14<=0),"Wrong DoF","OK")) ->  | BA14: =IF($E14<>"Yes","",IF(OR(LoB!BA14="",AND(ISERROR(MATCH(LoB!BA14,FactorTable!$B$1:$GS$1,0)),ISERROR(MATCH(LoB!BA14,Function!$C$1:$CX$1,0)))),"Not Available","OK")) ->  | BB14: =IF($E14<>"Yes","",IF(OR(LoB!BB14="Empirical",LoB!BB14="None",LoB!BB14="Fixed"),"OK","Wrong")) ->  | BC14: =IF(BB14<>"OK","",IF(LoB!BB14="Empirical",IF(OR(LoB!BC14="",ISERROR(MATCH(LoB!BC14,Empirical!$B$1:$CW$1,0))),"Not Available","OK"),IF(AND(LoB!BB14="Fixed",LoB!BC14>=0),"OK","OK"))) ->  | BD14: =IF($E14<>"Yes","",IF(OR(LoB!BD14="Empirical",LoB!BD14="None",LoB!BB14="Fixed"),"OK","Wrong")) ->  | BE14: =IF(BD14<>"OK","",IF(LoB!BD14="Empirical",IF(OR(LoB!BE14="",ISERROR(MATCH(LoB!BE14,Empirical!$B$1:$CW$1,0))),"Not Available","OK"),IF(AND(LoB!BD14="Fixed",LoB!BE14>=0),"OK","OK"))) ->  | BF14: =IF($E14<>"Yes","",IF(OR(LoB!BF14="",ISERROR(MATCH(LoB!BF14,List!$M$2:$M$28,0))),"Not Available","OK")) -> 
B15: Correct | C15: =IF(LoB!C15="","",LoB!C15) ->  | D15: =IF(LoB!D15="","",LoB!D15) ->  | E15: =IF(LoB!E15="","",LoB!E15) ->  | F15: =IF($E15<>"Yes","",IF(OR(LoB!F15="CondPaid",LoB!F15="CondIncurLoss"),"OK",IF(OR(AND(ISERROR(MATCH(LoB!F15,FactorTable!$B$1:$GS$1,0)),ISERROR(MATCH(LoB!F15,Function!$C$1:$CX$1,0)))),"Not Available","OK"))) ->  | G15: =IF($E15<>"Yes","",IF(OR(LoB!G15="",AND(ISERROR(MATCH(LoB!G15,FactorTable!$B$1:$GS$1,0)),ISERROR(MATCH(LoB!G15,Function!$C$1:$CX$1,0)))),"Not Available","OK")) ->  | H15: =IF($E15<>"Yes","",IF(OR(LoB!H15="CondPaid",LoB!H15="CondIncurLoss"),"OK",IF(OR(AND(ISERROR(MATCH(LoB!H15,FactorTable!$B$1:$GS$1,0)),ISERROR(MATCH(LoB!H15,Function!$C$1:$CX$1,0)))),"Not Available","OK"))) ->  | I15: =IF($E15<>"Yes","",IF(ISERROR(MATCH(LoB!I15,List!$A$2:$A$101,0)),"Not Available","OK")) ->  | J15: =IF(I15<>"OK","",IF(LoB!I15="Empirical",IF(OR(LoB!J15="",ISERROR(MATCH(LoB!J15,Empirical!$B$1:$CW$1,0))),"Not Available","OK"),IF(AND(VLOOKUP(LoB!I15,List!$A$2:$E$101,2,FALSE)<>"",LoB!J15<=VLOOKUP(LoB!I15,List!$A$2:$E$101,2,FALSE)),"Too Small",IF(AND(VLOOKUP(LoB!I15,List!$A$2:$E$101,3,FALSE)<>"",LoB!J15>=VLOOKUP(LoB!I15,List!$A$2:$E$101,3,FALSE)),"Too Large","OK")))) ->  | K15: =IF(I15<>"OK","",IF(AND(VLOOKUP(LoB!I15,List!$A$2:$E$101,4,FALSE)<>"",LoB!K15<=VLOOKUP(LoB!I15,List!$A$2:$E$101,4,FALSE)),"Too Small",IF(AND(VLOOKUP(LoB!I15,List!$A$2:$E$101,5,FALSE)<>"",LoB!K15>=VLOOKUP(LoB!I15,List!$A$2:$E$101,5,FALSE)),"Too Large","OK"))) ->  | M15: =IF(I15<>"OK","",IF(AND(LoB!L15="Yes",LoB!M15>LoB!N15),"Min > Max",IF(AND(LoB!L15="Yes",NOT(ISNUMBER(LoB!M15))),"Not Number","OK"))) ->  | N15: =IF(I15<>"OK","",IF(AND(LoB!L15="Yes",LoB!M15>LoB!N15),"Min > Max",IF(AND(LoB!L15="Yes",NOT(ISNUMBER(LoB!N15))),"Not Number","OK"))) ->  | O15: =IF($E15<>"Yes","",IF(ISERROR(MATCH(LoB!O15,List!$A$2:$A$101,0)),"Not Available","OK")) ->  | P15: =IF(O15<>"OK","",IF(LoB!O15="Empirical",IF(OR(LoB!P15="",ISERROR(MATCH(LoB!P15,Empirical!$B$1:$CW$1,0))),"Not Available","OK"),IF(AND(VLOOKUP(LoB!O15,List!$A$2:$E$101,2,FALSE)<>"",LoB!P15<=VLOOKUP(LoB!O15,List!$A$2:$E$101,2,FALSE)),"Too Small",IF(AND(VLOOKUP(LoB!O15,List!$A$2:$E$101,3,FALSE)<>"",LoB!P15>=VLOOKUP(LoB!O15,List!$A$2:$E$101,3,FALSE)),"Too Large","OK")))) ->  | Q15: =IF(O15<>"OK","",IF(AND(VLOOKUP(LoB!O15,List!$A$2:$E$101,4,FALSE)<>"",LoB!Q15<=VLOOKUP(LoB!O15,List!$A$2:$E$101,4,FALSE)),"Too Small",IF(AND(VLOOKUP(LoB!O15,List!$A$2:$E$101,5,FALSE)<>"",LoB!Q15>=VLOOKUP(LoB!O15,List!$A$2:$E$101,5,FALSE)),"Too Large","OK"))) ->  | S15: =IF(O15<>"OK","",IF(AND(LoB!R15="Yes",LoB!S15>LoB!T15),"Min > Max",IF(AND(LoB!R15="Yes",NOT(ISNUMBER(LoB!S15))),"Not Number","OK"))) ->  | T15: =IF(O15<>"OK","",IF(AND(LoB!R15="Yes",LoB!S15>LoB!T15),"Min > Max",IF(AND(LoB!R15="Yes",NOT(ISNUMBER(LoB!T15))),"Not Number","OK"))) ->  | U15: =IF($E15<>"Yes","",IF(OR(LoB!U15="",ISERROR(MATCH(LoB!U15,Index!$B$1:$CW$1,0))),"Not Available","OK")) ->  | V15: =IF($E15<>"Yes","",IF(ISERROR(MATCH(LoB!V15,List!$A$2:$A$101,0)),"Not Available","OK")) ->  | W15: =IF(V15<>"OK","",IF(LoB!V15="Empirical",IF(OR(LoB!W15="",ISERROR(MATCH(LoB!W15,Empirical!$B$1:$CW$1,0))),"Not Available","OK"),IF(AND(VLOOKUP(LoB!V15,List!$A$2:$E$101,2,FALSE)<>"",LoB!W15<=VLOOKUP(LoB!V15,List!$A$2:$E$101,2,FALSE)),"Too Small",IF(AND(VLOOKUP(LoB!V15,List!$A$2:$E$101,3,FALSE)<>"",LoB!W15>=VLOOKUP(LoB!V15,List!$A$2:$E$101,3,FALSE)),"Too Large","OK")))) ->  | X15: =IF(V15<>"OK","",IF(AND(VLOOKUP(LoB!V15,List!$A$2:$E$101,4,FALSE)<>"",LoB!X15<=VLOOKUP(LoB!V15,List!$A$2:$E$101,4,FALSE)),"Too Small",IF(AND(VLOOKUP(LoB!V15,List!$A$2:$E$101,5,FALSE)<>"",LoB!X15>=VLOOKUP(LoB!V15,List!$A$2:$E$101,5,FALSE)),"Too Large","OK"))) ->  | Z15: =IF(V15<>"OK","",IF(AND(LoB!Y15="Yes",LoB!Z15>LoB!AA15),"Min > Max",IF(AND(LoB!Y15="Yes",NOT(ISNUMBER(LoB!Z15))),"Not Number","OK"))) ->  | AA15: =IF(V15<>"OK","",IF(AND(LoB!Y15="Yes",LoB!Z15>LoB!AA15),"Min > Max",IF(AND(LoB!Y15="Yes",NOT(ISNUMBER(LoB!AA15))),"Not Number","OK"))) ->  | AB15: =IF($E15<>"Yes","",IF(OR(LoB!AB15="",ISERROR(MATCH(LoB!AB15,Index!$B$1:$CW$1,0))),"Not Available","OK")) ->  | AC15: =IF($E15<>"Yes","",IF(OR(LoB!AC15="CLOSED",LoB!AC15="ALL"),"OK","Not Available")) ->  | AD15: =IF($E15<>"Yes","",IF(ISERROR(MATCH(LoB!AD15,List!$A$2:$A$101,0)),"Not Available","OK")) ->  | AE15: =IF(AD15<>"OK","",IF(LoB!AD15="Empirical",IF(OR(LoB!AE15="",ISERROR(MATCH(LoB!AE15,Empirical!$B$1:$CW$1,0))),"Not Available","OK"),IF(AND(VLOOKUP(LoB!AD15,List!$A$2:$E$101,2,FALSE)<>"",LoB!AE15<=VLOOKUP(LoB!AD15,List!$A$2:$E$101,2,FALSE)),"Too Small",IF(AND(VLOOKUP(LoB!AD15,List!$A$2:$E$101,3,FALSE)<>"",LoB!AE15>=VLOOKUP(LoB!AD15,List!$A$2:$E$101,3,FALSE)),"Too Large","OK")))) ->  | AF15: =IF(AD15<>"OK","",IF(AND(VLOOKUP(LoB!AD15,List!$A$2:$E$101,4,FALSE)<>"",LoB!AF15<=VLOOKUP(LoB!AD15,List!$A$2:$E$101,4,FALSE)),"Too Small",IF(AND(VLOOKUP(LoB!AD15,List!$A$2:$E$101,5,FALSE)<>"",LoB!AF15>=VLOOKUP(LoB!AD15,List!$A$2:$E$101,5,FALSE)),"Too Large","OK"))) ->  | AH15: =IF(AD15<>"OK","",IF(AND(LoB!AG15="Yes",LoB!AH15>LoB!AI15),"Min > Max",IF(AND(LoB!AG15="Yes",NOT(ISNUMBER(LoB!AH15))),"Not Number","OK"))) ->  | AI15: =IF(AD15<>"OK","",IF(AND(LoB!AG15="Yes",LoB!AH15>LoB!AI15),"Min > Max",IF(AND(LoB!AG15="Yes",NOT(ISNUMBER(LoB!AI15))),"Not Number","OK"))) ->  | AJ15: =IF($E15<>"Yes","",IF(ISERROR(MATCH(LoB!AJ15,List!$A$2:$A$101,0)),"Not Available","OK")) ->  | AK15: =IF(AJ15<>"OK","",IF(LoB!AJ15="Empirical",IF(OR(LoB!AK15="",ISERROR(MATCH(LoB!AK15,Empirical!$B$1:$CW$1,0))),"Not Available","OK"),IF(AND(VLOOKUP(LoB!AJ15,List!$A$2:$E$101,2,FALSE)<>"",LoB!AK15<=VLOOKUP(LoB!AJ15,List!$A$2:$E$101,2,FALSE)),"Too Small",IF(AND(VLOOKUP(LoB!AJ15,List!$A$2:$E$101,3,FALSE)<>"",LoB!AK15>=VLOOKUP(LoB!AJ15,List!$A$2:$E$101,3,FALSE)),"Too Large","OK")))) ->  | AL15: =IF(AJ15<>"OK","",IF(AND(VLOOKUP(LoB!AJ15,List!$A$2:$E$101,4,FALSE)<>"",LoB!AL15<=VLOOKUP(LoB!AJ15,List!$A$2:$E$101,4,FALSE)),"Too Small",IF(AND(VLOOKUP(LoB!AJ15,List!$A$2:$E$101,5,FALSE)<>"",LoB!AL15>=VLOOKUP(LoB!AJ15,List!$A$2:$E$101,5,FALSE)),"Too Large","OK"))) ->  | AN15: =IF(AJ15<>"OK","",IF(AND(LoB!AM15="Yes",LoB!AN15>LoB!AO15),"Min > Max",IF(AND(LoB!AM15="Yes",NOT(ISNUMBER(LoB!AN15))),"Not Number","OK"))) ->  | AO15: =IF(AJ15<>"OK","",IF(AND(LoB!AM15="Yes",LoB!AN15>LoB!AO15),"Min > Max",IF(AND(LoB!AM15="Yes",NOT(ISNUMBER(LoB!AO15))),"Not Number","OK"))) ->  | AP15: =IF($E15<>"Yes","",IF(ISERROR(MATCH(LoB!AP15,List!$A$2:$A$101,0)),"Not Available","OK")) ->  | AQ15: =IF(AP15<>"OK","",IF(LoB!AP15="Empirical",IF(OR(LoB!AQ15="",ISERROR(MATCH(LoB!AQ15,Empirical!$B$1:$CW$1,0))),"Not Available","OK"),IF(AND(VLOOKUP(LoB!AP15,List!$A$2:$E$101,2,FALSE)<>"",LoB!AQ15<=VLOOKUP(LoB!AP15,List!$A$2:$E$101,2,FALSE)),"Too Small",IF(AND(VLOOKUP(LoB!AP15,List!$A$2:$E$101,3,FALSE)<>"",LoB!AQ15>=VLOOKUP(LoB!AP15,List!$A$2:$E$101,3,FALSE)),"Too Large","OK")))) ->  | AR15: =IF(AP15<>"OK","",IF(AND(VLOOKUP(LoB!AP15,List!$A$2:$E$101,4,FALSE)<>"",LoB!AR15<=VLOOKUP(LoB!AP15,List!$A$2:$E$101,4,FALSE)),"Too Small",IF(AND(VLOOKUP(LoB!AP15,List!$A$2:$E$101,5,FALSE)<>"",LoB!AR15>=VLOOKUP(LoB!AP15,List!$A$2:$E$101,5,FALSE)),"Too Large","OK"))) ->  | AT15: =IF(AP15<>"OK","",IF(AND(LoB!AS15="Yes",LoB!AT15>LoB!AU15),"Min > Max",IF(AND(LoB!AS15="Yes",NOT(ISNUMBER(LoB!AT15))),"Not Number","OK"))) ->  | AU15: =IF(AP15<>"OK","",IF(AND(LoB!AS15="Yes",LoB!AT15>LoB!AU15),"Min > Max",IF(AND(LoB!AS15="Yes",NOT(ISNUMBER(LoB!AU15))),"Not Number","OK"))) ->  | AV15: =IF($E15<>"Yes","",IF(ISERROR(MATCH(LoB!AV15,List!$F$2:$F$101,0)),"Not Available","OK")) ->  | AW15: =IF(AV15<>"OK","",IF(LoB!AV15="Independent","OK",IF(OR(AND(LoB!AV15="clayton",LoB!AW15<-1),AND(OR(LoB!AV15="gumbel",LoB!AV15="joe"),LoB!AW15<1),AND(LoB!AV15<>"normal",LoB!AV15<>"t",LoB!AW15=0)),"Invalid Value",IF(AND(OR(LoB!AV15="normal",LoB!AV15="t"),ABS(LoB!AW15)>1),"|Correlation|>1",IF(AND(OR(LoB!AV15="normal",LoB!AV15="t"),LoB!AW15=""),"No Value","OK"))))) ->  | AX15: =IF(AV15<>"OK","",IF(LoB!AV15="Independent","OK", IF(AND(OR(LoB!AV15="normal",LoB!AV15="t"),1-LoB!AW15*LoB!AX15<0),"Non Positive Semidefinite",IF(ABS(LoB!AX15)>1,"|Correlation|>1",IF(LoB!AX15="","No Value","OK"))))) ->  | AY15: =IF(AV15<>"OK","",IF(AND(OR(LoB!AV15="normal",LoB!AV15="t"),detm(LoB!AW15,LoB!AX15,LoB!AY15)<0),"Non Positive Semidefinite",IF(ABS(LoB!AY15)>1,"|Correlation >1",IF(LoB!AY15="","","OK")))) ->  | AZ15: =IF(AV15<>"OK","",IF(AND(LoB!AV15="t",LoB!AZ15<=0),"Wrong DoF","OK")) ->  | BA15: =IF($E15<>"Yes","",IF(OR(LoB!BA15="",AND(ISERROR(MATCH(LoB!BA15,FactorTable!$B$1:$GS$1,0)),ISERROR(MATCH(LoB!BA15,Function!$C$1:$CX$1,0)))),"Not Available","OK")) ->  | BB15: =IF($E15<>"Yes","",IF(OR(LoB!BB15="Empirical",LoB!BB15="None",LoB!BB15="Fixed"),"OK","Wrong")) ->  | BC15: =IF(BB15<>"OK","",IF(LoB!BB15="Empirical",IF(OR(LoB!BC15="",ISERROR(MATCH(LoB!BC15,Empirical!$B$1:$CW$1,0))),"Not Available","OK"),IF(AND(LoB!BB15="Fixed",LoB!BC15>=0),"OK","OK"))) ->  | BD15: =IF($E15<>"Yes","",IF(OR(LoB!BD15="Empirical",LoB!BD15="None",LoB!BB15="Fixed"),"OK","Wrong")) ->  | BE15: =IF(BD15<>"OK","",IF(LoB!BD15="Empirical",IF(OR(LoB!BE15="",ISERROR(MATCH(LoB!BE15,Empirical!$B$1:$CW$1,0))),"Not Available","OK"),IF(AND(LoB!BD15="Fixed",LoB!BE15>=0),"OK","OK"))) ->  | BF15: =IF($E15<>"Yes","",IF(OR(LoB!BF15="",ISERROR(MATCH(LoB!BF15,List!$M$2:$M$28,0))),"Not Available","OK")) -> 
B16: Correct | C16: =IF(LoB!C16="","",LoB!C16) ->  | D16: =IF(LoB!D16="","",LoB!D16) ->  | E16: =IF(LoB!E16="","",LoB!E16) ->  | F16: =IF($E16<>"Yes","",IF(OR(LoB!F16="CondPaid",LoB!F16="CondIncurLoss"),"OK",IF(OR(AND(ISERROR(MATCH(LoB!F16,FactorTable!$B$1:$GS$1,0)),ISERROR(MATCH(LoB!F16,Function!$C$1:$CX$1,0)))),"Not Available","OK"))) ->  | G16: =IF($E16<>"Yes","",IF(OR(LoB!G16="",AND(ISERROR(MATCH(LoB!G16,FactorTable!$B$1:$GS$1,0)),ISERROR(MATCH(LoB!G16,Function!$C$1:$CX$1,0)))),"Not Available","OK")) ->  | H16: =IF($E16<>"Yes","",IF(OR(LoB!H16="CondPaid",LoB!H16="CondIncurLoss"),"OK",IF(OR(AND(ISERROR(MATCH(LoB!H16,FactorTable!$B$1:$GS$1,0)),ISERROR(MATCH(LoB!H16,Function!$C$1:$CX$1,0)))),"Not Available","OK"))) ->  | I16: =IF($E16<>"Yes","",IF(ISERROR(MATCH(LoB!I16,List!$A$2:$A$101,0)),"Not Available","OK")) ->  | J16: =IF(I16<>"OK","",IF(LoB!I16="Empirical",IF(OR(LoB!J16="",ISERROR(MATCH(LoB!J16,Empirical!$B$1:$CW$1,0))),"Not Available","OK"),IF(AND(VLOOKUP(LoB!I16,List!$A$2:$E$101,2,FALSE)<>"",LoB!J16<=VLOOKUP(LoB!I16,List!$A$2:$E$101,2,FALSE)),"Too Small",IF(AND(VLOOKUP(LoB!I16,List!$A$2:$E$101,3,FALSE)<>"",LoB!J16>=VLOOKUP(LoB!I16,List!$A$2:$E$101,3,FALSE)),"Too Large","OK")))) ->  | K16: =IF(I16<>"OK","",IF(AND(VLOOKUP(LoB!I16,List!$A$2:$E$101,4,FALSE)<>"",LoB!K16<=VLOOKUP(LoB!I16,List!$A$2:$E$101,4,FALSE)),"Too Small",IF(AND(VLOOKUP(LoB!I16,List!$A$2:$E$101,5,FALSE)<>"",LoB!K16>=VLOOKUP(LoB!I16,List!$A$2:$E$101,5,FALSE)),"Too Large","OK"))) ->  | M16: =IF(I16<>"OK","",IF(AND(LoB!L16="Yes",LoB!M16>LoB!N16),"Min > Max",IF(AND(LoB!L16="Yes",NOT(ISNUMBER(LoB!M16))),"Not Number","OK"))) ->  | N16: =IF(I16<>"OK","",IF(AND(LoB!L16="Yes",LoB!M16>LoB!N16),"Min > Max",IF(AND(LoB!L16="Yes",NOT(ISNUMBER(LoB!N16))),"Not Number","OK"))) ->  | O16: =IF($E16<>"Yes","",IF(ISERROR(MATCH(LoB!O16,List!$A$2:$A$101,0)),"Not Available","OK")) ->  | P16: =IF(O16<>"OK","",IF(LoB!O16="Empirical",IF(OR(LoB!P16="",ISERROR(MATCH(LoB!P16,Empirical!$B$1:$CW$1,0))),"Not Available","OK"),IF(AND(VLOOKUP(LoB!O16,List!$A$2:$E$101,2,FALSE)<>"",LoB!P16<=VLOOKUP(LoB!O16,List!$A$2:$E$101,2,FALSE)),"Too Small",IF(AND(VLOOKUP(LoB!O16,List!$A$2:$E$101,3,FALSE)<>"",LoB!P16>=VLOOKUP(LoB!O16,List!$A$2:$E$101,3,FALSE)),"Too Large","OK")))) ->  | Q16: =IF(O16<>"OK","",IF(AND(VLOOKUP(LoB!O16,List!$A$2:$E$101,4,FALSE)<>"",LoB!Q16<=VLOOKUP(LoB!O16,List!$A$2:$E$101,4,FALSE)),"Too Small",IF(AND(VLOOKUP(LoB!O16,List!$A$2:$E$101,5,FALSE)<>"",LoB!Q16>=VLOOKUP(LoB!O16,List!$A$2:$E$101,5,FALSE)),"Too Large","OK"))) ->  | S16: =IF(O16<>"OK","",IF(AND(LoB!R16="Yes",LoB!S16>LoB!T16),"Min > Max",IF(AND(LoB!R16="Yes",NOT(ISNUMBER(LoB!S16))),"Not Number","OK"))) ->  | T16: =IF(O16<>"OK","",IF(AND(LoB!R16="Yes",LoB!S16>LoB!T16),"Min > Max",IF(AND(LoB!R16="Yes",NOT(ISNUMBER(LoB!T16))),"Not Number","OK"))) ->  | U16: =IF($E16<>"Yes","",IF(OR(LoB!U16="",ISERROR(MATCH(LoB!U16,Index!$B$1:$CW$1,0))),"Not Available","OK")) ->  | V16: =IF($E16<>"Yes","",IF(ISERROR(MATCH(LoB!V16,List!$A$2:$A$101,0)),"Not Available","OK")) ->  | W16: =IF(V16<>"OK","",IF(LoB!V16="Empirical",IF(OR(LoB!W16="",ISERROR(MATCH(LoB!W16,Empirical!$B$1:$CW$1,0))),"Not Available","OK"),IF(AND(VLOOKUP(LoB!V16,List!$A$2:$E$101,2,FALSE)<>"",LoB!W16<=VLOOKUP(LoB!V16,List!$A$2:$E$101,2,FALSE)),"Too Small",IF(AND(VLOOKUP(LoB!V16,List!$A$2:$E$101,3,FALSE)<>"",LoB!W16>=VLOOKUP(LoB!V16,List!$A$2:$E$101,3,FALSE)),"Too Large","OK")))) ->  | X16: =IF(V16<>"OK","",IF(AND(VLOOKUP(LoB!V16,List!$A$2:$E$101,4,FALSE)<>"",LoB!X16<=VLOOKUP(LoB!V16,List!$A$2:$E$101,4,FALSE)),"Too Small",IF(AND(VLOOKUP(LoB!V16,List!$A$2:$E$101,5,FALSE)<>"",LoB!X16>=VLOOKUP(LoB!V16,List!$A$2:$E$101,5,FALSE)),"Too Large","OK"))) ->  | Z16: =IF(V16<>"OK","",IF(AND(LoB!Y16="Yes",LoB!Z16>LoB!AA16),"Min > Max",IF(AND(LoB!Y16="Yes",NOT(ISNUMBER(LoB!Z16))),"Not Number","OK"))) ->  | AA16: =IF(V16<>"OK","",IF(AND(LoB!Y16="Yes",LoB!Z16>LoB!AA16),"Min > Max",IF(AND(LoB!Y16="Yes",NOT(ISNUMBER(LoB!AA16))),"Not Number","OK"))) ->  | AB16: =IF($E16<>"Yes","",IF(OR(LoB!AB16="",ISERROR(MATCH(LoB!AB16,Index!$B$1:$CW$1,0))),"Not Available","OK")) ->  | AC16: =IF($E16<>"Yes","",IF(OR(LoB!AC16="CLOSED",LoB!AC16="ALL"),"OK","Not Available")) ->  | AD16: =IF($E16<>"Yes","",IF(ISERROR(MATCH(LoB!AD16,List!$A$2:$A$101,0)),"Not Available","OK")) ->  | AE16: =IF(AD16<>"OK","",IF(LoB!AD16="Empirical",IF(OR(LoB!AE16="",ISERROR(MATCH(LoB!AE16,Empirical!$B$1:$CW$1,0))),"Not Available","OK"),IF(AND(VLOOKUP(LoB!AD16,List!$A$2:$E$101,2,FALSE)<>"",LoB!AE16<=VLOOKUP(LoB!AD16,List!$A$2:$E$101,2,FALSE)),"Too Small",IF(AND(VLOOKUP(LoB!AD16,List!$A$2:$E$101,3,FALSE)<>"",LoB!AE16>=VLOOKUP(LoB!AD16,List!$A$2:$E$101,3,FALSE)),"Too Large","OK")))) ->  | AF16: =IF(AD16<>"OK","",IF(AND(VLOOKUP(LoB!AD16,List!$A$2:$E$101,4,FALSE)<>"",LoB!AF16<=VLOOKUP(LoB!AD16,List!$A$2:$E$101,4,FALSE)),"Too Small",IF(AND(VLOOKUP(LoB!AD16,List!$A$2:$E$101,5,FALSE)<>"",LoB!AF16>=VLOOKUP(LoB!AD16,List!$A$2:$E$101,5,FALSE)),"Too Large","OK"))) ->  | AH16: =IF(AD16<>"OK","",IF(AND(LoB!AG16="Yes",LoB!AH16>LoB!AI16),"Min > Max",IF(AND(LoB!AG16="Yes",NOT(ISNUMBER(LoB!AH16))),"Not Number","OK"))) ->  | AI16: =IF(AD16<>"OK","",IF(AND(LoB!AG16="Yes",LoB!AH16>LoB!AI16),"Min > Max",IF(AND(LoB!AG16="Yes",NOT(ISNUMBER(LoB!AI16))),"Not Number","OK"))) ->  | AJ16: =IF($E16<>"Yes","",IF(ISERROR(MATCH(LoB!AJ16,List!$A$2:$A$101,0)),"Not Available","OK")) ->  | AK16: =IF(AJ16<>"OK","",IF(LoB!AJ16="Empirical",IF(OR(LoB!AK16="",ISERROR(MATCH(LoB!AK16,Empirical!$B$1:$CW$1,0))),"Not Available","OK"),IF(AND(VLOOKUP(LoB!AJ16,List!$A$2:$E$101,2,FALSE)<>"",LoB!AK16<=VLOOKUP(LoB!AJ16,List!$A$2:$E$101,2,FALSE)),"Too Small",IF(AND(VLOOKUP(LoB!AJ16,List!$A$2:$E$101,3,FALSE)<>"",LoB!AK16>=VLOOKUP(LoB!AJ16,List!$A$2:$E$101,3,FALSE)),"Too Large","OK")))) ->  | AL16: =IF(AJ16<>"OK","",IF(AND(VLOOKUP(LoB!AJ16,List!$A$2:$E$101,4,FALSE)<>"",LoB!AL16<=VLOOKUP(LoB!AJ16,List!$A$2:$E$101,4,FALSE)),"Too Small",IF(AND(VLOOKUP(LoB!AJ16,List!$A$2:$E$101,5,FALSE)<>"",LoB!AL16>=VLOOKUP(LoB!AJ16,List!$A$2:$E$101,5,FALSE)),"Too Large","OK"))) ->  | AN16: =IF(AJ16<>"OK","",IF(AND(LoB!AM16="Yes",LoB!AN16>LoB!AO16),"Min > Max",IF(AND(LoB!AM16="Yes",NOT(ISNUMBER(LoB!AN16))),"Not Number","OK"))) ->  | AO16: =IF(AJ16<>"OK","",IF(AND(LoB!AM16="Yes",LoB!AN16>LoB!AO16),"Min > Max",IF(AND(LoB!AM16="Yes",NOT(ISNUMBER(LoB!AO16))),"Not Number","OK"))) ->  | AP16: =IF($E16<>"Yes","",IF(ISERROR(MATCH(LoB!AP16,List!$A$2:$A$101,0)),"Not Available","OK")) ->  | AQ16: =IF(AP16<>"OK","",IF(LoB!AP16="Empirical",IF(OR(LoB!AQ16="",ISERROR(MATCH(LoB!AQ16,Empirical!$B$1:$CW$1,0))),"Not Available","OK"),IF(AND(VLOOKUP(LoB!AP16,List!$A$2:$E$101,2,FALSE)<>"",LoB!AQ16<=VLOOKUP(LoB!AP16,List!$A$2:$E$101,2,FALSE)),"Too Small",IF(AND(VLOOKUP(LoB!AP16,List!$A$2:$E$101,3,FALSE)<>"",LoB!AQ16>=VLOOKUP(LoB!AP16,List!$A$2:$E$101,3,FALSE)),"Too Large","OK")))) ->  | AR16: =IF(AP16<>"OK","",IF(AND(VLOOKUP(LoB!AP16,List!$A$2:$E$101,4,FALSE)<>"",LoB!AR16<=VLOOKUP(LoB!AP16,List!$A$2:$E$101,4,FALSE)),"Too Small",IF(AND(VLOOKUP(LoB!AP16,List!$A$2:$E$101,5,FALSE)<>"",LoB!AR16>=VLOOKUP(LoB!AP16,List!$A$2:$E$101,5,FALSE)),"Too Large","OK"))) ->  | AT16: =IF(AP16<>"OK","",IF(AND(LoB!AS16="Yes",LoB!AT16>LoB!AU16),"Min > Max",IF(AND(LoB!AS16="Yes",NOT(ISNUMBER(LoB!AT16))),"Not Number","OK"))) ->  | AU16: =IF(AP16<>"OK","",IF(AND(LoB!AS16="Yes",LoB!AT16>LoB!AU16),"Min > Max",IF(AND(LoB!AS16="Yes",NOT(ISNUMBER(LoB!AU16))),"Not Number","OK"))) ->  | AV16: =IF($E16<>"Yes","",IF(ISERROR(MATCH(LoB!AV16,List!$F$2:$F$101,0)),"Not Available","OK")) ->  | AW16: =IF(AV16<>"OK","",IF(LoB!AV16="Independent","OK",IF(OR(AND(LoB!AV16="clayton",LoB!AW16<-1),AND(OR(LoB!AV16="gumbel",LoB!AV16="joe"),LoB!AW16<1),AND(LoB!AV16<>"normal",LoB!AV16<>"t",LoB!AW16=0)),"Invalid Value",IF(AND(OR(LoB!AV16="normal",LoB!AV16="t"),ABS(LoB!AW16)>1),"|Correlation|>1",IF(AND(OR(LoB!AV16="normal",LoB!AV16="t"),LoB!AW16=""),"No Value","OK"))))) ->  | AX16: =IF(AV16<>"OK","",IF(LoB!AV16="Independent","OK", IF(AND(OR(LoB!AV16="normal",LoB!AV16="t"),1-LoB!AW16*LoB!AX16<0),"Non Positive Semidefinite",IF(ABS(LoB!AX16)>1,"|Correlation|>1",IF(LoB!AX16="","No Value","OK"))))) ->  | AY16: =IF(AV16<>"OK","",IF(AND(OR(LoB!AV16="normal",LoB!AV16="t"),detm(LoB!AW16,LoB!AX16,LoB!AY16)<0),"Non Positive Semidefinite",IF(ABS(LoB!AY16)>1,"|Correlation >1",IF(LoB!AY16="","","OK")))) ->  | AZ16: =IF(AV16<>"OK","",IF(AND(LoB!AV16="t",LoB!AZ16<=0),"Wrong DoF","OK")) ->  | BA16: =IF($E16<>"Yes","",IF(OR(LoB!BA16="",AND(ISERROR(MATCH(LoB!BA16,FactorTable!$B$1:$GS$1,0)),ISERROR(MATCH(LoB!BA16,Function!$C$1:$CX$1,0)))),"Not Available","OK")) ->  | BB16: =IF($E16<>"Yes","",IF(OR(LoB!BB16="Empirical",LoB!BB16="None",LoB!BB16="Fixed"),"OK","Wrong")) ->  | BC16: =IF(BB16<>"OK","",IF(LoB!BB16="Empirical",IF(OR(LoB!BC16="",ISERROR(MATCH(LoB!BC16,Empirical!$B$1:$CW$1,0))),"Not Available","OK"),IF(AND(LoB!BB16="Fixed",LoB!BC16>=0),"OK","OK"))) ->  | BD16: =IF($E16<>"Yes","",IF(OR(LoB!BD16="Empirical",LoB!BD16="None",LoB!BB16="Fixed"),"OK","Wrong")) ->  | BE16: =IF(BD16<>"OK","",IF(LoB!BD16="Empirical",IF(OR(LoB!BE16="",ISERROR(MATCH(LoB!BE16,Empirical!$B$1:$CW$1,0))),"Not Available","OK"),IF(AND(LoB!BD16="Fixed",LoB!BE16>=0),"OK","OK"))) ->  | BF16: =IF($E16<>"Yes","",IF(OR(LoB!BF16="",ISERROR(MATCH(LoB!BF16,List!$M$2:$M$28,0))),"Not Available","OK")) -> 
B17: Correct | C17: =IF(LoB!C17="","",LoB!C17) ->  | D17: =IF(LoB!D17="","",LoB!D17) ->  | E17: =IF(LoB!E17="","",LoB!E17) ->  | F17: =IF($E17<>"Yes","",IF(OR(LoB!F17="CondPaid",LoB!F17="CondIncurLoss"),"OK",IF(OR(AND(ISERROR(MATCH(LoB!F17,FactorTable!$B$1:$GS$1,0)),ISERROR(MATCH(LoB!F17,Function!$C$1:$CX$1,0)))),"Not Available","OK"))) ->  | G17: =IF($E17<>"Yes","",IF(OR(LoB!G17="",AND(ISERROR(MATCH(LoB!G17,FactorTable!$B$1:$GS$1,0)),ISERROR(MATCH(LoB!G17,Function!$C$1:$CX$1,0)))),"Not Available","OK")) ->  | H17: =IF($E17<>"Yes","",IF(OR(LoB!H17="CondPaid",LoB!H17="CondIncurLoss"),"OK",IF(OR(AND(ISERROR(MATCH(LoB!H17,FactorTable!$B$1:$GS$1,0)),ISERROR(MATCH(LoB!H17,Function!$C$1:$CX$1,0)))),"Not Available","OK"))) ->  | I17: =IF($E17<>"Yes","",IF(ISERROR(MATCH(LoB!I17,List!$A$2:$A$101,0)),"Not Available","OK")) ->  | J17: =IF(I17<>"OK","",IF(LoB!I17="Empirical",IF(OR(LoB!J17="",ISERROR(MATCH(LoB!J17,Empirical!$B$1:$CW$1,0))),"Not Available","OK"),IF(AND(VLOOKUP(LoB!I17,List!$A$2:$E$101,2,FALSE)<>"",LoB!J17<=VLOOKUP(LoB!I17,List!$A$2:$E$101,2,FALSE)),"Too Small",IF(AND(VLOOKUP(LoB!I17,List!$A$2:$E$101,3,FALSE)<>"",LoB!J17>=VLOOKUP(LoB!I17,List!$A$2:$E$101,3,FALSE)),"Too Large","OK")))) ->  | K17: =IF(I17<>"OK","",IF(AND(VLOOKUP(LoB!I17,List!$A$2:$E$101,4,FALSE)<>"",LoB!K17<=VLOOKUP(LoB!I17,List!$A$2:$E$101,4,FALSE)),"Too Small",IF(AND(VLOOKUP(LoB!I17,List!$A$2:$E$101,5,FALSE)<>"",LoB!K17>=VLOOKUP(LoB!I17,List!$A$2:$E$101,5,FALSE)),"Too Large","OK"))) ->  | M17: =IF(I17<>"OK","",IF(AND(LoB!L17="Yes",LoB!M17>LoB!N17),"Min > Max",IF(AND(LoB!L17="Yes",NOT(ISNUMBER(LoB!M17))),"Not Number","OK"))) ->  | N17: =IF(I17<>"OK","",IF(AND(LoB!L17="Yes",LoB!M17>LoB!N17),"Min > Max",IF(AND(LoB!L17="Yes",NOT(ISNUMBER(LoB!N17))),"Not Number","OK"))) ->  | O17: =IF($E17<>"Yes","",IF(ISERROR(MATCH(LoB!O17,List!$A$2:$A$101,0)),"Not Available","OK")) ->  | P17: =IF(O17<>"OK","",IF(LoB!O17="Empirical",IF(OR(LoB!P17="",ISERROR(MATCH(LoB!P17,Empirical!$B$1:$CW$1,0))),"Not Available","OK"),IF(AND(VLOOKUP(LoB!O17,List!$A$2:$E$101,2,FALSE)<>"",LoB!P17<=VLOOKUP(LoB!O17,List!$A$2:$E$101,2,FALSE)),"Too Small",IF(AND(VLOOKUP(LoB!O17,List!$A$2:$E$101,3,FALSE)<>"",LoB!P17>=VLOOKUP(LoB!O17,List!$A$2:$E$101,3,FALSE)),"Too Large","OK")))) ->  | Q17: =IF(O17<>"OK","",IF(AND(VLOOKUP(LoB!O17,List!$A$2:$E$101,4,FALSE)<>"",LoB!Q17<=VLOOKUP(LoB!O17,List!$A$2:$E$101,4,FALSE)),"Too Small",IF(AND(VLOOKUP(LoB!O17,List!$A$2:$E$101,5,FALSE)<>"",LoB!Q17>=VLOOKUP(LoB!O17,List!$A$2:$E$101,5,FALSE)),"Too Large","OK"))) ->  | S17: =IF(O17<>"OK","",IF(AND(LoB!R17="Yes",LoB!S17>LoB!T17),"Min > Max",IF(AND(LoB!R17="Yes",NOT(ISNUMBER(LoB!S17))),"Not Number","OK"))) ->  | T17: =IF(O17<>"OK","",IF(AND(LoB!R17="Yes",LoB!S17>LoB!T17),"Min > Max",IF(AND(LoB!R17="Yes",NOT(ISNUMBER(LoB!T17))),"Not Number","OK"))) ->  | U17: =IF($E17<>"Yes","",IF(OR(LoB!U17="",ISERROR(MATCH(LoB!U17,Index!$B$1:$CW$1,0))),"Not Available","OK")) ->  | V17: =IF($E17<>"Yes","",IF(ISERROR(MATCH(LoB!V17,List!$A$2:$A$101,0)),"Not Available","OK")) ->  | W17: =IF(V17<>"OK","",IF(LoB!V17="Empirical",IF(OR(LoB!W17="",ISERROR(MATCH(LoB!W17,Empirical!$B$1:$CW$1,0))),"Not Available","OK"),IF(AND(VLOOKUP(LoB!V17,List!$A$2:$E$101,2,FALSE)<>"",LoB!W17<=VLOOKUP(LoB!V17,List!$A$2:$E$101,2,FALSE)),"Too Small",IF(AND(VLOOKUP(LoB!V17,List!$A$2:$E$101,3,FALSE)<>"",LoB!W17>=VLOOKUP(LoB!V17,List!$A$2:$E$101,3,FALSE)),"Too Large","OK")))) ->  | X17: =IF(V17<>"OK","",IF(AND(VLOOKUP(LoB!V17,List!$A$2:$E$101,4,FALSE)<>"",LoB!X17<=VLOOKUP(LoB!V17,List!$A$2:$E$101,4,FALSE)),"Too Small",IF(AND(VLOOKUP(LoB!V17,List!$A$2:$E$101,5,FALSE)<>"",LoB!X17>=VLOOKUP(LoB!V17,List!$A$2:$E$101,5,FALSE)),"Too Large","OK"))) ->  | Z17: =IF(V17<>"OK","",IF(AND(LoB!Y17="Yes",LoB!Z17>LoB!AA17),"Min > Max",IF(AND(LoB!Y17="Yes",NOT(ISNUMBER(LoB!Z17))),"Not Number","OK"))) ->  | AA17: =IF(V17<>"OK","",IF(AND(LoB!Y17="Yes",LoB!Z17>LoB!AA17),"Min > Max",IF(AND(LoB!Y17="Yes",NOT(ISNUMBER(LoB!AA17))),"Not Number","OK"))) ->  | AB17: =IF($E17<>"Yes","",IF(OR(LoB!AB17="",ISERROR(MATCH(LoB!AB17,Index!$B$1:$CW$1,0))),"Not Available","OK")) ->  | AC17: =IF($E17<>"Yes","",IF(OR(LoB!AC17="CLOSED",LoB!AC17="ALL"),"OK","Not Available")) ->  | AD17: =IF($E17<>"Yes","",IF(ISERROR(MATCH(LoB!AD17,List!$A$2:$A$101,0)),"Not Available","OK")) ->  | AE17: =IF(AD17<>"OK","",IF(LoB!AD17="Empirical",IF(OR(LoB!AE17="",ISERROR(MATCH(LoB!AE17,Empirical!$B$1:$CW$1,0))),"Not Available","OK"),IF(AND(VLOOKUP(LoB!AD17,List!$A$2:$E$101,2,FALSE)<>"",LoB!AE17<=VLOOKUP(LoB!AD17,List!$A$2:$E$101,2,FALSE)),"Too Small",IF(AND(VLOOKUP(LoB!AD17,List!$A$2:$E$101,3,FALSE)<>"",LoB!AE17>=VLOOKUP(LoB!AD17,List!$A$2:$E$101,3,FALSE)),"Too Large","OK")))) ->  | AF17: =IF(AD17<>"OK","",IF(AND(VLOOKUP(LoB!AD17,List!$A$2:$E$101,4,FALSE)<>"",LoB!AF17<=VLOOKUP(LoB!AD17,List!$A$2:$E$101,4,FALSE)),"Too Small",IF(AND(VLOOKUP(LoB!AD17,List!$A$2:$E$101,5,FALSE)<>"",LoB!AF17>=VLOOKUP(LoB!AD17,List!$A$2:$E$101,5,FALSE)),"Too Large","OK"))) ->  | AH17: =IF(AD17<>"OK","",IF(AND(LoB!AG17="Yes",LoB!AH17>LoB!AI17),"Min > Max",IF(AND(LoB!AG17="Yes",NOT(ISNUMBER(LoB!AH17))),"Not Number","OK"))) ->  | AI17: =IF(AD17<>"OK","",IF(AND(LoB!AG17="Yes",LoB!AH17>LoB!AI17),"Min > Max",IF(AND(LoB!AG17="Yes",NOT(ISNUMBER(LoB!AI17))),"Not Number","OK"))) ->  | AJ17: =IF($E17<>"Yes","",IF(ISERROR(MATCH(LoB!AJ17,List!$A$2:$A$101,0)),"Not Available","OK")) ->  | AK17: =IF(AJ17<>"OK","",IF(LoB!AJ17="Empirical",IF(OR(LoB!AK17="",ISERROR(MATCH(LoB!AK17,Empirical!$B$1:$CW$1,0))),"Not Available","OK"),IF(AND(VLOOKUP(LoB!AJ17,List!$A$2:$E$101,2,FALSE)<>"",LoB!AK17<=VLOOKUP(LoB!AJ17,List!$A$2:$E$101,2,FALSE)),"Too Small",IF(AND(VLOOKUP(LoB!AJ17,List!$A$2:$E$101,3,FALSE)<>"",LoB!AK17>=VLOOKUP(LoB!AJ17,List!$A$2:$E$101,3,FALSE)),"Too Large","OK")))) ->  | AL17: =IF(AJ17<>"OK","",IF(AND(VLOOKUP(LoB!AJ17,List!$A$2:$E$101,4,FALSE)<>"",LoB!AL17<=VLOOKUP(LoB!AJ17,List!$A$2:$E$101,4,FALSE)),"Too Small",IF(AND(VLOOKUP(LoB!AJ17,List!$A$2:$E$101,5,FALSE)<>"",LoB!AL17>=VLOOKUP(LoB!AJ17,List!$A$2:$E$101,5,FALSE)),"Too Large","OK"))) ->  | AN17: =IF(AJ17<>"OK","",IF(AND(LoB!AM17="Yes",LoB!AN17>LoB!AO17),"Min > Max",IF(AND(LoB!AM17="Yes",NOT(ISNUMBER(LoB!AN17))),"Not Number","OK"))) ->  | AO17: =IF(AJ17<>"OK","",IF(AND(LoB!AM17="Yes",LoB!AN17>LoB!AO17),"Min > Max",IF(AND(LoB!AM17="Yes",NOT(ISNUMBER(LoB!AO17))),"Not Number","OK"))) ->  | AP17: =IF($E17<>"Yes","",IF(ISERROR(MATCH(LoB!AP17,List!$A$2:$A$101,0)),"Not Available","OK")) ->  | AQ17: =IF(AP17<>"OK","",IF(LoB!AP17="Empirical",IF(OR(LoB!AQ17="",ISERROR(MATCH(LoB!AQ17,Empirical!$B$1:$CW$1,0))),"Not Available","OK"),IF(AND(VLOOKUP(LoB!AP17,List!$A$2:$E$101,2,FALSE)<>"",LoB!AQ17<=VLOOKUP(LoB!AP17,List!$A$2:$E$101,2,FALSE)),"Too Small",IF(AND(VLOOKUP(LoB!AP17,List!$A$2:$E$101,3,FALSE)<>"",LoB!AQ17>=VLOOKUP(LoB!AP17,List!$A$2:$E$101,3,FALSE)),"Too Large","OK")))) ->  | AR17: =IF(AP17<>"OK","",IF(AND(VLOOKUP(LoB!AP17,List!$A$2:$E$101,4,FALSE)<>"",LoB!AR17<=VLOOKUP(LoB!AP17,List!$A$2:$E$101,4,FALSE)),"Too Small",IF(AND(VLOOKUP(LoB!AP17,List!$A$2:$E$101,5,FALSE)<>"",LoB!AR17>=VLOOKUP(LoB!AP17,List!$A$2:$E$101,5,FALSE)),"Too Large","OK"))) ->  | AT17: =IF(AP17<>"OK","",IF(AND(LoB!AS17="Yes",LoB!AT17>LoB!AU17),"Min > Max",IF(AND(LoB!AS17="Yes",NOT(ISNUMBER(LoB!AT17))),"Not Number","OK"))) ->  | AU17: =IF(AP17<>"OK","",IF(AND(LoB!AS17="Yes",LoB!AT17>LoB!AU17),"Min > Max",IF(AND(LoB!AS17="Yes",NOT(ISNUMBER(LoB!AU17))),"Not Number","OK"))) ->  | AV17: =IF($E17<>"Yes","",IF(ISERROR(MATCH(LoB!AV17,List!$F$2:$F$101,0)),"Not Available","OK")) ->  | AW17: =IF(AV17<>"OK","",IF(LoB!AV17="Independent","OK",IF(OR(AND(LoB!AV17="clayton",LoB!AW17<-1),AND(OR(LoB!AV17="gumbel",LoB!AV17="joe"),LoB!AW17<1),AND(LoB!AV17<>"normal",LoB!AV17<>"t",LoB!AW17=0)),"Invalid Value",IF(AND(OR(LoB!AV17="normal",LoB!AV17="t"),ABS(LoB!AW17)>1),"|Correlation|>1",IF(AND(OR(LoB!AV17="normal",LoB!AV17="t"),LoB!AW17=""),"No Value","OK"))))) ->  | AX17: =IF(AV17<>"OK","",IF(LoB!AV17="Independent","OK", IF(AND(OR(LoB!AV17="normal",LoB!AV17="t"),1-LoB!AW17*LoB!AX17<0),"Non Positive Semidefinite",IF(ABS(LoB!AX17)>1,"|Correlation|>1",IF(LoB!AX17="","No Value","OK"))))) ->  | AY17: =IF(AV17<>"OK","",IF(AND(OR(LoB!AV17="normal",LoB!AV17="t"),detm(LoB!AW17,LoB!AX17,LoB!AY17)<0),"Non Positive Semidefinite",IF(ABS(LoB!AY17)>1,"|Correlation >1",IF(LoB!AY17="","","OK")))) ->  | AZ17: =IF(AV17<>"OK","",IF(AND(LoB!AV17="t",LoB!AZ17<=0),"Wrong DoF","OK")) ->  | BA17: =IF($E17<>"Yes","",IF(OR(LoB!BA17="",AND(ISERROR(MATCH(LoB!BA17,FactorTable!$B$1:$GS$1,0)),ISERROR(MATCH(LoB!BA17,Function!$C$1:$CX$1,0)))),"Not Available","OK")) ->  | BB17: =IF($E17<>"Yes","",IF(OR(LoB!BB17="Empirical",LoB!BB17="None",LoB!BB17="Fixed"),"OK","Wrong")) ->  | BC17: =IF(BB17<>"OK","",IF(LoB!BB17="Empirical",IF(OR(LoB!BC17="",ISERROR(MATCH(LoB!BC17,Empirical!$B$1:$CW$1,0))),"Not Available","OK"),IF(AND(LoB!BB17="Fixed",LoB!BC17>=0),"OK","OK"))) ->  | BD17: =IF($E17<>"Yes","",IF(OR(LoB!BD17="Empirical",LoB!BD17="None",LoB!BB17="Fixed"),"OK","Wrong")) ->  | BE17: =IF(BD17<>"OK","",IF(LoB!BD17="Empirical",IF(OR(LoB!BE17="",ISERROR(MATCH(LoB!BE17,Empirical!$B$1:$CW$1,0))),"Not Available","OK"),IF(AND(LoB!BD17="Fixed",LoB!BE17>=0),"OK","OK"))) ->  | BF17: =IF($E17<>"Yes","",IF(OR(LoB!BF17="",ISERROR(MATCH(LoB!BF17,List!$M$2:$M$28,0))),"Not Available","OK")) -> 
B18: Correct | C18: =IF(LoB!C18="","",LoB!C18) ->  | D18: =IF(LoB!D18="","",LoB!D18) ->  | E18: =IF(LoB!E18="","",LoB!E18) ->  | F18: =IF($E18<>"Yes","",IF(OR(LoB!F18="CondPaid",LoB!F18="CondIncurLoss"),"OK",IF(OR(AND(ISERROR(MATCH(LoB!F18,FactorTable!$B$1:$GS$1,0)),ISERROR(MATCH(LoB!F18,Function!$C$1:$CX$1,0)))),"Not Available","OK"))) ->  | G18: =IF($E18<>"Yes","",IF(OR(LoB!G18="",AND(ISERROR(MATCH(LoB!G18,FactorTable!$B$1:$GS$1,0)),ISERROR(MATCH(LoB!G18,Function!$C$1:$CX$1,0)))),"Not Available","OK")) ->  | H18: =IF($E18<>"Yes","",IF(OR(LoB!H18="CondPaid",LoB!H18="CondIncurLoss"),"OK",IF(OR(AND(ISERROR(MATCH(LoB!H18,FactorTable!$B$1:$GS$1,0)),ISERROR(MATCH(LoB!H18,Function!$C$1:$CX$1,0)))),"Not Available","OK"))) ->  | I18: =IF($E18<>"Yes","",IF(ISERROR(MATCH(LoB!I18,List!$A$2:$A$101,0)),"Not Available","OK")) ->  | J18: =IF(I18<>"OK","",IF(LoB!I18="Empirical",IF(OR(LoB!J18="",ISERROR(MATCH(LoB!J18,Empirical!$B$1:$CW$1,0))),"Not Available","OK"),IF(AND(VLOOKUP(LoB!I18,List!$A$2:$E$101,2,FALSE)<>"",LoB!J18<=VLOOKUP(LoB!I18,List!$A$2:$E$101,2,FALSE)),"Too Small",IF(AND(VLOOKUP(LoB!I18,List!$A$2:$E$101,3,FALSE)<>"",LoB!J18>=VLOOKUP(LoB!I18,List!$A$2:$E$101,3,FALSE)),"Too Large","OK")))) ->  | K18: =IF(I18<>"OK","",IF(AND(VLOOKUP(LoB!I18,List!$A$2:$E$101,4,FALSE)<>"",LoB!K18<=VLOOKUP(LoB!I18,List!$A$2:$E$101,4,FALSE)),"Too Small",IF(AND(VLOOKUP(LoB!I18,List!$A$2:$E$101,5,FALSE)<>"",LoB!K18>=VLOOKUP(LoB!I18,List!$A$2:$E$101,5,FALSE)),"Too Large","OK"))) ->  | M18: =IF(I18<>"OK","",IF(AND(LoB!L18="Yes",LoB!M18>LoB!N18),"Min > Max",IF(AND(LoB!L18="Yes",NOT(ISNUMBER(LoB!M18))),"Not Number","OK"))) ->  | N18: =IF(I18<>"OK","",IF(AND(LoB!L18="Yes",LoB!M18>LoB!N18),"Min > Max",IF(AND(LoB!L18="Yes",NOT(ISNUMBER(LoB!N18))),"Not Number","OK"))) ->  | O18: =IF($E18<>"Yes","",IF(ISERROR(MATCH(LoB!O18,List!$A$2:$A$101,0)),"Not Available","OK")) ->  | P18: =IF(O18<>"OK","",IF(LoB!O18="Empirical",IF(OR(LoB!P18="",ISERROR(MATCH(LoB!P18,Empirical!$B$1:$CW$1,0))),"Not Available","OK"),IF(AND(VLOOKUP(LoB!O18,List!$A$2:$E$101,2,FALSE)<>"",LoB!P18<=VLOOKUP(LoB!O18,List!$A$2:$E$101,2,FALSE)),"Too Small",IF(AND(VLOOKUP(LoB!O18,List!$A$2:$E$101,3,FALSE)<>"",LoB!P18>=VLOOKUP(LoB!O18,List!$A$2:$E$101,3,FALSE)),"Too Large","OK")))) ->  | Q18: =IF(O18<>"OK","",IF(AND(VLOOKUP(LoB!O18,List!$A$2:$E$101,4,FALSE)<>"",LoB!Q18<=VLOOKUP(LoB!O18,List!$A$2:$E$101,4,FALSE)),"Too Small",IF(AND(VLOOKUP(LoB!O18,List!$A$2:$E$101,5,FALSE)<>"",LoB!Q18>=VLOOKUP(LoB!O18,List!$A$2:$E$101,5,FALSE)),"Too Large","OK"))) ->  | S18: =IF(O18<>"OK","",IF(AND(LoB!R18="Yes",LoB!S18>LoB!T18),"Min > Max",IF(AND(LoB!R18="Yes",NOT(ISNUMBER(LoB!S18))),"Not Number","OK"))) ->  | T18: =IF(O18<>"OK","",IF(AND(LoB!R18="Yes",LoB!S18>LoB!T18),"Min > Max",IF(AND(LoB!R18="Yes",NOT(ISNUMBER(LoB!T18))),"Not Number","OK"))) ->  | U18: =IF($E18<>"Yes","",IF(OR(LoB!U18="",ISERROR(MATCH(LoB!U18,Index!$B$1:$CW$1,0))),"Not Available","OK")) ->  | V18: =IF($E18<>"Yes","",IF(ISERROR(MATCH(LoB!V18,List!$A$2:$A$101,0)),"Not Available","OK")) ->  | W18: =IF(V18<>"OK","",IF(LoB!V18="Empirical",IF(OR(LoB!W18="",ISERROR(MATCH(LoB!W18,Empirical!$B$1:$CW$1,0))),"Not Available","OK"),IF(AND(VLOOKUP(LoB!V18,List!$A$2:$E$101,2,FALSE)<>"",LoB!W18<=VLOOKUP(LoB!V18,List!$A$2:$E$101,2,FALSE)),"Too Small",IF(AND(VLOOKUP(LoB!V18,List!$A$2:$E$101,3,FALSE)<>"",LoB!W18>=VLOOKUP(LoB!V18,List!$A$2:$E$101,3,FALSE)),"Too Large","OK")))) ->  | X18: =IF(V18<>"OK","",IF(AND(VLOOKUP(LoB!V18,List!$A$2:$E$101,4,FALSE)<>"",LoB!X18<=VLOOKUP(LoB!V18,List!$A$2:$E$101,4,FALSE)),"Too Small",IF(AND(VLOOKUP(LoB!V18,List!$A$2:$E$101,5,FALSE)<>"",LoB!X18>=VLOOKUP(LoB!V18,List!$A$2:$E$101,5,FALSE)),"Too Large","OK"))) ->  | Z18: =IF(V18<>"OK","",IF(AND(LoB!Y18="Yes",LoB!Z18>LoB!AA18),"Min > Max",IF(AND(LoB!Y18="Yes",NOT(ISNUMBER(LoB!Z18))),"Not Number","OK"))) ->  | AA18: =IF(V18<>"OK","",IF(AND(LoB!Y18="Yes",LoB!Z18>LoB!AA18),"Min > Max",IF(AND(LoB!Y18="Yes",NOT(ISNUMBER(LoB!AA18))),"Not Number","OK"))) ->  | AB18: =IF($E18<>"Yes","",IF(OR(LoB!AB18="",ISERROR(MATCH(LoB!AB18,Index!$B$1:$CW$1,0))),"Not Available","OK")) ->  | AC18: =IF($E18<>"Yes","",IF(OR(LoB!AC18="CLOSED",LoB!AC18="ALL"),"OK","Not Available")) ->  | AD18: =IF($E18<>"Yes","",IF(ISERROR(MATCH(LoB!AD18,List!$A$2:$A$101,0)),"Not Available","OK")) ->  | AE18: =IF(AD18<>"OK","",IF(LoB!AD18="Empirical",IF(OR(LoB!AE18="",ISERROR(MATCH(LoB!AE18,Empirical!$B$1:$CW$1,0))),"Not Available","OK"),IF(AND(VLOOKUP(LoB!AD18,List!$A$2:$E$101,2,FALSE)<>"",LoB!AE18<=VLOOKUP(LoB!AD18,List!$A$2:$E$101,2,FALSE)),"Too Small",IF(AND(VLOOKUP(LoB!AD18,List!$A$2:$E$101,3,FALSE)<>"",LoB!AE18>=VLOOKUP(LoB!AD18,List!$A$2:$E$101,3,FALSE)),"Too Large","OK")))) ->  | AF18: =IF(AD18<>"OK","",IF(AND(VLOOKUP(LoB!AD18,List!$A$2:$E$101,4,FALSE)<>"",LoB!AF18<=VLOOKUP(LoB!AD18,List!$A$2:$E$101,4,FALSE)),"Too Small",IF(AND(VLOOKUP(LoB!AD18,List!$A$2:$E$101,5,FALSE)<>"",LoB!AF18>=VLOOKUP(LoB!AD18,List!$A$2:$E$101,5,FALSE)),"Too Large","OK"))) ->  | AH18: =IF(AD18<>"OK","",IF(AND(LoB!AG18="Yes",LoB!AH18>LoB!AI18),"Min > Max",IF(AND(LoB!AG18="Yes",NOT(ISNUMBER(LoB!AH18))),"Not Number","OK"))) ->  | AI18: =IF(AD18<>"OK","",IF(AND(LoB!AG18="Yes",LoB!AH18>LoB!AI18),"Min > Max",IF(AND(LoB!AG18="Yes",NOT(ISNUMBER(LoB!AI18))),"Not Number","OK"))) ->  | AJ18: =IF($E18<>"Yes","",IF(ISERROR(MATCH(LoB!AJ18,List!$A$2:$A$101,0)),"Not Available","OK")) ->  | AK18: =IF(AJ18<>"OK","",IF(LoB!AJ18="Empirical",IF(OR(LoB!AK18="",ISERROR(MATCH(LoB!AK18,Empirical!$B$1:$CW$1,0))),"Not Available","OK"),IF(AND(VLOOKUP(LoB!AJ18,List!$A$2:$E$101,2,FALSE)<>"",LoB!AK18<=VLOOKUP(LoB!AJ18,List!$A$2:$E$101,2,FALSE)),"Too Small",IF(AND(VLOOKUP(LoB!AJ18,List!$A$2:$E$101,3,FALSE)<>"",LoB!AK18>=VLOOKUP(LoB!AJ18,List!$A$2:$E$101,3,FALSE)),"Too Large","OK")))) ->  | AL18: =IF(AJ18<>"OK","",IF(AND(VLOOKUP(LoB!AJ18,List!$A$2:$E$101,4,FALSE)<>"",LoB!AL18<=VLOOKUP(LoB!AJ18,List!$A$2:$E$101,4,FALSE)),"Too Small",IF(AND(VLOOKUP(LoB!AJ18,List!$A$2:$E$101,5,FALSE)<>"",LoB!AL18>=VLOOKUP(LoB!AJ18,List!$A$2:$E$101,5,FALSE)),"Too Large","OK"))) ->  | AN18: =IF(AJ18<>"OK","",IF(AND(LoB!AM18="Yes",LoB!AN18>LoB!AO18),"Min > Max",IF(AND(LoB!AM18="Yes",NOT(ISNUMBER(LoB!AN18))),"Not Number","OK"))) ->  | AO18: =IF(AJ18<>"OK","",IF(AND(LoB!AM18="Yes",LoB!AN18>LoB!AO18),"Min > Max",IF(AND(LoB!AM18="Yes",NOT(ISNUMBER(LoB!AO18))),"Not Number","OK"))) ->  | AP18: =IF($E18<>"Yes","",IF(ISERROR(MATCH(LoB!AP18,List!$A$2:$A$101,0)),"Not Available","OK")) ->  | AQ18: =IF(AP18<>"OK","",IF(LoB!AP18="Empirical",IF(OR(LoB!AQ18="",ISERROR(MATCH(LoB!AQ18,Empirical!$B$1:$CW$1,0))),"Not Available","OK"),IF(AND(VLOOKUP(LoB!AP18,List!$A$2:$E$101,2,FALSE)<>"",LoB!AQ18<=VLOOKUP(LoB!AP18,List!$A$2:$E$101,2,FALSE)),"Too Small",IF(AND(VLOOKUP(LoB!AP18,List!$A$2:$E$101,3,FALSE)<>"",LoB!AQ18>=VLOOKUP(LoB!AP18,List!$A$2:$E$101,3,FALSE)),"Too Large","OK")))) ->  | AR18: =IF(AP18<>"OK","",IF(AND(VLOOKUP(LoB!AP18,List!$A$2:$E$101,4,FALSE)<>"",LoB!AR18<=VLOOKUP(LoB!AP18,List!$A$2:$E$101,4,FALSE)),"Too Small",IF(AND(VLOOKUP(LoB!AP18,List!$A$2:$E$101,5,FALSE)<>"",LoB!AR18>=VLOOKUP(LoB!AP18,List!$A$2:$E$101,5,FALSE)),"Too Large","OK"))) ->  | AT18: =IF(AP18<>"OK","",IF(AND(LoB!AS18="Yes",LoB!AT18>LoB!AU18),"Min > Max",IF(AND(LoB!AS18="Yes",NOT(ISNUMBER(LoB!AT18))),"Not Number","OK"))) ->  | AU18: =IF(AP18<>"OK","",IF(AND(LoB!AS18="Yes",LoB!AT18>LoB!AU18),"Min > Max",IF(AND(LoB!AS18="Yes",NOT(ISNUMBER(LoB!AU18))),"Not Number","OK"))) ->  | AV18: =IF($E18<>"Yes","",IF(ISERROR(MATCH(LoB!AV18,List!$F$2:$F$101,0)),"Not Available","OK")) ->  | AW18: =IF(AV18<>"OK","",IF(LoB!AV18="Independent","OK",IF(OR(AND(LoB!AV18="clayton",LoB!AW18<-1),AND(OR(LoB!AV18="gumbel",LoB!AV18="joe"),LoB!AW18<1),AND(LoB!AV18<>"normal",LoB!AV18<>"t",LoB!AW18=0)),"Invalid Value",IF(AND(OR(LoB!AV18="normal",LoB!AV18="t"),ABS(LoB!AW18)>1),"|Correlation|>1",IF(AND(OR(LoB!AV18="normal",LoB!AV18="t"),LoB!AW18=""),"No Value","OK"))))) ->  | AX18: =IF(AV18<>"OK","",IF(LoB!AV18="Independent","OK", IF(AND(OR(LoB!AV18="normal",LoB!AV18="t"),1-LoB!AW18*LoB!AX18<0),"Non Positive Semidefinite",IF(ABS(LoB!AX18)>1,"|Correlation|>1",IF(LoB!AX18="","No Value","OK"))))) ->  | AY18: =IF(AV18<>"OK","",IF(AND(OR(LoB!AV18="normal",LoB!AV18="t"),detm(LoB!AW18,LoB!AX18,LoB!AY18)<0),"Non Positive Semidefinite",IF(ABS(LoB!AY18)>1,"|Correlation >1",IF(LoB!AY18="","","OK")))) ->  | AZ18: =IF(AV18<>"OK","",IF(AND(LoB!AV18="t",LoB!AZ18<=0),"Wrong DoF","OK")) ->  | BA18: =IF($E18<>"Yes","",IF(OR(LoB!BA18="",AND(ISERROR(MATCH(LoB!BA18,FactorTable!$B$1:$GS$1,0)),ISERROR(MATCH(LoB!BA18,Function!$C$1:$CX$1,0)))),"Not Available","OK")) ->  | BB18: =IF($E18<>"Yes","",IF(OR(LoB!BB18="Empirical",LoB!BB18="None",LoB!BB18="Fixed"),"OK","Wrong")) ->  | BC18: =IF(BB18<>"OK","",IF(LoB!BB18="Empirical",IF(OR(LoB!BC18="",ISERROR(MATCH(LoB!BC18,Empirical!$B$1:$CW$1,0))),"Not Available","OK"),IF(AND(LoB!BB18="Fixed",LoB!BC18>=0),"OK","OK"))) ->  | BD18: =IF($E18<>"Yes","",IF(OR(LoB!BD18="Empirical",LoB!BD18="None",LoB!BB18="Fixed"),"OK","Wrong")) ->  | BE18: =IF(BD18<>"OK","",IF(LoB!BD18="Empirical",IF(OR(LoB!BE18="",ISERROR(MATCH(LoB!BE18,Empirical!$B$1:$CW$1,0))),"Not Available","OK"),IF(AND(LoB!BD18="Fixed",LoB!BE18>=0),"OK","OK"))) ->  | BF18: =IF($E18<>"Yes","",IF(OR(LoB!BF18="",ISERROR(MATCH(LoB!BF18,List!$M$2:$M$28,0))),"Not Available","OK")) -> 
B19: Correct | C19: =IF(LoB!C19="","",LoB!C19) ->  | D19: =IF(LoB!D19="","",LoB!D19) ->  | E19: =IF(LoB!E19="","",LoB!E19) ->  | F19: =IF($E19<>"Yes","",IF(OR(LoB!F19="CondPaid",LoB!F19="CondIncurLoss"),"OK",IF(OR(AND(ISERROR(MATCH(LoB!F19,FactorTable!$B$1:$GS$1,0)),ISERROR(MATCH(LoB!F19,Function!$C$1:$CX$1,0)))),"Not Available","OK"))) ->  | G19: =IF($E19<>"Yes","",IF(OR(LoB!G19="",AND(ISERROR(MATCH(LoB!G19,FactorTable!$B$1:$GS$1,0)),ISERROR(MATCH(LoB!G19,Function!$C$1:$CX$1,0)))),"Not Available","OK")) ->  | H19: =IF($E19<>"Yes","",IF(OR(LoB!H19="CondPaid",LoB!H19="CondIncurLoss"),"OK",IF(OR(AND(ISERROR(MATCH(LoB!H19,FactorTable!$B$1:$GS$1,0)),ISERROR(MATCH(LoB!H19,Function!$C$1:$CX$1,0)))),"Not Available","OK"))) ->  | I19: =IF($E19<>"Yes","",IF(ISERROR(MATCH(LoB!I19,List!$A$2:$A$101,0)),"Not Available","OK")) ->  | J19: =IF(I19<>"OK","",IF(LoB!I19="Empirical",IF(OR(LoB!J19="",ISERROR(MATCH(LoB!J19,Empirical!$B$1:$CW$1,0))),"Not Available","OK"),IF(AND(VLOOKUP(LoB!I19,List!$A$2:$E$101,2,FALSE)<>"",LoB!J19<=VLOOKUP(LoB!I19,List!$A$2:$E$101,2,FALSE)),"Too Small",IF(AND(VLOOKUP(LoB!I19,List!$A$2:$E$101,3,FALSE)<>"",LoB!J19>=VLOOKUP(LoB!I19,List!$A$2:$E$101,3,FALSE)),"Too Large","OK")))) ->  | K19: =IF(I19<>"OK","",IF(AND(VLOOKUP(LoB!I19,List!$A$2:$E$101,4,FALSE)<>"",LoB!K19<=VLOOKUP(LoB!I19,List!$A$2:$E$101,4,FALSE)),"Too Small",IF(AND(VLOOKUP(LoB!I19,List!$A$2:$E$101,5,FALSE)<>"",LoB!K19>=VLOOKUP(LoB!I19,List!$A$2:$E$101,5,FALSE)),"Too Large","OK"))) ->  | M19: =IF(I19<>"OK","",IF(AND(LoB!L19="Yes",LoB!M19>LoB!N19),"Min > Max",IF(AND(LoB!L19="Yes",NOT(ISNUMBER(LoB!M19))),"Not Number","OK"))) ->  | N19: =IF(I19<>"OK","",IF(AND(LoB!L19="Yes",LoB!M19>LoB!N19),"Min > Max",IF(AND(LoB!L19="Yes",NOT(ISNUMBER(LoB!N19))),"Not Number","OK"))) ->  | O19: =IF($E19<>"Yes","",IF(ISERROR(MATCH(LoB!O19,List!$A$2:$A$101,0)),"Not Available","OK")) ->  | P19: =IF(O19<>"OK","",IF(LoB!O19="Empirical",IF(OR(LoB!P19="",ISERROR(MATCH(LoB!P19,Empirical!$B$1:$CW$1,0))),"Not Available","OK"),IF(AND(VLOOKUP(LoB!O19,List!$A$2:$E$101,2,FALSE)<>"",LoB!P19<=VLOOKUP(LoB!O19,List!$A$2:$E$101,2,FALSE)),"Too Small",IF(AND(VLOOKUP(LoB!O19,List!$A$2:$E$101,3,FALSE)<>"",LoB!P19>=VLOOKUP(LoB!O19,List!$A$2:$E$101,3,FALSE)),"Too Large","OK")))) ->  | Q19: =IF(O19<>"OK","",IF(AND(VLOOKUP(LoB!O19,List!$A$2:$E$101,4,FALSE)<>"",LoB!Q19<=VLOOKUP(LoB!O19,List!$A$2:$E$101,4,FALSE)),"Too Small",IF(AND(VLOOKUP(LoB!O19,List!$A$2:$E$101,5,FALSE)<>"",LoB!Q19>=VLOOKUP(LoB!O19,List!$A$2:$E$101,5,FALSE)),"Too Large","OK"))) ->  | S19: =IF(O19<>"OK","",IF(AND(LoB!R19="Yes",LoB!S19>LoB!T19),"Min > Max",IF(AND(LoB!R19="Yes",NOT(ISNUMBER(LoB!S19))),"Not Number","OK"))) ->  | T19: =IF(O19<>"OK","",IF(AND(LoB!R19="Yes",LoB!S19>LoB!T19),"Min > Max",IF(AND(LoB!R19="Yes",NOT(ISNUMBER(LoB!T19))),"Not Number","OK"))) ->  | U19: =IF($E19<>"Yes","",IF(OR(LoB!U19="",ISERROR(MATCH(LoB!U19,Index!$B$1:$CW$1,0))),"Not Available","OK")) ->  | V19: =IF($E19<>"Yes","",IF(ISERROR(MATCH(LoB!V19,List!$A$2:$A$101,0)),"Not Available","OK")) ->  | W19: =IF(V19<>"OK","",IF(LoB!V19="Empirical",IF(OR(LoB!W19="",ISERROR(MATCH(LoB!W19,Empirical!$B$1:$CW$1,0))),"Not Available","OK"),IF(AND(VLOOKUP(LoB!V19,List!$A$2:$E$101,2,FALSE)<>"",LoB!W19<=VLOOKUP(LoB!V19,List!$A$2:$E$101,2,FALSE)),"Too Small",IF(AND(VLOOKUP(LoB!V19,List!$A$2:$E$101,3,FALSE)<>"",LoB!W19>=VLOOKUP(LoB!V19,List!$A$2:$E$101,3,FALSE)),"Too Large","OK")))) ->  | X19: =IF(V19<>"OK","",IF(AND(VLOOKUP(LoB!V19,List!$A$2:$E$101,4,FALSE)<>"",LoB!X19<=VLOOKUP(LoB!V19,List!$A$2:$E$101,4,FALSE)),"Too Small",IF(AND(VLOOKUP(LoB!V19,List!$A$2:$E$101,5,FALSE)<>"",LoB!X19>=VLOOKUP(LoB!V19,List!$A$2:$E$101,5,FALSE)),"Too Large","OK"))) ->  | Z19: =IF(V19<>"OK","",IF(AND(LoB!Y19="Yes",LoB!Z19>LoB!AA19),"Min > Max",IF(AND(LoB!Y19="Yes",NOT(ISNUMBER(LoB!Z19))),"Not Number","OK"))) ->  | AA19: =IF(V19<>"OK","",IF(AND(LoB!Y19="Yes",LoB!Z19>LoB!AA19),"Min > Max",IF(AND(LoB!Y19="Yes",NOT(ISNUMBER(LoB!AA19))),"Not Number","OK"))) ->  | AB19: =IF($E19<>"Yes","",IF(OR(LoB!AB19="",ISERROR(MATCH(LoB!AB19,Index!$B$1:$CW$1,0))),"Not Available","OK")) ->  | AC19: =IF($E19<>"Yes","",IF(OR(LoB!AC19="CLOSED",LoB!AC19="ALL"),"OK","Not Available")) ->  | AD19: =IF($E19<>"Yes","",IF(ISERROR(MATCH(LoB!AD19,List!$A$2:$A$101,0)),"Not Available","OK")) ->  | AE19: =IF(AD19<>"OK","",IF(LoB!AD19="Empirical",IF(OR(LoB!AE19="",ISERROR(MATCH(LoB!AE19,Empirical!$B$1:$CW$1,0))),"Not Available","OK"),IF(AND(VLOOKUP(LoB!AD19,List!$A$2:$E$101,2,FALSE)<>"",LoB!AE19<=VLOOKUP(LoB!AD19,List!$A$2:$E$101,2,FALSE)),"Too Small",IF(AND(VLOOKUP(LoB!AD19,List!$A$2:$E$101,3,FALSE)<>"",LoB!AE19>=VLOOKUP(LoB!AD19,List!$A$2:$E$101,3,FALSE)),"Too Large","OK")))) ->  | AF19: =IF(AD19<>"OK","",IF(AND(VLOOKUP(LoB!AD19,List!$A$2:$E$101,4,FALSE)<>"",LoB!AF19<=VLOOKUP(LoB!AD19,List!$A$2:$E$101,4,FALSE)),"Too Small",IF(AND(VLOOKUP(LoB!AD19,List!$A$2:$E$101,5,FALSE)<>"",LoB!AF19>=VLOOKUP(LoB!AD19,List!$A$2:$E$101,5,FALSE)),"Too Large","OK"))) ->  | AH19: =IF(AD19<>"OK","",IF(AND(LoB!AG19="Yes",LoB!AH19>LoB!AI19),"Min > Max",IF(AND(LoB!AG19="Yes",NOT(ISNUMBER(LoB!AH19))),"Not Number","OK"))) ->  | AI19: =IF(AD19<>"OK","",IF(AND(LoB!AG19="Yes",LoB!AH19>LoB!AI19),"Min > Max",IF(AND(LoB!AG19="Yes",NOT(ISNUMBER(LoB!AI19))),"Not Number","OK"))) ->  | AJ19: =IF($E19<>"Yes","",IF(ISERROR(MATCH(LoB!AJ19,List!$A$2:$A$101,0)),"Not Available","OK")) ->  | AK19: =IF(AJ19<>"OK","",IF(LoB!AJ19="Empirical",IF(OR(LoB!AK19="",ISERROR(MATCH(LoB!AK19,Empirical!$B$1:$CW$1,0))),"Not Available","OK"),IF(AND(VLOOKUP(LoB!AJ19,List!$A$2:$E$101,2,FALSE)<>"",LoB!AK19<=VLOOKUP(LoB!AJ19,List!$A$2:$E$101,2,FALSE)),"Too Small",IF(AND(VLOOKUP(LoB!AJ19,List!$A$2:$E$101,3,FALSE)<>"",LoB!AK19>=VLOOKUP(LoB!AJ19,List!$A$2:$E$101,3,FALSE)),"Too Large","OK")))) ->  | AL19: =IF(AJ19<>"OK","",IF(AND(VLOOKUP(LoB!AJ19,List!$A$2:$E$101,4,FALSE)<>"",LoB!AL19<=VLOOKUP(LoB!AJ19,List!$A$2:$E$101,4,FALSE)),"Too Small",IF(AND(VLOOKUP(LoB!AJ19,List!$A$2:$E$101,5,FALSE)<>"",LoB!AL19>=VLOOKUP(LoB!AJ19,List!$A$2:$E$101,5,FALSE)),"Too Large","OK"))) ->  | AN19: =IF(AJ19<>"OK","",IF(AND(LoB!AM19="Yes",LoB!AN19>LoB!AO19),"Min > Max",IF(AND(LoB!AM19="Yes",NOT(ISNUMBER(LoB!AN19))),"Not Number","OK"))) ->  | AO19: =IF(AJ19<>"OK","",IF(AND(LoB!AM19="Yes",LoB!AN19>LoB!AO19),"Min > Max",IF(AND(LoB!AM19="Yes",NOT(ISNUMBER(LoB!AO19))),"Not Number","OK"))) ->  | AP19: =IF($E19<>"Yes","",IF(ISERROR(MATCH(LoB!AP19,List!$A$2:$A$101,0)),"Not Available","OK")) ->  | AQ19: =IF(AP19<>"OK","",IF(LoB!AP19="Empirical",IF(OR(LoB!AQ19="",ISERROR(MATCH(LoB!AQ19,Empirical!$B$1:$CW$1,0))),"Not Available","OK"),IF(AND(VLOOKUP(LoB!AP19,List!$A$2:$E$101,2,FALSE)<>"",LoB!AQ19<=VLOOKUP(LoB!AP19,List!$A$2:$E$101,2,FALSE)),"Too Small",IF(AND(VLOOKUP(LoB!AP19,List!$A$2:$E$101,3,FALSE)<>"",LoB!AQ19>=VLOOKUP(LoB!AP19,List!$A$2:$E$101,3,FALSE)),"Too Large","OK")))) ->  | AR19: =IF(AP19<>"OK","",IF(AND(VLOOKUP(LoB!AP19,List!$A$2:$E$101,4,FALSE)<>"",LoB!AR19<=VLOOKUP(LoB!AP19,List!$A$2:$E$101,4,FALSE)),"Too Small",IF(AND(VLOOKUP(LoB!AP19,List!$A$2:$E$101,5,FALSE)<>"",LoB!AR19>=VLOOKUP(LoB!AP19,List!$A$2:$E$101,5,FALSE)),"Too Large","OK"))) ->  | AT19: =IF(AP19<>"OK","",IF(AND(LoB!AS19="Yes",LoB!AT19>LoB!AU19),"Min > Max",IF(AND(LoB!AS19="Yes",NOT(ISNUMBER(LoB!AT19))),"Not Number","OK"))) ->  | AU19: =IF(AP19<>"OK","",IF(AND(LoB!AS19="Yes",LoB!AT19>LoB!AU19),"Min > Max",IF(AND(LoB!AS19="Yes",NOT(ISNUMBER(LoB!AU19))),"Not Number","OK"))) ->  | AV19: =IF($E19<>"Yes","",IF(ISERROR(MATCH(LoB!AV19,List!$F$2:$F$101,0)),"Not Available","OK")) ->  | AW19: =IF(AV19<>"OK","",IF(LoB!AV19="Independent","OK",IF(OR(AND(LoB!AV19="clayton",LoB!AW19<-1),AND(OR(LoB!AV19="gumbel",LoB!AV19="joe"),LoB!AW19<1),AND(LoB!AV19<>"normal",LoB!AV19<>"t",LoB!AW19=0)),"Invalid Value",IF(AND(OR(LoB!AV19="normal",LoB!AV19="t"),ABS(LoB!AW19)>1),"|Correlation|>1",IF(AND(OR(LoB!AV19="normal",LoB!AV19="t"),LoB!AW19=""),"No Value","OK"))))) ->  | AX19: =IF(AV19<>"OK","",IF(LoB!AV19="Independent","OK", IF(AND(OR(LoB!AV19="normal",LoB!AV19="t"),1-LoB!AW19*LoB!AX19<0),"Non Positive Semidefinite",IF(ABS(LoB!AX19)>1,"|Correlation|>1",IF(LoB!AX19="","No Value","OK"))))) ->  | AY19: =IF(AV19<>"OK","",IF(AND(OR(LoB!AV19="normal",LoB!AV19="t"),detm(LoB!AW19,LoB!AX19,LoB!AY19)<0),"Non Positive Semidefinite",IF(ABS(LoB!AY19)>1,"|Correlation >1",IF(LoB!AY19="","","OK")))) ->  | AZ19: =IF(AV19<>"OK","",IF(AND(LoB!AV19="t",LoB!AZ19<=0),"Wrong DoF","OK")) ->  | BA19: =IF($E19<>"Yes","",IF(OR(LoB!BA19="",AND(ISERROR(MATCH(LoB!BA19,FactorTable!$B$1:$GS$1,0)),ISERROR(MATCH(LoB!BA19,Function!$C$1:$CX$1,0)))),"Not Available","OK")) ->  | BB19: =IF($E19<>"Yes","",IF(OR(LoB!BB19="Empirical",LoB!BB19="None",LoB!BB19="Fixed"),"OK","Wrong")) ->  | BC19: =IF(BB19<>"OK","",IF(LoB!BB19="Empirical",IF(OR(LoB!BC19="",ISERROR(MATCH(LoB!BC19,Empirical!$B$1:$CW$1,0))),"Not Available","OK"),IF(AND(LoB!BB19="Fixed",LoB!BC19>=0),"OK","OK"))) ->  | BD19: =IF($E19<>"Yes","",IF(OR(LoB!BD19="Empirical",LoB!BD19="None",LoB!BB19="Fixed"),"OK","Wrong")) ->  | BE19: =IF(BD19<>"OK","",IF(LoB!BD19="Empirical",IF(OR(LoB!BE19="",ISERROR(MATCH(LoB!BE19,Empirical!$B$1:$CW$1,0))),"Not Available","OK"),IF(AND(LoB!BD19="Fixed",LoB!BE19>=0),"OK","OK"))) ->  | BF19: =IF($E19<>"Yes","",IF(OR(LoB!BF19="",ISERROR(MATCH(LoB!BF19,List!$M$2:$M$28,0))),"Not Available","OK")) -> 
B20: Correct | C20: =IF(LoB!C20="","",LoB!C20) ->  | D20: =IF(LoB!D20="","",LoB!D20) ->  | E20: =IF(LoB!E20="","",LoB!E20) ->  | F20: =IF($E20<>"Yes","",IF(OR(LoB!F20="CondPaid",LoB!F20="CondIncurLoss"),"OK",IF(OR(AND(ISERROR(MATCH(LoB!F20,FactorTable!$B$1:$GS$1,0)),ISERROR(MATCH(LoB!F20,Function!$C$1:$CX$1,0)))),"Not Available","OK"))) ->  | G20: =IF($E20<>"Yes","",IF(OR(LoB!G20="",AND(ISERROR(MATCH(LoB!G20,FactorTable!$B$1:$GS$1,0)),ISERROR(MATCH(LoB!G20,Function!$C$1:$CX$1,0)))),"Not Available","OK")) ->  | H20: =IF($E20<>"Yes","",IF(OR(LoB!H20="CondPaid",LoB!H20="CondIncurLoss"),"OK",IF(OR(AND(ISERROR(MATCH(LoB!H20,FactorTable!$B$1:$GS$1,0)),ISERROR(MATCH(LoB!H20,Function!$C$1:$CX$1,0)))),"Not Available","OK"))) ->  | I20: =IF($E20<>"Yes","",IF(ISERROR(MATCH(LoB!I20,List!$A$2:$A$101,0)),"Not Available","OK")) ->  | J20: =IF(I20<>"OK","",IF(LoB!I20="Empirical",IF(OR(LoB!J20="",ISERROR(MATCH(LoB!J20,Empirical!$B$1:$CW$1,0))),"Not Available","OK"),IF(AND(VLOOKUP(LoB!I20,List!$A$2:$E$101,2,FALSE)<>"",LoB!J20<=VLOOKUP(LoB!I20,List!$A$2:$E$101,2,FALSE)),"Too Small",IF(AND(VLOOKUP(LoB!I20,List!$A$2:$E$101,3,FALSE)<>"",LoB!J20>=VLOOKUP(LoB!I20,List!$A$2:$E$101,3,FALSE)),"Too Large","OK")))) ->  | K20: =IF(I20<>"OK","",IF(AND(VLOOKUP(LoB!I20,List!$A$2:$E$101,4,FALSE)<>"",LoB!K20<=VLOOKUP(LoB!I20,List!$A$2:$E$101,4,FALSE)),"Too Small",IF(AND(VLOOKUP(LoB!I20,List!$A$2:$E$101,5,FALSE)<>"",LoB!K20>=VLOOKUP(LoB!I20,List!$A$2:$E$101,5,FALSE)),"Too Large","OK"))) ->  | M20: =IF(I20<>"OK","",IF(AND(LoB!L20="Yes",LoB!M20>LoB!N20),"Min > Max",IF(AND(LoB!L20="Yes",NOT(ISNUMBER(LoB!M20))),"Not Number","OK"))) ->  | N20: =IF(I20<>"OK","",IF(AND(LoB!L20="Yes",LoB!M20>LoB!N20),"Min > Max",IF(AND(LoB!L20="Yes",NOT(ISNUMBER(LoB!N20))),"Not Number","OK"))) ->  | O20: =IF($E20<>"Yes","",IF(ISERROR(MATCH(LoB!O20,List!$A$2:$A$101,0)),"Not Available","OK")) ->  | P20: =IF(O20<>"OK","",IF(LoB!O20="Empirical",IF(OR(LoB!P20="",ISERROR(MATCH(LoB!P20,Empirical!$B$1:$CW$1,0))),"Not Available","OK"),IF(AND(VLOOKUP(LoB!O20,List!$A$2:$E$101,2,FALSE)<>"",LoB!P20<=VLOOKUP(LoB!O20,List!$A$2:$E$101,2,FALSE)),"Too Small",IF(AND(VLOOKUP(LoB!O20,List!$A$2:$E$101,3,FALSE)<>"",LoB!P20>=VLOOKUP(LoB!O20,List!$A$2:$E$101,3,FALSE)),"Too Large","OK")))) ->  | Q20: =IF(O20<>"OK","",IF(AND(VLOOKUP(LoB!O20,List!$A$2:$E$101,4,FALSE)<>"",LoB!Q20<=VLOOKUP(LoB!O20,List!$A$2:$E$101,4,FALSE)),"Too Small",IF(AND(VLOOKUP(LoB!O20,List!$A$2:$E$101,5,FALSE)<>"",LoB!Q20>=VLOOKUP(LoB!O20,List!$A$2:$E$101,5,FALSE)),"Too Large","OK"))) ->  | S20: =IF(O20<>"OK","",IF(AND(LoB!R20="Yes",LoB!S20>LoB!T20),"Min > Max",IF(AND(LoB!R20="Yes",NOT(ISNUMBER(LoB!S20))),"Not Number","OK"))) ->  | T20: =IF(O20<>"OK","",IF(AND(LoB!R20="Yes",LoB!S20>LoB!T20),"Min > Max",IF(AND(LoB!R20="Yes",NOT(ISNUMBER(LoB!T20))),"Not Number","OK"))) ->  | U20: =IF($E20<>"Yes","",IF(OR(LoB!U20="",ISERROR(MATCH(LoB!U20,Index!$B$1:$CW$1,0))),"Not Available","OK")) ->  | V20: =IF($E20<>"Yes","",IF(ISERROR(MATCH(LoB!V20,List!$A$2:$A$101,0)),"Not Available","OK")) ->  | W20: =IF(V20<>"OK","",IF(LoB!V20="Empirical",IF(OR(LoB!W20="",ISERROR(MATCH(LoB!W20,Empirical!$B$1:$CW$1,0))),"Not Available","OK"),IF(AND(VLOOKUP(LoB!V20,List!$A$2:$E$101,2,FALSE)<>"",LoB!W20<=VLOOKUP(LoB!V20,List!$A$2:$E$101,2,FALSE)),"Too Small",IF(AND(VLOOKUP(LoB!V20,List!$A$2:$E$101,3,FALSE)<>"",LoB!W20>=VLOOKUP(LoB!V20,List!$A$2:$E$101,3,FALSE)),"Too Large","OK")))) ->  | X20: =IF(V20<>"OK","",IF(AND(VLOOKUP(LoB!V20,List!$A$2:$E$101,4,FALSE)<>"",LoB!X20<=VLOOKUP(LoB!V20,List!$A$2:$E$101,4,FALSE)),"Too Small",IF(AND(VLOOKUP(LoB!V20,List!$A$2:$E$101,5,FALSE)<>"",LoB!X20>=VLOOKUP(LoB!V20,List!$A$2:$E$101,5,FALSE)),"Too Large","OK"))) ->  | Z20: =IF(V20<>"OK","",IF(AND(LoB!Y20="Yes",LoB!Z20>LoB!AA20),"Min > Max",IF(AND(LoB!Y20="Yes",NOT(ISNUMBER(LoB!Z20))),"Not Number","OK"))) ->  | AA20: =IF(V20<>"OK","",IF(AND(LoB!Y20="Yes",LoB!Z20>LoB!AA20),"Min > Max",IF(AND(LoB!Y20="Yes",NOT(ISNUMBER(LoB!AA20))),"Not Number","OK"))) ->  | AB20: =IF($E20<>"Yes","",IF(OR(LoB!AB20="",ISERROR(MATCH(LoB!AB20,Index!$B$1:$CW$1,0))),"Not Available","OK")) ->  | AC20: =IF($E20<>"Yes","",IF(OR(LoB!AC20="CLOSED",LoB!AC20="ALL"),"OK","Not Available")) ->  | AD20: =IF($E20<>"Yes","",IF(ISERROR(MATCH(LoB!AD20,List!$A$2:$A$101,0)),"Not Available","OK")) ->  | AE20: =IF(AD20<>"OK","",IF(LoB!AD20="Empirical",IF(OR(LoB!AE20="",ISERROR(MATCH(LoB!AE20,Empirical!$B$1:$CW$1,0))),"Not Available","OK"),IF(AND(VLOOKUP(LoB!AD20,List!$A$2:$E$101,2,FALSE)<>"",LoB!AE20<=VLOOKUP(LoB!AD20,List!$A$2:$E$101,2,FALSE)),"Too Small",IF(AND(VLOOKUP(LoB!AD20,List!$A$2:$E$101,3,FALSE)<>"",LoB!AE20>=VLOOKUP(LoB!AD20,List!$A$2:$E$101,3,FALSE)),"Too Large","OK")))) ->  | AF20: =IF(AD20<>"OK","",IF(AND(VLOOKUP(LoB!AD20,List!$A$2:$E$101,4,FALSE)<>"",LoB!AF20<=VLOOKUP(LoB!AD20,List!$A$2:$E$101,4,FALSE)),"Too Small",IF(AND(VLOOKUP(LoB!AD20,List!$A$2:$E$101,5,FALSE)<>"",LoB!AF20>=VLOOKUP(LoB!AD20,List!$A$2:$E$101,5,FALSE)),"Too Large","OK"))) ->  | AH20: =IF(AD20<>"OK","",IF(AND(LoB!AG20="Yes",LoB!AH20>LoB!AI20),"Min > Max",IF(AND(LoB!AG20="Yes",NOT(ISNUMBER(LoB!AH20))),"Not Number","OK"))) ->  | AI20: =IF(AD20<>"OK","",IF(AND(LoB!AG20="Yes",LoB!AH20>LoB!AI20),"Min > Max",IF(AND(LoB!AG20="Yes",NOT(ISNUMBER(LoB!AI20))),"Not Number","OK"))) ->  | AJ20: =IF($E20<>"Yes","",IF(ISERROR(MATCH(LoB!AJ20,List!$A$2:$A$101,0)),"Not Available","OK")) ->  | AK20: =IF(AJ20<>"OK","",IF(LoB!AJ20="Empirical",IF(OR(LoB!AK20="",ISERROR(MATCH(LoB!AK20,Empirical!$B$1:$CW$1,0))),"Not Available","OK"),IF(AND(VLOOKUP(LoB!AJ20,List!$A$2:$E$101,2,FALSE)<>"",LoB!AK20<=VLOOKUP(LoB!AJ20,List!$A$2:$E$101,2,FALSE)),"Too Small",IF(AND(VLOOKUP(LoB!AJ20,List!$A$2:$E$101,3,FALSE)<>"",LoB!AK20>=VLOOKUP(LoB!AJ20,List!$A$2:$E$101,3,FALSE)),"Too Large","OK")))) ->  | AL20: =IF(AJ20<>"OK","",IF(AND(VLOOKUP(LoB!AJ20,List!$A$2:$E$101,4,FALSE)<>"",LoB!AL20<=VLOOKUP(LoB!AJ20,List!$A$2:$E$101,4,FALSE)),"Too Small",IF(AND(VLOOKUP(LoB!AJ20,List!$A$2:$E$101,5,FALSE)<>"",LoB!AL20>=VLOOKUP(LoB!AJ20,List!$A$2:$E$101,5,FALSE)),"Too Large","OK"))) ->  | AN20: =IF(AJ20<>"OK","",IF(AND(LoB!AM20="Yes",LoB!AN20>LoB!AO20),"Min > Max",IF(AND(LoB!AM20="Yes",NOT(ISNUMBER(LoB!AN20))),"Not Number","OK"))) ->  | AO20: =IF(AJ20<>"OK","",IF(AND(LoB!AM20="Yes",LoB!AN20>LoB!AO20),"Min > Max",IF(AND(LoB!AM20="Yes",NOT(ISNUMBER(LoB!AO20))),"Not Number","OK"))) ->  | AP20: =IF($E20<>"Yes","",IF(ISERROR(MATCH(LoB!AP20,List!$A$2:$A$101,0)),"Not Available","OK")) ->  | AQ20: =IF(AP20<>"OK","",IF(LoB!AP20="Empirical",IF(OR(LoB!AQ20="",ISERROR(MATCH(LoB!AQ20,Empirical!$B$1:$CW$1,0))),"Not Available","OK"),IF(AND(VLOOKUP(LoB!AP20,List!$A$2:$E$101,2,FALSE)<>"",LoB!AQ20<=VLOOKUP(LoB!AP20,List!$A$2:$E$101,2,FALSE)),"Too Small",IF(AND(VLOOKUP(LoB!AP20,List!$A$2:$E$101,3,FALSE)<>"",LoB!AQ20>=VLOOKUP(LoB!AP20,List!$A$2:$E$101,3,FALSE)),"Too Large","OK")))) ->  | AR20: =IF(AP20<>"OK","",IF(AND(VLOOKUP(LoB!AP20,List!$A$2:$E$101,4,FALSE)<>"",LoB!AR20<=VLOOKUP(LoB!AP20,List!$A$2:$E$101,4,FALSE)),"Too Small",IF(AND(VLOOKUP(LoB!AP20,List!$A$2:$E$101,5,FALSE)<>"",LoB!AR20>=VLOOKUP(LoB!AP20,List!$A$2:$E$101,5,FALSE)),"Too Large","OK"))) ->  | AT20: =IF(AP20<>"OK","",IF(AND(LoB!AS20="Yes",LoB!AT20>LoB!AU20),"Min > Max",IF(AND(LoB!AS20="Yes",NOT(ISNUMBER(LoB!AT20))),"Not Number","OK"))) ->  | AU20: =IF(AP20<>"OK","",IF(AND(LoB!AS20="Yes",LoB!AT20>LoB!AU20),"Min > Max",IF(AND(LoB!AS20="Yes",NOT(ISNUMBER(LoB!AU20))),"Not Number","OK"))) ->  | AV20: =IF($E20<>"Yes","",IF(ISERROR(MATCH(LoB!AV20,List!$F$2:$F$101,0)),"Not Available","OK")) ->  | AW20: =IF(AV20<>"OK","",IF(LoB!AV20="Independent","OK",IF(OR(AND(LoB!AV20="clayton",LoB!AW20<-1),AND(OR(LoB!AV20="gumbel",LoB!AV20="joe"),LoB!AW20<1),AND(LoB!AV20<>"normal",LoB!AV20<>"t",LoB!AW20=0)),"Invalid Value",IF(AND(OR(LoB!AV20="normal",LoB!AV20="t"),ABS(LoB!AW20)>1),"|Correlation|>1",IF(AND(OR(LoB!AV20="normal",LoB!AV20="t"),LoB!AW20=""),"No Value","OK"))))) ->  | AX20: =IF(AV20<>"OK","",IF(LoB!AV20="Independent","OK", IF(AND(OR(LoB!AV20="normal",LoB!AV20="t"),1-LoB!AW20*LoB!AX20<0),"Non Positive Semidefinite",IF(ABS(LoB!AX20)>1,"|Correlation|>1",IF(LoB!AX20="","No Value","OK"))))) ->  | AY20: =IF(AV20<>"OK","",IF(AND(OR(LoB!AV20="normal",LoB!AV20="t"),detm(LoB!AW20,LoB!AX20,LoB!AY20)<0),"Non Positive Semidefinite",IF(ABS(LoB!AY20)>1,"|Correlation >1",IF(LoB!AY20="","","OK")))) ->  | AZ20: =IF(AV20<>"OK","",IF(AND(LoB!AV20="t",LoB!AZ20<=0),"Wrong DoF","OK")) ->  | BA20: =IF($E20<>"Yes","",IF(OR(LoB!BA20="",AND(ISERROR(MATCH(LoB!BA20,FactorTable!$B$1:$GS$1,0)),ISERROR(MATCH(LoB!BA20,Function!$C$1:$CX$1,0)))),"Not Available","OK")) ->  | BB20: =IF($E20<>"Yes","",IF(OR(LoB!BB20="Empirical",LoB!BB20="None",LoB!BB20="Fixed"),"OK","Wrong")) ->  | BC20: =IF(BB20<>"OK","",IF(LoB!BB20="Empirical",IF(OR(LoB!BC20="",ISERROR(MATCH(LoB!BC20,Empirical!$B$1:$CW$1,0))),"Not Available","OK"),IF(AND(LoB!BB20="Fixed",LoB!BC20>=0),"OK","OK"))) ->  | BD20: =IF($E20<>"Yes","",IF(OR(LoB!BD20="Empirical",LoB!BD20="None",LoB!BB20="Fixed"),"OK","Wrong")) ->  | BE20: =IF(BD20<>"OK","",IF(LoB!BD20="Empirical",IF(OR(LoB!BE20="",ISERROR(MATCH(LoB!BE20,Empirical!$B$1:$CW$1,0))),"Not Available","OK"),IF(AND(LoB!BD20="Fixed",LoB!BE20>=0),"OK","OK"))) ->  | BF20: =IF($E20<>"Yes","",IF(OR(LoB!BF20="",ISERROR(MATCH(LoB!BF20,List!$M$2:$M$28,0))),"Not Available","OK")) -> 
B21: Correct | C21: =IF(LoB!C21="","",LoB!C21) ->  | D21: =IF(LoB!D21="","",LoB!D21) ->  | E21: =IF(LoB!E21="","",LoB!E21) ->  | F21: =IF($E21<>"Yes","",IF(OR(LoB!F21="CondPaid",LoB!F21="CondIncurLoss"),"OK",IF(OR(AND(ISERROR(MATCH(LoB!F21,FactorTable!$B$1:$GS$1,0)),ISERROR(MATCH(LoB!F21,Function!$C$1:$CX$1,0)))),"Not Available","OK"))) ->  | G21: =IF($E21<>"Yes","",IF(OR(LoB!G21="",AND(ISERROR(MATCH(LoB!G21,FactorTable!$B$1:$GS$1,0)),ISERROR(MATCH(LoB!G21,Function!$C$1:$CX$1,0)))),"Not Available","OK")) ->  | H21: =IF($E21<>"Yes","",IF(OR(LoB!H21="CondPaid",LoB!H21="CondIncurLoss"),"OK",IF(OR(AND(ISERROR(MATCH(LoB!H21,FactorTable!$B$1:$GS$1,0)),ISERROR(MATCH(LoB!H21,Function!$C$1:$CX$1,0)))),"Not Available","OK"))) ->  | I21: =IF($E21<>"Yes","",IF(ISERROR(MATCH(LoB!I21,List!$A$2:$A$101,0)),"Not Available","OK")) ->  | J21: =IF(I21<>"OK","",IF(LoB!I21="Empirical",IF(OR(LoB!J21="",ISERROR(MATCH(LoB!J21,Empirical!$B$1:$CW$1,0))),"Not Available","OK"),IF(AND(VLOOKUP(LoB!I21,List!$A$2:$E$101,2,FALSE)<>"",LoB!J21<=VLOOKUP(LoB!I21,List!$A$2:$E$101,2,FALSE)),"Too Small",IF(AND(VLOOKUP(LoB!I21,List!$A$2:$E$101,3,FALSE)<>"",LoB!J21>=VLOOKUP(LoB!I21,List!$A$2:$E$101,3,FALSE)),"Too Large","OK")))) ->  | K21: =IF(I21<>"OK","",IF(AND(VLOOKUP(LoB!I21,List!$A$2:$E$101,4,FALSE)<>"",LoB!K21<=VLOOKUP(LoB!I21,List!$A$2:$E$101,4,FALSE)),"Too Small",IF(AND(VLOOKUP(LoB!I21,List!$A$2:$E$101,5,FALSE)<>"",LoB!K21>=VLOOKUP(LoB!I21,List!$A$2:$E$101,5,FALSE)),"Too Large","OK"))) ->  | M21: =IF(I21<>"OK","",IF(AND(LoB!L21="Yes",LoB!M21>LoB!N21),"Min > Max",IF(AND(LoB!L21="Yes",NOT(ISNUMBER(LoB!M21))),"Not Number","OK"))) ->  | N21: =IF(I21<>"OK","",IF(AND(LoB!L21="Yes",LoB!M21>LoB!N21),"Min > Max",IF(AND(LoB!L21="Yes",NOT(ISNUMBER(LoB!N21))),"Not Number","OK"))) ->  | O21: =IF($E21<>"Yes","",IF(ISERROR(MATCH(LoB!O21,List!$A$2:$A$101,0)),"Not Available","OK")) ->  | P21: =IF(O21<>"OK","",IF(LoB!O21="Empirical",IF(OR(LoB!P21="",ISERROR(MATCH(LoB!P21,Empirical!$B$1:$CW$1,0))),"Not Available","OK"),IF(AND(VLOOKUP(LoB!O21,List!$A$2:$E$101,2,FALSE)<>"",LoB!P21<=VLOOKUP(LoB!O21,List!$A$2:$E$101,2,FALSE)),"Too Small",IF(AND(VLOOKUP(LoB!O21,List!$A$2:$E$101,3,FALSE)<>"",LoB!P21>=VLOOKUP(LoB!O21,List!$A$2:$E$101,3,FALSE)),"Too Large","OK")))) ->  | Q21: =IF(O21<>"OK","",IF(AND(VLOOKUP(LoB!O21,List!$A$2:$E$101,4,FALSE)<>"",LoB!Q21<=VLOOKUP(LoB!O21,List!$A$2:$E$101,4,FALSE)),"Too Small",IF(AND(VLOOKUP(LoB!O21,List!$A$2:$E$101,5,FALSE)<>"",LoB!Q21>=VLOOKUP(LoB!O21,List!$A$2:$E$101,5,FALSE)),"Too Large","OK"))) ->  | S21: =IF(O21<>"OK","",IF(AND(LoB!R21="Yes",LoB!S21>LoB!T21),"Min > Max",IF(AND(LoB!R21="Yes",NOT(ISNUMBER(LoB!S21))),"Not Number","OK"))) ->  | T21: =IF(O21<>"OK","",IF(AND(LoB!R21="Yes",LoB!S21>LoB!T21),"Min > Max",IF(AND(LoB!R21="Yes",NOT(ISNUMBER(LoB!T21))),"Not Number","OK"))) ->  | U21: =IF($E21<>"Yes","",IF(OR(LoB!U21="",ISERROR(MATCH(LoB!U21,Index!$B$1:$CW$1,0))),"Not Available","OK")) ->  | V21: =IF($E21<>"Yes","",IF(ISERROR(MATCH(LoB!V21,List!$A$2:$A$101,0)),"Not Available","OK")) ->  | W21: =IF(V21<>"OK","",IF(LoB!V21="Empirical",IF(OR(LoB!W21="",ISERROR(MATCH(LoB!W21,Empirical!$B$1:$CW$1,0))),"Not Available","OK"),IF(AND(VLOOKUP(LoB!V21,List!$A$2:$E$101,2,FALSE)<>"",LoB!W21<=VLOOKUP(LoB!V21,List!$A$2:$E$101,2,FALSE)),"Too Small",IF(AND(VLOOKUP(LoB!V21,List!$A$2:$E$101,3,FALSE)<>"",LoB!W21>=VLOOKUP(LoB!V21,List!$A$2:$E$101,3,FALSE)),"Too Large","OK")))) ->  | X21: =IF(V21<>"OK","",IF(AND(VLOOKUP(LoB!V21,List!$A$2:$E$101,4,FALSE)<>"",LoB!X21<=VLOOKUP(LoB!V21,List!$A$2:$E$101,4,FALSE)),"Too Small",IF(AND(VLOOKUP(LoB!V21,List!$A$2:$E$101,5,FALSE)<>"",LoB!X21>=VLOOKUP(LoB!V21,List!$A$2:$E$101,5,FALSE)),"Too Large","OK"))) ->  | Z21: =IF(V21<>"OK","",IF(AND(LoB!Y21="Yes",LoB!Z21>LoB!AA21),"Min > Max",IF(AND(LoB!Y21="Yes",NOT(ISNUMBER(LoB!Z21))),"Not Number","OK"))) ->  | AA21: =IF(V21<>"OK","",IF(AND(LoB!Y21="Yes",LoB!Z21>LoB!AA21),"Min > Max",IF(AND(LoB!Y21="Yes",NOT(ISNUMBER(LoB!AA21))),"Not Number","OK"))) ->  | AB21: =IF($E21<>"Yes","",IF(OR(LoB!AB21="",ISERROR(MATCH(LoB!AB21,Index!$B$1:$CW$1,0))),"Not Available","OK")) ->  | AC21: =IF($E21<>"Yes","",IF(OR(LoB!AC21="CLOSED",LoB!AC21="ALL"),"OK","Not Available")) ->  | AD21: =IF($E21<>"Yes","",IF(ISERROR(MATCH(LoB!AD21,List!$A$2:$A$101,0)),"Not Available","OK")) ->  | AE21: =IF(AD21<>"OK","",IF(LoB!AD21="Empirical",IF(OR(LoB!AE21="",ISERROR(MATCH(LoB!AE21,Empirical!$B$1:$CW$1,0))),"Not Available","OK"),IF(AND(VLOOKUP(LoB!AD21,List!$A$2:$E$101,2,FALSE)<>"",LoB!AE21<=VLOOKUP(LoB!AD21,List!$A$2:$E$101,2,FALSE)),"Too Small",IF(AND(VLOOKUP(LoB!AD21,List!$A$2:$E$101,3,FALSE)<>"",LoB!AE21>=VLOOKUP(LoB!AD21,List!$A$2:$E$101,3,FALSE)),"Too Large","OK")))) ->  | AF21: =IF(AD21<>"OK","",IF(AND(VLOOKUP(LoB!AD21,List!$A$2:$E$101,4,FALSE)<>"",LoB!AF21<=VLOOKUP(LoB!AD21,List!$A$2:$E$101,4,FALSE)),"Too Small",IF(AND(VLOOKUP(LoB!AD21,List!$A$2:$E$101,5,FALSE)<>"",LoB!AF21>=VLOOKUP(LoB!AD21,List!$A$2:$E$101,5,FALSE)),"Too Large","OK"))) ->  | AH21: =IF(AD21<>"OK","",IF(AND(LoB!AG21="Yes",LoB!AH21>LoB!AI21),"Min > Max",IF(AND(LoB!AG21="Yes",NOT(ISNUMBER(LoB!AH21))),"Not Number","OK"))) ->  | AI21: =IF(AD21<>"OK","",IF(AND(LoB!AG21="Yes",LoB!AH21>LoB!AI21),"Min > Max",IF(AND(LoB!AG21="Yes",NOT(ISNUMBER(LoB!AI21))),"Not Number","OK"))) ->  | AJ21: =IF($E21<>"Yes","",IF(ISERROR(MATCH(LoB!AJ21,List!$A$2:$A$101,0)),"Not Available","OK")) ->  | AK21: =IF(AJ21<>"OK","",IF(LoB!AJ21="Empirical",IF(OR(LoB!AK21="",ISERROR(MATCH(LoB!AK21,Empirical!$B$1:$CW$1,0))),"Not Available","OK"),IF(AND(VLOOKUP(LoB!AJ21,List!$A$2:$E$101,2,FALSE)<>"",LoB!AK21<=VLOOKUP(LoB!AJ21,List!$A$2:$E$101,2,FALSE)),"Too Small",IF(AND(VLOOKUP(LoB!AJ21,List!$A$2:$E$101,3,FALSE)<>"",LoB!AK21>=VLOOKUP(LoB!AJ21,List!$A$2:$E$101,3,FALSE)),"Too Large","OK")))) ->  | AL21: =IF(AJ21<>"OK","",IF(AND(VLOOKUP(LoB!AJ21,List!$A$2:$E$101,4,FALSE)<>"",LoB!AL21<=VLOOKUP(LoB!AJ21,List!$A$2:$E$101,4,FALSE)),"Too Small",IF(AND(VLOOKUP(LoB!AJ21,List!$A$2:$E$101,5,FALSE)<>"",LoB!AL21>=VLOOKUP(LoB!AJ21,List!$A$2:$E$101,5,FALSE)),"Too Large","OK"))) ->  | AN21: =IF(AJ21<>"OK","",IF(AND(LoB!AM21="Yes",LoB!AN21>LoB!AO21),"Min > Max",IF(AND(LoB!AM21="Yes",NOT(ISNUMBER(LoB!AN21))),"Not Number","OK"))) ->  | AO21: =IF(AJ21<>"OK","",IF(AND(LoB!AM21="Yes",LoB!AN21>LoB!AO21),"Min > Max",IF(AND(LoB!AM21="Yes",NOT(ISNUMBER(LoB!AO21))),"Not Number","OK"))) ->  | AP21: =IF($E21<>"Yes","",IF(ISERROR(MATCH(LoB!AP21,List!$A$2:$A$101,0)),"Not Available","OK")) ->  | AQ21: =IF(AP21<>"OK","",IF(LoB!AP21="Empirical",IF(OR(LoB!AQ21="",ISERROR(MATCH(LoB!AQ21,Empirical!$B$1:$CW$1,0))),"Not Available","OK"),IF(AND(VLOOKUP(LoB!AP21,List!$A$2:$E$101,2,FALSE)<>"",LoB!AQ21<=VLOOKUP(LoB!AP21,List!$A$2:$E$101,2,FALSE)),"Too Small",IF(AND(VLOOKUP(LoB!AP21,List!$A$2:$E$101,3,FALSE)<>"",LoB!AQ21>=VLOOKUP(LoB!AP21,List!$A$2:$E$101,3,FALSE)),"Too Large","OK")))) ->  | AR21: =IF(AP21<>"OK","",IF(AND(VLOOKUP(LoB!AP21,List!$A$2:$E$101,4,FALSE)<>"",LoB!AR21<=VLOOKUP(LoB!AP21,List!$A$2:$E$101,4,FALSE)),"Too Small",IF(AND(VLOOKUP(LoB!AP21,List!$A$2:$E$101,5,FALSE)<>"",LoB!AR21>=VLOOKUP(LoB!AP21,List!$A$2:$E$101,5,FALSE)),"Too Large","OK"))) ->  | AT21: =IF(AP21<>"OK","",IF(AND(LoB!AS21="Yes",LoB!AT21>LoB!AU21),"Min > Max",IF(AND(LoB!AS21="Yes",NOT(ISNUMBER(LoB!AT21))),"Not Number","OK"))) ->  | AU21: =IF(AP21<>"OK","",IF(AND(LoB!AS21="Yes",LoB!AT21>LoB!AU21),"Min > Max",IF(AND(LoB!AS21="Yes",NOT(ISNUMBER(LoB!AU21))),"Not Number","OK"))) ->  | AV21: =IF($E21<>"Yes","",IF(ISERROR(MATCH(LoB!AV21,List!$F$2:$F$101,0)),"Not Available","OK")) ->  | AW21: =IF(AV21<>"OK","",IF(LoB!AV21="Independent","OK",IF(OR(AND(LoB!AV21="clayton",LoB!AW21<-1),AND(OR(LoB!AV21="gumbel",LoB!AV21="joe"),LoB!AW21<1),AND(LoB!AV21<>"normal",LoB!AV21<>"t",LoB!AW21=0)),"Invalid Value",IF(AND(OR(LoB!AV21="normal",LoB!AV21="t"),ABS(LoB!AW21)>1),"|Correlation|>1",IF(AND(OR(LoB!AV21="normal",LoB!AV21="t"),LoB!AW21=""),"No Value","OK"))))) ->  | AX21: =IF(AV21<>"OK","",IF(LoB!AV21="Independent","OK", IF(AND(OR(LoB!AV21="normal",LoB!AV21="t"),1-LoB!AW21*LoB!AX21<0),"Non Positive Semidefinite",IF(ABS(LoB!AX21)>1,"|Correlation|>1",IF(LoB!AX21="","No Value","OK"))))) ->  | AY21: =IF(AV21<>"OK","",IF(AND(OR(LoB!AV21="normal",LoB!AV21="t"),detm(LoB!AW21,LoB!AX21,LoB!AY21)<0),"Non Positive Semidefinite",IF(ABS(LoB!AY21)>1,"|Correlation >1",IF(LoB!AY21="","","OK")))) ->  | AZ21: =IF(AV21<>"OK","",IF(AND(LoB!AV21="t",LoB!AZ21<=0),"Wrong DoF","OK")) ->  | BA21: =IF($E21<>"Yes","",IF(OR(LoB!BA21="",AND(ISERROR(MATCH(LoB!BA21,FactorTable!$B$1:$GS$1,0)),ISERROR(MATCH(LoB!BA21,Function!$C$1:$CX$1,0)))),"Not Available","OK")) ->  | BB21: =IF($E21<>"Yes","",IF(OR(LoB!BB21="Empirical",LoB!BB21="None",LoB!BB21="Fixed"),"OK","Wrong")) ->  | BC21: =IF(BB21<>"OK","",IF(LoB!BB21="Empirical",IF(OR(LoB!BC21="",ISERROR(MATCH(LoB!BC21,Empirical!$B$1:$CW$1,0))),"Not Available","OK"),IF(AND(LoB!BB21="Fixed",LoB!BC21>=0),"OK","OK"))) ->  | BD21: =IF($E21<>"Yes","",IF(OR(LoB!BD21="Empirical",LoB!BD21="None",LoB!BB21="Fixed"),"OK","Wrong")) ->  | BE21: =IF(BD21<>"OK","",IF(LoB!BD21="Empirical",IF(OR(LoB!BE21="",ISERROR(MATCH(LoB!BE21,Empirical!$B$1:$CW$1,0))),"Not Available","OK"),IF(AND(LoB!BD21="Fixed",LoB!BE21>=0),"OK","OK"))) ->  | BF21: =IF($E21<>"Yes","",IF(OR(LoB!BF21="",ISERROR(MATCH(LoB!BF21,List!$M$2:$M$28,0))),"Not Available","OK")) -> 
B22: Correct | C22: =IF(LoB!C22="","",LoB!C22) ->  | D22: =IF(LoB!D22="","",LoB!D22) ->  | E22: =IF(LoB!E22="","",LoB!E22) ->  | F22: =IF($E22<>"Yes","",IF(OR(LoB!F22="CondPaid",LoB!F22="CondIncurLoss"),"OK",IF(OR(AND(ISERROR(MATCH(LoB!F22,FactorTable!$B$1:$GS$1,0)),ISERROR(MATCH(LoB!F22,Function!$C$1:$CX$1,0)))),"Not Available","OK"))) ->  | G22: =IF($E22<>"Yes","",IF(OR(LoB!G22="",AND(ISERROR(MATCH(LoB!G22,FactorTable!$B$1:$GS$1,0)),ISERROR(MATCH(LoB!G22,Function!$C$1:$CX$1,0)))),"Not Available","OK")) ->  | H22: =IF($E22<>"Yes","",IF(OR(LoB!H22="CondPaid",LoB!H22="CondIncurLoss"),"OK",IF(OR(AND(ISERROR(MATCH(LoB!H22,FactorTable!$B$1:$GS$1,0)),ISERROR(MATCH(LoB!H22,Function!$C$1:$CX$1,0)))),"Not Available","OK"))) ->  | I22: =IF($E22<>"Yes","",IF(ISERROR(MATCH(LoB!I22,List!$A$2:$A$101,0)),"Not Available","OK")) ->  | J22: =IF(I22<>"OK","",IF(LoB!I22="Empirical",IF(OR(LoB!J22="",ISERROR(MATCH(LoB!J22,Empirical!$B$1:$CW$1,0))),"Not Available","OK"),IF(AND(VLOOKUP(LoB!I22,List!$A$2:$E$101,2,FALSE)<>"",LoB!J22<=VLOOKUP(LoB!I22,List!$A$2:$E$101,2,FALSE)),"Too Small",IF(AND(VLOOKUP(LoB!I22,List!$A$2:$E$101,3,FALSE)<>"",LoB!J22>=VLOOKUP(LoB!I22,List!$A$2:$E$101,3,FALSE)),"Too Large","OK")))) ->  | K22: =IF(I22<>"OK","",IF(AND(VLOOKUP(LoB!I22,List!$A$2:$E$101,4,FALSE)<>"",LoB!K22<=VLOOKUP(LoB!I22,List!$A$2:$E$101,4,FALSE)),"Too Small",IF(AND(VLOOKUP(LoB!I22,List!$A$2:$E$101,5,FALSE)<>"",LoB!K22>=VLOOKUP(LoB!I22,List!$A$2:$E$101,5,FALSE)),"Too Large","OK"))) ->  | M22: =IF(I22<>"OK","",IF(AND(LoB!L22="Yes",LoB!M22>LoB!N22),"Min > Max",IF(AND(LoB!L22="Yes",NOT(ISNUMBER(LoB!M22))),"Not Number","OK"))) ->  | N22: =IF(I22<>"OK","",IF(AND(LoB!L22="Yes",LoB!M22>LoB!N22),"Min > Max",IF(AND(LoB!L22="Yes",NOT(ISNUMBER(LoB!N22))),"Not Number","OK"))) ->  | O22: =IF($E22<>"Yes","",IF(ISERROR(MATCH(LoB!O22,List!$A$2:$A$101,0)),"Not Available","OK")) ->  | P22: =IF(O22<>"OK","",IF(LoB!O22="Empirical",IF(OR(LoB!P22="",ISERROR(MATCH(LoB!P22,Empirical!$B$1:$CW$1,0))),"Not Available","OK"),IF(AND(VLOOKUP(LoB!O22,List!$A$2:$E$101,2,FALSE)<>"",LoB!P22<=VLOOKUP(LoB!O22,List!$A$2:$E$101,2,FALSE)),"Too Small",IF(AND(VLOOKUP(LoB!O22,List!$A$2:$E$101,3,FALSE)<>"",LoB!P22>=VLOOKUP(LoB!O22,List!$A$2:$E$101,3,FALSE)),"Too Large","OK")))) ->  | Q22: =IF(O22<>"OK","",IF(AND(VLOOKUP(LoB!O22,List!$A$2:$E$101,4,FALSE)<>"",LoB!Q22<=VLOOKUP(LoB!O22,List!$A$2:$E$101,4,FALSE)),"Too Small",IF(AND(VLOOKUP(LoB!O22,List!$A$2:$E$101,5,FALSE)<>"",LoB!Q22>=VLOOKUP(LoB!O22,List!$A$2:$E$101,5,FALSE)),"Too Large","OK"))) ->  | S22: =IF(O22<>"OK","",IF(AND(LoB!R22="Yes",LoB!S22>LoB!T22),"Min > Max",IF(AND(LoB!R22="Yes",NOT(ISNUMBER(LoB!S22))),"Not Number","OK"))) ->  | T22: =IF(O22<>"OK","",IF(AND(LoB!R22="Yes",LoB!S22>LoB!T22),"Min > Max",IF(AND(LoB!R22="Yes",NOT(ISNUMBER(LoB!T22))),"Not Number","OK"))) ->  | U22: =IF($E22<>"Yes","",IF(OR(LoB!U22="",ISERROR(MATCH(LoB!U22,Index!$B$1:$CW$1,0))),"Not Available","OK")) ->  | V22: =IF($E22<>"Yes","",IF(ISERROR(MATCH(LoB!V22,List!$A$2:$A$101,0)),"Not Available","OK")) ->  | W22: =IF(V22<>"OK","",IF(LoB!V22="Empirical",IF(OR(LoB!W22="",ISERROR(MATCH(LoB!W22,Empirical!$B$1:$CW$1,0))),"Not Available","OK"),IF(AND(VLOOKUP(LoB!V22,List!$A$2:$E$101,2,FALSE)<>"",LoB!W22<=VLOOKUP(LoB!V22,List!$A$2:$E$101,2,FALSE)),"Too Small",IF(AND(VLOOKUP(LoB!V22,List!$A$2:$E$101,3,FALSE)<>"",LoB!W22>=VLOOKUP(LoB!V22,List!$A$2:$E$101,3,FALSE)),"Too Large","OK")))) ->  | X22: =IF(V22<>"OK","",IF(AND(VLOOKUP(LoB!V22,List!$A$2:$E$101,4,FALSE)<>"",LoB!X22<=VLOOKUP(LoB!V22,List!$A$2:$E$101,4,FALSE)),"Too Small",IF(AND(VLOOKUP(LoB!V22,List!$A$2:$E$101,5,FALSE)<>"",LoB!X22>=VLOOKUP(LoB!V22,List!$A$2:$E$101,5,FALSE)),"Too Large","OK"))) ->  | Z22: =IF(V22<>"OK","",IF(AND(LoB!Y22="Yes",LoB!Z22>LoB!AA22),"Min > Max",IF(AND(LoB!Y22="Yes",NOT(ISNUMBER(LoB!Z22))),"Not Number","OK"))) ->  | AA22: =IF(V22<>"OK","",IF(AND(LoB!Y22="Yes",LoB!Z22>LoB!AA22),"Min > Max",IF(AND(LoB!Y22="Yes",NOT(ISNUMBER(LoB!AA22))),"Not Number","OK"))) ->  | AB22: =IF($E22<>"Yes","",IF(OR(LoB!AB22="",ISERROR(MATCH(LoB!AB22,Index!$B$1:$CW$1,0))),"Not Available","OK")) ->  | AC22: =IF($E22<>"Yes","",IF(OR(LoB!AC22="CLOSED",LoB!AC22="ALL"),"OK","Not Available")) ->  | AD22: =IF($E22<>"Yes","",IF(ISERROR(MATCH(LoB!AD22,List!$A$2:$A$101,0)),"Not Available","OK")) ->  | AE22: =IF(AD22<>"OK","",IF(LoB!AD22="Empirical",IF(OR(LoB!AE22="",ISERROR(MATCH(LoB!AE22,Empirical!$B$1:$CW$1,0))),"Not Available","OK"),IF(AND(VLOOKUP(LoB!AD22,List!$A$2:$E$101,2,FALSE)<>"",LoB!AE22<=VLOOKUP(LoB!AD22,List!$A$2:$E$101,2,FALSE)),"Too Small",IF(AND(VLOOKUP(LoB!AD22,List!$A$2:$E$101,3,FALSE)<>"",LoB!AE22>=VLOOKUP(LoB!AD22,List!$A$2:$E$101,3,FALSE)),"Too Large","OK")))) ->  | AF22: =IF(AD22<>"OK","",IF(AND(VLOOKUP(LoB!AD22,List!$A$2:$E$101,4,FALSE)<>"",LoB!AF22<=VLOOKUP(LoB!AD22,List!$A$2:$E$101,4,FALSE)),"Too Small",IF(AND(VLOOKUP(LoB!AD22,List!$A$2:$E$101,5,FALSE)<>"",LoB!AF22>=VLOOKUP(LoB!AD22,List!$A$2:$E$101,5,FALSE)),"Too Large","OK"))) ->  | AH22: =IF(AD22<>"OK","",IF(AND(LoB!AG22="Yes",LoB!AH22>LoB!AI22),"Min > Max",IF(AND(LoB!AG22="Yes",NOT(ISNUMBER(LoB!AH22))),"Not Number","OK"))) ->  | AI22: =IF(AD22<>"OK","",IF(AND(LoB!AG22="Yes",LoB!AH22>LoB!AI22),"Min > Max",IF(AND(LoB!AG22="Yes",NOT(ISNUMBER(LoB!AI22))),"Not Number","OK"))) ->  | AJ22: =IF($E22<>"Yes","",IF(ISERROR(MATCH(LoB!AJ22,List!$A$2:$A$101,0)),"Not Available","OK")) ->  | AK22: =IF(AJ22<>"OK","",IF(LoB!AJ22="Empirical",IF(OR(LoB!AK22="",ISERROR(MATCH(LoB!AK22,Empirical!$B$1:$CW$1,0))),"Not Available","OK"),IF(AND(VLOOKUP(LoB!AJ22,List!$A$2:$E$101,2,FALSE)<>"",LoB!AK22<=VLOOKUP(LoB!AJ22,List!$A$2:$E$101,2,FALSE)),"Too Small",IF(AND(VLOOKUP(LoB!AJ22,List!$A$2:$E$101,3,FALSE)<>"",LoB!AK22>=VLOOKUP(LoB!AJ22,List!$A$2:$E$101,3,FALSE)),"Too Large","OK")))) ->  | AL22: =IF(AJ22<>"OK","",IF(AND(VLOOKUP(LoB!AJ22,List!$A$2:$E$101,4,FALSE)<>"",LoB!AL22<=VLOOKUP(LoB!AJ22,List!$A$2:$E$101,4,FALSE)),"Too Small",IF(AND(VLOOKUP(LoB!AJ22,List!$A$2:$E$101,5,FALSE)<>"",LoB!AL22>=VLOOKUP(LoB!AJ22,List!$A$2:$E$101,5,FALSE)),"Too Large","OK"))) ->  | AN22: =IF(AJ22<>"OK","",IF(AND(LoB!AM22="Yes",LoB!AN22>LoB!AO22),"Min > Max",IF(AND(LoB!AM22="Yes",NOT(ISNUMBER(LoB!AN22))),"Not Number","OK"))) ->  | AO22: =IF(AJ22<>"OK","",IF(AND(LoB!AM22="Yes",LoB!AN22>LoB!AO22),"Min > Max",IF(AND(LoB!AM22="Yes",NOT(ISNUMBER(LoB!AO22))),"Not Number","OK"))) ->  | AP22: =IF($E22<>"Yes","",IF(ISERROR(MATCH(LoB!AP22,List!$A$2:$A$101,0)),"Not Available","OK")) ->  | AQ22: =IF(AP22<>"OK","",IF(LoB!AP22="Empirical",IF(OR(LoB!AQ22="",ISERROR(MATCH(LoB!AQ22,Empirical!$B$1:$CW$1,0))),"Not Available","OK"),IF(AND(VLOOKUP(LoB!AP22,List!$A$2:$E$101,2,FALSE)<>"",LoB!AQ22<=VLOOKUP(LoB!AP22,List!$A$2:$E$101,2,FALSE)),"Too Small",IF(AND(VLOOKUP(LoB!AP22,List!$A$2:$E$101,3,FALSE)<>"",LoB!AQ22>=VLOOKUP(LoB!AP22,List!$A$2:$E$101,3,FALSE)),"Too Large","OK")))) ->  | AR22: =IF(AP22<>"OK","",IF(AND(VLOOKUP(LoB!AP22,List!$A$2:$E$101,4,FALSE)<>"",LoB!AR22<=VLOOKUP(LoB!AP22,List!$A$2:$E$101,4,FALSE)),"Too Small",IF(AND(VLOOKUP(LoB!AP22,List!$A$2:$E$101,5,FALSE)<>"",LoB!AR22>=VLOOKUP(LoB!AP22,List!$A$2:$E$101,5,FALSE)),"Too Large","OK"))) ->  | AT22: =IF(AP22<>"OK","",IF(AND(LoB!AS22="Yes",LoB!AT22>LoB!AU22),"Min > Max",IF(AND(LoB!AS22="Yes",NOT(ISNUMBER(LoB!AT22))),"Not Number","OK"))) ->  | AU22: =IF(AP22<>"OK","",IF(AND(LoB!AS22="Yes",LoB!AT22>LoB!AU22),"Min > Max",IF(AND(LoB!AS22="Yes",NOT(ISNUMBER(LoB!AU22))),"Not Number","OK"))) ->  | AV22: =IF($E22<>"Yes","",IF(ISERROR(MATCH(LoB!AV22,List!$F$2:$F$101,0)),"Not Available","OK")) ->  | AW22: =IF(AV22<>"OK","",IF(LoB!AV22="Independent","OK",IF(OR(AND(LoB!AV22="clayton",LoB!AW22<-1),AND(OR(LoB!AV22="gumbel",LoB!AV22="joe"),LoB!AW22<1),AND(LoB!AV22<>"normal",LoB!AV22<>"t",LoB!AW22=0)),"Invalid Value",IF(AND(OR(LoB!AV22="normal",LoB!AV22="t"),ABS(LoB!AW22)>1),"|Correlation|>1",IF(AND(OR(LoB!AV22="normal",LoB!AV22="t"),LoB!AW22=""),"No Value","OK"))))) ->  | AX22: =IF(AV22<>"OK","",IF(LoB!AV22="Independent","OK", IF(AND(OR(LoB!AV22="normal",LoB!AV22="t"),1-LoB!AW22*LoB!AX22<0),"Non Positive Semidefinite",IF(ABS(LoB!AX22)>1,"|Correlation|>1",IF(LoB!AX22="","No Value","OK"))))) ->  | AY22: =IF(AV22<>"OK","",IF(AND(OR(LoB!AV22="normal",LoB!AV22="t"),detm(LoB!AW22,LoB!AX22,LoB!AY22)<0),"Non Positive Semidefinite",IF(ABS(LoB!AY22)>1,"|Correlation >1",IF(LoB!AY22="","","OK")))) ->  | AZ22: =IF(AV22<>"OK","",IF(AND(LoB!AV22="t",LoB!AZ22<=0),"Wrong DoF","OK")) ->  | BA22: =IF($E22<>"Yes","",IF(OR(LoB!BA22="",AND(ISERROR(MATCH(LoB!BA22,FactorTable!$B$1:$GS$1,0)),ISERROR(MATCH(LoB!BA22,Function!$C$1:$CX$1,0)))),"Not Available","OK")) ->  | BB22: =IF($E22<>"Yes","",IF(OR(LoB!BB22="Empirical",LoB!BB22="None",LoB!BB22="Fixed"),"OK","Wrong")) ->  | BC22: =IF(BB22<>"OK","",IF(LoB!BB22="Empirical",IF(OR(LoB!BC22="",ISERROR(MATCH(LoB!BC22,Empirical!$B$1:$CW$1,0))),"Not Available","OK"),IF(AND(LoB!BB22="Fixed",LoB!BC22>=0),"OK","OK"))) ->  | BD22: =IF($E22<>"Yes","",IF(OR(LoB!BD22="Empirical",LoB!BD22="None",LoB!BB22="Fixed"),"OK","Wrong")) ->  | BE22: =IF(BD22<>"OK","",IF(LoB!BD22="Empirical",IF(OR(LoB!BE22="",ISERROR(MATCH(LoB!BE22,Empirical!$B$1:$CW$1,0))),"Not Available","OK"),IF(AND(LoB!BD22="Fixed",LoB!BE22>=0),"OK","OK"))) ->  | BF22: =IF($E22<>"Yes","",IF(OR(LoB!BF22="",ISERROR(MATCH(LoB!BF22,List!$M$2:$M$28,0))),"Not Available","OK")) -> 
B23: Correct | C23: =IF(LoB!C23="","",LoB!C23) ->  | D23: =IF(LoB!D23="","",LoB!D23) ->  | E23: =IF(LoB!E23="","",LoB!E23) ->  | F23: =IF($E23<>"Yes","",IF(OR(LoB!F23="CondPaid",LoB!F23="CondIncurLoss"),"OK",IF(OR(AND(ISERROR(MATCH(LoB!F23,FactorTable!$B$1:$GS$1,0)),ISERROR(MATCH(LoB!F23,Function!$C$1:$CX$1,0)))),"Not Available","OK"))) ->  | G23: =IF($E23<>"Yes","",IF(OR(LoB!G23="",AND(ISERROR(MATCH(LoB!G23,FactorTable!$B$1:$GS$1,0)),ISERROR(MATCH(LoB!G23,Function!$C$1:$CX$1,0)))),"Not Available","OK")) ->  | H23: =IF($E23<>"Yes","",IF(OR(LoB!H23="CondPaid",LoB!H23="CondIncurLoss"),"OK",IF(OR(AND(ISERROR(MATCH(LoB!H23,FactorTable!$B$1:$GS$1,0)),ISERROR(MATCH(LoB!H23,Function!$C$1:$CX$1,0)))),"Not Available","OK"))) ->  | I23: =IF($E23<>"Yes","",IF(ISERROR(MATCH(LoB!I23,List!$A$2:$A$101,0)),"Not Available","OK")) ->  | J23: =IF(I23<>"OK","",IF(LoB!I23="Empirical",IF(OR(LoB!J23="",ISERROR(MATCH(LoB!J23,Empirical!$B$1:$CW$1,0))),"Not Available","OK"),IF(AND(VLOOKUP(LoB!I23,List!$A$2:$E$101,2,FALSE)<>"",LoB!J23<=VLOOKUP(LoB!I23,List!$A$2:$E$101,2,FALSE)),"Too Small",IF(AND(VLOOKUP(LoB!I23,List!$A$2:$E$101,3,FALSE)<>"",LoB!J23>=VLOOKUP(LoB!I23,List!$A$2:$E$101,3,FALSE)),"Too Large","OK")))) ->  | K23: =IF(I23<>"OK","",IF(AND(VLOOKUP(LoB!I23,List!$A$2:$E$101,4,FALSE)<>"",LoB!K23<=VLOOKUP(LoB!I23,List!$A$2:$E$101,4,FALSE)),"Too Small",IF(AND(VLOOKUP(LoB!I23,List!$A$2:$E$101,5,FALSE)<>"",LoB!K23>=VLOOKUP(LoB!I23,List!$A$2:$E$101,5,FALSE)),"Too Large","OK"))) ->  | M23: =IF(I23<>"OK","",IF(AND(LoB!L23="Yes",LoB!M23>LoB!N23),"Min > Max",IF(AND(LoB!L23="Yes",NOT(ISNUMBER(LoB!M23))),"Not Number","OK"))) ->  | N23: =IF(I23<>"OK","",IF(AND(LoB!L23="Yes",LoB!M23>LoB!N23),"Min > Max",IF(AND(LoB!L23="Yes",NOT(ISNUMBER(LoB!N23))),"Not Number","OK"))) ->  | O23: =IF($E23<>"Yes","",IF(ISERROR(MATCH(LoB!O23,List!$A$2:$A$101,0)),"Not Available","OK")) ->  | P23: =IF(O23<>"OK","",IF(LoB!O23="Empirical",IF(OR(LoB!P23="",ISERROR(MATCH(LoB!P23,Empirical!$B$1:$CW$1,0))),"Not Available","OK"),IF(AND(VLOOKUP(LoB!O23,List!$A$2:$E$101,2,FALSE)<>"",LoB!P23<=VLOOKUP(LoB!O23,List!$A$2:$E$101,2,FALSE)),"Too Small",IF(AND(VLOOKUP(LoB!O23,List!$A$2:$E$101,3,FALSE)<>"",LoB!P23>=VLOOKUP(LoB!O23,List!$A$2:$E$101,3,FALSE)),"Too Large","OK")))) ->  | Q23: =IF(O23<>"OK","",IF(AND(VLOOKUP(LoB!O23,List!$A$2:$E$101,4,FALSE)<>"",LoB!Q23<=VLOOKUP(LoB!O23,List!$A$2:$E$101,4,FALSE)),"Too Small",IF(AND(VLOOKUP(LoB!O23,List!$A$2:$E$101,5,FALSE)<>"",LoB!Q23>=VLOOKUP(LoB!O23,List!$A$2:$E$101,5,FALSE)),"Too Large","OK"))) ->  | S23: =IF(O23<>"OK","",IF(AND(LoB!R23="Yes",LoB!S23>LoB!T23),"Min > Max",IF(AND(LoB!R23="Yes",NOT(ISNUMBER(LoB!S23))),"Not Number","OK"))) ->  | T23: =IF(O23<>"OK","",IF(AND(LoB!R23="Yes",LoB!S23>LoB!T23),"Min > Max",IF(AND(LoB!R23="Yes",NOT(ISNUMBER(LoB!T23))),"Not Number","OK"))) ->  | U23: =IF($E23<>"Yes","",IF(OR(LoB!U23="",ISERROR(MATCH(LoB!U23,Index!$B$1:$CW$1,0))),"Not Available","OK")) ->  | V23: =IF($E23<>"Yes","",IF(ISERROR(MATCH(LoB!V23,List!$A$2:$A$101,0)),"Not Available","OK")) ->  | W23: =IF(V23<>"OK","",IF(LoB!V23="Empirical",IF(OR(LoB!W23="",ISERROR(MATCH(LoB!W23,Empirical!$B$1:$CW$1,0))),"Not Available","OK"),IF(AND(VLOOKUP(LoB!V23,List!$A$2:$E$101,2,FALSE)<>"",LoB!W23<=VLOOKUP(LoB!V23,List!$A$2:$E$101,2,FALSE)),"Too Small",IF(AND(VLOOKUP(LoB!V23,List!$A$2:$E$101,3,FALSE)<>"",LoB!W23>=VLOOKUP(LoB!V23,List!$A$2:$E$101,3,FALSE)),"Too Large","OK")))) ->  | X23: =IF(V23<>"OK","",IF(AND(VLOOKUP(LoB!V23,List!$A$2:$E$101,4,FALSE)<>"",LoB!X23<=VLOOKUP(LoB!V23,List!$A$2:$E$101,4,FALSE)),"Too Small",IF(AND(VLOOKUP(LoB!V23,List!$A$2:$E$101,5,FALSE)<>"",LoB!X23>=VLOOKUP(LoB!V23,List!$A$2:$E$101,5,FALSE)),"Too Large","OK"))) ->  | Z23: =IF(V23<>"OK","",IF(AND(LoB!Y23="Yes",LoB!Z23>LoB!AA23),"Min > Max",IF(AND(LoB!Y23="Yes",NOT(ISNUMBER(LoB!Z23))),"Not Number","OK"))) ->  | AA23: =IF(V23<>"OK","",IF(AND(LoB!Y23="Yes",LoB!Z23>LoB!AA23),"Min > Max",IF(AND(LoB!Y23="Yes",NOT(ISNUMBER(LoB!AA23))),"Not Number","OK"))) ->  | AB23: =IF($E23<>"Yes","",IF(OR(LoB!AB23="",ISERROR(MATCH(LoB!AB23,Index!$B$1:$CW$1,0))),"Not Available","OK")) ->  | AC23: =IF($E23<>"Yes","",IF(OR(LoB!AC23="CLOSED",LoB!AC23="ALL"),"OK","Not Available")) ->  | AD23: =IF($E23<>"Yes","",IF(ISERROR(MATCH(LoB!AD23,List!$A$2:$A$101,0)),"Not Available","OK")) ->  | AE23: =IF(AD23<>"OK","",IF(LoB!AD23="Empirical",IF(OR(LoB!AE23="",ISERROR(MATCH(LoB!AE23,Empirical!$B$1:$CW$1,0))),"Not Available","OK"),IF(AND(VLOOKUP(LoB!AD23,List!$A$2:$E$101,2,FALSE)<>"",LoB!AE23<=VLOOKUP(LoB!AD23,List!$A$2:$E$101,2,FALSE)),"Too Small",IF(AND(VLOOKUP(LoB!AD23,List!$A$2:$E$101,3,FALSE)<>"",LoB!AE23>=VLOOKUP(LoB!AD23,List!$A$2:$E$101,3,FALSE)),"Too Large","OK")))) ->  | AF23: =IF(AD23<>"OK","",IF(AND(VLOOKUP(LoB!AD23,List!$A$2:$E$101,4,FALSE)<>"",LoB!AF23<=VLOOKUP(LoB!AD23,List!$A$2:$E$101,4,FALSE)),"Too Small",IF(AND(VLOOKUP(LoB!AD23,List!$A$2:$E$101,5,FALSE)<>"",LoB!AF23>=VLOOKUP(LoB!AD23,List!$A$2:$E$101,5,FALSE)),"Too Large","OK"))) ->  | AH23: =IF(AD23<>"OK","",IF(AND(LoB!AG23="Yes",LoB!AH23>LoB!AI23),"Min > Max",IF(AND(LoB!AG23="Yes",NOT(ISNUMBER(LoB!AH23))),"Not Number","OK"))) ->  | AI23: =IF(AD23<>"OK","",IF(AND(LoB!AG23="Yes",LoB!AH23>LoB!AI23),"Min > Max",IF(AND(LoB!AG23="Yes",NOT(ISNUMBER(LoB!AI23))),"Not Number","OK"))) ->  | AJ23: =IF($E23<>"Yes","",IF(ISERROR(MATCH(LoB!AJ23,List!$A$2:$A$101,0)),"Not Available","OK")) ->  | AK23: =IF(AJ23<>"OK","",IF(LoB!AJ23="Empirical",IF(OR(LoB!AK23="",ISERROR(MATCH(LoB!AK23,Empirical!$B$1:$CW$1,0))),"Not Available","OK"),IF(AND(VLOOKUP(LoB!AJ23,List!$A$2:$E$101,2,FALSE)<>"",LoB!AK23<=VLOOKUP(LoB!AJ23,List!$A$2:$E$101,2,FALSE)),"Too Small",IF(AND(VLOOKUP(LoB!AJ23,List!$A$2:$E$101,3,FALSE)<>"",LoB!AK23>=VLOOKUP(LoB!AJ23,List!$A$2:$E$101,3,FALSE)),"Too Large","OK")))) ->  | AL23: =IF(AJ23<>"OK","",IF(AND(VLOOKUP(LoB!AJ23,List!$A$2:$E$101,4,FALSE)<>"",LoB!AL23<=VLOOKUP(LoB!AJ23,List!$A$2:$E$101,4,FALSE)),"Too Small",IF(AND(VLOOKUP(LoB!AJ23,List!$A$2:$E$101,5,FALSE)<>"",LoB!AL23>=VLOOKUP(LoB!AJ23,List!$A$2:$E$101,5,FALSE)),"Too Large","OK"))) ->  | AN23: =IF(AJ23<>"OK","",IF(AND(LoB!AM23="Yes",LoB!AN23>LoB!AO23),"Min > Max",IF(AND(LoB!AM23="Yes",NOT(ISNUMBER(LoB!AN23))),"Not Number","OK"))) ->  | AO23: =IF(AJ23<>"OK","",IF(AND(LoB!AM23="Yes",LoB!AN23>LoB!AO23),"Min > Max",IF(AND(LoB!AM23="Yes",NOT(ISNUMBER(LoB!AO23))),"Not Number","OK"))) ->  | AP23: =IF($E23<>"Yes","",IF(ISERROR(MATCH(LoB!AP23,List!$A$2:$A$101,0)),"Not Available","OK")) ->  | AQ23: =IF(AP23<>"OK","",IF(LoB!AP23="Empirical",IF(OR(LoB!AQ23="",ISERROR(MATCH(LoB!AQ23,Empirical!$B$1:$CW$1,0))),"Not Available","OK"),IF(AND(VLOOKUP(LoB!AP23,List!$A$2:$E$101,2,FALSE)<>"",LoB!AQ23<=VLOOKUP(LoB!AP23,List!$A$2:$E$101,2,FALSE)),"Too Small",IF(AND(VLOOKUP(LoB!AP23,List!$A$2:$E$101,3,FALSE)<>"",LoB!AQ23>=VLOOKUP(LoB!AP23,List!$A$2:$E$101,3,FALSE)),"Too Large","OK")))) ->  | AR23: =IF(AP23<>"OK","",IF(AND(VLOOKUP(LoB!AP23,List!$A$2:$E$101,4,FALSE)<>"",LoB!AR23<=VLOOKUP(LoB!AP23,List!$A$2:$E$101,4,FALSE)),"Too Small",IF(AND(VLOOKUP(LoB!AP23,List!$A$2:$E$101,5,FALSE)<>"",LoB!AR23>=VLOOKUP(LoB!AP23,List!$A$2:$E$101,5,FALSE)),"Too Large","OK"))) ->  | AT23: =IF(AP23<>"OK","",IF(AND(LoB!AS23="Yes",LoB!AT23>LoB!AU23),"Min > Max",IF(AND(LoB!AS23="Yes",NOT(ISNUMBER(LoB!AT23))),"Not Number","OK"))) ->  | AU23: =IF(AP23<>"OK","",IF(AND(LoB!AS23="Yes",LoB!AT23>LoB!AU23),"Min > Max",IF(AND(LoB!AS23="Yes",NOT(ISNUMBER(LoB!AU23))),"Not Number","OK"))) ->  | AV23: =IF($E23<>"Yes","",IF(ISERROR(MATCH(LoB!AV23,List!$F$2:$F$101,0)),"Not Available","OK")) ->  | AW23: =IF(AV23<>"OK","",IF(LoB!AV23="Independent","OK",IF(OR(AND(LoB!AV23="clayton",LoB!AW23<-1),AND(OR(LoB!AV23="gumbel",LoB!AV23="joe"),LoB!AW23<1),AND(LoB!AV23<>"normal",LoB!AV23<>"t",LoB!AW23=0)),"Invalid Value",IF(AND(OR(LoB!AV23="normal",LoB!AV23="t"),ABS(LoB!AW23)>1),"|Correlation|>1",IF(AND(OR(LoB!AV23="normal",LoB!AV23="t"),LoB!AW23=""),"No Value","OK"))))) ->  | AX23: =IF(AV23<>"OK","",IF(LoB!AV23="Independent","OK", IF(AND(OR(LoB!AV23="normal",LoB!AV23="t"),1-LoB!AW23*LoB!AX23<0),"Non Positive Semidefinite",IF(ABS(LoB!AX23)>1,"|Correlation|>1",IF(LoB!AX23="","No Value","OK"))))) ->  | AY23: =IF(AV23<>"OK","",IF(AND(OR(LoB!AV23="normal",LoB!AV23="t"),detm(LoB!AW23,LoB!AX23,LoB!AY23)<0),"Non Positive Semidefinite",IF(ABS(LoB!AY23)>1,"|Correlation >1",IF(LoB!AY23="","","OK")))) ->  | AZ23: =IF(AV23<>"OK","",IF(AND(LoB!AV23="t",LoB!AZ23<=0),"Wrong DoF","OK")) ->  | BA23: =IF($E23<>"Yes","",IF(OR(LoB!BA23="",AND(ISERROR(MATCH(LoB!BA23,FactorTable!$B$1:$GS$1,0)),ISERROR(MATCH(LoB!BA23,Function!$C$1:$CX$1,0)))),"Not Available","OK")) ->  | BB23: =IF($E23<>"Yes","",IF(OR(LoB!BB23="Empirical",LoB!BB23="None",LoB!BB23="Fixed"),"OK","Wrong")) ->  | BC23: =IF(BB23<>"OK","",IF(LoB!BB23="Empirical",IF(OR(LoB!BC23="",ISERROR(MATCH(LoB!BC23,Empirical!$B$1:$CW$1,0))),"Not Available","OK"),IF(AND(LoB!BB23="Fixed",LoB!BC23>=0),"OK","OK"))) ->  | BD23: =IF($E23<>"Yes","",IF(OR(LoB!BD23="Empirical",LoB!BD23="None",LoB!BB23="Fixed"),"OK","Wrong")) ->  | BE23: =IF(BD23<>"OK","",IF(LoB!BD23="Empirical",IF(OR(LoB!BE23="",ISERROR(MATCH(LoB!BE23,Empirical!$B$1:$CW$1,0))),"Not Available","OK"),IF(AND(LoB!BD23="Fixed",LoB!BE23>=0),"OK","OK"))) ->  | BF23: =IF($E23<>"Yes","",IF(OR(LoB!BF23="",ISERROR(MATCH(LoB!BF23,List!$M$2:$M$28,0))),"Not Available","OK")) -> 
B24: Correct | C24: =IF(LoB!C24="","",LoB!C24) ->  | D24: =IF(LoB!D24="","",LoB!D24) ->  | E24: =IF(LoB!E24="","",LoB!E24) ->  | F24: =IF($E24<>"Yes","",IF(OR(LoB!F24="CondPaid",LoB!F24="CondIncurLoss"),"OK",IF(OR(AND(ISERROR(MATCH(LoB!F24,FactorTable!$B$1:$GS$1,0)),ISERROR(MATCH(LoB!F24,Function!$C$1:$CX$1,0)))),"Not Available","OK"))) ->  | G24: =IF($E24<>"Yes","",IF(OR(LoB!G24="",AND(ISERROR(MATCH(LoB!G24,FactorTable!$B$1:$GS$1,0)),ISERROR(MATCH(LoB!G24,Function!$C$1:$CX$1,0)))),"Not Available","OK")) ->  | H24: =IF($E24<>"Yes","",IF(OR(LoB!H24="CondPaid",LoB!H24="CondIncurLoss"),"OK",IF(OR(AND(ISERROR(MATCH(LoB!H24,FactorTable!$B$1:$GS$1,0)),ISERROR(MATCH(LoB!H24,Function!$C$1:$CX$1,0)))),"Not Available","OK"))) ->  | I24: =IF($E24<>"Yes","",IF(ISERROR(MATCH(LoB!I24,List!$A$2:$A$101,0)),"Not Available","OK")) ->  | J24: =IF(I24<>"OK","",IF(LoB!I24="Empirical",IF(OR(LoB!J24="",ISERROR(MATCH(LoB!J24,Empirical!$B$1:$CW$1,0))),"Not Available","OK"),IF(AND(VLOOKUP(LoB!I24,List!$A$2:$E$101,2,FALSE)<>"",LoB!J24<=VLOOKUP(LoB!I24,List!$A$2:$E$101,2,FALSE)),"Too Small",IF(AND(VLOOKUP(LoB!I24,List!$A$2:$E$101,3,FALSE)<>"",LoB!J24>=VLOOKUP(LoB!I24,List!$A$2:$E$101,3,FALSE)),"Too Large","OK")))) ->  | K24: =IF(I24<>"OK","",IF(AND(VLOOKUP(LoB!I24,List!$A$2:$E$101,4,FALSE)<>"",LoB!K24<=VLOOKUP(LoB!I24,List!$A$2:$E$101,4,FALSE)),"Too Small",IF(AND(VLOOKUP(LoB!I24,List!$A$2:$E$101,5,FALSE)<>"",LoB!K24>=VLOOKUP(LoB!I24,List!$A$2:$E$101,5,FALSE)),"Too Large","OK"))) ->  | M24: =IF(I24<>"OK","",IF(AND(LoB!L24="Yes",LoB!M24>LoB!N24),"Min > Max",IF(AND(LoB!L24="Yes",NOT(ISNUMBER(LoB!M24))),"Not Number","OK"))) ->  | N24: =IF(I24<>"OK","",IF(AND(LoB!L24="Yes",LoB!M24>LoB!N24),"Min > Max",IF(AND(LoB!L24="Yes",NOT(ISNUMBER(LoB!N24))),"Not Number","OK"))) ->  | O24: =IF($E24<>"Yes","",IF(ISERROR(MATCH(LoB!O24,List!$A$2:$A$101,0)),"Not Available","OK")) ->  | P24: =IF(O24<>"OK","",IF(LoB!O24="Empirical",IF(OR(LoB!P24="",ISERROR(MATCH(LoB!P24,Empirical!$B$1:$CW$1,0))),"Not Available","OK"),IF(AND(VLOOKUP(LoB!O24,List!$A$2:$E$101,2,FALSE)<>"",LoB!P24<=VLOOKUP(LoB!O24,List!$A$2:$E$101,2,FALSE)),"Too Small",IF(AND(VLOOKUP(LoB!O24,List!$A$2:$E$101,3,FALSE)<>"",LoB!P24>=VLOOKUP(LoB!O24,List!$A$2:$E$101,3,FALSE)),"Too Large","OK")))) ->  | Q24: =IF(O24<>"OK","",IF(AND(VLOOKUP(LoB!O24,List!$A$2:$E$101,4,FALSE)<>"",LoB!Q24<=VLOOKUP(LoB!O24,List!$A$2:$E$101,4,FALSE)),"Too Small",IF(AND(VLOOKUP(LoB!O24,List!$A$2:$E$101,5,FALSE)<>"",LoB!Q24>=VLOOKUP(LoB!O24,List!$A$2:$E$101,5,FALSE)),"Too Large","OK"))) ->  | S24: =IF(O24<>"OK","",IF(AND(LoB!R24="Yes",LoB!S24>LoB!T24),"Min > Max",IF(AND(LoB!R24="Yes",NOT(ISNUMBER(LoB!S24))),"Not Number","OK"))) ->  | T24: =IF(O24<>"OK","",IF(AND(LoB!R24="Yes",LoB!S24>LoB!T24),"Min > Max",IF(AND(LoB!R24="Yes",NOT(ISNUMBER(LoB!T24))),"Not Number","OK"))) ->  | U24: =IF($E24<>"Yes","",IF(OR(LoB!U24="",ISERROR(MATCH(LoB!U24,Index!$B$1:$CW$1,0))),"Not Available","OK")) ->  | V24: =IF($E24<>"Yes","",IF(ISERROR(MATCH(LoB!V24,List!$A$2:$A$101,0)),"Not Available","OK")) ->  | W24: =IF(V24<>"OK","",IF(LoB!V24="Empirical",IF(OR(LoB!W24="",ISERROR(MATCH(LoB!W24,Empirical!$B$1:$CW$1,0))),"Not Available","OK"),IF(AND(VLOOKUP(LoB!V24,List!$A$2:$E$101,2,FALSE)<>"",LoB!W24<=VLOOKUP(LoB!V24,List!$A$2:$E$101,2,FALSE)),"Too Small",IF(AND(VLOOKUP(LoB!V24,List!$A$2:$E$101,3,FALSE)<>"",LoB!W24>=VLOOKUP(LoB!V24,List!$A$2:$E$101,3,FALSE)),"Too Large","OK")))) ->  | X24: =IF(V24<>"OK","",IF(AND(VLOOKUP(LoB!V24,List!$A$2:$E$101,4,FALSE)<>"",LoB!X24<=VLOOKUP(LoB!V24,List!$A$2:$E$101,4,FALSE)),"Too Small",IF(AND(VLOOKUP(LoB!V24,List!$A$2:$E$101,5,FALSE)<>"",LoB!X24>=VLOOKUP(LoB!V24,List!$A$2:$E$101,5,FALSE)),"Too Large","OK"))) ->  | Z24: =IF(V24<>"OK","",IF(AND(LoB!Y24="Yes",LoB!Z24>LoB!AA24),"Min > Max",IF(AND(LoB!Y24="Yes",NOT(ISNUMBER(LoB!Z24))),"Not Number","OK"))) ->  | AA24: =IF(V24<>"OK","",IF(AND(LoB!Y24="Yes",LoB!Z24>LoB!AA24),"Min > Max",IF(AND(LoB!Y24="Yes",NOT(ISNUMBER(LoB!AA24))),"Not Number","OK"))) ->  | AB24: =IF($E24<>"Yes","",IF(OR(LoB!AB24="",ISERROR(MATCH(LoB!AB24,Index!$B$1:$CW$1,0))),"Not Available","OK")) ->  | AC24: =IF($E24<>"Yes","",IF(OR(LoB!AC24="CLOSED",LoB!AC24="ALL"),"OK","Not Available")) ->  | AD24: =IF($E24<>"Yes","",IF(ISERROR(MATCH(LoB!AD24,List!$A$2:$A$101,0)),"Not Available","OK")) ->  | AE24: =IF(AD24<>"OK","",IF(LoB!AD24="Empirical",IF(OR(LoB!AE24="",ISERROR(MATCH(LoB!AE24,Empirical!$B$1:$CW$1,0))),"Not Available","OK"),IF(AND(VLOOKUP(LoB!AD24,List!$A$2:$E$101,2,FALSE)<>"",LoB!AE24<=VLOOKUP(LoB!AD24,List!$A$2:$E$101,2,FALSE)),"Too Small",IF(AND(VLOOKUP(LoB!AD24,List!$A$2:$E$101,3,FALSE)<>"",LoB!AE24>=VLOOKUP(LoB!AD24,List!$A$2:$E$101,3,FALSE)),"Too Large","OK")))) ->  | AF24: =IF(AD24<>"OK","",IF(AND(VLOOKUP(LoB!AD24,List!$A$2:$E$101,4,FALSE)<>"",LoB!AF24<=VLOOKUP(LoB!AD24,List!$A$2:$E$101,4,FALSE)),"Too Small",IF(AND(VLOOKUP(LoB!AD24,List!$A$2:$E$101,5,FALSE)<>"",LoB!AF24>=VLOOKUP(LoB!AD24,List!$A$2:$E$101,5,FALSE)),"Too Large","OK"))) ->  | AH24: =IF(AD24<>"OK","",IF(AND(LoB!AG24="Yes",LoB!AH24>LoB!AI24),"Min > Max",IF(AND(LoB!AG24="Yes",NOT(ISNUMBER(LoB!AH24))),"Not Number","OK"))) ->  | AI24: =IF(AD24<>"OK","",IF(AND(LoB!AG24="Yes",LoB!AH24>LoB!AI24),"Min > Max",IF(AND(LoB!AG24="Yes",NOT(ISNUMBER(LoB!AI24))),"Not Number","OK"))) ->  | AJ24: =IF($E24<>"Yes","",IF(ISERROR(MATCH(LoB!AJ24,List!$A$2:$A$101,0)),"Not Available","OK")) ->  | AK24: =IF(AJ24<>"OK","",IF(LoB!AJ24="Empirical",IF(OR(LoB!AK24="",ISERROR(MATCH(LoB!AK24,Empirical!$B$1:$CW$1,0))),"Not Available","OK"),IF(AND(VLOOKUP(LoB!AJ24,List!$A$2:$E$101,2,FALSE)<>"",LoB!AK24<=VLOOKUP(LoB!AJ24,List!$A$2:$E$101,2,FALSE)),"Too Small",IF(AND(VLOOKUP(LoB!AJ24,List!$A$2:$E$101,3,FALSE)<>"",LoB!AK24>=VLOOKUP(LoB!AJ24,List!$A$2:$E$101,3,FALSE)),"Too Large","OK")))) ->  | AL24: =IF(AJ24<>"OK","",IF(AND(VLOOKUP(LoB!AJ24,List!$A$2:$E$101,4,FALSE)<>"",LoB!AL24<=VLOOKUP(LoB!AJ24,List!$A$2:$E$101,4,FALSE)),"Too Small",IF(AND(VLOOKUP(LoB!AJ24,List!$A$2:$E$101,5,FALSE)<>"",LoB!AL24>=VLOOKUP(LoB!AJ24,List!$A$2:$E$101,5,FALSE)),"Too Large","OK"))) ->  | AN24: =IF(AJ24<>"OK","",IF(AND(LoB!AM24="Yes",LoB!AN24>LoB!AO24),"Min > Max",IF(AND(LoB!AM24="Yes",NOT(ISNUMBER(LoB!AN24))),"Not Number","OK"))) ->  | AO24: =IF(AJ24<>"OK","",IF(AND(LoB!AM24="Yes",LoB!AN24>LoB!AO24),"Min > Max",IF(AND(LoB!AM24="Yes",NOT(ISNUMBER(LoB!AO24))),"Not Number","OK"))) ->  | AP24: =IF($E24<>"Yes","",IF(ISERROR(MATCH(LoB!AP24,List!$A$2:$A$101,0)),"Not Available","OK")) ->  | AQ24: =IF(AP24<>"OK","",IF(LoB!AP24="Empirical",IF(OR(LoB!AQ24="",ISERROR(MATCH(LoB!AQ24,Empirical!$B$1:$CW$1,0))),"Not Available","OK"),IF(AND(VLOOKUP(LoB!AP24,List!$A$2:$E$101,2,FALSE)<>"",LoB!AQ24<=VLOOKUP(LoB!AP24,List!$A$2:$E$101,2,FALSE)),"Too Small",IF(AND(VLOOKUP(LoB!AP24,List!$A$2:$E$101,3,FALSE)<>"",LoB!AQ24>=VLOOKUP(LoB!AP24,List!$A$2:$E$101,3,FALSE)),"Too Large","OK")))) ->  | AR24: =IF(AP24<>"OK","",IF(AND(VLOOKUP(LoB!AP24,List!$A$2:$E$101,4,FALSE)<>"",LoB!AR24<=VLOOKUP(LoB!AP24,List!$A$2:$E$101,4,FALSE)),"Too Small",IF(AND(VLOOKUP(LoB!AP24,List!$A$2:$E$101,5,FALSE)<>"",LoB!AR24>=VLOOKUP(LoB!AP24,List!$A$2:$E$101,5,FALSE)),"Too Large","OK"))) ->  | AT24: =IF(AP24<>"OK","",IF(AND(LoB!AS24="Yes",LoB!AT24>LoB!AU24),"Min > Max",IF(AND(LoB!AS24="Yes",NOT(ISNUMBER(LoB!AT24))),"Not Number","OK"))) ->  | AU24: =IF(AP24<>"OK","",IF(AND(LoB!AS24="Yes",LoB!AT24>LoB!AU24),"Min > Max",IF(AND(LoB!AS24="Yes",NOT(ISNUMBER(LoB!AU24))),"Not Number","OK"))) ->  | AV24: =IF($E24<>"Yes","",IF(ISERROR(MATCH(LoB!AV24,List!$F$2:$F$101,0)),"Not Available","OK")) ->  | AW24: =IF(AV24<>"OK","",IF(LoB!AV24="Independent","OK",IF(OR(AND(LoB!AV24="clayton",LoB!AW24<-1),AND(OR(LoB!AV24="gumbel",LoB!AV24="joe"),LoB!AW24<1),AND(LoB!AV24<>"normal",LoB!AV24<>"t",LoB!AW24=0)),"Invalid Value",IF(AND(OR(LoB!AV24="normal",LoB!AV24="t"),ABS(LoB!AW24)>1),"|Correlation|>1",IF(AND(OR(LoB!AV24="normal",LoB!AV24="t"),LoB!AW24=""),"No Value","OK"))))) ->  | AX24: =IF(AV24<>"OK","",IF(LoB!AV24="Independent","OK", IF(AND(OR(LoB!AV24="normal",LoB!AV24="t"),1-LoB!AW24*LoB!AX24<0),"Non Positive Semidefinite",IF(ABS(LoB!AX24)>1,"|Correlation|>1",IF(LoB!AX24="","No Value","OK"))))) ->  | AY24: =IF(AV24<>"OK","",IF(AND(OR(LoB!AV24="normal",LoB!AV24="t"),detm(LoB!AW24,LoB!AX24,LoB!AY24)<0),"Non Positive Semidefinite",IF(ABS(LoB!AY24)>1,"|Correlation >1",IF(LoB!AY24="","","OK")))) ->  | AZ24: =IF(AV24<>"OK","",IF(AND(LoB!AV24="t",LoB!AZ24<=0),"Wrong DoF","OK")) ->  | BA24: =IF($E24<>"Yes","",IF(OR(LoB!BA24="",AND(ISERROR(MATCH(LoB!BA24,FactorTable!$B$1:$GS$1,0)),ISERROR(MATCH(LoB!BA24,Function!$C$1:$CX$1,0)))),"Not Available","OK")) ->  | BB24: =IF($E24<>"Yes","",IF(OR(LoB!BB24="Empirical",LoB!BB24="None",LoB!BB24="Fixed"),"OK","Wrong")) ->  | BC24: =IF(BB24<>"OK","",IF(LoB!BB24="Empirical",IF(OR(LoB!BC24="",ISERROR(MATCH(LoB!BC24,Empirical!$B$1:$CW$1,0))),"Not Available","OK"),IF(AND(LoB!BB24="Fixed",LoB!BC24>=0),"OK","OK"))) ->  | BD24: =IF($E24<>"Yes","",IF(OR(LoB!BD24="Empirical",LoB!BD24="None",LoB!BB24="Fixed"),"OK","Wrong")) ->  | BE24: =IF(BD24<>"OK","",IF(LoB!BD24="Empirical",IF(OR(LoB!BE24="",ISERROR(MATCH(LoB!BE24,Empirical!$B$1:$CW$1,0))),"Not Available","OK"),IF(AND(LoB!BD24="Fixed",LoB!BE24>=0),"OK","OK"))) ->  | BF24: =IF($E24<>"Yes","",IF(OR(LoB!BF24="",ISERROR(MATCH(LoB!BF24,List!$M$2:$M$28,0))),"Not Available","OK")) -> 
B25: Correct | C25: =IF(LoB!C25="","",LoB!C25) ->  | D25: =IF(LoB!D25="","",LoB!D25) ->  | E25: =IF(LoB!E25="","",LoB!E25) ->  | F25: =IF($E25<>"Yes","",IF(OR(LoB!F25="CondPaid",LoB!F25="CondIncurLoss"),"OK",IF(OR(AND(ISERROR(MATCH(LoB!F25,FactorTable!$B$1:$GS$1,0)),ISERROR(MATCH(LoB!F25,Function!$C$1:$CX$1,0)))),"Not Available","OK"))) ->  | G25: =IF($E25<>"Yes","",IF(OR(LoB!G25="",AND(ISERROR(MATCH(LoB!G25,FactorTable!$B$1:$GS$1,0)),ISERROR(MATCH(LoB!G25,Function!$C$1:$CX$1,0)))),"Not Available","OK")) ->  | H25: =IF($E25<>"Yes","",IF(OR(LoB!H25="CondPaid",LoB!H25="CondIncurLoss"),"OK",IF(OR(AND(ISERROR(MATCH(LoB!H25,FactorTable!$B$1:$GS$1,0)),ISERROR(MATCH(LoB!H25,Function!$C$1:$CX$1,0)))),"Not Available","OK"))) ->  | I25: =IF($E25<>"Yes","",IF(ISERROR(MATCH(LoB!I25,List!$A$2:$A$101,0)),"Not Available","OK")) ->  | J25: =IF(I25<>"OK","",IF(LoB!I25="Empirical",IF(OR(LoB!J25="",ISERROR(MATCH(LoB!J25,Empirical!$B$1:$CW$1,0))),"Not Available","OK"),IF(AND(VLOOKUP(LoB!I25,List!$A$2:$E$101,2,FALSE)<>"",LoB!J25<=VLOOKUP(LoB!I25,List!$A$2:$E$101,2,FALSE)),"Too Small",IF(AND(VLOOKUP(LoB!I25,List!$A$2:$E$101,3,FALSE)<>"",LoB!J25>=VLOOKUP(LoB!I25,List!$A$2:$E$101,3,FALSE)),"Too Large","OK")))) ->  | K25: =IF(I25<>"OK","",IF(AND(VLOOKUP(LoB!I25,List!$A$2:$E$101,4,FALSE)<>"",LoB!K25<=VLOOKUP(LoB!I25,List!$A$2:$E$101,4,FALSE)),"Too Small",IF(AND(VLOOKUP(LoB!I25,List!$A$2:$E$101,5,FALSE)<>"",LoB!K25>=VLOOKUP(LoB!I25,List!$A$2:$E$101,5,FALSE)),"Too Large","OK"))) ->  | M25: =IF(I25<>"OK","",IF(AND(LoB!L25="Yes",LoB!M25>LoB!N25),"Min > Max",IF(AND(LoB!L25="Yes",NOT(ISNUMBER(LoB!M25))),"Not Number","OK"))) ->  | N25: =IF(I25<>"OK","",IF(AND(LoB!L25="Yes",LoB!M25>LoB!N25),"Min > Max",IF(AND(LoB!L25="Yes",NOT(ISNUMBER(LoB!N25))),"Not Number","OK"))) ->  | O25: =IF($E25<>"Yes","",IF(ISERROR(MATCH(LoB!O25,List!$A$2:$A$101,0)),"Not Available","OK")) ->  | P25: =IF(O25<>"OK","",IF(LoB!O25="Empirical",IF(OR(LoB!P25="",ISERROR(MATCH(LoB!P25,Empirical!$B$1:$CW$1,0))),"Not Available","OK"),IF(AND(VLOOKUP(LoB!O25,List!$A$2:$E$101,2,FALSE)<>"",LoB!P25<=VLOOKUP(LoB!O25,List!$A$2:$E$101,2,FALSE)),"Too Small",IF(AND(VLOOKUP(LoB!O25,List!$A$2:$E$101,3,FALSE)<>"",LoB!P25>=VLOOKUP(LoB!O25,List!$A$2:$E$101,3,FALSE)),"Too Large","OK")))) ->  | Q25: =IF(O25<>"OK","",IF(AND(VLOOKUP(LoB!O25,List!$A$2:$E$101,4,FALSE)<>"",LoB!Q25<=VLOOKUP(LoB!O25,List!$A$2:$E$101,4,FALSE)),"Too Small",IF(AND(VLOOKUP(LoB!O25,List!$A$2:$E$101,5,FALSE)<>"",LoB!Q25>=VLOOKUP(LoB!O25,List!$A$2:$E$101,5,FALSE)),"Too Large","OK"))) ->  | S25: =IF(O25<>"OK","",IF(AND(LoB!R25="Yes",LoB!S25>LoB!T25),"Min > Max",IF(AND(LoB!R25="Yes",NOT(ISNUMBER(LoB!S25))),"Not Number","OK"))) ->  | T25: =IF(O25<>"OK","",IF(AND(LoB!R25="Yes",LoB!S25>LoB!T25),"Min > Max",IF(AND(LoB!R25="Yes",NOT(ISNUMBER(LoB!T25))),"Not Number","OK"))) ->  | U25: =IF($E25<>"Yes","",IF(OR(LoB!U25="",ISERROR(MATCH(LoB!U25,Index!$B$1:$CW$1,0))),"Not Available","OK")) ->  | V25: =IF($E25<>"Yes","",IF(ISERROR(MATCH(LoB!V25,List!$A$2:$A$101,0)),"Not Available","OK")) ->  | W25: =IF(V25<>"OK","",IF(LoB!V25="Empirical",IF(OR(LoB!W25="",ISERROR(MATCH(LoB!W25,Empirical!$B$1:$CW$1,0))),"Not Available","OK"),IF(AND(VLOOKUP(LoB!V25,List!$A$2:$E$101,2,FALSE)<>"",LoB!W25<=VLOOKUP(LoB!V25,List!$A$2:$E$101,2,FALSE)),"Too Small",IF(AND(VLOOKUP(LoB!V25,List!$A$2:$E$101,3,FALSE)<>"",LoB!W25>=VLOOKUP(LoB!V25,List!$A$2:$E$101,3,FALSE)),"Too Large","OK")))) ->  | X25: =IF(V25<>"OK","",IF(AND(VLOOKUP(LoB!V25,List!$A$2:$E$101,4,FALSE)<>"",LoB!X25<=VLOOKUP(LoB!V25,List!$A$2:$E$101,4,FALSE)),"Too Small",IF(AND(VLOOKUP(LoB!V25,List!$A$2:$E$101,5,FALSE)<>"",LoB!X25>=VLOOKUP(LoB!V25,List!$A$2:$E$101,5,FALSE)),"Too Large","OK"))) ->  | Z25: =IF(V25<>"OK","",IF(AND(LoB!Y25="Yes",LoB!Z25>LoB!AA25),"Min > Max",IF(AND(LoB!Y25="Yes",NOT(ISNUMBER(LoB!Z25))),"Not Number","OK"))) ->  | AA25: =IF(V25<>"OK","",IF(AND(LoB!Y25="Yes",LoB!Z25>LoB!AA25),"Min > Max",IF(AND(LoB!Y25="Yes",NOT(ISNUMBER(LoB!AA25))),"Not Number","OK"))) ->  | AB25: =IF($E25<>"Yes","",IF(OR(LoB!AB25="",ISERROR(MATCH(LoB!AB25,Index!$B$1:$CW$1,0))),"Not Available","OK")) ->  | AC25: =IF($E25<>"Yes","",IF(OR(LoB!AC25="CLOSED",LoB!AC25="ALL"),"OK","Not Available")) ->  | AD25: =IF($E25<>"Yes","",IF(ISERROR(MATCH(LoB!AD25,List!$A$2:$A$101,0)),"Not Available","OK")) ->  | AE25: =IF(AD25<>"OK","",IF(LoB!AD25="Empirical",IF(OR(LoB!AE25="",ISERROR(MATCH(LoB!AE25,Empirical!$B$1:$CW$1,0))),"Not Available","OK"),IF(AND(VLOOKUP(LoB!AD25,List!$A$2:$E$101,2,FALSE)<>"",LoB!AE25<=VLOOKUP(LoB!AD25,List!$A$2:$E$101,2,FALSE)),"Too Small",IF(AND(VLOOKUP(LoB!AD25,List!$A$2:$E$101,3,FALSE)<>"",LoB!AE25>=VLOOKUP(LoB!AD25,List!$A$2:$E$101,3,FALSE)),"Too Large","OK")))) ->  | AF25: =IF(AD25<>"OK","",IF(AND(VLOOKUP(LoB!AD25,List!$A$2:$E$101,4,FALSE)<>"",LoB!AF25<=VLOOKUP(LoB!AD25,List!$A$2:$E$101,4,FALSE)),"Too Small",IF(AND(VLOOKUP(LoB!AD25,List!$A$2:$E$101,5,FALSE)<>"",LoB!AF25>=VLOOKUP(LoB!AD25,List!$A$2:$E$101,5,FALSE)),"Too Large","OK"))) ->  | AH25: =IF(AD25<>"OK","",IF(AND(LoB!AG25="Yes",LoB!AH25>LoB!AI25),"Min > Max",IF(AND(LoB!AG25="Yes",NOT(ISNUMBER(LoB!AH25))),"Not Number","OK"))) ->  | AI25: =IF(AD25<>"OK","",IF(AND(LoB!AG25="Yes",LoB!AH25>LoB!AI25),"Min > Max",IF(AND(LoB!AG25="Yes",NOT(ISNUMBER(LoB!AI25))),"Not Number","OK"))) ->  | AJ25: =IF($E25<>"Yes","",IF(ISERROR(MATCH(LoB!AJ25,List!$A$2:$A$101,0)),"Not Available","OK")) ->  | AK25: =IF(AJ25<>"OK","",IF(LoB!AJ25="Empirical",IF(OR(LoB!AK25="",ISERROR(MATCH(LoB!AK25,Empirical!$B$1:$CW$1,0))),"Not Available","OK"),IF(AND(VLOOKUP(LoB!AJ25,List!$A$2:$E$101,2,FALSE)<>"",LoB!AK25<=VLOOKUP(LoB!AJ25,List!$A$2:$E$101,2,FALSE)),"Too Small",IF(AND(VLOOKUP(LoB!AJ25,List!$A$2:$E$101,3,FALSE)<>"",LoB!AK25>=VLOOKUP(LoB!AJ25,List!$A$2:$E$101,3,FALSE)),"Too Large","OK")))) ->  | AL25: =IF(AJ25<>"OK","",IF(AND(VLOOKUP(LoB!AJ25,List!$A$2:$E$101,4,FALSE)<>"",LoB!AL25<=VLOOKUP(LoB!AJ25,List!$A$2:$E$101,4,FALSE)),"Too Small",IF(AND(VLOOKUP(LoB!AJ25,List!$A$2:$E$101,5,FALSE)<>"",LoB!AL25>=VLOOKUP(LoB!AJ25,List!$A$2:$E$101,5,FALSE)),"Too Large","OK"))) ->  | AN25: =IF(AJ25<>"OK","",IF(AND(LoB!AM25="Yes",LoB!AN25>LoB!AO25),"Min > Max",IF(AND(LoB!AM25="Yes",NOT(ISNUMBER(LoB!AN25))),"Not Number","OK"))) ->  | AO25: =IF(AJ25<>"OK","",IF(AND(LoB!AM25="Yes",LoB!AN25>LoB!AO25),"Min > Max",IF(AND(LoB!AM25="Yes",NOT(ISNUMBER(LoB!AO25))),"Not Number","OK"))) ->  | AP25: =IF($E25<>"Yes","",IF(ISERROR(MATCH(LoB!AP25,List!$A$2:$A$101,0)),"Not Available","OK")) ->  | AQ25: =IF(AP25<>"OK","",IF(LoB!AP25="Empirical",IF(OR(LoB!AQ25="",ISERROR(MATCH(LoB!AQ25,Empirical!$B$1:$CW$1,0))),"Not Available","OK"),IF(AND(VLOOKUP(LoB!AP25,List!$A$2:$E$101,2,FALSE)<>"",LoB!AQ25<=VLOOKUP(LoB!AP25,List!$A$2:$E$101,2,FALSE)),"Too Small",IF(AND(VLOOKUP(LoB!AP25,List!$A$2:$E$101,3,FALSE)<>"",LoB!AQ25>=VLOOKUP(LoB!AP25,List!$A$2:$E$101,3,FALSE)),"Too Large","OK")))) ->  | AR25: =IF(AP25<>"OK","",IF(AND(VLOOKUP(LoB!AP25,List!$A$2:$E$101,4,FALSE)<>"",LoB!AR25<=VLOOKUP(LoB!AP25,List!$A$2:$E$101,4,FALSE)),"Too Small",IF(AND(VLOOKUP(LoB!AP25,List!$A$2:$E$101,5,FALSE)<>"",LoB!AR25>=VLOOKUP(LoB!AP25,List!$A$2:$E$101,5,FALSE)),"Too Large","OK"))) ->  | AT25: =IF(AP25<>"OK","",IF(AND(LoB!AS25="Yes",LoB!AT25>LoB!AU25),"Min > Max",IF(AND(LoB!AS25="Yes",NOT(ISNUMBER(LoB!AT25))),"Not Number","OK"))) ->  | AU25: =IF(AP25<>"OK","",IF(AND(LoB!AS25="Yes",LoB!AT25>LoB!AU25),"Min > Max",IF(AND(LoB!AS25="Yes",NOT(ISNUMBER(LoB!AU25))),"Not Number","OK"))) ->  | AV25: =IF($E25<>"Yes","",IF(ISERROR(MATCH(LoB!AV25,List!$F$2:$F$101,0)),"Not Available","OK")) ->  | AW25: =IF(AV25<>"OK","",IF(LoB!AV25="Independent","OK",IF(OR(AND(LoB!AV25="clayton",LoB!AW25<-1),AND(OR(LoB!AV25="gumbel",LoB!AV25="joe"),LoB!AW25<1),AND(LoB!AV25<>"normal",LoB!AV25<>"t",LoB!AW25=0)),"Invalid Value",IF(AND(OR(LoB!AV25="normal",LoB!AV25="t"),ABS(LoB!AW25)>1),"|Correlation|>1",IF(AND(OR(LoB!AV25="normal",LoB!AV25="t"),LoB!AW25=""),"No Value","OK"))))) ->  | AX25: =IF(AV25<>"OK","",IF(LoB!AV25="Independent","OK", IF(AND(OR(LoB!AV25="normal",LoB!AV25="t"),1-LoB!AW25*LoB!AX25<0),"Non Positive Semidefinite",IF(ABS(LoB!AX25)>1,"|Correlation|>1",IF(LoB!AX25="","No Value","OK"))))) ->  | AY25: =IF(AV25<>"OK","",IF(AND(OR(LoB!AV25="normal",LoB!AV25="t"),detm(LoB!AW25,LoB!AX25,LoB!AY25)<0),"Non Positive Semidefinite",IF(ABS(LoB!AY25)>1,"|Correlation >1",IF(LoB!AY25="","","OK")))) ->  | AZ25: =IF(AV25<>"OK","",IF(AND(LoB!AV25="t",LoB!AZ25<=0),"Wrong DoF","OK")) ->  | BA25: =IF($E25<>"Yes","",IF(OR(LoB!BA25="",AND(ISERROR(MATCH(LoB!BA25,FactorTable!$B$1:$GS$1,0)),ISERROR(MATCH(LoB!BA25,Function!$C$1:$CX$1,0)))),"Not Available","OK")) ->  | BB25: =IF($E25<>"Yes","",IF(OR(LoB!BB25="Empirical",LoB!BB25="None",LoB!BB25="Fixed"),"OK","Wrong")) ->  | BC25: =IF(BB25<>"OK","",IF(LoB!BB25="Empirical",IF(OR(LoB!BC25="",ISERROR(MATCH(LoB!BC25,Empirical!$B$1:$CW$1,0))),"Not Available","OK"),IF(AND(LoB!BB25="Fixed",LoB!BC25>=0),"OK","OK"))) ->  | BD25: =IF($E25<>"Yes","",IF(OR(LoB!BD25="Empirical",LoB!BD25="None",LoB!BB25="Fixed"),"OK","Wrong")) ->  | BE25: =IF(BD25<>"OK","",IF(LoB!BD25="Empirical",IF(OR(LoB!BE25="",ISERROR(MATCH(LoB!BE25,Empirical!$B$1:$CW$1,0))),"Not Available","OK"),IF(AND(LoB!BD25="Fixed",LoB!BE25>=0),"OK","OK"))) ->  | BF25: =IF($E25<>"Yes","",IF(OR(LoB!BF25="",ISERROR(MATCH(LoB!BF25,List!$M$2:$M$28,0))),"Not Available","OK")) -> 

Sheet FreqCopula
C1: Individual Claim Simulator API - Claim Data Setup
J2: Diagonal Check | K2: Non-Diagonal Check | L2: Positive Semi-Definite Check | M2: Business Line Check
C3: Copula | D3: =IF(OR(C4="Normal",C4="t"),"Set Parameters in the Matrix from Row 7",IF(C4="Independent","","Parameter")) -> Set Parameters in the Matrix from Row 7 | G3: =IF(C4="t","degree of freedom","NA") -> NA | H3: Validation
C4: normal | G4: 3 | H4: =IF(C4="Independent","Correct", IF(C4="normal",IF(AND(J4,K4,L4,M4),"Correct","Wrong"),IF(C4="t",IF(AND(J4,K4,L4,M4,G4>0),"Correct","Wrong"),IF(C4="Independent","Correct",IF(OR(AND(freqC="clayton",D4>=-1,D4<>0),AND(freqC="frank",D4<>0),AND(OR(freqC="gumbel",freqC="joe"),D4>=1)),"Correct","Wrong"))))) -> Correct | J4: =IF(COUNTIF(X7:X26,FALSE)=0,TRUE,FALSE) -> TRUE | K4: =IF(SUM(Y7:Y26)=0,TRUE,FALSE) -> TRUE | L4: =IF(ISERROR(MIN(Z7:Z26)<0),FALSE,IF(MIN(Z7:Z26)<0,FALSE,TRUE)) -> TRUE | M4: =IF(COUNTIFS(AA7:AA26,"<>OK",AA7:AA26,">""")=0,TRUE,FALSE) -> TRUE
C6: Correlation | D6: =IF(TRANSPOSE(C7:C26)="","",TRANSPOSE(C7:C26)) -> Home | E6: Auto | X6: Diagonal Check | Y6: Non-Diagonal Check | Z6: Positive Semi-Definite Check | AA6: Business Line Check
C7: Home | D7: =IF($C7<>"",1,"") -> 1 | E7: =IF(E$6:W$6="","",TRANSPOSE(D8:D26)) -> -0.1975 | X7: =IF(C7<>"",OFFSET($D$7,AB7-1,AB7-1)=1,"") -> TRUE | Y7: =IF(C7<>"",COUNTIFS(D7:W7,">1",D7:W7,"<-1"),"") -> 0 | Z7: =IF(C7<>"",MDETERM(OFFSET($D$7,0,0,ROWS($Z$7:$Z7),ROWS($Z$7:$Z7))),"") -> 1 | AA7: =IF(AND(OR(freqC="normal",freqC="t"),LoB!E6="Yes",ISERROR(MATCH(LoB!C6,lineList,0))),"Business Line "&LoB!C6&" is not in the correlation matrix",IF(AND(C7<>"",NOT(ISERROR(MATCH(C7,C8:C$26,0)))),"Business Line "&C7&" is not unique in the correlation matrix","OK")) -> OK | AB7: 1
C8: Auto | D8: -0.1975 | E8: =IF($C8<>"",1,"") -> 1 | F8: =IF(F$6:X$6="","",TRANSPOSE(E9:E27)) ->  | X8: =IF(C8<>"",OFFSET($D$7,AB8-1,AB8-1)=1,"") -> TRUE | Y8: =IF(C8<>"",COUNTIFS(D8:W8,">1",D8:W8,"<-1"),"") -> 0 | Z8: =IF(C8<>"",MDETERM(OFFSET($D$7,0,0,ROWS($Z$7:$Z8),ROWS($Z$7:$Z8))),"") -> 0.96099375 | AA8: =IF(AND(OR(freqC="normal",freqC="t"),LoB!E7="Yes",ISERROR(MATCH(LoB!C7,lineList,0))),"Business Line "&LoB!C7&" is not in the correlation matrix",IF(AND(C8<>"",NOT(ISERROR(MATCH(C8,C9:C$26,0)))),"Business Line "&C8&" is not unique in the correlation matrix","OK")) -> OK | AB8: 2
F9: =IF($C9<>"",1,"") ->  | G9: =IF(G$6:Y$6="","",TRANSPOSE(F10:F28)) ->  | X9: =IF(C9<>"",OFFSET($D$7,AB9-1,AB9-1)=1,"") ->  | Y9: =IF(C9<>"",COUNTIFS(D9:W9,">1",D9:W9,"<-1"),"") ->  | Z9: =IF(C9<>"",MDETERM(OFFSET($D$7,0,0,ROWS($Z$7:$Z9),ROWS($Z$7:$Z9))),"") ->  | AA9: =IF(AND(OR(freqC="normal",freqC="t"),LoB!E8="Yes",ISERROR(MATCH(LoB!C8,lineList,0))),"Business Line "&LoB!C8&" is not in the correlation matrix",IF(AND(C9<>"",NOT(ISERROR(MATCH(C9,C10:C$26,0)))),"Business Line "&C9&" is not unique in the correlation matrix","OK")) -> OK | AB9: 3
G10: =IF($C10<>"",1,"") ->  | H10: =IF(H$6:Z$6="","",TRANSPOSE(G11:G29)) ->  | X10: =IF(C10<>"",OFFSET($D$7,AB10-1,AB10-1)=1,"") ->  | Y10: =IF(C10<>"",COUNTIFS(D10:W10,">1",D10:W10,"<-1"),"") ->  | Z10: =IF(C10<>"",MDETERM(OFFSET($D$7,0,0,ROWS($Z$7:$Z10),ROWS($Z$7:$Z10))),"") ->  | AA10: =IF(AND(OR(freqC="normal",freqC="t"),LoB!E9="Yes",ISERROR(MATCH(LoB!C9,lineList,0))),"Business Line "&LoB!C9&" is not in the correlation matrix",IF(AND(C10<>"",NOT(ISERROR(MATCH(C10,C11:C$26,0)))),"Business Line "&C10&" is not unique in the correlation matrix","OK")) -> OK | AB10: 4
H11: =IF($C11<>"",1,"") ->  | I11: =IF(I$6:AB$6="","",TRANSPOSE(H12:H30)) ->  | Z11: =IF(C11<>"",MDETERM(OFFSET($D$7,0,0,ROWS($Z$7:$Z11),ROWS($Z$7:$Z11))),"") ->  | AA11: =IF(AND(OR(freqC="normal",freqC="t"),LoB!E10="Yes",ISERROR(MATCH(LoB!C10,lineList,0))),"Business Line "&LoB!C10&" is not in the correlation matrix",IF(AND(C11<>"",NOT(ISERROR(MATCH(C11,C12:C$26,0)))),"Business Line "&C11&" is not unique in the correlation matrix","OK")) -> OK | AB11: 5
I12: =IF($C12<>"",1,"") ->  | J12: =IF(J$6:AC$6="","",TRANSPOSE(I13:I31)) ->  | Z12: =IF(C12<>"",MDETERM(OFFSET($D$7,0,0,ROWS($Z$7:$Z12),ROWS($Z$7:$Z12))),"") ->  | AA12: =IF(AND(OR(freqC="normal",freqC="t"),LoB!E11="Yes",ISERROR(MATCH(LoB!C11,lineList,0))),"Business Line "&LoB!C11&" is not in the correlation matrix",IF(AND(C12<>"",NOT(ISERROR(MATCH(C12,C13:C$26,0)))),"Business Line "&C12&" is not unique in the correlation matrix","OK")) -> OK | AB12: 6
J13: =IF($C13<>"",1,"") ->  | K13: =IF(K$6:AD$6="","",TRANSPOSE(J14:J32)) ->  | Z13: =IF(C13<>"",MDETERM(OFFSET($D$7,0,0,ROWS($Z$7:$Z13),ROWS($Z$7:$Z13))),"") ->  | AA13: =IF(AND(OR(freqC="normal",freqC="t"),LoB!E12="Yes",ISERROR(MATCH(LoB!C12,lineList,0))),"Business Line "&LoB!C12&" is not in the correlation matrix",IF(AND(C13<>"",NOT(ISERROR(MATCH(C13,C14:C$26,0)))),"Business Line "&C13&" is not unique in the correlation matrix","OK")) -> OK | AB13: 7
K14: =IF($C14<>"",1,"") ->  | L14: =IF(L$6:AE$6="","",TRANSPOSE(K15:K33)) ->  | Z14: =IF(C14<>"",MDETERM(OFFSET($D$7,0,0,ROWS($Z$7:$Z14),ROWS($Z$7:$Z14))),"") ->  | AA14: =IF(AND(OR(freqC="normal",freqC="t"),LoB!E13="Yes",ISERROR(MATCH(LoB!C13,lineList,0))),"Business Line "&LoB!C13&" is not in the correlation matrix",IF(AND(C14<>"",NOT(ISERROR(MATCH(C14,C15:C$26,0)))),"Business Line "&C14&" is not unique in the correlation matrix","OK")) -> OK | AB14: 8
L15: =IF($C15<>"",1,"") ->  | M15: =IF(M$6:AF$6="","",TRANSPOSE(L16:L34)) ->  | Z15: =IF(C15<>"",MDETERM(OFFSET($D$7,0,0,ROWS($Z$7:$Z15),ROWS($Z$7:$Z15))),"") ->  | AA15: =IF(AND(OR(freqC="normal",freqC="t"),LoB!E14="Yes",ISERROR(MATCH(LoB!C14,lineList,0))),"Business Line "&LoB!C14&" is not in the correlation matrix",IF(AND(C15<>"",NOT(ISERROR(MATCH(C15,C16:C$26,0)))),"Business Line "&C15&" is not unique in the correlation matrix","OK")) -> OK | AB15: 9
M16: =IF($C16<>"",1,"") ->  | N16: =IF(N$6:AG$6="","",TRANSPOSE(M17:M35)) ->  | Z16: =IF(C16<>"",MDETERM(OFFSET($D$7,0,0,ROWS($Z$7:$Z16),ROWS($Z$7:$Z16))),"") ->  | AA16: =IF(AND(OR(freqC="normal",freqC="t"),LoB!E15="Yes",ISERROR(MATCH(LoB!C15,lineList,0))),"Business Line "&LoB!C15&" is not in the correlation matrix",IF(AND(C16<>"",NOT(ISERROR(MATCH(C16,C17:C$26,0)))),"Business Line "&C16&" is not unique in the correlation matrix","OK")) -> OK | AB16: 10
N17: =IF($C17<>"",1,"") ->  | O17: =IF(O$6:AH$6="","",TRANSPOSE(N18:N36)) ->  | Z17: =IF(C17<>"",MDETERM(OFFSET($D$7,0,0,ROWS($Z$7:$Z17),ROWS($Z$7:$Z17))),"") ->  | AA17: =IF(AND(OR(freqC="normal",freqC="t"),LoB!E16="Yes",ISERROR(MATCH(LoB!C16,lineList,0))),"Business Line "&LoB!C16&" is not in the correlation matrix",IF(AND(C17<>"",NOT(ISERROR(MATCH(C17,C18:C$26,0)))),"Business Line "&C17&" is not unique in the correlation matrix","OK")) -> OK | AB17: 11
O18: =IF($C18<>"",1,"") ->  | P18: =IF(P$6:AI$6="","",TRANSPOSE(O19:O37)) ->  | Z18: =IF(C18<>"",MDETERM(OFFSET($D$7,0,0,ROWS($Z$7:$Z18),ROWS($Z$7:$Z18))),"") ->  | AA18: =IF(AND(OR(freqC="normal",freqC="t"),LoB!E17="Yes",ISERROR(MATCH(LoB!C17,lineList,0))),"Business Line "&LoB!C17&" is not in the correlation matrix",IF(AND(C18<>"",NOT(ISERROR(MATCH(C18,C19:C$26,0)))),"Business Line "&C18&" is not unique in the correlation matrix","OK")) -> OK | AB18: 12
P19: =IF($C19<>"",1,"") ->  | Q19: =IF(Q$6:AJ$6="","",TRANSPOSE(P20:P38)) ->  | Z19: =IF(C19<>"",MDETERM(OFFSET($D$7,0,0,ROWS($Z$7:$Z19),ROWS($Z$7:$Z19))),"") ->  | AA19: =IF(AND(OR(freqC="normal",freqC="t"),LoB!E18="Yes",ISERROR(MATCH(LoB!C18,lineList,0))),"Business Line "&LoB!C18&" is not in the correlation matrix",IF(AND(C19<>"",NOT(ISERROR(MATCH(C19,C20:C$26,0)))),"Business Line "&C19&" is not unique in the correlation matrix","OK")) -> OK | AB19: 13
Q20: =IF($C20<>"",1,"") ->  | R20: =IF(R$6:AK$6="","",TRANSPOSE(Q21:Q39)) ->  | Z20: =IF(C20<>"",MDETERM(OFFSET($D$7,0,0,ROWS($Z$7:$Z20),ROWS($Z$7:$Z20))),"") ->  | AA20: =IF(AND(OR(freqC="normal",freqC="t"),LoB!E19="Yes",ISERROR(MATCH(LoB!C19,lineList,0))),"Business Line "&LoB!C19&" is not in the correlation matrix",IF(AND(C20<>"",NOT(ISERROR(MATCH(C20,C21:C$26,0)))),"Business Line "&C20&" is not unique in the correlation matrix","OK")) -> OK | AB20: 14
R21: =IF($C21<>"",1,"") ->  | S21: =IF(S$6:AL$6="","",TRANSPOSE(R22:R40)) ->  | Z21: =IF(C21<>"",MDETERM(OFFSET($D$7,0,0,ROWS($Z$7:$Z21),ROWS($Z$7:$Z21))),"") ->  | AA21: =IF(AND(OR(freqC="normal",freqC="t"),LoB!E20="Yes",ISERROR(MATCH(LoB!C20,lineList,0))),"Business Line "&LoB!C20&" is not in the correlation matrix",IF(AND(C21<>"",NOT(ISERROR(MATCH(C21,C22:C$26,0)))),"Business Line "&C21&" is not unique in the correlation matrix","OK")) -> OK | AB21: 15
S22: =IF($C22<>"",1,"") ->  | T22: =IF(T$6:AM$6="","",TRANSPOSE(S23:S41)) ->  | Z22: =IF(C22<>"",MDETERM(OFFSET($D$7,0,0,ROWS($Z$7:$Z22),ROWS($Z$7:$Z22))),"") ->  | AA22: =IF(AND(OR(freqC="normal",freqC="t"),LoB!E21="Yes",ISERROR(MATCH(LoB!C21,lineList,0))),"Business Line "&LoB!C21&" is not in the correlation matrix",IF(AND(C22<>"",NOT(ISERROR(MATCH(C22,C23:C$26,0)))),"Business Line "&C22&" is not unique in the correlation matrix","OK")) -> OK | AB22: 16
T23: =IF($C23<>"",1,"") ->  | U23: =IF(U$6:AN$6="","",TRANSPOSE(T24:T42)) ->  | Z23: =IF(C23<>"",MDETERM(OFFSET($D$7,0,0,ROWS($Z$7:$Z23),ROWS($Z$7:$Z23))),"") ->  | AA23: =IF(AND(OR(freqC="normal",freqC="t"),LoB!E22="Yes",ISERROR(MATCH(LoB!C22,lineList,0))),"Business Line "&LoB!C22&" is not in the correlation matrix",IF(AND(C23<>"",NOT(ISERROR(MATCH(C23,C24:C$26,0)))),"Business Line "&C23&" is not unique in the correlation matrix","OK")) -> OK | AB23: 17
U24: =IF($C24<>"",1,"") ->  | V24: =IF(V$6:AO$6="","",TRANSPOSE(U25:U43)) ->  | Z24: =IF(C24<>"",MDETERM(OFFSET($D$7,0,0,ROWS($Z$7:$Z24),ROWS($Z$7:$Z24))),"") ->  | AA24: =IF(AND(OR(freqC="normal",freqC="t"),LoB!E23="Yes",ISERROR(MATCH(LoB!C23,lineList,0))),"Business Line "&LoB!C23&" is not in the correlation matrix",IF(AND(C24<>"",NOT(ISERROR(MATCH(C24,C25:C$26,0)))),"Business Line "&C24&" is not unique in the correlation matrix","OK")) -> OK | AB24: 18
V25: =IF($C25<>"",1,"") ->  | W25: =IF(W$6:AP$6="","",TRANSPOSE(V26:V44)) ->  | Z25: =IF(C25<>"",MDETERM(OFFSET($D$7,0,0,ROWS($Z$7:$Z25),ROWS($Z$7:$Z25))),"") ->  | AA25: =IF(AND(OR(freqC="normal",freqC="t"),LoB!E24="Yes",ISERROR(MATCH(LoB!C24,lineList,0))),"Business Line "&LoB!C24&" is not in the correlation matrix",IF(AND(C25<>"",NOT(ISERROR(MATCH(C25,C26:C$26,0)))),"Business Line "&C25&" is not unique in the correlation matrix","OK")) -> OK | AB25: 19
W26: =IF($C26<>"",1,"") ->  | Z26: =IF(C26<>"",MDETERM(OFFSET($D$7,0,0,ROWS($Z$7:$Z26),ROWS($Z$7:$Z26))),"") ->  | AA26: =IF(AND(OR(freqC="normal",freqC="t"),LoB!E25="Yes",ISERROR(MATCH(LoB!C25,lineList,0))),"Business Line "&LoB!C25&" is not in the correlation matrix",IF(AND(C26<>"",NOT(ISERROR(MATCH(C26,C$26:C27,0)))),"Business Line "&C26&" is not unique in the correlation matrix","OK")) -> OK | AB26: 20

Sheet Function
A1: ID | B1: Included | C1: ZeroFunc | D1: F1 | E1: F2 | F1: F3
A2: Link Function | C2: identity | D2: identity | E2: exponential | F2: log
A3: Intercept | B3: Yes | C3: 0 | D3: 5 | E3: 1.05 | F3: 0.001
A4: Development Year | B4: Yes | C4: 0 | D4: 0.01 | E4: 0 | F4: 0.01
A5: Incurred Loss | B5: Yes | C5: 0 | D5: 0.005 | E5: 0 | F5: 0
A6: O/S Ratio | B6: Yes | C6: 0 | D6: 0.002 | E6: 0 | F6: 0
A7: Volatility | B7: Yes | C7: 0 | D7: 5 | E7: 0.01 | F7: 0.008
A8: reportedCount | B8: No | C8: 0 | D8: 0 | E8: 0 | F8: 0
A9: x2 | B9: No | C9: 0
A10: x3 | B10: No | C10: 0
A11: x4 | B11: No | C11: 0
A12: x5 | B12: No | C12: 0
A13: x6 | B13: No | C13: 0
A14: x7 | B14: No | C14: 0
A15: x8 | B15: No | C15: 0
A16: x9 | B16: No | C16: 0
A17: x10 | B17: No | C17: 0
A18: x11 | B18: No | C18: 0
A19: x12 | B19: No | C19: 0
A20: x13 | B20: No | C20: 0
A21: x14 | B21: No | C21: 0
A22: x15 | B22: No | C22: 0
A23: x16 | B23: No | C23: 0
A24: x17 | B24: No | C24: 0
A25: x18 | B25: No | C25: 0
A26: x19 | B26: No | C26: 0
A27: x20 | B27: No | C27: 0
A28: x21 | B28: No | C28: 0
A29: x22 | B29: No | C29: 0
A30: x23 | B30: No | C30: 0
A31: x24 | B31: No | C31: 0
A32: x25 | B32: No | C32: 0
A33: x26 | B33: No | C33: 0
A34: x27 | B34: No | C34: 0
A35: x28 | B35: No | C35: 0
A36: x29 | B36: No | C36: 0
A37: x30 | B37: No | C37: 0
A110: Intrim Step DO NOT CHANGE | C110: =IF(C1<>"",MAX($A110:B110)+1,"") -> 1 | D110: =IF(D1<>"",MAX($A110:C110)+1,"") -> 2 | E110: =IF(E1<>"",MAX($A110:D110)+1,"") -> 3 | F110: =IF(F1<>"",MAX($A110:E110)+1,"") -> 4 | G110: =IF(G1<>"",MAX($A110:F110)+1,"") ->  | H110: =IF(H1<>"",MAX($A110:G110)+1,"") ->  | I110: =IF(I1<>"",MAX($A110:H110)+1,"") ->  | J110: =IF(J1<>"",MAX($A110:I110)+1,"") ->  | K110: =IF(K1<>"",MAX($A110:J110)+1,"") ->  | L110: =IF(L1<>"",MAX($A110:K110)+1,"") ->  | M110: =IF(M1<>"",MAX($A110:L110)+1,"") ->  | N110: =IF(N1<>"",MAX($A110:M110)+1,"") ->  | O110: =IF(O1<>"",MAX($A110:N110)+1,"") ->  | P110: =IF(P1<>"",MAX($A110:O110)+1,"") ->  | Q110: =IF(Q1<>"",MAX($A110:P110)+1,"") ->  | R110: =IF(R1<>"",MAX($A110:Q110)+1,"") ->  | S110: =IF(S1<>"",MAX($A110:R110)+1,"") ->  | T110: =IF(T1<>"",MAX($A110:S110)+1,"") ->  | U110: =IF(U1<>"",MAX($A110:T110)+1,"") ->  | V110: =IF(V1<>"",MAX($A110:U110)+1,"") ->  | W110: =IF(W1<>"",MAX($A110:V110)+1,"") ->  | X110: =IF(X1<>"",MAX($A110:W110)+1,"") ->  | Y110: =IF(Y1<>"",MAX($A110:X110)+1,"") ->  | Z110: =IF(Z1<>"",MAX($A110:Y110)+1,"") ->  | AA110: =IF(AA1<>"",MAX($A110:Z110)+1,"") ->  | AB110: =IF(AB1<>"",MAX($A110:AA110)+1,"") ->  | AC110: =IF(AC1<>"",MAX($A110:AB110)+1,"") ->  | AD110: =IF(AD1<>"",MAX($A110:AC110)+1,"") ->  | AE110: =IF(AE1<>"",MAX($A110:AD110)+1,"") ->  | AF110: =IF(AF1<>"",MAX($A110:AE110)+1,"") ->  | AG110: =IF(AG1<>"",MAX($A110:AF110)+1,"") ->  | AH110: =IF(AH1<>"",MAX($A110:AG110)+1,"") ->  | AI110: =IF(AI1<>"",MAX($A110:AH110)+1,"") ->  | AJ110: =IF(AJ1<>"",MAX($A110:AI110)+1,"") ->  | AK110: =IF(AK1<>"",MAX($A110:AJ110)+1,"") ->  | AL110: =IF(AL1<>"",MAX($A110:AK110)+1,"") ->  | AM110: =IF(AM1<>"",MAX($A110:AL110)+1,"") ->  | AN110: =IF(AN1<>"",MAX($A110:AM110)+1,"") ->  | AO110: =IF(AO1<>"",MAX($A110:AN110)+1,"") ->  | AP110: =IF(AP1<>"",MAX($A110:AO110)+1,"") ->  | AQ110: =IF(AQ1<>"",MAX($A110:AP110)+1,"") ->  | AR110: =IF(AR1<>"",MAX($A110:AQ110)+1,"") ->  | AS110: =IF(AS1<>"",MAX($A110:AR110)+1,"") ->  | AT110: =IF(AT1<>"",MAX($A110:AS110)+1,"") ->  | AU110: =IF(AU1<>"",MAX($A110:AT110)+1,"") ->  | AV110: =IF(AV1<>"",MAX($A110:AU110)+1,"") ->  | AW110: =IF(AW1<>"",MAX($A110:AV110)+1,"") ->  | AX110: =IF(AX1<>"",MAX($A110:AW110)+1,"") ->  | AY110: =IF(AY1<>"",MAX($A110:AX110)+1,"") ->  | AZ110: =IF(AZ1<>"",MAX($A110:AY110)+1,"") ->  | BA110: =IF(BA1<>"",MAX($A110:AZ110)+1,"") ->  | BB110: =IF(BB1<>"",MAX($A110:BA110)+1,"") ->  | BC110: =IF(BC1<>"",MAX($A110:BB110)+1,"") ->  | BD110: =IF(BD1<>"",MAX($A110:BC110)+1,"") ->  | BE110: =IF(BE1<>"",MAX($A110:BD110)+1,"") ->  | BF110: =IF(BF1<>"",MAX($A110:BE110)+1,"") ->  | BG110: =IF(BG1<>"",MAX($A110:BF110)+1,"") ->  | BH110: =IF(BH1<>"",MAX($A110:BG110)+1,"") ->  | BI110: =IF(BI1<>"",MAX($A110:BH110)+1,"") ->  | BJ110: =IF(BJ1<>"",MAX($A110:BI110)+1,"") ->  | BK110: =IF(BK1<>"",MAX($A110:BJ110)+1,"") ->  | BL110: =IF(BL1<>"",MAX($A110:BK110)+1,"") ->  | BM110: =IF(BM1<>"",MAX($A110:BL110)+1,"") ->  | BN110: =IF(BN1<>"",MAX($A110:BM110)+1,"") ->  | BO110: =IF(BO1<>"",MAX($A110:BN110)+1,"") ->  | BP110: =IF(BP1<>"",MAX($A110:BO110)+1,"") ->  | BQ110: =IF(BQ1<>"",MAX($A110:BP110)+1,"") ->  | BR110: =IF(BR1<>"",MAX($A110:BQ110)+1,"") ->  | BS110: =IF(BS1<>"",MAX($A110:BR110)+1,"") ->  | BT110: =IF(BT1<>"",MAX($A110:BS110)+1,"") ->  | BU110: =IF(BU1<>"",MAX($A110:BT110)+1,"") ->  | BV110: =IF(BV1<>"",MAX($A110:BU110)+1,"") ->  | BW110: =IF(BW1<>"",MAX($A110:BV110)+1,"") ->  | BX110: =IF(BX1<>"",MAX($A110:BW110)+1,"") ->  | BY110: =IF(BY1<>"",MAX($A110:BX110)+1,"") ->  | BZ110: =IF(BZ1<>"",MAX($A110:BY110)+1,"") ->  | CA110: =IF(CA1<>"",MAX($A110:BZ110)+1,"") ->  | CB110: =IF(CB1<>"",MAX($A110:CA110)+1,"") ->  | CC110: =IF(CC1<>"",MAX($A110:CB110)+1,"") ->  | CD110: =IF(CD1<>"",MAX($A110:CC110)+1,"") ->  | CE110: =IF(CE1<>"",MAX($A110:CD110)+1,"") ->  | CF110: =IF(CF1<>"",MAX($A110:CE110)+1,"") ->  | CG110: =IF(CG1<>"",MAX($A110:CF110)+1,"") ->  | CH110: =IF(CH1<>"",MAX($A110:CG110)+1,"") ->  | CI110: =IF(CI1<>"",MAX($A110:CH110)+1,"") ->  | CJ110: =IF(CJ1<>"",MAX($A110:CI110)+1,"") ->  | CK110: =IF(CK1<>"",MAX($A110:CJ110)+1,"") ->  | CL110: =IF(CL1<>"",MAX($A110:CK110)+1,"") ->  | CM110: =IF(CM1<>"",MAX($A110:CL110)+1,"") ->  | CN110: =IF(CN1<>"",MAX($A110:CM110)+1,"") ->  | CO110: =IF(CO1<>"",MAX($A110:CN110)+1,"") ->  | CP110: =IF(CP1<>"",MAX($A110:CO110)+1,"") ->  | CQ110: =IF(CQ1<>"",MAX($A110:CP110)+1,"") ->  | CR110: =IF(CR1<>"",MAX($A110:CQ110)+1,"") ->  | CS110: =IF(CS1<>"",MAX($A110:CR110)+1,"") ->  | CT110: =IF(CT1<>"",MAX($A110:CS110)+1,"") ->  | CU110: =IF(CU1<>"",MAX($A110:CT110)+1,"") ->  | CV110: =IF(CV1<>"",MAX($A110:CU110)+1,"") ->  | CW110: =IF(CW1<>"",MAX($A110:CV110)+1,"") ->  | CX110: =IF(CX1<>"",MAX($A110:CW110)+1,"") ->  | CZ110: =IF(CZ1<>"",MAX($A110:CY110)+1,"") ->  | DA110: =IF(DA1<>"",MAX($A110:CZ110)+1,"") ->  | DB110: =IF(DB1<>"",MAX($A110:DA110)+1,"") ->  | DC110: =IF(DC1<>"",MAX($A110:DB110)+1,"") ->  | DD110: =IF(DD1<>"",MAX($A110:DC110)+1,"") ->  | DE110: =IF(DE1<>"",MAX($A110:DD110)+1,"") ->  | DF110: =IF(DF1<>"",MAX($A110:DE110)+1,"") ->  | DG110: =IF(DG1<>"",MAX($A110:DF110)+1,"") ->  | DH110: =IF(DH1<>"",MAX($A110:DG110)+1,"") ->  | DI110: =IF(DI1<>"",MAX($A110:DH110)+1,"") ->  | DJ110: =IF(DJ1<>"",MAX($A110:DI110)+1,"") ->  | DK110: =IF(DK1<>"",MAX($A110:DJ110)+1,"") ->  | DL110: =IF(DL1<>"",MAX($A110:DK110)+1,"") ->  | DM110: =IF(DM1<>"",MAX($A110:DL110)+1,"") ->  | DN110: =IF(DN1<>"",MAX($A110:DM110)+1,"") ->  | DO110: =IF(DO1<>"",MAX($A110:DN110)+1,"") ->  | DP110: =IF(DP1<>"",MAX($A110:DO110)+1,"") ->  | DQ110: =IF(DQ1<>"",MAX($A110:DP110)+1,"") ->  | DR110: =IF(DR1<>"",MAX($A110:DQ110)+1,"") ->  | DS110: =IF(DS1<>"",MAX($A110:DR110)+1,"") ->  | DT110: =IF(DT1<>"",MAX($A110:DS110)+1,"") ->  | DU110: =IF(DU1<>"",MAX($A110:DT110)+1,"") ->  | DV110: =IF(DV1<>"",MAX($A110:DU110)+1,"") ->  | DW110: =IF(DW1<>"",MAX($A110:DV110)+1,"") ->  | DX110: =IF(DX1<>"",MAX($A110:DW110)+1,"") ->  | DY110: =IF(DY1<>"",MAX($A110:DX110)+1,"") ->  | DZ110: =IF(DZ1<>"",MAX($A110:DY110)+1,"") ->  | EA110: =IF(EA1<>"",MAX($A110:DZ110)+1,"") ->  | EB110: =IF(EB1<>"",MAX($A110:EA110)+1,"") ->  | EC110: =IF(EC1<>"",MAX($A110:EB110)+1,"") ->  | ED110: =IF(ED1<>"",MAX($A110:EC110)+1,"") ->  | EE110: =IF(EE1<>"",MAX($A110:ED110)+1,"") ->  | EF110: =IF(EF1<>"",MAX($A110:EE110)+1,"") ->  | EG110: =IF(EG1<>"",MAX($A110:EF110)+1,"") ->  | EH110: =IF(EH1<>"",MAX($A110:EG110)+1,"") ->  | EI110: =IF(EI1<>"",MAX($A110:EH110)+1,"") ->  | EJ110: =IF(EJ1<>"",MAX($A110:EI110)+1,"") ->  | EK110: =IF(EK1<>"",MAX($A110:EJ110)+1,"") ->  | EL110: =IF(EL1<>"",MAX($A110:EK110)+1,"") ->  | EM110: =IF(EM1<>"",MAX($A110:EL110)+1,"") ->  | EN110: =IF(EN1<>"",MAX($A110:EM110)+1,"") ->  | EO110: =IF(EO1<>"",MAX($A110:EN110)+1,"") ->  | EP110: =IF(EP1<>"",MAX($A110:EO110)+1,"") ->  | EQ110: =IF(EQ1<>"",MAX($A110:EP110)+1,"") ->  | ER110: =IF(ER1<>"",MAX($A110:EQ110)+1,"") ->  | ES110: =IF(ES1<>"",MAX($A110:ER110)+1,"") ->  | ET110: =IF(ET1<>"",MAX($A110:ES110)+1,"") ->  | EU110: =IF(EU1<>"",MAX($A110:ET110)+1,"") ->  | EV110: =IF(EV1<>"",MAX($A110:EU110)+1,"") ->  | EW110: =IF(EW1<>"",MAX($A110:EV110)+1,"") ->  | EX110: =IF(EX1<>"",MAX($A110:EW110)+1,"") ->  | EY110: =IF(EY1<>"",MAX($A110:EX110)+1,"") ->  | EZ110: =IF(EZ1<>"",MAX($A110:EY110)+1,"") ->  | FA110: =IF(FA1<>"",MAX($A110:EZ110)+1,"") ->  | FB110: =IF(FB1<>"",MAX($A110:FA110)+1,"") ->  | FC110: =IF(FC1<>"",MAX($A110:FB110)+1,"") ->  | FD110: =IF(FD1<>"",MAX($A110:FC110)+1,"") ->  | FE110: =IF(FE1<>"",MAX($A110:FD110)+1,"") ->  | FF110: =IF(FF1<>"",MAX($A110:FE110)+1,"") ->  | FG110: =IF(FG1<>"",MAX($A110:FF110)+1,"") ->  | FH110: =IF(FH1<>"",MAX($A110:FG110)+1,"") ->  | FI110: =IF(FI1<>"",MAX($A110:FH110)+1,"") ->  | FJ110: =IF(FJ1<>"",MAX($A110:FI110)+1,"") ->  | FK110: =IF(FK1<>"",MAX($A110:FJ110)+1,"") ->  | FL110: =IF(FL1<>"",MAX($A110:FK110)+1,"") ->  | FM110: =IF(FM1<>"",MAX($A110:FL110)+1,"") ->  | FN110: =IF(FN1<>"",MAX($A110:FM110)+1,"") ->  | FO110: =IF(FO1<>"",MAX($A110:FN110)+1,"") ->  | FP110: =IF(FP1<>"",MAX($A110:FO110)+1,"") ->  | FQ110: =IF(FQ1<>"",MAX($A110:FP110)+1,"") ->  | FR110: =IF(FR1<>"",MAX($A110:FQ110)+1,"") ->  | FS110: =IF(FS1<>"",MAX($A110:FR110)+1,"") ->  | FT110: =IF(FT1<>"",MAX($A110:FS110)+1,"") ->  | FU110: =IF(FU1<>"",MAX($A110:FT110)+1,"") ->  | FV110: =IF(FV1<>"",MAX($A110:FU110)+1,"") ->  | FW110: =IF(FW1<>"",MAX($A110:FV110)+1,"") ->  | FX110: =IF(FX1<>"",MAX($A110:FW110)+1,"") ->  | FY110: =IF(FY1<>"",MAX($A110:FX110)+1,"") ->  | FZ110: =IF(FZ1<>"",MAX($A110:FY110)+1,"") ->  | GA110: =IF(GA1<>"",MAX($A110:FZ110)+1,"") ->  | GB110: =IF(GB1<>"",MAX($A110:GA110)+1,"") ->  | GC110: =IF(GC1<>"",MAX($A110:GB110)+1,"") ->  | GD110: =IF(GD1<>"",MAX($A110:GC110)+1,"") ->  | GE110: =IF(GE1<>"",MAX($A110:GD110)+1,"") ->  | GF110: =IF(GF1<>"",MAX($A110:GE110)+1,"") ->  | GG110: =IF(GG1<>"",MAX($A110:GF110)+1,"") ->  | GH110: =IF(GH1<>"",MAX($A110:GG110)+1,"") ->  | GI110: =IF(GI1<>"",MAX($A110:GH110)+1,"") ->  | GJ110: =IF(GJ1<>"",MAX($A110:GI110)+1,"") ->  | GK110: =IF(GK1<>"",MAX($A110:GJ110)+1,"") ->  | GL110: =IF(GL1<>"",MAX($A110:GK110)+1,"") ->  | GM110: =IF(GM1<>"",MAX($A110:GL110)+1,"") ->  | GN110: =IF(GN1<>"",MAX($A110:GM110)+1,"") ->  | GO110: =IF(GO1<>"",MAX($A110:GN110)+1,"") ->  | GP110: =IF(GP1<>"",MAX($A110:GO110)+1,"") ->  | GQ110: =IF(GQ1<>"",MAX($A110:GP110)+1,"") ->  | GR110: =IF(GR1<>"",MAX($A110:GQ110)+1,"") ->  | GS110: =IF(GS1<>"",MAX($A110:GR110)+1,"") -> 

Sheet FactorTable
A1: Development | B1: ZeroTable | D1: Level | F1: D1 | H1: D2 | J1: D3 | L1: AutoPDp0 | N1: HomeDwellingp0
A2: Distribution | B2: normal | D2: normal | F2: normal | H2: normal | J2: gamma | L2: normal | N2: normal
A3: Year | B3: =IF(B2="normal","mean",IF(B2="lognormal","meanlog",IF(B2="gamma","shape",""))) -> mean | C3: =IF(B2="normal","vol",IF(B2="lognormal","sdlog",IF(B2="gamma","scale",""))) -> vol | D3: =IF(D2="normal","mean",IF(D2="lognormal","meanlog",IF(D2="gamma","shape",""))) -> mean | E3: =IF(D2="normal","vol",IF(D2="lognormal","sdlog",IF(D2="gamma","scale",""))) -> vol | F3: =IF(F2="normal","mean",IF(F2="lognormal","meanlog",IF(F2="gamma","shape",""))) -> mean | G3: =IF(F2="normal","vol",IF(F2="lognormal","sdlog",IF(F2="gamma","scale",""))) -> vol | H3: =IF(H2="normal","mean",IF(H2="lognormal","meanlog",IF(H2="gamma","shape",""))) -> mean | I3: =IF(H2="normal","vol",IF(H2="lognormal","sdlog",IF(H2="gamma","scale",""))) -> vol | J3: =IF(J2="normal","mean",IF(J2="lognormal","meanlog",IF(J2="gamma","shape",""))) -> shape | K3: =IF(J2="normal","vol",IF(J2="lognormal","sdlog",IF(J2="gamma","scale",""))) -> scale | L3: mean | M3: =IF(L2="normal","vol",IF(L2="lognormal","sdlog",IF(L2="gamma","scale",""))) -> vol | N3: mean | O3: =IF(N2="normal","vol",IF(N2="lognormal","sdlog",IF(N2="gamma","scale",""))) -> vol | P3: =IF(P2="normal","mean",IF(P2="lognormal","meanlog",IF(P2="gamma","shape",""))) ->  | Q3: =IF(P2="normal","vol",IF(P2="lognormal","sdlog",IF(P2="gamma","scale",""))) ->  | R3: =IF(R2="normal","mean",IF(R2="lognormal","meanlog",IF(R2="gamma","shape",""))) ->  | S3: =IF(R2="normal","vol",IF(R2="lognormal","sdlog",IF(R2="gamma","scale",""))) ->  | T3: =IF(T2="normal","mean",IF(T2="lognormal","meanlog",IF(T2="gamma","shape",""))) ->  | U3: =IF(T2="normal","vol",IF(T2="lognormal","sdlog",IF(T2="gamma","scale",""))) ->  | V3: =IF(V2="normal","mean",IF(V2="lognormal","meanlog",IF(V2="gamma","shape",""))) ->  | W3: =IF(V2="normal","vol",IF(V2="lognormal","sdlog",IF(V2="gamma","scale",""))) ->  | X3: =IF(X2="normal","mean",IF(X2="lognormal","meanlog",IF(X2="gamma","shape",""))) ->  | Y3: =IF(X2="normal","vol",IF(X2="lognormal","sdlog",IF(X2="gamma","scale",""))) ->  | Z3: =IF(Z2="normal","mean",IF(Z2="lognormal","meanlog",IF(Z2="gamma","shape",""))) ->  | AA3: =IF(Z2="normal","vol",IF(Z2="lognormal","sdlog",IF(Z2="gamma","scale",""))) ->  | AB3: =IF(AB2="normal","mean",IF(AB2="lognormal","meanlog",IF(AB2="gamma","shape",""))) ->  | AC3: =IF(AB2="normal","vol",IF(AB2="lognormal","sdlog",IF(AB2="gamma","scale",""))) ->  | AD3: =IF(AD2="normal","mean",IF(AD2="lognormal","meanlog",IF(AD2="gamma","shape",""))) ->  | AE3: =IF(AD2="normal","vol",IF(AD2="lognormal","sdlog",IF(AD2="gamma","scale",""))) ->  | AF3: =IF(AF2="normal","mean",IF(AF2="lognormal","meanlog",IF(AF2="gamma","shape",""))) ->  | AG3: =IF(AF2="normal","vol",IF(AF2="lognormal","sdlog",IF(AF2="gamma","scale",""))) ->  | AH3: =IF(AH2="normal","mean",IF(AH2="lognormal","meanlog",IF(AH2="gamma","shape",""))) ->  | AI3: =IF(AH2="normal","vol",IF(AH2="lognormal","sdlog",IF(AH2="gamma","scale",""))) ->  | AJ3: =IF(AJ2="normal","mean",IF(AJ2="lognormal","meanlog",IF(AJ2="gamma","shape",""))) ->  | AK3: =IF(AJ2="normal","vol",IF(AJ2="lognormal","sdlog",IF(AJ2="gamma","scale",""))) ->  | AL3: =IF(AL2="normal","mean",IF(AL2="lognormal","meanlog",IF(AL2="gamma","shape",""))) ->  | AM3: =IF(AL2="normal","vol",IF(AL2="lognormal","sdlog",IF(AL2="gamma","scale",""))) ->  | AN3: =IF(AN2="normal","mean",IF(AN2="lognormal","meanlog",IF(AN2="gamma","shape",""))) ->  | AO3: =IF(AN2="normal","vol",IF(AN2="lognormal","sdlog",IF(AN2="gamma","scale",""))) ->  | AP3: =IF(AP2="normal","mean",IF(AP2="lognormal","meanlog",IF(AP2="gamma","shape",""))) ->  | AQ3: =IF(AP2="normal","vol",IF(AP2="lognormal","sdlog",IF(AP2="gamma","scale",""))) ->  | AR3: =IF(AR2="normal","mean",IF(AR2="lognormal","meanlog",IF(AR2="gamma","shape",""))) ->  | AS3: =IF(AR2="normal","vol",IF(AR2="lognormal","sdlog",IF(AR2="gamma","scale",""))) ->  | AT3: =IF(AT2="normal","mean",IF(AT2="lognormal","meanlog",IF(AT2="gamma","shape",""))) ->  | AU3: =IF(AT2="normal","vol",IF(AT2="lognormal","sdlog",IF(AT2="gamma","scale",""))) ->  | AV3: =IF(AV2="normal","mean",IF(AV2="lognormal","meanlog",IF(AV2="gamma","shape",""))) ->  | AW3: =IF(AV2="normal","vol",IF(AV2="lognormal","sdlog",IF(AV2="gamma","scale",""))) ->  | AX3: =IF(AX2="normal","mean",IF(AX2="lognormal","meanlog",IF(AX2="gamma","shape",""))) ->  | AY3: =IF(AX2="normal","vol",IF(AX2="lognormal","sdlog",IF(AX2="gamma","scale",""))) ->  | AZ3: =IF(AZ2="normal","mean",IF(AZ2="lognormal","meanlog",IF(AZ2="gamma","shape",""))) ->  | BA3: =IF(AZ2="normal","vol",IF(AZ2="lognormal","sdlog",IF(AZ2="gamma","scale",""))) ->  | BB3: =IF(BB2="normal","mean",IF(BB2="lognormal","meanlog",IF(BB2="gamma","shape",""))) ->  | BC3: =IF(BB2="normal","vol",IF(BB2="lognormal","sdlog",IF(BB2="gamma","scale",""))) ->  | BD3: =IF(BD2="normal","mean",IF(BD2="lognormal","meanlog",IF(BD2="gamma","shape",""))) ->  | BE3: =IF(BD2="normal","vol",IF(BD2="lognormal","sdlog",IF(BD2="gamma","scale",""))) ->  | BF3: =IF(BF2="normal","mean",IF(BF2="lognormal","meanlog",IF(BF2="gamma","shape",""))) ->  | BG3: =IF(BF2="normal","vol",IF(BF2="lognormal","sdlog",IF(BF2="gamma","scale",""))) ->  | BH3: =IF(BH2="normal","mean",IF(BH2="lognormal","meanlog",IF(BH2="gamma","shape",""))) ->  | BI3: =IF(BH2="normal","vol",IF(BH2="lognormal","sdlog",IF(BH2="gamma","scale",""))) ->  | BJ3: =IF(BJ2="normal","mean",IF(BJ2="lognormal","meanlog",IF(BJ2="gamma","shape",""))) ->  | BK3: =IF(BJ2="normal","vol",IF(BJ2="lognormal","sdlog",IF(BJ2="gamma","scale",""))) ->  | BL3: =IF(BL2="normal","mean",IF(BL2="lognormal","meanlog",IF(BL2="gamma","shape",""))) ->  | BM3: =IF(BL2="normal","vol",IF(BL2="lognormal","sdlog",IF(BL2="gamma","scale",""))) ->  | BN3: =IF(BN2="normal","mean",IF(BN2="lognormal","meanlog",IF(BN2="gamma","shape",""))) ->  | BO3: =IF(BN2="normal","vol",IF(BN2="lognormal","sdlog",IF(BN2="gamma","scale",""))) ->  | BP3: =IF(BP2="normal","mean",IF(BP2="lognormal","meanlog",IF(BP2="gamma","shape",""))) ->  | BQ3: =IF(BP2="normal","vol",IF(BP2="lognormal","sdlog",IF(BP2="gamma","scale",""))) ->  | BR3: =IF(BR2="normal","mean",IF(BR2="lognormal","meanlog",IF(BR2="gamma","shape",""))) ->  | BS3: =IF(BR2="normal","vol",IF(BR2="lognormal","sdlog",IF(BR2="gamma","scale",""))) ->  | BT3: =IF(BT2="normal","mean",IF(BT2="lognormal","meanlog",IF(BT2="gamma","shape",""))) ->  | BU3: =IF(BT2="normal","vol",IF(BT2="lognormal","sdlog",IF(BT2="gamma","scale",""))) ->  | BV3: =IF(BV2="normal","mean",IF(BV2="lognormal","meanlog",IF(BV2="gamma","shape",""))) ->  | BW3: =IF(BV2="normal","vol",IF(BV2="lognormal","sdlog",IF(BV2="gamma","scale",""))) ->  | BX3: =IF(BX2="normal","mean",IF(BX2="lognormal","meanlog",IF(BX2="gamma","shape",""))) ->  | BY3: =IF(BX2="normal","vol",IF(BX2="lognormal","sdlog",IF(BX2="gamma","scale",""))) ->  | BZ3: =IF(BZ2="normal","mean",IF(BZ2="lognormal","meanlog",IF(BZ2="gamma","shape",""))) ->  | CA3: =IF(BZ2="normal","vol",IF(BZ2="lognormal","sdlog",IF(BZ2="gamma","scale",""))) ->  | CB3: =IF(CB2="normal","mean",IF(CB2="lognormal","meanlog",IF(CB2="gamma","shape",""))) ->  | CC3: =IF(CB2="normal","vol",IF(CB2="lognormal","sdlog",IF(CB2="gamma","scale",""))) ->  | CD3: =IF(CD2="normal","mean",IF(CD2="lognormal","meanlog",IF(CD2="gamma","shape",""))) ->  | CE3: =IF(CD2="normal","vol",IF(CD2="lognormal","sdlog",IF(CD2="gamma","scale",""))) ->  | CF3: =IF(CF2="normal","mean",IF(CF2="lognormal","meanlog",IF(CF2="gamma","shape",""))) ->  | CG3: =IF(CF2="normal","vol",IF(CF2="lognormal","sdlog",IF(CF2="gamma","scale",""))) ->  | CH3: =IF(CH2="normal","mean",IF(CH2="lognormal","meanlog",IF(CH2="gamma","shape",""))) ->  | CI3: =IF(CH2="normal","vol",IF(CH2="lognormal","sdlog",IF(CH2="gamma","scale",""))) ->  | CJ3: =IF(CJ2="normal","mean",IF(CJ2="lognormal","meanlog",IF(CJ2="gamma","shape",""))) ->  | CK3: =IF(CJ2="normal","vol",IF(CJ2="lognormal","sdlog",IF(CJ2="gamma","scale",""))) ->  | CL3: =IF(CL2="normal","mean",IF(CL2="lognormal","meanlog",IF(CL2="gamma","shape",""))) ->  | CM3: =IF(CL2="normal","vol",IF(CL2="lognormal","sdlog",IF(CL2="gamma","scale",""))) ->  | CN3: =IF(CN2="normal","mean",IF(CN2="lognormal","meanlog",IF(CN2="gamma","shape",""))) ->  | CO3: =IF(CN2="normal","vol",IF(CN2="lognormal","sdlog",IF(CN2="gamma","scale",""))) ->  | CP3: =IF(CP2="normal","mean",IF(CP2="lognormal","meanlog",IF(CP2="gamma","shape",""))) ->  | CQ3: =IF(CP2="normal","vol",IF(CP2="lognormal","sdlog",IF(CP2="gamma","scale",""))) ->  | CR3: =IF(CR2="normal","mean",IF(CR2="lognormal","meanlog",IF(CR2="gamma","shape",""))) ->  | CS3: =IF(CR2="normal","vol",IF(CR2="lognormal","sdlog",IF(CR2="gamma","scale",""))) ->  | CT3: =IF(CT2="normal","mean",IF(CT2="lognormal","meanlog",IF(CT2="gamma","shape",""))) ->  | CU3: =IF(CT2="normal","vol",IF(CT2="lognormal","sdlog",IF(CT2="gamma","scale",""))) ->  | CV3: =IF(CV2="normal","mean",IF(CV2="lognormal","meanlog",IF(CV2="gamma","shape",""))) ->  | CW3: =IF(CV2="normal","vol",IF(CV2="lognormal","sdlog",IF(CV2="gamma","scale",""))) ->  | CX3: =IF(CX2="normal","mean",IF(CX2="lognormal","meanlog",IF(CX2="gamma","shape",""))) ->  | CY3: =IF(CX2="normal","vol",IF(CX2="lognormal","sdlog",IF(CX2="gamma","scale",""))) ->  | CZ3: =IF(CZ2="normal","mean",IF(CZ2="lognormal","meanlog",IF(CZ2="gamma","shape",""))) ->  | DA3: =IF(CZ2="normal","vol",IF(CZ2="lognormal","sdlog",IF(CZ2="gamma","scale",""))) ->  | DB3: =IF(DB2="normal","mean",IF(DB2="lognormal","meanlog",IF(DB2="gamma","shape",""))) ->  | DC3: =IF(DB2="normal","vol",IF(DB2="lognormal","sdlog",IF(DB2="gamma","scale",""))) ->  | DD3: =IF(DD2="normal","mean",IF(DD2="lognormal","meanlog",IF(DD2="gamma","shape",""))) ->  | DE3: =IF(DD2="normal","vol",IF(DD2="lognormal","sdlog",IF(DD2="gamma","scale",""))) ->  | DF3: =IF(DF2="normal","mean",IF(DF2="lognormal","meanlog",IF(DF2="gamma","shape",""))) ->  | DG3: =IF(DF2="normal","vol",IF(DF2="lognormal","sdlog",IF(DF2="gamma","scale",""))) ->  | DH3: =IF(DH2="normal","mean",IF(DH2="lognormal","meanlog",IF(DH2="gamma","shape",""))) ->  | DI3: =IF(DH2="normal","vol",IF(DH2="lognormal","sdlog",IF(DH2="gamma","scale",""))) ->  | DJ3: =IF(DJ2="normal","mean",IF(DJ2="lognormal","meanlog",IF(DJ2="gamma","shape",""))) ->  | DK3: =IF(DJ2="normal","vol",IF(DJ2="lognormal","sdlog",IF(DJ2="gamma","scale",""))) ->  | DL3: =IF(DL2="normal","mean",IF(DL2="lognormal","meanlog",IF(DL2="gamma","shape",""))) ->  | DM3: =IF(DL2="normal","vol",IF(DL2="lognormal","sdlog",IF(DL2="gamma","scale",""))) ->  | DN3: =IF(DN2="normal","mean",IF(DN2="lognormal","meanlog",IF(DN2="gamma","shape",""))) ->  | DO3: =IF(DN2="normal","vol",IF(DN2="lognormal","sdlog",IF(DN2="gamma","scale",""))) ->  | DP3: =IF(DP2="normal","mean",IF(DP2="lognormal","meanlog",IF(DP2="gamma","shape",""))) ->  | DQ3: =IF(DP2="normal","vol",IF(DP2="lognormal","sdlog",IF(DP2="gamma","scale",""))) ->  | DR3: =IF(DR2="normal","mean",IF(DR2="lognormal","meanlog",IF(DR2="gamma","shape",""))) ->  | DS3: =IF(DR2="normal","vol",IF(DR2="lognormal","sdlog",IF(DR2="gamma","scale",""))) ->  | DT3: =IF(DT2="normal","mean",IF(DT2="lognormal","meanlog",IF(DT2="gamma","shape",""))) ->  | DU3: =IF(DT2="normal","vol",IF(DT2="lognormal","sdlog",IF(DT2="gamma","scale",""))) ->  | DV3: =IF(DV2="normal","mean",IF(DV2="lognormal","meanlog",IF(DV2="gamma","shape",""))) ->  | DW3: =IF(DV2="normal","vol",IF(DV2="lognormal","sdlog",IF(DV2="gamma","scale",""))) ->  | DX3: =IF(DX2="normal","mean",IF(DX2="lognormal","meanlog",IF(DX2="gamma","shape",""))) ->  | DY3: =IF(DX2="normal","vol",IF(DX2="lognormal","sdlog",IF(DX2="gamma","scale",""))) ->  | DZ3: =IF(DZ2="normal","mean",IF(DZ2="lognormal","meanlog",IF(DZ2="gamma","shape",""))) ->  | EA3: =IF(DZ2="normal","vol",IF(DZ2="lognormal","sdlog",IF(DZ2="gamma","scale",""))) ->  | EB3: =IF(EB2="normal","mean",IF(EB2="lognormal","meanlog",IF(EB2="gamma","shape",""))) ->  | EC3: =IF(EB2="normal","vol",IF(EB2="lognormal","sdlog",IF(EB2="gamma","scale",""))) ->  | ED3: =IF(ED2="normal","mean",IF(ED2="lognormal","meanlog",IF(ED2="gamma","shape",""))) ->  | EE3: =IF(ED2="normal","vol",IF(ED2="lognormal","sdlog",IF(ED2="gamma","scale",""))) ->  | EF3: =IF(EF2="normal","mean",IF(EF2="lognormal","meanlog",IF(EF2="gamma","shape",""))) ->  | EG3: =IF(EF2="normal","vol",IF(EF2="lognormal","sdlog",IF(EF2="gamma","scale",""))) ->  | EH3: =IF(EH2="normal","mean",IF(EH2="lognormal","meanlog",IF(EH2="gamma","shape",""))) ->  | EI3: =IF(EH2="normal","vol",IF(EH2="lognormal","sdlog",IF(EH2="gamma","scale",""))) ->  | EJ3: =IF(EJ2="normal","mean",IF(EJ2="lognormal","meanlog",IF(EJ2="gamma","shape",""))) ->  | EK3: =IF(EJ2="normal","vol",IF(EJ2="lognormal","sdlog",IF(EJ2="gamma","scale",""))) ->  | EL3: =IF(EL2="normal","mean",IF(EL2="lognormal","meanlog",IF(EL2="gamma","shape",""))) ->  | EM3: =IF(EL2="normal","vol",IF(EL2="lognormal","sdlog",IF(EL2="gamma","scale",""))) ->  | EN3: =IF(EN2="normal","mean",IF(EN2="lognormal","meanlog",IF(EN2="gamma","shape",""))) ->  | EO3: =IF(EN2="normal","vol",IF(EN2="lognormal","sdlog",IF(EN2="gamma","scale",""))) ->  | EP3: =IF(EP2="normal","mean",IF(EP2="lognormal","meanlog",IF(EP2="gamma","shape",""))) ->  | EQ3: =IF(EP2="normal","vol",IF(EP2="lognormal","sdlog",IF(EP2="gamma","scale",""))) ->  | ER3: =IF(ER2="normal","mean",IF(ER2="lognormal","meanlog",IF(ER2="gamma","shape",""))) ->  | ES3: =IF(ER2="normal","vol",IF(ER2="lognormal","sdlog",IF(ER2="gamma","scale",""))) ->  | ET3: =IF(ET2="normal","mean",IF(ET2="lognormal","meanlog",IF(ET2="gamma","shape",""))) ->  | EU3: =IF(ET2="normal","vol",IF(ET2="lognormal","sdlog",IF(ET2="gamma","scale",""))) ->  | EV3: =IF(EV2="normal","mean",IF(EV2="lognormal","meanlog",IF(EV2="gamma","shape",""))) ->  | EW3: =IF(EV2="normal","vol",IF(EV2="lognormal","sdlog",IF(EV2="gamma","scale",""))) ->  | EX3: =IF(EX2="normal","mean",IF(EX2="lognormal","meanlog",IF(EX2="gamma","shape",""))) ->  | EY3: =IF(EX2="normal","vol",IF(EX2="lognormal","sdlog",IF(EX2="gamma","scale",""))) ->  | EZ3: =IF(EZ2="normal","mean",IF(EZ2="lognormal","meanlog",IF(EZ2="gamma","shape",""))) ->  | FA3: =IF(EZ2="normal","vol",IF(EZ2="lognormal","sdlog",IF(EZ2="gamma","scale",""))) ->  | FB3: =IF(FB2="normal","mean",IF(FB2="lognormal","meanlog",IF(FB2="gamma","shape",""))) ->  | FC3: =IF(FB2="normal","vol",IF(FB2="lognormal","sdlog",IF(FB2="gamma","scale",""))) ->  | FD3: =IF(FD2="normal","mean",IF(FD2="lognormal","meanlog",IF(FD2="gamma","shape",""))) ->  | FE3: =IF(FD2="normal","vol",IF(FD2="lognormal","sdlog",IF(FD2="gamma","scale",""))) ->  | FF3: =IF(FF2="normal","mean",IF(FF2="lognormal","meanlog",IF(FF2="gamma","shape",""))) ->  | FG3: =IF(FF2="normal","vol",IF(FF2="lognormal","sdlog",IF(FF2="gamma","scale",""))) ->  | FH3: =IF(FH2="normal","mean",IF(FH2="lognormal","meanlog",IF(FH2="gamma","shape",""))) ->  | FI3: =IF(FH2="normal","vol",IF(FH2="lognormal","sdlog",IF(FH2="gamma","scale",""))) ->  | FJ3: =IF(FJ2="normal","mean",IF(FJ2="lognormal","meanlog",IF(FJ2="gamma","shape",""))) ->  | FK3: =IF(FJ2="normal","vol",IF(FJ2="lognormal","sdlog",IF(FJ2="gamma","scale",""))) ->  | FL3: =IF(FL2="normal","mean",IF(FL2="lognormal","meanlog",IF(FL2="gamma","shape",""))) ->  | FM3: =IF(FL2="normal","vol",IF(FL2="lognormal","sdlog",IF(FL2="gamma","scale",""))) ->  | FN3: =IF(FN2="normal","mean",IF(FN2="lognormal","meanlog",IF(FN2="gamma","shape",""))) ->  | FO3: =IF(FN2="normal","vol",IF(FN2="lognormal","sdlog",IF(FN2="gamma","scale",""))) ->  | FP3: =IF(FP2="normal","mean",IF(FP2="lognormal","meanlog",IF(FP2="gamma","shape",""))) ->  | FQ3: =IF(FP2="normal","vol",IF(FP2="lognormal","sdlog",IF(FP2="gamma","scale",""))) ->  | FR3: =IF(FR2="normal","mean",IF(FR2="lognormal","meanlog",IF(FR2="gamma","shape",""))) ->  | FS3: =IF(FR2="normal","vol",IF(FR2="lognormal","sdlog",IF(FR2="gamma","scale",""))) ->  | FT3: =IF(FT2="normal","mean",IF(FT2="lognormal","meanlog",IF(FT2="gamma","shape",""))) ->  | FU3: =IF(FT2="normal","vol",IF(FT2="lognormal","sdlog",IF(FT2="gamma","scale",""))) ->  | FV3: =IF(FV2="normal","mean",IF(FV2="lognormal","meanlog",IF(FV2="gamma","shape",""))) ->  | FW3: =IF(FV2="normal","vol",IF(FV2="lognormal","sdlog",IF(FV2="gamma","scale",""))) ->  | FX3: =IF(FX2="normal","mean",IF(FX2="lognormal","meanlog",IF(FX2="gamma","shape",""))) ->  | FY3: =IF(FX2="normal","vol",IF(FX2="lognormal","sdlog",IF(FX2="gamma","scale",""))) ->  | FZ3: =IF(FZ2="normal","mean",IF(FZ2="lognormal","meanlog",IF(FZ2="gamma","shape",""))) ->  | GA3: =IF(FZ2="normal","vol",IF(FZ2="lognormal","sdlog",IF(FZ2="gamma","scale",""))) ->  | GB3: =IF(GB2="normal","mean",IF(GB2="lognormal","meanlog",IF(GB2="gamma","shape",""))) ->  | GC3: =IF(GB2="normal","vol",IF(GB2="lognormal","sdlog",IF(GB2="gamma","scale",""))) ->  | GD3: =IF(GD2="normal","mean",IF(GD2="lognormal","meanlog",IF(GD2="gamma","shape",""))) ->  | GE3: =IF(GD2="normal","vol",IF(GD2="lognormal","sdlog",IF(GD2="gamma","scale",""))) ->  | GF3: =IF(GF2="normal","mean",IF(GF2="lognormal","meanlog",IF(GF2="gamma","shape",""))) ->  | GG3: =IF(GF2="normal","vol",IF(GF2="lognormal","sdlog",IF(GF2="gamma","scale",""))) ->  | GH3: =IF(GH2="normal","mean",IF(GH2="lognormal","meanlog",IF(GH2="gamma","shape",""))) ->  | GI3: =IF(GH2="normal","vol",IF(GH2="lognormal","sdlog",IF(GH2="gamma","scale",""))) ->  | GJ3: =IF(GJ2="normal","mean",IF(GJ2="lognormal","meanlog",IF(GJ2="gamma","shape",""))) ->  | GK3: =IF(GJ2="normal","vol",IF(GJ2="lognormal","sdlog",IF(GJ2="gamma","scale",""))) ->  | GL3: =IF(GL2="normal","mean",IF(GL2="lognormal","meanlog",IF(GL2="gamma","shape",""))) ->  | GM3: =IF(GL2="normal","vol",IF(GL2="lognormal","sdlog",IF(GL2="gamma","scale",""))) ->  | GN3: =IF(GN2="normal","mean",IF(GN2="lognormal","meanlog",IF(GN2="gamma","shape",""))) ->  | GO3: =IF(GN2="normal","vol",IF(GN2="lognormal","sdlog",IF(GN2="gamma","scale",""))) ->  | GP3: =IF(GP2="normal","mean",IF(GP2="lognormal","meanlog",IF(GP2="gamma","shape",""))) ->  | GQ3: =IF(GP2="normal","vol",IF(GP2="lognormal","sdlog",IF(GP2="gamma","scale",""))) ->  | GR3: =IF(GR2="normal","mean",IF(GR2="lognormal","meanlog",IF(GR2="gamma","shape",""))) ->  | GS3: =IF(GR2="normal","vol",IF(GR2="lognormal","sdlog",IF(GR2="gamma","scale",""))) -> 
A4: 1 | B4: 0 | C4: 0 | D4: 1 | E4: 0 | F4: 1.2 | G4: 0.05128114625 | H4: 0.02 | I4: 0 | J4: 1.05 | K4: 0.09475662599 | L4: 0.10502693 | M4: 0 | N4: 0 | O4: 0
A5: 2 | B5: 0 | C5: 0 | D5: 1 | E5: 0 | F5: 1.15 | G5: 0.04153381703 | H5: 0.015 | I5: 0 | J5: 1.1 | K5: 0.08393372534 | L5: 0.09802605076 | M5: 0 | N5: 0.2931937173 | O5: 0
A6: 3 | B6: 0 | C6: 0 | D6: 1 | E6: 0 | F6: 1.1 | G6: 0.04144119756 | H6: 0.01 | I6: 0 | J6: 1.05 | K6: 0.07036625352 | L6: 0.1045415596 | M6: 0 | N6: 0.2985594238 | O6: 0
A7: 4 | B7: 0 | C7: 0 | D7: 1 | E7: 0 | F7: 1.05 | G7: 0.09277545045 | H7: 0.005 | I7: 0 | J7: 1.06 | K7: 0.07819933841 | L7: 0.09905020353 | M7: 0 | N7: 0.2956521739 | O7: 0
A8: 5 | B8: 0 | C8: 0 | D8: 1 | E8: 0 | F8: 1 | G8: 0 | H8: 0 | I8: 0 | J8: 1.07 | K8: 0.02478504807 | L8: 0.08372093023 | M8: 0
A9: 6 | J9: 1.08 | K9: 0.07907040804 | L9: 0.04761904762 | M9: 0
A10: 7 | J10: 1.09 | K10: 0.01346748333 | L10: 0.0625 | M10: 0
A11: 8 | J11: 1.06 | K11: 0.05329232085 | L11: 0 | M11: 0
A12: 9 | J12: 1 | K12: 0 | L12: 0 | M12: 0
A13: 10
A14: 11
A15: 12
A16: 13
A17: 14
A18: 15
A19: 16
A20: 17
A21: 18
A22: 19
A23: 20
A24: 21
A25: 22
A26: 23
A27: 24
A28: 25
A29: 26
A30: 27
A31: 28
A32: 29
A33: 30
A34: 31
B110: DO NOT CHANGE
A111: Intrim Step | B111: =IF(B1<>"",MAX($A111:A111,Function!$C$110:$CX$110)+1,"") -> 5 | C111: =IF(C1<>"",MAX($A111:B111)+1,"") ->  | D111: =IF(D1<>"",MAX($A111:C111)+1,"") -> 6 | E111: =IF(E1<>"",MAX($A111:D111)+1,"") ->  | F111: =IF(F1<>"",MAX($A111:E111)+1,"") -> 7 | G111: =IF(G1<>"",MAX($A111:F111)+1,"") ->  | H111: =IF(H1<>"",MAX($A111:G111)+1,"") -> 8 | I111: =IF(I1<>"",MAX($A111:H111)+1,"") ->  | J111: =IF(J1<>"",MAX($A111:I111)+1,"") -> 9 | K111: =IF(K1<>"",MAX($A111:J111)+1,"") ->  | L111: =IF(L1<>"",MAX($A111:K111)+1,"") -> 10 | M111: =IF(M1<>"",MAX($A111:L111)+1,"") ->  | N111: =IF(N1<>"",MAX($A111:M111)+1,"") -> 11 | O111: =IF(O1<>"",MAX($A111:N111)+1,"") ->  | P111: =IF(P1<>"",MAX($A111:O111)+1,"") ->  | Q111: =IF(Q1<>"",MAX($A111:P111)+1,"") ->  | R111: =IF(R1<>"",MAX($A111:Q111)+1,"") ->  | S111: =IF(S1<>"",MAX($A111:R111)+1,"") ->  | T111: =IF(T1<>"",MAX($A111:S111)+1,"") ->  | U111: =IF(U1<>"",MAX($A111:T111)+1,"") ->  | V111: =IF(V1<>"",MAX($A111:U111)+1,"") ->  | W111: =IF(W1<>"",MAX($A111:V111)+1,"") ->  | X111: =IF(X1<>"",MAX($A111:W111)+1,"") ->  | Y111: =IF(Y1<>"",MAX($A111:X111)+1,"") ->  | Z111: =IF(Z1<>"",MAX($A111:Y111)+1,"") ->  | AA111: =IF(AA1<>"",MAX($A111:Z111)+1,"") ->  | AB111: =IF(AB1<>"",MAX($A111:AA111)+1,"") ->  | AC111: =IF(AC1<>"",MAX($A111:AB111)+1,"") ->  | AD111: =IF(AD1<>"",MAX($A111:AC111)+1,"") ->  | AE111: =IF(AE1<>"",MAX($A111:AD111)+1,"") ->  | AF111: =IF(AF1<>"",MAX($A111:AE111)+1,"") ->  | AG111: =IF(AG1<>"",MAX($A111:AF111)+1,"") ->  | AH111: =IF(AH1<>"",MAX($A111:AG111)+1,"") ->  | AI111: =IF(AI1<>"",MAX($A111:AH111)+1,"") ->  | AJ111: =IF(AJ1<>"",MAX($A111:AI111)+1,"") ->  | AK111: =IF(AK1<>"",MAX($A111:AJ111)+1,"") ->  | AL111: =IF(AL1<>"",MAX($A111:AK111)+1,"") ->  | AM111: =IF(AM1<>"",MAX($A111:AL111)+1,"") ->  | AN111: =IF(AN1<>"",MAX($A111:AM111)+1,"") ->  | AO111: =IF(AO1<>"",MAX($A111:AN111)+1,"") ->  | AP111: =IF(AP1<>"",MAX($A111:AO111)+1,"") ->  | AQ111: =IF(AQ1<>"",MAX($A111:AP111)+1,"") ->  | AR111: =IF(AR1<>"",MAX($A111:AQ111)+1,"") ->  | AS111: =IF(AS1<>"",MAX($A111:AR111)+1,"") ->  | AT111: =IF(AT1<>"",MAX($A111:AS111)+1,"") ->  | AU111: =IF(AU1<>"",MAX($A111:AT111)+1,"") ->  | AV111: =IF(AV1<>"",MAX($A111:AU111)+1,"") ->  | AW111: =IF(AW1<>"",MAX($A111:AV111)+1,"") ->  | AX111: =IF(AX1<>"",MAX($A111:AW111)+1,"") ->  | AY111: =IF(AY1<>"",MAX($A111:AX111)+1,"") ->  | AZ111: =IF(AZ1<>"",MAX($A111:AY111)+1,"") ->  | BA111: =IF(BA1<>"",MAX($A111:AZ111)+1,"") ->  | BB111: =IF(BB1<>"",MAX($A111:BA111)+1,"") ->  | BC111: =IF(BC1<>"",MAX($A111:BB111)+1,"") ->  | BD111: =IF(BD1<>"",MAX($A111:BC111)+1,"") ->  | BE111: =IF(BE1<>"",MAX($A111:BD111)+1,"") ->  | BF111: =IF(BF1<>"",MAX($A111:BE111)+1,"") ->  | BG111: =IF(BG1<>"",MAX($A111:BF111)+1,"") ->  | BH111: =IF(BH1<>"",MAX($A111:BG111)+1,"") ->  | BI111: =IF(BI1<>"",MAX($A111:BH111)+1,"") ->  | BJ111: =IF(BJ1<>"",MAX($A111:BI111)+1,"") ->  | BK111: =IF(BK1<>"",MAX($A111:BJ111)+1,"") ->  | BL111: =IF(BL1<>"",MAX($A111:BK111)+1,"") ->  | BM111: =IF(BM1<>"",MAX($A111:BL111)+1,"") ->  | BN111: =IF(BN1<>"",MAX($A111:BM111)+1,"") ->  | BO111: =IF(BO1<>"",MAX($A111:BN111)+1,"") ->  | BP111: =IF(BP1<>"",MAX($A111:BO111)+1,"") ->  | BQ111: =IF(BQ1<>"",MAX($A111:BP111)+1,"") ->  | BR111: =IF(BR1<>"",MAX($A111:BQ111)+1,"") ->  | BS111: =IF(BS1<>"",MAX($A111:BR111)+1,"") ->  | BT111: =IF(BT1<>"",MAX($A111:BS111)+1,"") ->  | BU111: =IF(BU1<>"",MAX($A111:BT111)+1,"") ->  | BV111: =IF(BV1<>"",MAX($A111:BU111)+1,"") ->  | BW111: =IF(BW1<>"",MAX($A111:BV111)+1,"") ->  | BX111: =IF(BX1<>"",MAX($A111:BW111)+1,"") ->  | BY111: =IF(BY1<>"",MAX($A111:BX111)+1,"") ->  | BZ111: =IF(BZ1<>"",MAX($A111:BY111)+1,"") ->  | CA111: =IF(CA1<>"",MAX($A111:BZ111)+1,"") ->  | CB111: =IF(CB1<>"",MAX($A111:CA111)+1,"") ->  | CC111: =IF(CC1<>"",MAX($A111:CB111)+1,"") ->  | CD111: =IF(CD1<>"",MAX($A111:CC111)+1,"") ->  | CE111: =IF(CE1<>"",MAX($A111:CD111)+1,"") ->  | CF111: =IF(CF1<>"",MAX($A111:CE111)+1,"") ->  | CG111: =IF(CG1<>"",MAX($A111:CF111)+1,"") ->  | CH111: =IF(CH1<>"",MAX($A111:CG111)+1,"") ->  | CI111: =IF(CI1<>"",MAX($A111:CH111)+1,"") ->  | CJ111: =IF(CJ1<>"",MAX($A111:CI111)+1,"") ->  | CK111: =IF(CK1<>"",MAX($A111:CJ111)+1,"") ->  | CL111: =IF(CL1<>"",MAX($A111:CK111)+1,"") ->  | CM111: =IF(CM1<>"",MAX($A111:CL111)+1,"") ->  | CN111: =IF(CN1<>"",MAX($A111:CM111)+1,"") ->  | CO111: =IF(CO1<>"",MAX($A111:CN111)+1,"") ->  | CP111: =IF(CP1<>"",MAX($A111:CO111)+1,"") ->  | CQ111: =IF(CQ1<>"",MAX($A111:CP111)+1,"") ->  | CR111: =IF(CR1<>"",MAX($A111:CQ111)+1,"") ->  | CS111: =IF(CS1<>"",MAX($A111:CR111)+1,"") ->  | CT111: =IF(CT1<>"",MAX($A111:CS111)+1,"") ->  | CU111: =IF(CU1<>"",MAX($A111:CT111)+1,"") ->  | CV111: =IF(CV1<>"",MAX($A111:CU111)+1,"") ->  | CW111: =IF(CW1<>"",MAX($A111:CV111)+1,"") ->  | CX111: =IF(CX1<>"",MAX($A111:CW111)+1,"") ->  | CY111: =IF(CY1<>"",MAX($A111:CX111)+1,"") ->  | CZ111: =IF(CZ1<>"",MAX($A111:CY111)+1,"") ->  | DA111: =IF(DA1<>"",MAX($A111:CZ111)+1,"") ->  | DB111: =IF(DB1<>"",MAX($A111:DA111)+1,"") ->  | DC111: =IF(DC1<>"",MAX($A111:DB111)+1,"") ->  | DD111: =IF(DD1<>"",MAX($A111:DC111)+1,"") ->  | DE111: =IF(DE1<>"",MAX($A111:DD111)+1,"") ->  | DF111: =IF(DF1<>"",MAX($A111:DE111)+1,"") ->  | DG111: =IF(DG1<>"",MAX($A111:DF111)+1,"") ->  | DH111: =IF(DH1<>"",MAX($A111:DG111)+1,"") ->  | DI111: =IF(DI1<>"",MAX($A111:DH111)+1,"") ->  | DJ111: =IF(DJ1<>"",MAX($A111:DI111)+1,"") ->  | DK111: =IF(DK1<>"",MAX($A111:DJ111)+1,"") ->  | DL111: =IF(DL1<>"",MAX($A111:DK111)+1,"") ->  | DM111: =IF(DM1<>"",MAX($A111:DL111)+1,"") ->  | DN111: =IF(DN1<>"",MAX($A111:DM111)+1,"") ->  | DO111: =IF(DO1<>"",MAX($A111:DN111)+1,"") ->  | DP111: =IF(DP1<>"",MAX($A111:DO111)+1,"") ->  | DQ111: =IF(DQ1<>"",MAX($A111:DP111)+1,"") ->  | DR111: =IF(DR1<>"",MAX($A111:DQ111)+1,"") ->  | DS111: =IF(DS1<>"",MAX($A111:DR111)+1,"") ->  | DT111: =IF(DT1<>"",MAX($A111:DS111)+1,"") ->  | DU111: =IF(DU1<>"",MAX($A111:DT111)+1,"") ->  | DV111: =IF(DV1<>"",MAX($A111:DU111)+1,"") ->  | DW111: =IF(DW1<>"",MAX($A111:DV111)+1,"") ->  | DX111: =IF(DX1<>"",MAX($A111:DW111)+1,"") ->  | DY111: =IF(DY1<>"",MAX($A111:DX111)+1,"") ->  | DZ111: =IF(DZ1<>"",MAX($A111:DY111)+1,"") ->  | EA111: =IF(EA1<>"",MAX($A111:DZ111)+1,"") ->  | EB111: =IF(EB1<>"",MAX($A111:EA111)+1,"") ->  | EC111: =IF(EC1<>"",MAX($A111:EB111)+1,"") ->  | ED111: =IF(ED1<>"",MAX($A111:EC111)+1,"") ->  | EE111: =IF(EE1<>"",MAX($A111:ED111)+1,"") ->  | EF111: =IF(EF1<>"",MAX($A111:EE111)+1,"") ->  | EG111: =IF(EG1<>"",MAX($A111:EF111)+1,"") ->  | EH111: =IF(EH1<>"",MAX($A111:EG111)+1,"") ->  | EI111: =IF(EI1<>"",MAX($A111:EH111)+1,"") ->  | EJ111: =IF(EJ1<>"",MAX($A111:EI111)+1,"") ->  | EK111: =IF(EK1<>"",MAX($A111:EJ111)+1,"") ->  | EL111: =IF(EL1<>"",MAX($A111:EK111)+1,"") ->  | EM111: =IF(EM1<>"",MAX($A111:EL111)+1,"") ->  | EN111: =IF(EN1<>"",MAX($A111:EM111)+1,"") ->  | EO111: =IF(EO1<>"",MAX($A111:EN111)+1,"") ->  | EP111: =IF(EP1<>"",MAX($A111:EO111)+1,"") ->  | EQ111: =IF(EQ1<>"",MAX($A111:EP111)+1,"") ->  | ER111: =IF(ER1<>"",MAX($A111:EQ111)+1,"") ->  | ES111: =IF(ES1<>"",MAX($A111:ER111)+1,"") ->  | ET111: =IF(ET1<>"",MAX($A111:ES111)+1,"") ->  | EU111: =IF(EU1<>"",MAX($A111:ET111)+1,"") ->  | EV111: =IF(EV1<>"",MAX($A111:EU111)+1,"") ->  | EW111: =IF(EW1<>"",MAX($A111:EV111)+1,"") ->  | EX111: =IF(EX1<>"",MAX($A111:EW111)+1,"") ->  | EY111: =IF(EY1<>"",MAX($A111:EX111)+1,"") ->  | EZ111: =IF(EZ1<>"",MAX($A111:EY111)+1,"") ->  | FA111: =IF(FA1<>"",MAX($A111:EZ111)+1,"") ->  | FB111: =IF(FB1<>"",MAX($A111:FA111)+1,"") ->  | FC111: =IF(FC1<>"",MAX($A111:FB111)+1,"") ->  | FD111: =IF(FD1<>"",MAX($A111:FC111)+1,"") ->  | FE111: =IF(FE1<>"",MAX($A111:FD111)+1,"") ->  | FF111: =IF(FF1<>"",MAX($A111:FE111)+1,"") ->  | FG111: =IF(FG1<>"",MAX($A111:FF111)+1,"") ->  | FH111: =IF(FH1<>"",MAX($A111:FG111)+1,"") ->  | FI111: =IF(FI1<>"",MAX($A111:FH111)+1,"") ->  | FJ111: =IF(FJ1<>"",MAX($A111:FI111)+1,"") ->  | FK111: =IF(FK1<>"",MAX($A111:FJ111)+1,"") ->  | FL111: =IF(FL1<>"",MAX($A111:FK111)+1,"") ->  | FM111: =IF(FM1<>"",MAX($A111:FL111)+1,"") ->  | FN111: =IF(FN1<>"",MAX($A111:FM111)+1,"") ->  | FO111: =IF(FO1<>"",MAX($A111:FN111)+1,"") ->  | FP111: =IF(FP1<>"",MAX($A111:FO111)+1,"") ->  | FQ111: =IF(FQ1<>"",MAX($A111:FP111)+1,"") ->  | FR111: =IF(FR1<>"",MAX($A111:FQ111)+1,"") ->  | FS111: =IF(FS1<>"",MAX($A111:FR111)+1,"") ->  | FT111: =IF(FT1<>"",MAX($A111:FS111)+1,"") ->  | FU111: =IF(FU1<>"",MAX($A111:FT111)+1,"") ->  | FV111: =IF(FV1<>"",MAX($A111:FU111)+1,"") ->  | FW111: =IF(FW1<>"",MAX($A111:FV111)+1,"") ->  | FX111: =IF(FX1<>"",MAX($A111:FW111)+1,"") ->  | FY111: =IF(FY1<>"",MAX($A111:FX111)+1,"") ->  | FZ111: =IF(FZ1<>"",MAX($A111:FY111)+1,"") ->  | GA111: =IF(GA1<>"",MAX($A111:FZ111)+1,"") ->  | GB111: =IF(GB1<>"",MAX($A111:GA111)+1,"") ->  | GC111: =IF(GC1<>"",MAX($A111:GB111)+1,"") ->  | GD111: =IF(GD1<>"",MAX($A111:GC111)+1,"") ->  | GE111: =IF(GE1<>"",MAX($A111:GD111)+1,"") ->  | GF111: =IF(GF1<>"",MAX($A111:GE111)+1,"") ->  | GG111: =IF(GG1<>"",MAX($A111:GF111)+1,"") ->  | GH111: =IF(GH1<>"",MAX($A111:GG111)+1,"") ->  | GI111: =IF(GI1<>"",MAX($A111:GH111)+1,"") ->  | GJ111: =IF(GJ1<>"",MAX($A111:GI111)+1,"") ->  | GK111: =IF(GK1<>"",MAX($A111:GJ111)+1,"") ->  | GL111: =IF(GL1<>"",MAX($A111:GK111)+1,"") ->  | GM111: =IF(GM1<>"",MAX($A111:GL111)+1,"") ->  | GN111: =IF(GN1<>"",MAX($A111:GM111)+1,"") ->  | GO111: =IF(GO1<>"",MAX($A111:GN111)+1,"") ->  | GP111: =IF(GP1<>"",MAX($A111:GO111)+1,"") ->  | GQ111: =IF(GQ1<>"",MAX($A111:GP111)+1,"") ->  | GR111: =IF(GR1<>"",MAX($A111:GQ111)+1,"") ->  | GS111: =IF(GS1<>"",MAX($A111:GR111)+1,"") -> 

Sheet Index
A1: Month | B1: Flat | C1: I2 | D1: I3
A2: Start Date | B2: 2000-01-01 | C2: 2007-01-01 | D2: 2007-01-01
A3: 1 | B3: 1 | C3: 1 | D3: 1
A4: 2 | B4: 1 | C4: =C3*1.006434 -> 1.006434 | D4: 1
A5: 3 | B5: 1 | C5: =C4*1.006434 -> 1.012909396 | D5: 1
A6: 4 | B6: 1 | C6: 1.019426455 | D6: 1
A7: 5 | B7: 1 | C7: 1.025985445 | D7: 1
A8: 6 | B8: 1 | C8: 1.032586636 | D8: 1
A9: 7 | B9: 1 | C9: 1.039230298 | D9: 1
A10: 8 | B10: 1 | C10: 1.045916706 | D10: 1
A11: 9 | B11: 1 | C11: =C10*1.006434 -> 1.052646134 | D11: 1
A12: 10 | B12: 1 | C12: 1.059418859 | D12: 1
A13: 11 | B13: 1 | C13: 1.06623516 | D13: 1
A14: 12 | B14: 1 | C14: 1.073095317 | D14: 1
A15: 13 | B15: 1 | C15: 1.079999612 | D15: 1
A16: 14 | B16: 1 | C16: 1.08694833 | D16: 1
A17: 15 | B17: 1 | C17: 1.093941755 | D17: 1
A18: 16 | B18: 1 | C18: 1.100980177 | D18: 1
A19: 17 | B19: 1 | C19: 1.108063883 | D19: 1
A20: 18 | B20: 1 | C20: 1.115193166 | D20: 1
A21: 19 | B21: 1 | C21: 1.122368319 | D21: 1
A22: 20 | B22: 1 | C22: 1.129589637 | D22: 1
A23: 21 | B23: 1 | C23: 1.136857416 | D23: 1
A24: 22 | B24: 1 | C24: 1.144171957 | D24: 1
A25: 23 | B25: 1 | C25: 1.151533559 | D25: 1
A26: 24 | B26: 1 | C26: 1.158942526 | D26: 1
A27: 25 | B27: 1 | C27: 1.166399163 | D27: 1
A28: 26 | B28: 1 | C28: 1.173903775 | D28: 1
A29: 27 | B29: 1 | C29: 1.181456672 | D29: 1
A30: 28 | B30: 1 | C30: 1.189058164 | D30: 1
A31: 29 | B31: 1 | C31: 1.196708564 | D31: 1
A32: 30 | B32: 1 | C32: 1.204408187 | D32: 1
A33: 31 | B33: 1 | C33: 1.212157349 | D33: 1
A34: 32 | B34: 1 | C34: 1.21995637 | D34: 1
A35: 33 | B35: 1 | C35: 1.227805569 | D35: 1
A36: 34 | B36: 1 | C36: 1.23570527 | D36: 1
A37: 35 | B37: 1 | C37: 1.243655798 | D37: 1
A38: 36 | B38: 1 | C38: 1.251657479 | D38: 1
A39: 37 | B39: 1 | C39: 1.259710643 | D39: 1
A40: 38 | B40: 1 | C40: 1.267815622 | D40: 1
A41: 39 | B41: 1 | C41: 1.275972747 | D41: 1
A42: 40 | B42: 1 | C42: 1.284182356 | D42: 1
A43: 41 | B43: 1 | C43: 1.292444785 | D43: 1
A44: 42 | B44: 1 | C44: 1.300760375 | D44: 1
A45: 43 | B45: 1 | C45: 1.309129467 | D45: 1
A46: 44 | B46: 1 | C46: 1.317552406 | D46: 1
A47: 45 | B47: 1 | C47: 1.326029538 | D47: 1
A48: 46 | B48: 1 | C48: 1.334561212 | D48: 1
A49: 47 | B49: 1 | C49: 1.343147779 | D49: 1
A50: 48 | B50: 1 | C50: 1.351789592 | D50: 1
A51: 49 | B51: 1 | C51: 1.360487006 | D51: 1
A52: 50 | B52: 1 | C52: 1.36924038 | D52: 1
A53: 51 | B53: 1 | C53: 1.378050072 | D53: 1
A54: 52 | B54: 1 | C54: 1.386916446 | D54: 1
A55: 53 | B55: 1 | C55: 1.395839867 | D55: 1
A56: 54 | B56: 1 | C56: 1.404820701 | D56: 1
A57: 55 | B57: 1 | C57: 1.413859317 | D57: 1
A58: 56 | B58: 1 | C58: 1.422956088 | D58: 1
A59: 57 | B59: 1 | C59: 1.432111387 | D59: 1
A60: 58 | B60: 1 | C60: 1.441325592 | D60: 1
A61: 59 | B61: 1 | C61: 1.450599081 | D61: 1
A62: 60 | B62: 1 | C62: 1.459932235 | D62: 1
A63: 61 | B63: 1 | C63: 1.469325439 | D63: 1
A64: 62 | B64: 1 | C64: 1.478779079 | D64: 1
A65: 63 | B65: 1 | C65: 1.488293544 | D65: 1
A66: 64 | B66: 1 | C66: 1.497869224 | D66: 1
A67: 65 | B67: 1 | C67: 1.507506515 | D67: 1
A68: 66 | B68: 1 | C68: 1.517205812 | D68: 1
A69: 67 | B69: 1 | C69: =C68*1.006434 -> 1.526967514 | D69: 1
A70: 68 | B70: 1 | C70: 1.536792023 | D70: 1
A71: 69 | B71: 1 | C71: 1.546679743 | D71: 1
A72: 70 | B72: 1 | C72: 1.55663108 | D72: 1
A73: 71 | B73: 1 | C73: 1.566646445 | D73: 1
A74: 72 | B74: 1 | C74: 1.576726248 | D74: 1
A75: 73 | B75: 1 | C75: 1.586870905 | D75: 1
A76: 74 | B76: 1 | C76: 1.597080832 | D76: 1
A77: 75 | B77: 1 | C77: 1.60735645 | D77: 1
A78: 76 | B78: 1 | C78: 1.617698182 | D78: 1
A79: 77 | B79: 1 | C79: 1.628106452 | D79: 1
A80: 78 | B80: 1 | C80: 1.638581689 | D80: 1
A81: 79 | B81: 1 | C81: 1.649124323 | D81: 1
A82: 80 | B82: 1 | C82: 1.659734789 | D82: 1
A83: 81 | B83: 1 | C83: 1.670413523 | D83: 1
A84: 82 | B84: 1 | C84: 1.681160963 | D84: 1
A85: 83 | B85: 1 | C85: 1.691977553 | D85: 1
A86: 84 | B86: 1 | C86: 1.702863737 | D86: 1
A87: 85 | B87: 1 | C87: 1.713819962 | D87: 1
A88: 86 | B88: 1 | C88: 1.724846679 | D88: 1
A89: 87 | B89: 1 | C89: 1.735944343 | D89: 1
A90: 88 | B90: 1 | C90: 1.747113409 | D90: 1
A91: 89 | B91: 1 | C91: 1.758354337 | D91: 1
A92: 90 | B92: 1 | C92: 1.769667588 | D92: 1
A93: 91 | B93: 1 | C93: 1.78105363 | D93: 1
A94: 92 | B94: 1 | C94: 1.792512929 | D94: 1
A95: 93 | B95: 1 | C95: 1.804045957 | D95: 1
A96: 94 | B96: 1 | C96: 1.815653189 | D96: 1
A97: 95 | B97: 1 | C97: 1.827335101 | D97: 1
A98: 96 | B98: 1 | C98: 1.839092175 | D98: 1
A99: 97 | B99: 1 | C99: 1.850924894 | D99: 1
A100: 98 | B100: 1 | C100: 1.862833745 | D100: 1
A101: 99 | B101: 1 | C101: 1.874819217 | D101: 1
A102: 100 | B102: 1 | C102: 1.886881804 | D102: 1
A103: 101 | B103: 1 | C103: 1.899022002 | D103: 1
A104: 102 | B104: 1 | C104: 1.911240309 | D104: 1
A105: 103 | B105: 1 | C105: 1.923537229 | D105: 1
A106: 104 | B106: 1 | C106: 1.935913268 | D106: 1
A107: 105 | B107: 1 | C107: 1.948368934 | D107: 1
A108: 106 | B108: 1 | C108: 1.96090474 | D108: 1
A109: 107 | B109: 1 | C109: 1.973521201 | D109: 1
A110: 108 | B110: 1 | C110: 1.986218836 | D110: 1
A111: 109 | B111: 1 | C111: 1.998998168 | D111: 1
A112: 110 | B112: 1 | C112: 2.011859722 | D112: 1
A113: 111 | B113: 1 | C113: 2.024804028 | D113: 1
A114: 112 | B114: 1 | C114: 2.037831617 | D114: 1
A115: 113 | B115: 1 | C115: 2.050943026 | D115: 1
A116: 114 | B116: 1 | C116: 2.064138793 | D116: 1
A117: 115 | B117: 1 | C117: 2.077419462 | D117: 1
A118: 116 | B118: 1 | C118: 2.090785579 | D118: 1
A119: 117 | B119: 1 | C119: 2.104237693 | D119: 1
A120: 118 | B120: 1 | C120: 2.117776359 | D120: 1
A121: 119 | B121: 1 | C121: 2.131402132 | D121: 1
A122: 120 | B122: 1 | C122: 2.145115573 | D122: 1
A123: 121 | B123: 1 | C123: 2.158917247 | D123: =D122*(1.03)^(1/12) -> 1.00246627
A124: 122 | B124: 1 | C124: 2.17280772 | D124: =D123*(1.03)^(1/12) -> 1.004938622
A125: 123 | B125: 1 | C125: 2.186787565 | D125: 1.007417072
A126: 124 | B126: 1 | C126: 2.200857356 | D126: 1.009901634
A127: 125 | B127: 1 | C127: 2.215017672 | D127: 1.012392324
A128: 126 | B128: 1 | C128: 2.229269096 | D128: 1.014889157
A129: 127 | B129: 1 | C129: 2.243612213 | D129: 1.017392147
A130: 128 | B130: 1 | C130: 2.258047614 | D130: 1.01990131
A131: 129 | B131: 1 | C131: 2.272575893 | D131: 1.022416662
A132: 130 | B132: 1 | C132: 2.287197646 | D132: 1.024938218
A133: 131 | B133: 1 | C133: =C132*1.006434 -> 2.301913476 | D133: 1.027465992
A134: 132 | B134: 1 | C134: 2.316723987 | D134: 1.03
A135: 133 | B135: 1 | C135: 2.331629789 | D135: 1.032540258
A136: 134 | B136: 1 | C136: 2.346631495 | D136: 1.035086781
A137: 135 | B137: 1 | C137: 2.361729722 | D137: 1.037639584
A138: 136 | B138: 1 | C138: 2.376925091 | D138: 1.040198683
A139: 137 | B139: 1 | C139: 2.392218227 | D139: 1.042764094
A140: 138 | B140: 1 | C140: 2.407609759 | D140: 1.045335831
A141: 139 | B141: 1 | C141: 2.423100321 | D141: 1.047913911
A142: 140 | B142: 1 | C142: 2.438690548 | D142: 1.05049835
A143: 141 | B143: 1 | C143: 2.454381083 | D143: 1.053089162
A144: 142 | B144: 1 | C144: 2.470172571 | D144: 1.055686364
A145: 143 | B145: 1 | C145: 2.486065661 | D145: 1.058289971
A146: 144 | B146: 1 | C146: 2.502061008 | D146: 1.0609
A147: 145 | B147: 1 | C147: 2.518159268 | D147: 1.063516466
A148: 146 | B148: 1 | C148: 2.534361105 | D148: 1.066139384
A149: 147 | B149: 1 | C149: 2.550667184 | D149: 1.068768771
A150: 148 | B150: 1 | C150: 2.567078177 | D150: 1.071404644
A151: 149 | B151: 1 | C151: 2.583594758 | D151: 1.074047016
A152: 150 | B152: 1 | C152: 2.600217607 | D152: 1.076695906
A153: 151 | B153: 1 | C153: 2.616947407 | D153: 1.079351329
A154: 152 | B154: 1 | C154: 2.633784846 | D154: 1.0820133
A155: 153 | B155: 1 | C155: 2.650730618 | D155: 1.084681837
A156: 154 | B156: 1 | C156: 2.667785419 | D156: 1.087356955
A157: 155 | B157: 1 | C157: 2.68494995 | D157: 1.090038671
A158: 156 | B158: 1 | C158: 2.702224918 | D158: 1.092727
A159: 157 | B159: 1 | C159: 2.719611033 | D159: 1.09542196
A160: 158 | B160: 1 | C160: 2.737109011 | D160: 1.098123566
A161: 159 | B161: 1 | C161: 2.75471957 | D161: 1.100831835
A162: 160 | B162: 1 | C162: 2.772443436 | D162: 1.103546783
A163: 161 | B163: 1 | C163: 2.790281337 | D163: 1.106268427
A164: 162 | B164: 1 | C164: 2.808234007 | D164: 1.108996783
A165: 163 | B165: 1 | C165: 2.826302185 | D165: 1.111731869
A166: 164 | B166: 1 | C166: 2.844486613 | D166: 1.114473699
A167: 165 | B167: 1 | C167: 2.86278804 | D167: 1.117222292
A168: 166 | B168: 1 | C168: 2.881207218 | D168: 1.119977664
A169: 167 | B169: 1 | C169: 2.899744905 | D169: 1.122739831
A170: 168 | B170: 1 | C170: 2.918401864 | D170: 1.12550881
A171: 169 | B171: 1 | C171: 2.937178862 | D171: 1.128284618
A172: 170 | B172: 1 | C172: 2.95607667 | D172: 1.131067273
A173: 171 | B173: 1 | C173: 2.975096068 | D173: 1.13385679
A174: 172 | B174: 1 | C174: 2.994237836 | D174: 1.136653186
A175: 173 | B175: 1 | C175: 3.013502762 | D175: 1.13945648
A176: 174 | B176: 1 | C176: 3.032891639 | D176: 1.142266687
A177: 175 | B177: 1 | C177: 3.052405264 | D177: 1.145083825
A178: 176 | B178: 1 | C178: 3.072044439 | D178: 1.14790791
A179: 177 | B179: 1 | C179: 3.091809973 | D179: 1.150738961
A180: 178 | B180: 1 | C180: 3.111702678 | D180: 1.153576994
A181: 179 | B181: 1 | C181: 3.131723373 | D181: 1.156422026
A182: 180 | B182: 1 | C182: 3.151872882 | D182: 1.159274074
A183: 181 | B183: 1 | C183: 3.172152032 | D183: 1.162133157
A184: 182 | B184: 1 | C184: 3.192561658 | D184: 1.164999291
A185: 183 | B185: 1 | C185: 3.2131026 | D185: 1.167872493
A186: 184 | B186: 1 | C186: 3.233775702 | D186: 1.170752782
A187: 185 | B187: 1 | C187: 3.254581814 | D187: 1.173640174
A188: 186 | B188: 1 | C188: 3.275521794 | D188: =D187*(1.03)^(1/12) -> 1.176534687
A189: 187 | B189: 1 | C189: 3.296596501 | D189: 1.179436339
A190: 188 | B190: 1 | C190: 3.317806803 | D190: 1.182345148
A191: 189 | B191: 1 | C191: 3.339153572 | D191: 1.18526113
A192: 190 | B192: 1 | C192: 3.360637686 | D192: 1.188184303
A193: 191 | B193: 1 | C193: 3.382260029 | D193: 1.191114686
A194: 192 | B194: 1 | C194: 3.40402149 | D194: 1.194052297
A195: 193 | B195: 1 | C195: 3.425922964 | D195: 1.196997152
A196: 194 | B196: 1 | C196: 3.447965353 | D196: 1.19994927
A197: 195 | B197: 1 | C197: =C196*1.006434 -> 3.470149562 | D197: 1.202908668
A198: 196 | B198: 1 | C198: 3.492476504 | D198: 1.205875365
A199: 197 | B199: 1 | C199: 3.514947098 | D199: 1.208849379
A200: 198 | B200: 1 | C200: 3.537562267 | D200: 1.211830728
... 164 more rows

Sheet Empirical (hidden)
A1: Probability | B1: AutoPDDeductibleemp | C1: AutoPDLimitemp | D1: HomeDwellingDeductibleemp | E1: HomeDwellingLimitemp
A2: 0.1 | B2: 1000 | C2: 8000 | D2: 20000 | E2: 200000
A3: 0.2 | B3: 1000 | C3: 8000 | D3: 20000 | E3: 200000
A4: 0.3 | B4: 1000 | C4: 8000 | D4: 20000 | E4: 200000
A5: 0.4 | B5: 1000 | C5: 8000 | D5: 20000 | E5: 200000
A6: 0.5 | B6: 1000 | C6: 8000 | D6: 20000 | E6: 200000
A7: 0.6 | B7: 1000 | C7: 8000 | D7: 20000 | E7: 200000
A8: 0.7 | B8: 1000 | C8: 8000 | D8: 20000 | E8: 200000
A9: 0.8 | B9: 1000 | C9: 8000 | D9: 20000 | E9: 200000
A10: 0.9 | B10: 1000 | C10: 8000 | D10: 20000 | E10: 200000
A11: 1 | B11: 1000 | C11: 8000 | D11: 20000 | E11: 200000
A12: 1.1 | B12: 1000 | C12: 8000 | D12: 20000 | E12: 200000
A13: 1.2 | B13: 1000 | C13: 8000 | D13: 20000 | E13: 200000
A14: 1.3 | B14: 1000 | C14: 8000 | D14: 20000 | E14: 200000
A15: 1.4 | B15: 1000 | C15: 8000 | D15: 20000 | E15: 200000
A16: 1.5 | B16: 1000 | C16: 8000 | D16: 20000 | E16: 200000
A17: 1.6 | B17: 1000 | C17: 8000 | D17: 20000 | E17: 200000
A18: 1.7 | B18: 1000 | C18: 8000 | D18: 20000 | E18: 200000
A19: 1.8 | B19: 1000 | C19: 8000 | D19: 20000 | E19: 200000
A20: 1.9 | B20: 1000 | C20: 8000 | D20: 20000 | E20: 200000
A21: 2 | B21: 1000 | C21: 8000 | D21: 20000 | E21: 200000
A22: 2.1 | B22: 1000 | C22: 8000 | D22: 20000 | E22: 200000
A23: 2.2 | B23: 1000 | C23: 8000 | D23: 20000 | E23: 200000
A24: 2.3 | B24: 1000 | C24: 8000 | D24: 20000 | E24: 200000
A25: 2.4 | B25: 1000 | C25: 8000 | D25: 20000 | E25: 200000
A26: 2.5 | B26: 1000 | C26: 8000 | D26: 20000 | E26: 200000
A27: 2.6 | B27: 1000 | C27: 8000 | D27: 20000 | E27: 200000
A28: 2.7 | B28: 1000 | C28: 8000 | D28: 20000 | E28: 200000
A29: 2.8 | B29: 1000 | C29: 8000 | D29: 20000 | E29: 200000
A30: 2.9 | B30: 1000 | C30: 8000 | D30: 20000 | E30: 200000
A31: 3 | B31: 1000 | C31: 8000 | D31: 20000 | E31: 200000
A32: 3.1 | B32: 1000 | C32: 8000 | D32: 20000 | E32: 200000
A33: 3.2 | B33: 1000 | C33: 8000 | D33: 20000 | E33: 200000
A34: 3.3 | B34: 1000 | C34: 8000 | D34: 20000 | E34: 200000
A35: 3.4 | B35: 1000 | C35: 8000 | D35: 20000 | E35: 200000
A36: 3.5 | B36: 1000 | C36: 8000 | D36: 20000 | E36: 200000
A37: 3.6 | B37: 1000 | C37: 8000 | D37: 20000 | E37: 200000
A38: 3.7 | B38: 1000 | C38: 8000 | D38: 20000 | E38: 200000
A39: 3.8 | B39: 1000 | C39: 8000 | D39: 20000 | E39: 200000
A40: 3.9 | B40: 1000 | C40: 8000 | D40: 20000 | E40: 200000
A41: 4 | B41: 1000 | C41: 8000 | D41: 20000 | E41: 200000
A42: 4.1 | B42: 1000 | C42: 8000 | D42: 20000 | E42: 200000
A43: 4.2 | B43: 1000 | C43: 8000 | D43: 20000 | E43: 200000
A44: 4.3 | B44: 1000 | C44: 8000 | D44: 20000 | E44: 200000
A45: 4.4 | B45: 1000 | C45: 8000 | D45: 20000 | E45: 200000
A46: 4.5 | B46: 1000 | C46: 8000 | D46: 20000 | E46: 200000
A47: 4.6 | B47: 1000 | C47: 8000 | D47: 20000 | E47: 200000
A48: 4.7 | B48: 1000 | C48: 8000 | D48: 20000 | E48: 200000
A49: 4.8 | B49: 1000 | C49: 8000 | D49: 20000 | E49: 200000
A50: 4.9 | B50: 1000 | C50: 8000 | D50: 20000 | E50: 200000
A51: 5 | B51: 1000 | C51: 8000 | D51: 20000 | E51: 200000
A52: 5.1 | B52: 1000 | C52: 8000 | D52: 20000 | E52: 200000
A53: 5.2 | B53: 1000 | C53: 8000 | D53: 20000 | E53: 200000
A54: 5.3 | B54: 1000 | C54: 8000 | D54: 20000 | E54: 200000
A55: 5.4 | B55: 1000 | C55: 8000 | D55: 20000 | E55: 200000
A56: 5.5 | B56: 1000 | C56: 8000 | D56: 20000 | E56: 200000
A57: 5.6 | B57: 1000 | C57: 8000 | D57: 20000 | E57: 200000
A58: 5.7 | B58: 1000 | C58: 8000 | D58: 20000 | E58: 200000
A59: 5.8 | B59: 1000 | C59: 8000 | D59: 20000 | E59: 200000
A60: 5.9 | B60: 1000 | C60: 8000 | D60: 20000 | E60: 200000
A61: 6 | B61: 1000 | C61: 8000 | D61: 20000 | E61: 200000
A62: 6.1 | B62: 1000 | C62: 8000 | D62: 20000 | E62: 200000
A63: 6.2 | B63: 1000 | C63: 8000 | D63: 20000 | E63: 200000
A64: 6.3 | B64: 1000 | C64: 8000 | D64: 20000 | E64: 200000
A65: 6.4 | B65: 1000 | C65: 8000 | D65: 20000 | E65: 200000
A66: 6.5 | B66: 1000 | C66: 8000 | D66: 20000 | E66: 200000
A67: 6.6 | B67: 1000 | C67: 8000 | D67: 20000 | E67: 200000
A68: 6.7 | B68: 1000 | C68: 8000 | D68: 20000 | E68: 200000
A69: 6.8 | B69: 1000 | C69: 8000 | D69: 20000 | E69: 200000
A70: 6.9 | B70: 1000 | C70: 8000 | D70: 20000 | E70: 200000
A71: 7 | B71: 1000 | C71: 8000 | D71: 20000 | E71: 200000
A72: 7.1 | B72: 1000 | C72: 8000 | D72: 20000 | E72: 200000
A73: 7.2 | B73: 1000 | C73: 8000 | D73: 20000 | E73: 200000
A74: 7.3 | B74: 1000 | C74: 8000 | D74: 20000 | E74: 200000
A75: 7.4 | B75: 1000 | C75: 8000 | D75: 20000 | E75: 200000
A76: 7.5 | B76: 1000 | C76: 8000 | D76: 20000 | E76: 200000
A77: 7.6 | B77: 1000 | C77: 8000 | D77: 20000 | E77: 200000
A78: 7.7 | B78: 1000 | C78: 8000 | D78: 20000 | E78: 200000
A79: 7.8 | B79: 1000 | C79: 8000 | D79: 20000 | E79: 200000
A80: 7.9 | B80: 1000 | C80: 8000 | D80: 20000 | E80: 200000
A81: 8 | B81: 1000 | C81: 8000 | D81: 20000 | E81: 200000
A82: 8.1 | B82: 1000 | C82: 8000 | D82: 20000 | E82: 200000
A83: 8.2 | B83: 1000 | C83: 8000 | D83: 20000 | E83: 200000
A84: 8.3 | B84: 1000 | C84: 8000 | D84: 20000 | E84: 200000
A85: 8.4 | B85: 1000 | C85: 8000 | D85: 20000 | E85: 200000
A86: 8.5 | B86: 1000 | C86: 8000 | D86: 20000 | E86: 200000
A87: 8.6 | B87: 1000 | C87: 8000 | D87: 20000 | E87: 200000
A88: 8.7 | B88: 1000 | C88: 8000 | D88: 20000 | E88: 200000
A89: 8.8 | B89: 1000 | C89: 8000 | D89: 20000 | E89: 200000
A90: 8.9 | B90: 1000 | C90: 8000 | D90: 20000 | E90: 200000
A91: 9 | B91: 1000 | C91: 8000 | D91: 20000 | E91: 200000
A92: 9.1 | B92: 1000 | C92: 8000 | D92: 20000 | E92: 200000
A93: 9.2 | B93: 1000 | C93: 8000 | D93: 20000 | E93: 200000
A94: 9.3 | B94: 1000 | C94: 8000 | D94: 20000 | E94: 200000
A95: 9.4 | B95: 1000 | C95: 8000 | D95: 20000 | E95: 200000
A96: 9.5 | B96: 1000 | C96: 8000 | D96: 20000 | E96: 200000
A97: 9.6 | B97: 1000 | C97: 8000 | D97: 20000 | E97: 200000
A98: 9.7 | B98: 1000 | C98: 8000 | D98: 20000 | E98: 200000
A99: 9.8 | B99: 1000 | C99: 8000 | D99: 20000 | E99: 200000
A100: 9.9 | B100: 1000 | C100: 8000 | D100: 20000 | E100: 200000
A101: 10 | B101: 1000 | C101: 8000 | D101: 20000 | E101: 200000
A102: 10.1 | B102: 1000 | C102: 8000 | D102: 20000 | E102: 200000
A103: 10.2 | B103: 1000 | C103: 8000 | D103: 20000 | E103: 200000
A104: 10.3 | B104: 1000 | C104: 8000 | D104: 20000 | E104: 200000
A105: 10.4 | B105: 1000 | C105: 8000 | D105: 20000 | E105: 200000
A106: 10.5 | B106: 1000 | C106: 8000 | D106: 20000 | E106: 200000
A107: 10.6 | B107: 1000 | C107: 8000 | D107: 20000 | E107: 200000
A108: 10.7 | B108: 1000 | C108: 8000 | D108: 20000 | E108: 200000
A109: 10.8 | B109: 1000 | C109: 8000 | D109: 20000 | E109: 200000
A110: 10.9 | B110: 1000 | C110: 8000 | D110: 20000 | E110: 200000
A111: 11 | B111: 1000 | C111: 8000 | D111: 20000 | E111: 200000
A112: 11.1 | B112: 1000 | C112: 8000 | D112: 20000 | E112: 200000
A113: 11.2 | B113: 1000 | C113: 8000 | D113: 20000 | E113: 200000
A114: 11.3 | B114: 1000 | C114: 8000 | D114: 20000 | E114: 200000
A115: 11.4 | B115: 1000 | C115: 8000 | D115: 20000 | E115: 200000
A116: 11.5 | B116: 1000 | C116: 8000 | D116: 20000 | E116: 200000
A117: 11.6 | B117: 1000 | C117: 8000 | D117: 20000 | E117: 200000
A118: 11.7 | B118: 1000 | C118: 8000 | D118: 20000 | E118: 200000
A119: 11.8 | B119: 1000 | C119: 8000 | D119: 20000 | E119: 200000
A120: 11.9 | B120: 1000 | C120: 8000 | D120: 20000 | E120: 200000
A121: 12 | B121: 1000 | C121: 8000 | D121: 20000 | E121: 200000
A122: 12.1 | B122: 1000 | C122: 8000 | D122: 20000 | E122: 200000
A123: 12.2 | B123: 1000 | C123: 8000 | D123: 20000 | E123: 200000
A124: 12.3 | B124: 1000 | C124: 8000 | D124: 20000 | E124: 200000
A125: 12.4 | B125: 1000 | C125: 8000 | D125: 20000 | E125: 200000
A126: 12.5 | B126: 1000 | C126: 8000 | D126: 20000 | E126: 200000
A127: 12.6 | B127: 1000 | C127: 8000 | D127: 20000 | E127: 200000
A128: 12.7 | B128: 1000 | C128: 8000 | D128: 20000 | E128: 200000
A129: 12.8 | B129: 1000 | C129: 8000 | D129: 20000 | E129: 200000
A130: 12.9 | B130: 1000 | C130: 8000 | D130: 20000 | E130: 200000
A131: 13 | B131: 1000 | C131: 8000 | D131: 20000 | E131: 200000
A132: 13.1 | B132: 1000 | C132: 8000 | D132: 20000 | E132: 200000
A133: 13.2 | B133: 1000 | C133: 8000 | D133: 20000 | E133: 200000
A134: 13.3 | B134: 1000 | C134: 8000 | D134: 20000 | E134: 200000
A135: 13.4 | B135: 1000 | C135: 8000 | D135: 20000 | E135: 200000
A136: 13.5 | B136: 1000 | C136: 8000 | D136: 20000 | E136: 200000
A137: 13.6 | B137: 1000 | C137: 8000 | D137: 20000 | E137: 200000
A138: 13.7 | B138: 1000 | C138: 8000 | D138: 20000 | E138: 200000
A139: 13.8 | B139: 1000 | C139: 8000 | D139: 20000 | E139: 200000
A140: 13.9 | B140: 1000 | C140: 8000 | D140: 20000 | E140: 200000
A141: 14 | B141: 1000 | C141: 8000 | D141: 20000 | E141: 200000
A142: 14.1 | B142: 1000 | C142: 8000 | D142: 20000 | E142: 200000
A143: 14.2 | B143: 1000 | C143: 8000 | D143: 20000 | E143: 200000
A144: 14.3 | B144: 1000 | C144: 8000 | D144: 20000 | E144: 200000
A145: 14.4 | B145: 1000 | C145: 8000 | D145: 20000 | E145: 200000
A146: 14.5 | B146: 1000 | C146: 8000 | D146: 20000 | E146: 200000
A147: 14.6 | B147: 1000 | C147: 8000 | D147: 20000 | E147: 200000
A148: 14.7 | B148: 1000 | C148: 8000 | D148: 20000 | E148: 200000
A149: 14.8 | B149: 1000 | C149: 8000 | D149: 20000 | E149: 200000
A150: 14.9 | B150: 1000 | C150: 8000 | D150: 20000 | E150: 200000
A151: 15 | B151: 1000 | C151: 8000 | D151: 20000 | E151: 200000
A152: 15.1 | B152: 1000 | C152: 8000 | D152: 20000 | E152: 200000
A153: 15.2 | B153: 1000 | C153: 8000 | D153: 20000 | E153: 200000
A154: 15.3 | B154: 1000 | C154: 8000 | D154: 20000 | E154: 200000
A155: 15.4 | B155: 1000 | C155: 8000 | D155: 20000 | E155: 200000
A156: 15.5 | B156: 1000 | C156: 8000 | D156: 20000 | E156: 200000
A157: 15.6 | B157: 1000 | C157: 8000 | D157: 20000 | E157: 200000
A158: 15.7 | B158: 1000 | C158: 8000 | D158: 20000 | E158: 200000
A159: 15.8 | B159: 1000 | C159: 8000 | D159: 20000 | E159: 200000
A160: 15.9 | B160: 1000 | C160: 8000 | D160: 20000 | E160: 200000
A161: 16 | B161: 1000 | C161: 8000 | D161: 20000 | E161: 200000
A162: 16.1 | B162: 1000 | C162: 8000 | D162: 20000 | E162: 200000
A163: 16.2 | B163: 1000 | C163: 8000 | D163: 20000 | E163: 200000
A164: 16.3 | B164: 1000 | C164: 8000 | D164: 20000 | E164: 200000
A165: 16.4 | B165: 1000 | C165: 8000 | D165: 20000 | E165: 200000
A166: 16.5 | B166: 1000 | C166: 8000 | D166: 20000 | E166: 200000
A167: 16.6 | B167: 1000 | C167: 8000 | D167: 20000 | E167: 200000
A168: 16.7 | B168: 1000 | C168: 8000 | D168: 20000 | E168: 200000
A169: 16.8 | B169: 1000 | C169: 8000 | D169: 20000 | E169: 200000
A170: 16.9 | B170: 1000 | C170: 8000 | D170: 20000 | E170: 200000
A171: 17 | B171: 1000 | C171: 8000 | D171: 20000 | E171: 200000
A172: 17.1 | B172: 1000 | C172: 8000 | D172: 20000 | E172: 200000
A173: 17.2 | B173: 1000 | C173: 8000 | D173: 20000 | E173: 200000
A174: 17.3 | B174: 1000 | C174: 8000 | D174: 20000 | E174: 200000
A175: 17.4 | B175: 1000 | C175: 8000 | D175: 20000 | E175: 200000
A176: 17.5 | B176: 1000 | C176: 8000 | D176: 20000 | E176: 200000
A177: 17.6 | B177: 1000 | C177: 8000 | D177: 20000 | E177: 200000
A178: 17.7 | B178: 1000 | C178: 8000 | D178: 20000 | E178: 200000
A179: 17.8 | B179: 1000 | C179: 8000 | D179: 20000 | E179: 200000
A180: 17.9 | B180: 1000 | C180: 8000 | D180: 20000 | E180: 200000
A181: 18 | B181: 1000 | C181: 8000 | D181: 20000 | E181: 200000
A182: 18.1 | B182: 1000 | C182: 8000 | D182: 20000 | E182: 200000
A183: 18.2 | B183: 1000 | C183: 8000 | D183: 20000 | E183: 200000
A184: 18.3 | B184: 1000 | C184: 8000 | D184: 20000 | E184: 200000
A185: 18.4 | B185: 1000 | C185: 8000 | D185: 20000 | E185: 200000
A186: 18.5 | B186: 1000 | C186: 8000 | D186: 20000 | E186: 200000
A187: 18.6 | B187: 1000 | C187: 8000 | D187: 20000 | E187: 200000
A188: 18.7 | B188: 1000 | C188: 8000 | D188: 20000 | E188: 200000
A189: 18.8 | B189: 1000 | C189: 8000 | D189: 20000 | E189: 200000
A190: 18.9 | B190: 1000 | C190: 8000 | D190: 20000 | E190: 200000
A191: 19 | B191: 1000 | C191: 8000 | D191: 20000 | E191: 200000
A192: 19.1 | B192: 1000 | C192: 8000 | D192: 20000 | E192: 200000
A193: 19.2 | B193: 1000 | C193: 8000 | D193: 20000 | E193: 200000
A194: 19.3 | B194: 1000 | C194: 8000 | D194: 20000 | E194: 200000
A195: 19.4 | B195: 1000 | C195: 8000 | D195: 20000 | E195: 200000
A196: 19.5 | B196: 1000 | C196: 8000 | D196: 20000 | E196: 200000
A197: 19.6 | B197: 1000 | C197: 8000 | D197: 20000 | E197: 200000
A198: 19.7 | B198: 1000 | C198: 15000 | D198: 20000 | E198: 200000
A199: 19.8 | B199: 1000 | C199: 15000 | D199: 20000 | E199: 200000
A200: 19.9 | B200: 1000 | C200: 15000 | D200: 20000 | E200: 200000
... 801 more rows

Sheet List (hidden)
A1: Distribution | B1: Para1 Min | C1: Para1 Max | D1: Para2 Min | E1: Para2 Max | F1: Copula | G1: Required Claim Data Field | H1: LoB | I1: Claim Type | J1: Factor&Function | K1: Function | L1: Index | M1: FactorTable
A2: Normal | D2: 0 | F2: normal | G2: ClaimID | H2: Home | I2: Dwelling | J2: CondPaid | K2: =IF(ISERROR(INDEX(funList,MATCH(ROW()-ROW($K$1),Function!$C$110:$CX$110,0))),"",INDEX(funList,MATCH(ROW()-ROW($K$1),Function!$C$110:$CX$110,0))) -> ZeroFunc | L2: =IF(ISERROR(INDEX(indexList,MATCH(ROW()-ROW($L$1),Index!$B$383:$CW$383,0))),"",INDEX(indexList,MATCH(ROW()-ROW($L$1),Index!$B$383:$CW$383,0))) -> Flat | M2: =IF(ISERROR(INDEX(tabList,MATCH(ROW()-ROW($M$1)+MAX(Function!$C$110:$CX$110),FactorTable!$B$111:$GS$111,0))),"",INDEX(tabList,MATCH(ROW()-ROW($M$1)+MAX(Function!$C$110:$CX$110),FactorTable!$B$111:$GS$111,0))) -> ZeroTable
A3: Beta | B3: 0 | D3: 0 | F3: t | G3: LoB | H3: Auto | I3: PD | J3: CondIncurLoss | K3: =IF(ISERROR(INDEX(funList,MATCH(ROW()-ROW($K$1),Function!$C$110:$CX$110,0))),"",INDEX(funList,MATCH(ROW()-ROW($K$1),Function!$C$110:$CX$110,0))) -> F1 | L3: =IF(ISERROR(INDEX(indexList,MATCH(ROW()-ROW($L$1),Index!$B$383:$CW$383,0))),"",INDEX(indexList,MATCH(ROW()-ROW($L$1),Index!$B$383:$CW$383,0))) -> I2 | M3: =IF(ISERROR(INDEX(tabList,MATCH(ROW()-ROW($M$1)+MAX(Function!$C$110:$CX$110),FactorTable!$B$111:$GS$111,0))),"",INDEX(tabList,MATCH(ROW()-ROW($M$1)+MAX(Function!$C$110:$CX$110),FactorTable!$B$111:$GS$111,0))) -> Level
A4: Exponential | B4: 0 | F4: clayton | G4: Type | J4: =IF(ISERROR(INDEX(funList,MATCH(ROW()-2-ROW($J$1),Function!$C$110:$CX$110,0))),IF(ISERROR(INDEX(tabList,MATCH(ROW()-2-ROW($J$1),FactorTable!$B$111:$GS$111,0))),"",INDEX(tabList,MATCH(ROW()-2-ROW($J$1),FactorTable!$B$111:$GS$111,0))),INDEX(funList,MATCH(ROW()-2-ROW($J$1),Function!$C$110:$CX$110,0))) -> ZeroFunc | K4: =IF(ISERROR(INDEX(funList,MATCH(ROW()-ROW($K$1),Function!$C$110:$CX$110,0))),"",INDEX(funList,MATCH(ROW()-ROW($K$1),Function!$C$110:$CX$110,0))) -> F2 | L4: =IF(ISERROR(INDEX(indexList,MATCH(ROW()-ROW($L$1),Index!$B$383:$CW$383,0))),"",INDEX(indexList,MATCH(ROW()-ROW($L$1),Index!$B$383:$CW$383,0))) -> I3 | M4: =IF(ISERROR(INDEX(tabList,MATCH(ROW()-ROW($M$1)+MAX(Function!$C$110:$CX$110),FactorTable!$B$111:$GS$111,0))),"",INDEX(tabList,MATCH(ROW()-ROW($M$1)+MAX(Function!$C$110:$CX$110),FactorTable!$B$111:$GS$111,0))) -> D1
A5: Gamma | B5: 0 | D5: 0 | F5: frank | G5: status | J5: =IF(ISERROR(INDEX(funList,MATCH(ROW()-2-ROW($J$1),Function!$C$110:$CX$110,0))),IF(ISERROR(INDEX(tabList,MATCH(ROW()-2-ROW($J$1),FactorTable!$B$111:$GS$111,0))),"",INDEX(tabList,MATCH(ROW()-2-ROW($J$1),FactorTable!$B$111:$GS$111,0))),INDEX(funList,MATCH(ROW()-2-ROW($J$1),Function!$C$110:$CX$110,0))) -> F1 | K5: =IF(ISERROR(INDEX(funList,MATCH(ROW()-ROW($K$1),Function!$C$110:$CX$110,0))),"",INDEX(funList,MATCH(ROW()-ROW($K$1),Function!$C$110:$CX$110,0))) -> F3 | L5: =IF(ISERROR(INDEX(indexList,MATCH(ROW()-ROW($L$1),Index!$B$383:$CW$383,0))),"",INDEX(indexList,MATCH(ROW()-ROW($L$1),Index!$B$383:$CW$383,0))) ->  | M5: =IF(ISERROR(INDEX(tabList,MATCH(ROW()-ROW($M$1)+MAX(Function!$C$110:$CX$110),FactorTable!$B$111:$GS$111,0))),"",INDEX(tabList,MATCH(ROW()-ROW($M$1)+MAX(Function!$C$110:$CX$110),FactorTable!$B$111:$GS$111,0))) -> D2
A6: Geometric | B6: 0 | C6: 1 | F6: gumbel | G6: occurrenceDate | J6: =IF(ISERROR(INDEX(funList,MATCH(ROW()-2-ROW($J$1),Function!$C$110:$CX$110,0))),IF(ISERROR(INDEX(tabList,MATCH(ROW()-2-ROW($J$1),FactorTable!$B$111:$GS$111,0))),"",INDEX(tabList,MATCH(ROW()-2-ROW($J$1),FactorTable!$B$111:$GS$111,0))),INDEX(funList,MATCH(ROW()-2-ROW($J$1),Function!$C$110:$CX$110,0))) -> F2 | K6: =IF(ISERROR(INDEX(funList,MATCH(ROW()-ROW($K$1),Function!$C$110:$CX$110,0))),"",INDEX(funList,MATCH(ROW()-ROW($K$1),Function!$C$110:$CX$110,0))) ->  | L6: =IF(ISERROR(INDEX(indexList,MATCH(ROW()-ROW($L$1),Index!$B$383:$CW$383,0))),"",INDEX(indexList,MATCH(ROW()-ROW($L$1),Index!$B$383:$CW$383,0))) ->  | M6: =IF(ISERROR(INDEX(tabList,MATCH(ROW()-ROW($M$1)+MAX(Function!$C$110:$CX$110),FactorTable!$B$111:$GS$111,0))),"",INDEX(tabList,MATCH(ROW()-ROW($M$1)+MAX(Function!$C$110:$CX$110),FactorTable!$B$111:$GS$111,0))) -> D3
A7: Lognormal | D7: 0 | F7: joe | G7: reportDate | J7: =IF(ISERROR(INDEX(funList,MATCH(ROW()-2-ROW($J$1),Function!$C$110:$CX$110,0))),IF(ISERROR(INDEX(tabList,MATCH(ROW()-2-ROW($J$1),FactorTable!$B$111:$GS$111,0))),"",INDEX(tabList,MATCH(ROW()-2-ROW($J$1),FactorTable!$B$111:$GS$111,0))),INDEX(funList,MATCH(ROW()-2-ROW($J$1),Function!$C$110:$CX$110,0))) -> F3 | K7: =IF(ISERROR(INDEX(funList,MATCH(ROW()-ROW($K$1),Function!$C$110:$CX$110,0))),"",INDEX(funList,MATCH(ROW()-ROW($K$1),Function!$C$110:$CX$110,0))) ->  | L7: =IF(ISERROR(INDEX(indexList,MATCH(ROW()-ROW($L$1),Index!$B$383:$CW$383,0))),"",INDEX(indexList,MATCH(ROW()-ROW($L$1),Index!$B$383:$CW$383,0))) ->  | M7: =IF(ISERROR(INDEX(tabList,MATCH(ROW()-ROW($M$1)+MAX(Function!$C$110:$CX$110),FactorTable!$B$111:$GS$111,0))),"",INDEX(tabList,MATCH(ROW()-ROW($M$1)+MAX(Function!$C$110:$CX$110),FactorTable!$B$111:$GS$111,0))) -> AutoPDp0
A8: NegativeBinomial | B8: 0 | D8: 0 | E8: 1 | F8: Independent | G8: incurredLoss | J8: =IF(ISERROR(INDEX(funList,MATCH(ROW()-2-ROW($J$1),Function!$C$110:$CX$110,0))),IF(ISERROR(INDEX(tabList,MATCH(ROW()-2-ROW($J$1),FactorTable!$B$111:$GS$111,0))),"",INDEX(tabList,MATCH(ROW()-2-ROW($J$1),FactorTable!$B$111:$GS$111,0))),INDEX(funList,MATCH(ROW()-2-ROW($J$1),Function!$C$110:$CX$110,0))) -> ZeroTable | K8: =IF(ISERROR(INDEX(funList,MATCH(ROW()-ROW($K$1),Function!$C$110:$CX$110,0))),"",INDEX(funList,MATCH(ROW()-ROW($K$1),Function!$C$110:$CX$110,0))) ->  | L8: =IF(ISERROR(INDEX(indexList,MATCH(ROW()-ROW($L$1),Index!$B$383:$CW$383,0))),"",INDEX(indexList,MATCH(ROW()-ROW($L$1),Index!$B$383:$CW$383,0))) ->  | M8: =IF(ISERROR(INDEX(tabList,MATCH(ROW()-ROW($M$1)+MAX(Function!$C$110:$CX$110),FactorTable!$B$111:$GS$111,0))),"",INDEX(tabList,MATCH(ROW()-ROW($M$1)+MAX(Function!$C$110:$CX$110),FactorTable!$B$111:$GS$111,0))) -> HomeDwellingp0
A9: Pareto | B9: 0 | D9: 0 | G9: settlementDate | J9: =IF(ISERROR(INDEX(funList,MATCH(ROW()-2-ROW($J$1),Function!$C$110:$CX$110,0))),IF(ISERROR(INDEX(tabList,MATCH(ROW()-2-ROW($J$1),FactorTable!$B$111:$GS$111,0))),"",INDEX(tabList,MATCH(ROW()-2-ROW($J$1),FactorTable!$B$111:$GS$111,0))),INDEX(funList,MATCH(ROW()-2-ROW($J$1),Function!$C$110:$CX$110,0))) -> Level | K9: =IF(ISERROR(INDEX(funList,MATCH(ROW()-ROW($K$1),Function!$C$110:$CX$110,0))),"",INDEX(funList,MATCH(ROW()-ROW($K$1),Function!$C$110:$CX$110,0))) ->  | L9: =IF(ISERROR(INDEX(indexList,MATCH(ROW()-ROW($L$1),Index!$B$383:$CW$383,0))),"",INDEX(indexList,MATCH(ROW()-ROW($L$1),Index!$B$383:$CW$383,0))) ->  | M9: =IF(ISERROR(INDEX(tabList,MATCH(ROW()-ROW($M$1)+MAX(Function!$C$110:$CX$110),FactorTable!$B$111:$GS$111,0))),"",INDEX(tabList,MATCH(ROW()-ROW($M$1)+MAX(Function!$C$110:$CX$110),FactorTable!$B$111:$GS$111,0))) -> 
A10: Poisson | B10: 0 | G10: osRatio | J10: =IF(ISERROR(INDEX(funList,MATCH(ROW()-2-ROW($J$1),Function!$C$110:$CX$110,0))),IF(ISERROR(INDEX(tabList,MATCH(ROW()-2-ROW($J$1),FactorTable!$B$111:$GS$111,0))),"",INDEX(tabList,MATCH(ROW()-2-ROW($J$1),FactorTable!$B$111:$GS$111,0))),INDEX(funList,MATCH(ROW()-2-ROW($J$1),Function!$C$110:$CX$110,0))) -> D1 | K10: =IF(ISERROR(INDEX(funList,MATCH(ROW()-ROW($K$1),Function!$C$110:$CX$110,0))),"",INDEX(funList,MATCH(ROW()-ROW($K$1),Function!$C$110:$CX$110,0))) ->  | L10: =IF(ISERROR(INDEX(indexList,MATCH(ROW()-ROW($L$1),Index!$B$383:$CW$383,0))),"",INDEX(indexList,MATCH(ROW()-ROW($L$1),Index!$B$383:$CW$383,0))) ->  | M10: =IF(ISERROR(INDEX(tabList,MATCH(ROW()-ROW($M$1)+MAX(Function!$C$110:$CX$110),FactorTable!$B$111:$GS$111,0))),"",INDEX(tabList,MATCH(ROW()-ROW($M$1)+MAX(Function!$C$110:$CX$110),FactorTable!$B$111:$GS$111,0))) -> 
A11: Uniform | G11: Paid | J11: =IF(ISERROR(INDEX(funList,MATCH(ROW()-2-ROW($J$1),Function!$C$110:$CX$110,0))),IF(ISERROR(INDEX(tabList,MATCH(ROW()-2-ROW($J$1),FactorTable!$B$111:$GS$111,0))),"",INDEX(tabList,MATCH(ROW()-2-ROW($J$1),FactorTable!$B$111:$GS$111,0))),INDEX(funList,MATCH(ROW()-2-ROW($J$1),Function!$C$110:$CX$110,0))) -> D2 | K11: =IF(ISERROR(INDEX(funList,MATCH(ROW()-ROW($K$1),Function!$C$110:$CX$110,0))),"",INDEX(funList,MATCH(ROW()-ROW($K$1),Function!$C$110:$CX$110,0))) ->  | L11: =IF(ISERROR(INDEX(indexList,MATCH(ROW()-ROW($L$1),Index!$B$383:$CW$383,0))),"",INDEX(indexList,MATCH(ROW()-ROW($L$1),Index!$B$383:$CW$383,0))) ->  | M11: =IF(ISERROR(INDEX(tabList,MATCH(ROW()-ROW($M$1)+MAX(Function!$C$110:$CX$110),FactorTable!$B$111:$GS$111,0))),"",INDEX(tabList,MATCH(ROW()-ROW($M$1)+MAX(Function!$C$110:$CX$110),FactorTable!$B$111:$GS$111,0))) -> 
A12: Weibull | B12: 0 | D12: 0 | G12: Deductible | J12: =IF(ISERROR(INDEX(funList,MATCH(ROW()-2-ROW($J$1),Function!$C$110:$CX$110,0))),IF(ISERROR(INDEX(tabList,MATCH(ROW()-2-ROW($J$1),FactorTable!$B$111:$GS$111,0))),"",INDEX(tabList,MATCH(ROW()-2-ROW($J$1),FactorTable!$B$111:$GS$111,0))),INDEX(funList,MATCH(ROW()-2-ROW($J$1),Function!$C$110:$CX$110,0))) -> D3 | K12: =IF(ISERROR(INDEX(funList,MATCH(ROW()-ROW($K$1),Function!$C$110:$CX$110,0))),"",INDEX(funList,MATCH(ROW()-ROW($K$1),Function!$C$110:$CX$110,0))) ->  | L12: =IF(ISERROR(INDEX(indexList,MATCH(ROW()-ROW($L$1),Index!$B$383:$CW$383,0))),"",INDEX(indexList,MATCH(ROW()-ROW($L$1),Index!$B$383:$CW$383,0))) ->  | M12: =IF(ISERROR(INDEX(tabList,MATCH(ROW()-ROW($M$1)+MAX(Function!$C$110:$CX$110),FactorTable!$B$111:$GS$111,0))),"",INDEX(tabList,MATCH(ROW()-ROW($M$1)+MAX(Function!$C$110:$CX$110),FactorTable!$B$111:$GS$111,0))) -> 
A13: Empirical | G13: Limit | J13: =IF(ISERROR(INDEX(funList,MATCH(ROW()-2-ROW($J$1),Function!$C$110:$CX$110,0))),IF(ISERROR(INDEX(tabList,MATCH(ROW()-2-ROW($J$1),FactorTable!$B$111:$GS$111,0))),"",INDEX(tabList,MATCH(ROW()-2-ROW($J$1),FactorTable!$B$111:$GS$111,0))),INDEX(funList,MATCH(ROW()-2-ROW($J$1),Function!$C$110:$CX$110,0))) -> AutoPDp0 | K13: =IF(ISERROR(INDEX(funList,MATCH(ROW()-ROW($K$1),Function!$C$110:$CX$110,0))),"",INDEX(funList,MATCH(ROW()-ROW($K$1),Function!$C$110:$CX$110,0))) ->  | L13: =IF(ISERROR(INDEX(indexList,MATCH(ROW()-ROW($L$1),Index!$B$383:$CW$383,0))),"",INDEX(indexList,MATCH(ROW()-ROW($L$1),Index!$B$383:$CW$383,0))) ->  | M13: =IF(ISERROR(INDEX(tabList,MATCH(ROW()-ROW($M$1)+MAX(Function!$C$110:$CX$110),FactorTable!$B$111:$GS$111,0))),"",INDEX(tabList,MATCH(ROW()-ROW($M$1)+MAX(Function!$C$110:$CX$110),FactorTable!$B$111:$GS$111,0))) -> 
G14: totalLoss | J14: =IF(ISERROR(INDEX(funList,MATCH(ROW()-2-ROW($J$1),Function!$C$110:$CX$110,0))),IF(ISERROR(INDEX(tabList,MATCH(ROW()-2-ROW($J$1),FactorTable!$B$111:$GS$111,0))),"",INDEX(tabList,MATCH(ROW()-2-ROW($J$1),FactorTable!$B$111:$GS$111,0))),INDEX(funList,MATCH(ROW()-2-ROW($J$1),Function!$C$110:$CX$110,0))) -> HomeDwellingp0 | K14: =IF(ISERROR(INDEX(funList,MATCH(ROW()-ROW($K$1),Function!$C$110:$CX$110,0))),"",INDEX(funList,MATCH(ROW()-ROW($K$1),Function!$C$110:$CX$110,0))) ->  | L14: =IF(ISERROR(INDEX(indexList,MATCH(ROW()-ROW($L$1),Index!$B$383:$CW$383,0))),"",INDEX(indexList,MATCH(ROW()-ROW($L$1),Index!$B$383:$CW$383,0))) ->  | M14: =IF(ISERROR(INDEX(tabList,MATCH(ROW()-ROW($M$1)+MAX(Function!$C$110:$CX$110),FactorTable!$B$111:$GS$111,0))),"",INDEX(tabList,MATCH(ROW()-ROW($M$1)+MAX(Function!$C$110:$CX$110),FactorTable!$B$111:$GS$111,0))) -> 
G15: LAE | J15: =IF(ISERROR(INDEX(funList,MATCH(ROW()-2-ROW($J$1),Function!$C$110:$CX$110,0))),IF(ISERROR(INDEX(tabList,MATCH(ROW()-2-ROW($J$1),FactorTable!$B$111:$GS$111,0))),"",INDEX(tabList,MATCH(ROW()-2-ROW($J$1),FactorTable!$B$111:$GS$111,0))),INDEX(funList,MATCH(ROW()-2-ROW($J$1),Function!$C$110:$CX$110,0))) ->  | K15: =IF(ISERROR(INDEX(funList,MATCH(ROW()-ROW($K$1),Function!$C$110:$CX$110,0))),"",INDEX(funList,MATCH(ROW()-ROW($K$1),Function!$C$110:$CX$110,0))) ->  | L15: =IF(ISERROR(INDEX(indexList,MATCH(ROW()-ROW($L$1),Index!$B$383:$CW$383,0))),"",INDEX(indexList,MATCH(ROW()-ROW($L$1),Index!$B$383:$CW$383,0))) ->  | M15: =IF(ISERROR(INDEX(tabList,MATCH(ROW()-ROW($M$1)+MAX(Function!$C$110:$CX$110),FactorTable!$B$111:$GS$111,0))),"",INDEX(tabList,MATCH(ROW()-ROW($M$1)+MAX(Function!$C$110:$CX$110),FactorTable!$B$111:$GS$111,0))) -> 
G16: claimLiability | J16: =IF(ISERROR(INDEX(funList,MATCH(ROW()-2-ROW($J$1),Function!$C$110:$CX$110,0))),IF(ISERROR(INDEX(tabList,MATCH(ROW()-2-ROW($J$1),FactorTable!$B$111:$GS$111,0))),"",INDEX(tabList,MATCH(ROW()-2-ROW($J$1),FactorTable!$B$111:$GS$111,0))),INDEX(funList,MATCH(ROW()-2-ROW($J$1),Function!$C$110:$CX$110,0))) ->  | K16: =IF(ISERROR(INDEX(funList,MATCH(ROW()-ROW($K$1),Function!$C$110:$CX$110,0))),"",INDEX(funList,MATCH(ROW()-ROW($K$1),Function!$C$110:$CX$110,0))) ->  | L16: =IF(ISERROR(INDEX(indexList,MATCH(ROW()-ROW($L$1),Index!$B$383:$CW$383,0))),"",INDEX(indexList,MATCH(ROW()-ROW($L$1),Index!$B$383:$CW$383,0))) ->  | M16: =IF(ISERROR(INDEX(tabList,MATCH(ROW()-ROW($M$1)+MAX(Function!$C$110:$CX$110),FactorTable!$B$111:$GS$111,0))),"",INDEX(tabList,MATCH(ROW()-ROW($M$1)+MAX(Function!$C$110:$CX$110),FactorTable!$B$111:$GS$111,0))) -> 
J17: =IF(ISERROR(INDEX(funList,MATCH(ROW()-2-ROW($J$1),Function!$C$110:$CX$110,0))),IF(ISERROR(INDEX(tabList,MATCH(ROW()-2-ROW($J$1),FactorTable!$B$111:$GS$111,0))),"",INDEX(tabList,MATCH(ROW()-2-ROW($J$1),FactorTable!$B$111:$GS$111,0))),INDEX(funList,MATCH(ROW()-2-ROW($J$1),Function!$C$110:$CX$110,0))) ->  | K17: =IF(ISERROR(INDEX(funList,MATCH(ROW()-ROW($K$1),Function!$C$110:$CX$110,0))),"",INDEX(funList,MATCH(ROW()-ROW($K$1),Function!$C$110:$CX$110,0))) ->  | L17: =IF(ISERROR(INDEX(indexList,MATCH(ROW()-ROW($L$1),Index!$B$383:$CW$383,0))),"",INDEX(indexList,MATCH(ROW()-ROW($L$1),Index!$B$383:$CW$383,0))) ->  | M17: =IF(ISERROR(INDEX(tabList,MATCH(ROW()-ROW($M$1)+MAX(Function!$C$110:$CX$110),FactorTable!$B$111:$GS$111,0))),"",INDEX(tabList,MATCH(ROW()-ROW($M$1)+MAX(Function!$C$110:$CX$110),FactorTable!$B$111:$GS$111,0))) -> 
J18: =IF(ISERROR(INDEX(funList,MATCH(ROW()-2-ROW($J$1),Function!$C$110:$CX$110,0))),IF(ISERROR(INDEX(tabList,MATCH(ROW()-2-ROW($J$1),FactorTable!$B$111:$GS$111,0))),"",INDEX(tabList,MATCH(ROW()-2-ROW($J$1),FactorTable!$B$111:$GS$111,0))),INDEX(funList,MATCH(ROW()-2-ROW($J$1),Function!$C$110:$CX$110,0))) ->  | K18: =IF(ISERROR(INDEX(funList,MATCH(ROW()-ROW($K$1),Function!$C$110:$CX$110,0))),"",INDEX(funList,MATCH(ROW()-ROW($K$1),Function!$C$110:$CX$110,0))) ->  | L18: =IF(ISERROR(INDEX(indexList,MATCH(ROW()-ROW($L$1),Index!$B$383:$CW$383,0))),"",INDEX(indexList,MATCH(ROW()-ROW($L$1),Index!$B$383:$CW$383,0))) ->  | M18: =IF(ISERROR(INDEX(tabList,MATCH(ROW()-ROW($M$1)+MAX(Function!$C$110:$CX$110),FactorTable!$B$111:$GS$111,0))),"",INDEX(tabList,MATCH(ROW()-ROW($M$1)+MAX(Function!$C$110:$CX$110),FactorTable!$B$111:$GS$111,0))) -> 
J19: =IF(ISERROR(INDEX(funList,MATCH(ROW()-2-ROW($J$1),Function!$C$110:$CX$110,0))),IF(ISERROR(INDEX(tabList,MATCH(ROW()-2-ROW($J$1),FactorTable!$B$111:$GS$111,0))),"",INDEX(tabList,MATCH(ROW()-2-ROW($J$1),FactorTable!$B$111:$GS$111,0))),INDEX(funList,MATCH(ROW()-2-ROW($J$1),Function!$C$110:$CX$110,0))) ->  | K19: =IF(ISERROR(INDEX(funList,MATCH(ROW()-ROW($K$1),Function!$C$110:$CX$110,0))),"",INDEX(funList,MATCH(ROW()-ROW($K$1),Function!$C$110:$CX$110,0))) ->  | L19: =IF(ISERROR(INDEX(indexList,MATCH(ROW()-ROW($L$1),Index!$B$383:$CW$383,0))),"",INDEX(indexList,MATCH(ROW()-ROW($L$1),Index!$B$383:$CW$383,0))) ->  | M19: =IF(ISERROR(INDEX(tabList,MATCH(ROW()-ROW($M$1)+MAX(Function!$C$110:$CX$110),FactorTable!$B$111:$GS$111,0))),"",INDEX(tabList,MATCH(ROW()-ROW($M$1)+MAX(Function!$C$110:$CX$110),FactorTable!$B$111:$GS$111,0))) -> 
J20: =IF(ISERROR(INDEX(funList,MATCH(ROW()-2-ROW($J$1),Function!$C$110:$CX$110,0))),IF(ISERROR(INDEX(tabList,MATCH(ROW()-2-ROW($J$1),FactorTable!$B$111:$GS$111,0))),"",INDEX(tabList,MATCH(ROW()-2-ROW($J$1),FactorTable!$B$111:$GS$111,0))),INDEX(funList,MATCH(ROW()-2-ROW($J$1),Function!$C$110:$CX$110,0))) ->  | K20: =IF(ISERROR(INDEX(funList,MATCH(ROW()-ROW($K$1),Function!$C$110:$CX$110,0))),"",INDEX(funList,MATCH(ROW()-ROW($K$1),Function!$C$110:$CX$110,0))) ->  | L20: =IF(ISERROR(INDEX(indexList,MATCH(ROW()-ROW($L$1),Index!$B$383:$CW$383,0))),"",INDEX(indexList,MATCH(ROW()-ROW($L$1),Index!$B$383:$CW$383,0))) ->  | M20: =IF(ISERROR(INDEX(tabList,MATCH(ROW()-ROW($M$1)+MAX(Function!$C$110:$CX$110),FactorTable!$B$111:$GS$111,0))),"",INDEX(tabList,MATCH(ROW()-ROW($M$1)+MAX(Function!$C$110:$CX$110),FactorTable!$B$111:$GS$111,0))) -> 
J21: =IF(ISERROR(INDEX(funList,MATCH(ROW()-2-ROW($J$1),Function!$C$110:$CX$110,0))),IF(ISERROR(INDEX(tabList,MATCH(ROW()-2-ROW($J$1),FactorTable!$B$111:$GS$111,0))),"",INDEX(tabList,MATCH(ROW()-2-ROW($J$1),FactorTable!$B$111:$GS$111,0))),INDEX(funList,MATCH(ROW()-2-ROW($J$1),Function!$C$110:$CX$110,0))) ->  | K21: =IF(ISERROR(INDEX(funList,MATCH(ROW()-ROW($K$1),Function!$C$110:$CX$110,0))),"",INDEX(funList,MATCH(ROW()-ROW($K$1),Function!$C$110:$CX$110,0))) ->  | L21: =IF(ISERROR(INDEX(indexList,MATCH(ROW()-ROW($L$1),Index!$B$383:$CW$383,0))),"",INDEX(indexList,MATCH(ROW()-ROW($L$1),Index!$B$383:$CW$383,0))) ->  | M21: =IF(ISERROR(INDEX(tabList,MATCH(ROW()-ROW($M$1)+MAX(Function!$C$110:$CX$110),FactorTable!$B$111:$GS$111,0))),"",INDEX(tabList,MATCH(ROW()-ROW($M$1)+MAX(Function!$C$110:$CX$110),FactorTable!$B$111:$GS$111,0))) -> 
J22: =IF(ISERROR(INDEX(funList,MATCH(ROW()-2-ROW($J$1),Function!$C$110:$CX$110,0))),IF(ISERROR(INDEX(tabList,MATCH(ROW()-2-ROW($J$1),FactorTable!$B$111:$GS$111,0))),"",INDEX(tabList,MATCH(ROW()-2-ROW($J$1),FactorTable!$B$111:$GS$111,0))),INDEX(funList,MATCH(ROW()-2-ROW($J$1),Function!$C$110:$CX$110,0))) ->  | K22: =IF(ISERROR(INDEX(funList,MATCH(ROW()-ROW($K$1),Function!$C$110:$CX$110,0))),"",INDEX(funList,MATCH(ROW()-ROW($K$1),Function!$C$110:$CX$110,0))) ->  | L22: =IF(ISERROR(INDEX(indexList,MATCH(ROW()-ROW($L$1),Index!$B$383:$CW$383,0))),"",INDEX(indexList,MATCH(ROW()-ROW($L$1),Index!$B$383:$CW$383,0))) ->  | M22: =IF(ISERROR(INDEX(tabList,MATCH(ROW()-ROW($M$1)+MAX(Function!$C$110:$CX$110),FactorTable!$B$111:$GS$111,0))),"",INDEX(tabList,MATCH(ROW()-ROW($M$1)+MAX(Function!$C$110:$CX$110),FactorTable!$B$111:$GS$111,0))) -> 
J23: =IF(ISERROR(INDEX(funList,MATCH(ROW()-2-ROW($J$1),Function!$C$110:$CX$110,0))),IF(ISERROR(INDEX(tabList,MATCH(ROW()-2-ROW($J$1),FactorTable!$B$111:$GS$111,0))),"",INDEX(tabList,MATCH(ROW()-2-ROW($J$1),FactorTable!$B$111:$GS$111,0))),INDEX(funList,MATCH(ROW()-2-ROW($J$1),Function!$C$110:$CX$110,0))) ->  | K23: =IF(ISERROR(INDEX(funList,MATCH(ROW()-ROW($K$1),Function!$C$110:$CX$110,0))),"",INDEX(funList,MATCH(ROW()-ROW($K$1),Function!$C$110:$CX$110,0))) ->  | L23: =IF(ISERROR(INDEX(indexList,MATCH(ROW()-ROW($L$1),Index!$B$383:$CW$383,0))),"",INDEX(indexList,MATCH(ROW()-ROW($L$1),Index!$B$383:$CW$383,0))) ->  | M23: =IF(ISERROR(INDEX(tabList,MATCH(ROW()-ROW($M$1)+MAX(Function!$C$110:$CX$110),FactorTable!$B$111:$GS$111,0))),"",INDEX(tabList,MATCH(ROW()-ROW($M$1)+MAX(Function!$C$110:$CX$110),FactorTable!$B$111:$GS$111,0))) -> 
J24: =IF(ISERROR(INDEX(funList,MATCH(ROW()-2-ROW($J$1),Function!$C$110:$CX$110,0))),IF(ISERROR(INDEX(tabList,MATCH(ROW()-2-ROW($J$1),FactorTable!$B$111:$GS$111,0))),"",INDEX(tabList,MATCH(ROW()-2-ROW($J$1),FactorTable!$B$111:$GS$111,0))),INDEX(funList,MATCH(ROW()-2-ROW($J$1),Function!$C$110:$CX$110,0))) ->  | K24: =IF(ISERROR(INDEX(funList,MATCH(ROW()-ROW($K$1),Function!$C$110:$CX$110,0))),"",INDEX(funList,MATCH(ROW()-ROW($K$1),Function!$C$110:$CX$110,0))) ->  | L24: =IF(ISERROR(INDEX(indexList,MATCH(ROW()-ROW($L$1),Index!$B$383:$CW$383,0))),"",INDEX(indexList,MATCH(ROW()-ROW($L$1),Index!$B$383:$CW$383,0))) ->  | M24: =IF(ISERROR(INDEX(tabList,MATCH(ROW()-ROW($M$1)+MAX(Function!$C$110:$CX$110),FactorTable!$B$111:$GS$111,0))),"",INDEX(tabList,MATCH(ROW()-ROW($M$1)+MAX(Function!$C$110:$CX$110),FactorTable!$B$111:$GS$111,0))) -> 
J25: =IF(ISERROR(INDEX(funList,MATCH(ROW()-2-ROW($J$1),Function!$C$110:$CX$110,0))),IF(ISERROR(INDEX(tabList,MATCH(ROW()-2-ROW($J$1),FactorTable!$B$111:$GS$111,0))),"",INDEX(tabList,MATCH(ROW()-2-ROW($J$1),FactorTable!$B$111:$GS$111,0))),INDEX(funList,MATCH(ROW()-2-ROW($J$1),Function!$C$110:$CX$110,0))) ->  | K25: =IF(ISERROR(INDEX(funList,MATCH(ROW()-ROW($K$1),Function!$C$110:$CX$110,0))),"",INDEX(funList,MATCH(ROW()-ROW($K$1),Function!$C$110:$CX$110,0))) ->  | L25: =IF(ISERROR(INDEX(indexList,MATCH(ROW()-ROW($L$1),Index!$B$383:$CW$383,0))),"",INDEX(indexList,MATCH(ROW()-ROW($L$1),Index!$B$383:$CW$383,0))) ->  | M25: =IF(ISERROR(INDEX(tabList,MATCH(ROW()-ROW($M$1)+MAX(Function!$C$110:$CX$110),FactorTable!$B$111:$GS$111,0))),"",INDEX(tabList,MATCH(ROW()-ROW($M$1)+MAX(Function!$C$110:$CX$110),FactorTable!$B$111:$GS$111,0))) -> 
J26: =IF(ISERROR(INDEX(funList,MATCH(ROW()-2-ROW($J$1),Function!$C$110:$CX$110,0))),IF(ISERROR(INDEX(tabList,MATCH(ROW()-2-ROW($J$1),FactorTable!$B$111:$GS$111,0))),"",INDEX(tabList,MATCH(ROW()-2-ROW($J$1),FactorTable!$B$111:$GS$111,0))),INDEX(funList,MATCH(ROW()-2-ROW($J$1),Function!$C$110:$CX$110,0))) ->  | K26: =IF(ISERROR(INDEX(funList,MATCH(ROW()-ROW($K$1),Function!$C$110:$CX$110,0))),"",INDEX(funList,MATCH(ROW()-ROW($K$1),Function!$C$110:$CX$110,0))) ->  | L26: =IF(ISERROR(INDEX(indexList,MATCH(ROW()-ROW($L$1),Index!$B$383:$CW$383,0))),"",INDEX(indexList,MATCH(ROW()-ROW($L$1),Index!$B$383:$CW$383,0))) ->  | M26: =IF(ISERROR(INDEX(tabList,MATCH(ROW()-ROW($M$1)+MAX(Function!$C$110:$CX$110),FactorTable!$B$111:$GS$111,0))),"",INDEX(tabList,MATCH(ROW()-ROW($M$1)+MAX(Function!$C$110:$CX$110),FactorTable!$B$111:$GS$111,0))) -> 
J27: =IF(ISERROR(INDEX(funList,MATCH(ROW()-2-ROW($J$1),Function!$C$110:$CX$110,0))),IF(ISERROR(INDEX(tabList,MATCH(ROW()-2-ROW($J$1),FactorTable!$B$111:$GS$111,0))),"",INDEX(tabList,MATCH(ROW()-2-ROW($J$1),FactorTable!$B$111:$GS$111,0))),INDEX(funList,MATCH(ROW()-2-ROW($J$1),Function!$C$110:$CX$110,0))) ->  | K27: =IF(ISERROR(INDEX(funList,MATCH(ROW()-ROW($K$1),Function!$C$110:$CX$110,0))),"",INDEX(funList,MATCH(ROW()-ROW($K$1),Function!$C$110:$CX$110,0))) ->  | L27: =IF(ISERROR(INDEX(indexList,MATCH(ROW()-ROW($L$1),Index!$B$383:$CW$383,0))),"",INDEX(indexList,MATCH(ROW()-ROW($L$1),Index!$B$383:$CW$383,0))) ->  | M27: =IF(ISERROR(INDEX(tabList,MATCH(ROW()-ROW($M$1)+MAX(Function!$C$110:$CX$110),FactorTable!$B$111:$GS$111,0))),"",INDEX(tabList,MATCH(ROW()-ROW($M$1)+MAX(Function!$C$110:$CX$110),FactorTable!$B$111:$GS$111,0))) -> 
J28: =IF(ISERROR(INDEX(funList,MATCH(ROW()-2-ROW($J$1),Function!$C$110:$CX$110,0))),IF(ISERROR(INDEX(tabList,MATCH(ROW()-2-ROW($J$1),FactorTable!$B$111:$GS$111,0))),"",INDEX(tabList,MATCH(ROW()-2-ROW($J$1),FactorTable!$B$111:$GS$111,0))),INDEX(funList,MATCH(ROW()-2-ROW($J$1),Function!$C$110:$CX$110,0))) ->  | K28: =IF(ISERROR(INDEX(funList,MATCH(ROW()-ROW($K$1),Function!$C$110:$CX$110,0))),"",INDEX(funList,MATCH(ROW()-ROW($K$1),Function!$C$110:$CX$110,0))) ->  | L28: =IF(ISERROR(INDEX(indexList,MATCH(ROW()-ROW($L$1),Index!$B$383:$CW$383,0))),"",INDEX(indexList,MATCH(ROW()-ROW($L$1),Index!$B$383:$CW$383,0))) ->  | M28: =IF(ISERROR(INDEX(tabList,MATCH(ROW()-ROW($M$1)+MAX(Function!$C$110:$CX$110),FactorTable!$B$111:$GS$111,0))),"",INDEX(tabList,MATCH(ROW()-ROW($M$1)+MAX(Function!$C$110:$CX$110),FactorTable!$B$111:$GS$111,0))) -> 
J29: =IF(ISERROR(INDEX(funList,MATCH(ROW()-ROW($J$1),Function!$C$110:$CX$110,0))),IF(ISERROR(INDEX(tabList,MATCH(ROW()-ROW($J$1),FactorTable!$B$111:$GS$111,0))),"",INDEX(tabList,MATCH(ROW()-ROW($J$1),FactorTable!$B$111:$GS$111,0))),INDEX(funList,MATCH(ROW()-ROW($J$1),Function!$C$110:$CX$110,0))) ->  | K29: =IF(ISERROR(INDEX(funList,MATCH(ROW()-ROW($K$1),Function!$C$110:$CX$110,0))),"",INDEX(funList,MATCH(ROW()-ROW($K$1),Function!$C$110:$CX$110,0))) ->  | L29: =IF(ISERROR(INDEX(indexList,MATCH(ROW()-ROW($L$1),Index!$B$383:$CW$383,0))),"",INDEX(indexList,MATCH(ROW()-ROW($L$1),Index!$B$383:$CW$383,0))) ->  | M29: =IF(ISERROR(INDEX(funList,MATCH(ROW()-ROW($K$1),Function!$C$110:$CX$110,0))),"",INDEX(funList,MATCH(ROW()-ROW($K$1),Function!$C$110:$CX$110,0))) -> 
J30: =IF(ISERROR(INDEX(funList,MATCH(ROW()-ROW($J$1),Function!$C$110:$CX$110,0))),IF(ISERROR(INDEX(tabList,MATCH(ROW()-ROW($J$1),FactorTable!$B$111:$GS$111,0))),"",INDEX(tabList,MATCH(ROW()-ROW($J$1),FactorTable!$B$111:$GS$111,0))),INDEX(funList,MATCH(ROW()-ROW($J$1),Function!$C$110:$CX$110,0))) ->  | K30: =IF(ISERROR(INDEX(funList,MATCH(ROW()-ROW($K$1),Function!$C$110:$CX$110,0))),"",INDEX(funList,MATCH(ROW()-ROW($K$1),Function!$C$110:$CX$110,0))) ->  | L30: =IF(ISERROR(INDEX(indexList,MATCH(ROW()-ROW($L$1),Index!$B$383:$CW$383,0))),"",INDEX(indexList,MATCH(ROW()-ROW($L$1),Index!$B$383:$CW$383,0))) ->  | M30: =IF(ISERROR(INDEX(funList,MATCH(ROW()-ROW($K$1),Function!$C$110:$CX$110,0))),"",INDEX(funList,MATCH(ROW()-ROW($K$1),Function!$C$110:$CX$110,0))) -> 
J31: =IF(ISERROR(INDEX(funList,MATCH(ROW()-ROW($J$1),Function!$C$110:$CX$110,0))),IF(ISERROR(INDEX(tabList,MATCH(ROW()-ROW($J$1),FactorTable!$B$111:$GS$111,0))),"",INDEX(tabList,MATCH(ROW()-ROW($J$1),FactorTable!$B$111:$GS$111,0))),INDEX(funList,MATCH(ROW()-ROW($J$1),Function!$C$110:$CX$110,0))) ->  | K31: =IF(ISERROR(INDEX(funList,MATCH(ROW()-ROW($K$1),Function!$C$110:$CX$110,0))),"",INDEX(funList,MATCH(ROW()-ROW($K$1),Function!$C$110:$CX$110,0))) ->  | L31: =IF(ISERROR(INDEX(indexList,MATCH(ROW()-ROW($L$1),Index!$B$383:$CW$383,0))),"",INDEX(indexList,MATCH(ROW()-ROW($L$1),Index!$B$383:$CW$383,0))) ->  | M31: =IF(ISERROR(INDEX(funList,MATCH(ROW()-ROW($K$1),Function!$C$110:$CX$110,0))),"",INDEX(funList,MATCH(ROW()-ROW($K$1),Function!$C$110:$CX$110,0))) -> 
J32: =IF(ISERROR(INDEX(funList,MATCH(ROW()-ROW($J$1),Function!$C$110:$CX$110,0))),IF(ISERROR(INDEX(tabList,MATCH(ROW()-ROW($J$1),FactorTable!$B$111:$GS$111,0))),"",INDEX(tabList,MATCH(ROW()-ROW($J$1),FactorTable!$B$111:$GS$111,0))),INDEX(funList,MATCH(ROW()-ROW($J$1),Function!$C$110:$CX$110,0))) ->  | K32: =IF(ISERROR(INDEX(funList,MATCH(ROW()-ROW($K$1),Function!$C$110:$CX$110,0))),"",INDEX(funList,MATCH(ROW()-ROW($K$1),Function!$C$110:$CX$110,0))) ->  | L32: =IF(ISERROR(INDEX(indexList,MATCH(ROW()-ROW($L$1),Index!$B$383:$CW$383,0))),"",INDEX(indexList,MATCH(ROW()-ROW($L$1),Index!$B$383:$CW$383,0))) ->  | M32: =IF(ISERROR(INDEX(funList,MATCH(ROW()-ROW($K$1),Function!$C$110:$CX$110,0))),"",INDEX(funList,MATCH(ROW()-ROW($K$1),Function!$C$110:$CX$110,0))) -> 
J33: =IF(ISERROR(INDEX(funList,MATCH(ROW()-ROW($J$1),Function!$C$110:$CX$110,0))),IF(ISERROR(INDEX(tabList,MATCH(ROW()-ROW($J$1),FactorTable!$B$111:$GS$111,0))),"",INDEX(tabList,MATCH(ROW()-ROW($J$1),FactorTable!$B$111:$GS$111,0))),INDEX(funList,MATCH(ROW()-ROW($J$1),Function!$C$110:$CX$110,0))) ->  | K33: =IF(ISERROR(INDEX(funList,MATCH(ROW()-ROW($K$1),Function!$C$110:$CX$110,0))),"",INDEX(funList,MATCH(ROW()-ROW($K$1),Function!$C$110:$CX$110,0))) ->  | L33: =IF(ISERROR(INDEX(indexList,MATCH(ROW()-ROW($L$1),Index!$B$383:$CW$383,0))),"",INDEX(indexList,MATCH(ROW()-ROW($L$1),Index!$B$383:$CW$383,0))) ->  | M33: =IF(ISERROR(INDEX(funList,MATCH(ROW()-ROW($K$1),Function!$C$110:$CX$110,0))),"",INDEX(funList,MATCH(ROW()-ROW($K$1),Function!$C$110:$CX$110,0))) -> 
J34: =IF(ISERROR(INDEX(funList,MATCH(ROW()-ROW($J$1),Function!$C$110:$CX$110,0))),IF(ISERROR(INDEX(tabList,MATCH(ROW()-ROW($J$1),FactorTable!$B$111:$GS$111,0))),"",INDEX(tabList,MATCH(ROW()-ROW($J$1),FactorTable!$B$111:$GS$111,0))),INDEX(funList,MATCH(ROW()-ROW($J$1),Function!$C$110:$CX$110,0))) ->  | K34: =IF(ISERROR(INDEX(funList,MATCH(ROW()-ROW($K$1),Function!$C$110:$CX$110,0))),"",INDEX(funList,MATCH(ROW()-ROW($K$1),Function!$C$110:$CX$110,0))) ->  | L34: =IF(ISERROR(INDEX(indexList,MATCH(ROW()-ROW($L$1),Index!$B$383:$CW$383,0))),"",INDEX(indexList,MATCH(ROW()-ROW($L$1),Index!$B$383:$CW$383,0))) ->  | M34: =IF(ISERROR(INDEX(funList,MATCH(ROW()-ROW($K$1),Function!$C$110:$CX$110,0))),"",INDEX(funList,MATCH(ROW()-ROW($K$1),Function!$C$110:$CX$110,0))) -> 
J35: =IF(ISERROR(INDEX(funList,MATCH(ROW()-ROW($J$1),Function!$C$110:$CX$110,0))),IF(ISERROR(INDEX(tabList,MATCH(ROW()-ROW($J$1),FactorTable!$B$111:$GS$111,0))),"",INDEX(tabList,MATCH(ROW()-ROW($J$1),FactorTable!$B$111:$GS$111,0))),INDEX(funList,MATCH(ROW()-ROW($J$1),Function!$C$110:$CX$110,0))) ->  | K35: =IF(ISERROR(INDEX(funList,MATCH(ROW()-ROW($K$1),Function!$C$110:$CX$110,0))),"",INDEX(funList,MATCH(ROW()-ROW($K$1),Function!$C$110:$CX$110,0))) ->  | L35: =IF(ISERROR(INDEX(indexList,MATCH(ROW()-ROW($L$1),Index!$B$383:$CW$383,0))),"",INDEX(indexList,MATCH(ROW()-ROW($L$1),Index!$B$383:$CW$383,0))) ->  | M35: =IF(ISERROR(INDEX(funList,MATCH(ROW()-ROW($K$1),Function!$C$110:$CX$110,0))),"",INDEX(funList,MATCH(ROW()-ROW($K$1),Function!$C$110:$CX$110,0))) -> 
J36: =IF(ISERROR(INDEX(funList,MATCH(ROW()-ROW($J$1),Function!$C$110:$CX$110,0))),IF(ISERROR(INDEX(tabList,MATCH(ROW()-ROW($J$1),FactorTable!$B$111:$GS$111,0))),"",INDEX(tabList,MATCH(ROW()-ROW($J$1),FactorTable!$B$111:$GS$111,0))),INDEX(funList,MATCH(ROW()-ROW($J$1),Function!$C$110:$CX$110,0))) ->  | K36: =IF(ISERROR(INDEX(funList,MATCH(ROW()-ROW($K$1),Function!$C$110:$CX$110,0))),"",INDEX(funList,MATCH(ROW()-ROW($K$1),Function!$C$110:$CX$110,0))) ->  | L36: =IF(ISERROR(INDEX(indexList,MATCH(ROW()-ROW($L$1),Index!$B$383:$CW$383,0))),"",INDEX(indexList,MATCH(ROW()-ROW($L$1),Index!$B$383:$CW$383,0))) ->  | M36: =IF(ISERROR(INDEX(funList,MATCH(ROW()-ROW($K$1),Function!$C$110:$CX$110,0))),"",INDEX(funList,MATCH(ROW()-ROW($K$1),Function!$C$110:$CX$110,0))) -> 
J37: =IF(ISERROR(INDEX(funList,MATCH(ROW()-ROW($J$1),Function!$C$110:$CX$110,0))),IF(ISERROR(INDEX(tabList,MATCH(ROW()-ROW($J$1),FactorTable!$B$111:$GS$111,0))),"",INDEX(tabList,MATCH(ROW()-ROW($J$1),FactorTable!$B$111:$GS$111,0))),INDEX(funList,MATCH(ROW()-ROW($J$1),Function!$C$110:$CX$110,0))) ->  | K37: =IF(ISERROR(INDEX(funList,MATCH(ROW()-ROW($K$1),Function!$C$110:$CX$110,0))),"",INDEX(funList,MATCH(ROW()-ROW($K$1),Function!$C$110:$CX$110,0))) ->  | L37: =IF(ISERROR(INDEX(indexList,MATCH(ROW()-ROW($L$1),Index!$B$383:$CW$383,0))),"",INDEX(indexList,MATCH(ROW()-ROW($L$1),Index!$B$383:$CW$383,0))) ->  | M37: =IF(ISERROR(INDEX(funList,MATCH(ROW()-ROW($K$1),Function!$C$110:$CX$110,0))),"",INDEX(funList,MATCH(ROW()-ROW($K$1),Function!$C$110:$CX$110,0))) -> 
J38: =IF(ISERROR(INDEX(funList,MATCH(ROW()-ROW($J$1),Function!$C$110:$CX$110,0))),IF(ISERROR(INDEX(tabList,MATCH(ROW()-ROW($J$1),FactorTable!$B$111:$GS$111,0))),"",INDEX(tabList,MATCH(ROW()-ROW($J$1),FactorTable!$B$111:$GS$111,0))),INDEX(funList,MATCH(ROW()-ROW($J$1),Function!$C$110:$CX$110,0))) ->  | K38: =IF(ISERROR(INDEX(funList,MATCH(ROW()-ROW($K$1),Function!$C$110:$CX$110,0))),"",INDEX(funList,MATCH(ROW()-ROW($K$1),Function!$C$110:$CX$110,0))) ->  | L38: =IF(ISERROR(INDEX(indexList,MATCH(ROW()-ROW($L$1),Index!$B$383:$CW$383,0))),"",INDEX(indexList,MATCH(ROW()-ROW($L$1),Index!$B$383:$CW$383,0))) ->  | M38: =IF(ISERROR(INDEX(funList,MATCH(ROW()-ROW($K$1),Function!$C$110:$CX$110,0))),"",INDEX(funList,MATCH(ROW()-ROW($K$1),Function!$C$110:$CX$110,0))) -> 
J39: =IF(ISERROR(INDEX(funList,MATCH(ROW()-ROW($J$1),Function!$C$110:$CX$110,0))),IF(ISERROR(INDEX(tabList,MATCH(ROW()-ROW($J$1),FactorTable!$B$111:$GS$111,0))),"",INDEX(tabList,MATCH(ROW()-ROW($J$1),FactorTable!$B$111:$GS$111,0))),INDEX(funList,MATCH(ROW()-ROW($J$1),Function!$C$110:$CX$110,0))) ->  | K39: =IF(ISERROR(INDEX(funList,MATCH(ROW()-ROW($K$1),Function!$C$110:$CX$110,0))),"",INDEX(funList,MATCH(ROW()-ROW($K$1),Function!$C$110:$CX$110,0))) ->  | L39: =IF(ISERROR(INDEX(indexList,MATCH(ROW()-ROW($L$1),Index!$B$383:$CW$383,0))),"",INDEX(indexList,MATCH(ROW()-ROW($L$1),Index!$B$383:$CW$383,0))) ->  | M39: =IF(ISERROR(INDEX(funList,MATCH(ROW()-ROW($K$1),Function!$C$110:$CX$110,0))),"",INDEX(funList,MATCH(ROW()-ROW($K$1),Function!$C$110:$CX$110,0))) -> 
J40: =IF(ISERROR(INDEX(funList,MATCH(ROW()-ROW($J$1),Function!$C$110:$CX$110,0))),IF(ISERROR(INDEX(tabList,MATCH(ROW()-ROW($J$1),FactorTable!$B$111:$GS$111,0))),"",INDEX(tabList,MATCH(ROW()-ROW($J$1),FactorTable!$B$111:$GS$111,0))),INDEX(funList,MATCH(ROW()-ROW($J$1),Function!$C$110:$CX$110,0))) ->  | K40: =IF(ISERROR(INDEX(funList,MATCH(ROW()-ROW($K$1),Function!$C$110:$CX$110,0))),"",INDEX(funList,MATCH(ROW()-ROW($K$1),Function!$C$110:$CX$110,0))) ->  | L40: =IF(ISERROR(INDEX(indexList,MATCH(ROW()-ROW($L$1),Index!$B$383:$CW$383,0))),"",INDEX(indexList,MATCH(ROW()-ROW($L$1),Index!$B$383:$CW$383,0))) ->  | M40: =IF(ISERROR(INDEX(funList,MATCH(ROW()-ROW($K$1),Function!$C$110:$CX$110,0))),"",INDEX(funList,MATCH(ROW()-ROW($K$1),Function!$C$110:$CX$110,0))) -> 
J41: =IF(ISERROR(INDEX(funList,MATCH(ROW()-ROW($J$1),Function!$C$110:$CX$110,0))),IF(ISERROR(INDEX(tabList,MATCH(ROW()-ROW($J$1),FactorTable!$B$111:$GS$111,0))),"",INDEX(tabList,MATCH(ROW()-ROW($J$1),FactorTable!$B$111:$GS$111,0))),INDEX(funList,MATCH(ROW()-ROW($J$1),Function!$C$110:$CX$110,0))) ->  | K41: =IF(ISERROR(INDEX(funList,MATCH(ROW()-ROW($K$1),Function!$C$110:$CX$110,0))),"",INDEX(funList,MATCH(ROW()-ROW($K$1),Function!$C$110:$CX$110,0))) ->  | L41: =IF(ISERROR(INDEX(indexList,MATCH(ROW()-ROW($L$1),Index!$B$383:$CW$383,0))),"",INDEX(indexList,MATCH(ROW()-ROW($L$1),Index!$B$383:$CW$383,0))) ->  | M41: =IF(ISERROR(INDEX(funList,MATCH(ROW()-ROW($K$1),Function!$C$110:$CX$110,0))),"",INDEX(funList,MATCH(ROW()-ROW($K$1),Function!$C$110:$CX$110,0))) -> 
